Workbook

Sheet Resumo
A1: Ciclo Tarifário: 5 anos | B1: 4º Ciclo | G1: 5º Ciclo | L1: 6º Ciclo | Q1: 7º Ciclo | V1: 8º Ciclo | AA1: 9º Ciclo
A2: Indicador | B2: 2013 | C2: 2014 | D2: 2015 | E2: 2016 | F2: 2017 | G2: 2018 | H2: 2019 | I2: 2020 | J2: 2021 | K2: 2022 | L2: 2023 | M2: 2024 | N2: 2025 | O2: 2026 | P2: 2027 | Q2: 2028 | R2: 2029 | S2: 2030 | T2: 2031 | U2: 2032 | V2: 2033 | W2: 2034 | X2: 2035 | Y2: 2036 | Z2: 2037 | AA2: 2038 | AB2: 2039 | AC2: 2040
A3: Dolar | B3: 1.97 | C3: 2.34 | D3: 3.06 | E3: 3.78 | F3: 3.5 | G3: 3.5 | H3: 3.5 | I3: 3.5 | J3: 3.8 | K3: 3.8 | L3: 3.8 | M3: 3.8 | N3: 3.8 | O3: 3.8 | P3: 3.8 | Q3: 3.8 | R3: 3.8 | S3: 3.8 | T3: 3.5 | U3: 3.5 | V3: 3.5 | W3: 3.5 | X3: 3.5 | Y3: 3.5 | Z3: 3.5 | AA3: 3.5 | AB3: 3.5 | AC3: 3.5
A4: Tarifa Itaipu [R$/MWh] | B4: 110.7 | C4: 137.2 | D4: 325.17 | E4: 180.15 | F4: 195.12 | G4: =G3*55*G7/$F$7 -> 201.5225226 | H4: =H3*60*H7/$F$7 -> 228.4166192 | I4: 238.2385339 | J4: 269.0053388 | K4: 279.7655524 | L4: 290.9561745 | M4: 302.5944214 | N4: 314.6981983 | O4: 327.2861262 | P4: 340.3775713 | Q4: 353.9926741 | R4: 368.1523811 | S4: 382.8784763 | T4: 366.7572773 | U4: 381.4275684 | V4: 396.6846712 | W4: 412.552058 | X4: 429.0541403 | Y4: 446.2163059 | Z4: 464.0649582 | AA4: 482.6275565 | AB4: 501.9326588 | AC4: 522.0099651
A5: PIB | B5: 0.03 | C5: 0.005 | D5: -0.038 | E5: -0.036 | F5: 0.007 | G5: 0.025 | H5: 0.03 | I5: 0.02 | J5: 0.021 | K5: 0.023 | L5: 0.025 | M5: 0.025 | N5: 0.025 | O5: 0.025 | P5: 0.025 | Q5: 0.025 | R5: 0.025 | S5: 0.025 | T5: 0.025 | U5: 0.025 | V5: 0.025 | W5: 0.025 | X5: 0.025 | Y5: 0.025 | Z5: 0.025 | AA5: 0.025 | AB5: 0.025 | AC5: 0.025
A6: Delta IPCA | B6: =C7/B7-1 -> 0.06152891009 | C6: =D7/C7-1 -> 0.08128504661 | D6: =E7/D7-1 -> 0.09386372371 | E6: =F7/E7-1 -> 0.04738052276 | F6: =G7/F7-1 -> 0.0468702472 | G6: 0.039 | H6: 0.043 | I6: 0.04 | J6: 0.04 | K6: 0.04 | L6: 0.04 | M6: 0.04 | N6: 0.04 | O6: 0.04 | P6: 0.04 | Q6: 0.04 | R6: 0.04 | S6: 0.04 | T6: 0.04 | U6: 0.04 | V6: 0.04 | W6: 0.04 | X6: 0.04 | Y6: 0.04 | Z6: 0.04 | AA6: 0.04 | AB6: 0.04 | AC6: 0.04
A7: IPCA | B7: 3672.42 | C7: 3898.38 | D7: 4215.26 | E7: 4610.92 | F7: 4829.3878 | G7: 5055.7424 | H7: =G7*(1+G6) -> 5252.916354 | I7: =H7*(1+H6) -> 5478.791757 | J7: 5697.943427 | K7: 5925.861164 | L7: 6162.895611 | M7: 6409.411435 | N7: 6665.787893 | O7: 6932.419408 | P7: 7209.716185 | Q7: 7498.104832 | R7: 7798.029025 | S7: 8109.950186 | T7: 8434.348194 | U7: 8771.722121 | V7: 9122.591006 | W7: 9487.494647 | X7: 9866.994432 | Y7: 10261.67421 | Z7: 10672.14118 | AA7: 11099.02683 | AB7: 11542.9879 | AC7: 12004.70741
A8: Delta IGP-M | B8: =C9/B9-1 -> 0.07300117001 | C8: =D9/C9-1 -> 0.03160552594 | D8: 0.1155554697 | E8: 0.05217290025 | F8: 0.05000725508 | G8: 0.043 | H8: 0.043 | I8: 0.042 | J8: 0.042 | K8: 0.042 | L8: 0.042 | M8: 0.04 | N8: 0.04 | O8: 0.04 | P8: 0.04 | Q8: 0.04 | R8: 0.04 | S8: 0.04 | T8: 0.04 | U8: 0.04 | V8: 0.04 | W8: 0.04 | X8: 0.04 | Y8: 0.04 | Z8: 0.04 | AA8: 0.04 | AB8: 0.04 | AC8: 0.04
A9: IGP-M | B9: 514.526 | C9: 552.087 | D9: 569.536 | E9: 635.349 | F9: 668.497 | G9: 701.9267 | H9: =G9*(1+G8) -> 732.1095481 | I9: 763.5902587 | J9: 795.6610495 | K9: 829.0788136 | L9: 863.9001238 | M9: 900.183929 | N9: 936.1912861 | O9: 973.6389376 | P9: 1012.584495 | Q9: 1053.087875 | R9: 1095.21139 | S9: 1139.019845 | T9: 1184.580639 | U9: 1231.963865 | V9: 1281.242419 | W9: 1332.492116 | X9: 1385.791801 | Y9: 1441.223473 | Z9: 1498.872412 | AA9: 1558.827308 | AB9: 1621.180401 | AC9: 1686.027617
A10: Fator X | B10: =B11+B14+B15 -> 0.00116942752 | C10: =C11+C14+C15 -> -0.00373057248 | D10: =D11+D14+D15 -> 0.00116942752 | E10: =E11+E14 -> 0.009027922429 | F10: =F11+F14+F15 -> 0.01232792243 | G10: 0.01232792243 | H10: 0.01232792243 | I10: 0.01232792243 | J10: 0.01259121124 | K10: 0.01259121124 | L10: 0.01259121124 | M10: 0.01259121124 | N10: 0.01259121124 | O10: 0.0134592651 | P10: 0.0134592651 | Q10: 0.0134592651 | R10: 0.0134592651 | S10: 0.0134592651 | T10: 0.0134592651 | U10: 0.0134592651 | V10: 0.0134592651 | W10: 0.0134592651 | X10: 0.0134592651 | Y10: 0.0134592651 | Z10: 0.0134592651 | AA10: 0.0134592651 | AB10: 0.0134592651 | AC10: 0.0134592651
A11: Pd | B11: =1.11%+0.313*(B23-4.25%)-0.26*(B13-3.58%) -> 0.00116942752 | C11: =B11 -> 0.00116942752 | D11: =C11 -> 0.00116942752 | E11: =1.53%+0.14*(0.0187-4.65%)-0.04*(E13-3.39%) -> 0.01232792243 | F11: =E11 -> 0.01232792243 | G11: =F11 -> 0.01232792243 | H11: =G11 -> 0.01232792243 | I11: =H11 -> 0.01232792243 | J11: =1.53%+0.14*((1+(Demanda!J13/SUM(Demanda!J13:J15))*LN(Demanda!J13/Demanda!E13)+(Demanda!J14/SUM(Demanda!J13:J15))*LN(Demanda!J14/Demanda!E14)+(Demanda!J15/SUM(Demanda!J13:J15))*LN(Demanda!J15/Demanda!E15))^0.2-1-4.65%)-0.04*((J12/E12)^0.2-1-3.39%) -> 0.01259121124 | K11: =J11 -> 0.01259121124 | L11: =K11 -> 0.01259121124 | M11: =L11 -> 0.01259121124 | N11: =M11 -> 0.01259121124 | O11: =1.53%+0.14*((1+(Demanda!O13/SUM(Demanda!O13:O15))*LN(Demanda!O13/Demanda!J13)+(Demanda!O14/SUM(Demanda!O13:O15))*LN(Demanda!O14/Demanda!J14)+(Demanda!O15/SUM(Demanda!O13:O15))*LN(Demanda!O15/Demanda!J15))^0.2-1-4.65%)-0.04*((O12/J12)^0.2-1-3.39%) -> 0.0134592651 | P11: =O11 -> 0.0134592651 | Q11: =P11 -> 0.0134592651 | R11: =Q11 -> 0.0134592651 | S11: =R11 -> 0.0134592651 | T11: =1.53%+0.14*((1+(Demanda!T13/SUM(Demanda!T13:T15))*LN(Demanda!T13/Demanda!O13)+(Demanda!T14/SUM(Demanda!T13:T15))*LN(Demanda!T14/Demanda!O14)+(Demanda!T15/SUM(Demanda!T13:T15))*LN(Demanda!T15/Demanda!O15))^0.2-1-4.65%)-0.04*((T12/O12)^0.2-1-3.39%) -> 0.0134592651 | U11: =T11 -> 0.0134592651 | V11: =U11 -> 0.0134592651 | W11: =V11 -> 0.0134592651 | X11: =W11 -> 0.0134592651 | Y11: =1.53%+0.14*((1+(Demanda!Y13/SUM(Demanda!Y13:Y15))*LN(Demanda!Y13/Demanda!T13)+(Demanda!Y14/SUM(Demanda!Y13:Y15))*LN(Demanda!Y14/Demanda!T14)+(Demanda!Y15/SUM(Demanda!Y13:Y15))*LN(Demanda!Y15/Demanda!T15))^0.2-1-4.65%)-0.04*((Y12/T12)^0.2-1-3.39%) -> 0.0134592651 | Z11: =Y11 -> 0.0134592651 | AA11: =Z11 -> 0.0134592651 | AB11: =AA11 -> 0.0134592651 | AC11: =AB11 -> 0.0134592651
A12: N. Consumidores | B12: 5369027 | C12: =Demanda!C19 -> 3704131 | D12: =Demanda!D19 -> 3772815 | E12: =Demanda!E19 -> 3813946 | F12: =Demanda!F19 -> 3887484 | G12: =Demanda!G19 -> 3950596.794 | H12: =Demanda!H19 -> 4009855.746 | I12: =Demanda!I19 -> 4070003.582 | J12: =Demanda!J19 -> 4131053.636 | K12: =Demanda!K19 -> 4193019.44 | L12: =Demanda!L19 -> 4255914.732 | M12: =Demanda!M19 -> 4319753.453 | N12: =Demanda!N19 -> 4384549.755 | O12: =Demanda!O19 -> 4450318.001 | P12: =Demanda!P19 -> 4517072.771 | Q12: =Demanda!Q19 -> 4584828.862 | R12: =Demanda!R19 -> 4653601.295 | S12: =Demanda!S19 -> 4723405.315 | T12: =Demanda!T19 -> 4794256.395 | U12: =Demanda!U19 -> 4866170.24 | V12: =Demanda!V19 -> 4939162.794 | W12: =Demanda!W19 -> 5013250.236 | X12: =Demanda!X19 -> 5088448.99 | Y12: =Demanda!Y19 -> 5164775.724 | Z12: =Demanda!Z19 -> 5242247.36 | AA12: =Demanda!AA19 -> 5320881.071 | AB12: =Demanda!AB19 -> 5400694.287 | AC12: =Demanda!AC19 -> 5481704.701
A13: Delta N. Consumidores | B13: 0.022831048 | C13: =C12/B12-1 -> -0.3100926853 | D13: 0.01854254075 | E13: 0.01090193927 | F13: 0.01928134274 | G13: 0.01623486909 | H13: 0.015 | I13: 0.015 | J13: 0.015 | K13: 0.015 | L13: 0.015 | M13: 0.015 | N13: 0.015 | O13: 0.015 | P13: 0.015 | Q13: 0.015 | R13: 0.015 | S13: 0.015 | T13: 0.015 | U13: 0.015 | V13: 0.015 | W13: 0.015 | X13: 0.015 | Y13: 0.015 | Z13: 0.015 | AA13: 0.015 | AB13: 0.015 | AC13: 0.015
A14: Q | B14: 0 | C14: -0.0049 | D14: 0 | E14: -0.0033 | F14: 0 | G14: 0 | H14: 0 | I14: 0 | J14: 0 | K14: 0 | L14: 0 | M14: 0 | N14: 0 | O14: 0 | P14: 0 | Q14: 0 | R14: 0 | S14: 0 | T14: 0 | U14: 0 | V14: 0 | W14: 0 | X14: 0 | Y14: 0 | Z14: 0 | AA14: 0 | AB14: 0 | AC14: 0
A15: T | B15: 0 | C15: 0 | D15: 0 | E15: 0 | F15: 0 | G15: 0 | H15: 0 | I15: 0 | J15: 0 | K15: 0 | L15: 0 | M15: 0 | N15: 0 | O15: 0 | P15: 0 | Q15: 0 | R15: 0 | S15: 0 | T15: 0 | U15: 0 | V15: 0 | W15: 0 | X15: 0 | Y15: 0 | Z15: 0 | AA15: 0 | AB15: 0 | AC15: 0
A16: Meta de CO | E16: 57248302.56 | F16: =$E$16*F9/$E$9 -> 60235112.54 | G16: 63247305.18 | H16: 65966939.3 | I16: 68803517.69 | J16: 71693265.43 | K16: 74704382.58 | L16: 77841966.65 | M16: 81111329.25 | N16: 84355782.42 | O16: 87730013.71 | P16: 91239214.26 | Q16: 94888782.83 | R16: 98684334.15 | S16: 102631707.5 | T16: 106736975.8 | U16: 111006454.8 | V16: 115446713 | W16: 120064581.6 | X16: 124867164.8 | Y16: 129861851.4 | Z16: 135056325.5 | AA16: 140458578.5 | AB16: 146076921.6 | AC16: 151919998.5
A17: Tarifa média Energia Nova [R$/MWh] | B17: =SUMIF(Apoio!$A:$A,"=LEN",Apoio!D:D)/SUMIF(Contratos_volume!$A:$A,"=LEN",Contratos_volume!J:J) -> 0 | C17: =SUMIF(Apoio!$A:$A,"=LEN",Apoio!E:E)/SUMIF(Contratos_volume!$A:$A,"=LEN",Contratos_volume!K:K) -> 184.2590395 | D17: =SUMIF(Apoio!$A:$A,"=LEN",Apoio!F:F)/SUMIF(Contratos_volume!$A:$A,"=LEN",Contratos_volume!L:L) -> 199.198443 | E17: =SUMIF(Apoio!$A:$A,"=LEN",Apoio!G:G)/SUMIF(Contratos_volume!$A:$A,"=LEN",Contratos_volume!M:M) -> 214.8252271 | F17: =SUMIF(Apoio!$A:$A,"=LEN",Apoio!H:H)/SUMIF(Contratos_volume!$A:$A,"=LEN",Contratos_volume!N:N) -> 219.473643 | G17: =SUMIF(Apoio!$A:$A,"=LEN",Apoio!I:I)/SUMIF(Contratos_volume!$A:$A,"=LEN",Contratos_volume!O:O) -> 218.0455812 | H17: =SUMIF(Apoio!$A:$A,"=LEN",Apoio!J:J)/SUMIF(Contratos_volume!$A:$A,"=LEN",Contratos_volume!P:P) -> 227.847825 | I17: =SUMIF(Apoio!$A:$A,"=LEN",Apoio!K:K)/SUMIF(Contratos_volume!$A:$A,"=LEN",Contratos_volume!Q:Q) -> 251.7761232 | J17: =SUMIF(Apoio!$A:$A,"=LEN",Apoio!L:L)/SUMIF(Contratos_volume!$A:$A,"=LEN",Contratos_volume!R:R) -> 261.8471682 | K17: =SUMIF(Apoio!$A:$A,"=LEN",Apoio!M:M)/SUMIF(Contratos_volume!$A:$A,"=LEN",Contratos_volume!S:S) -> 272.3210549 | L17: =SUMIF(Apoio!$A:$A,"=LEN",Apoio!N:N)/SUMIF(Contratos_volume!$A:$A,"=LEN",Contratos_volume!T:T) -> 282.4889409 | M17: =SUMIF(Apoio!$A:$A,"=LEN",Apoio!O:O)/SUMIF(Contratos_volume!$A:$A,"=LEN",Contratos_volume!U:U) -> 292.073502 | N17: =SUMIF(Apoio!$A:$A,"=LEN",Apoio!P:P)/SUMIF(Contratos_volume!$A:$A,"=LEN",Contratos_volume!V:V) -> 297.2358399 | O17: =SUMIF(Apoio!$A:$A,"=LEN",Apoio!Q:Q)/SUMIF(Contratos_volume!$A:$A,"=LEN",Contratos_volume!W:W) -> 305.0745595 | P17: =SUMIF(Apoio!$A:$A,"=LEN",Apoio!R:R)/SUMIF(Contratos_volume!$A:$A,"=LEN",Contratos_volume!X:X) -> 315.6254531 | Q17: =SUMIF(Apoio!$A:$A,"=LEN",Apoio!S:S)/SUMIF(Contratos_volume!$A:$A,"=LEN",Contratos_volume!Y:Y) -> 324.4885108 | R17: =SUMIF(Apoio!$A:$A,"=LEN",Apoio!T:T)/SUMIF(Contratos_volume!$A:$A,"=LEN",Contratos_volume!Z:Z) -> 337.4680512 | S17: =SUMIF(Apoio!$A:$A,"=LEN",Apoio!U:U)/SUMIF(Contratos_volume!$A:$A,"=LEN",Contratos_volume!AA:AA) -> 350.9667733 | T17: =SUMIF(Apoio!$A:$A,"=LEN",Apoio!V:V)/SUMIF(Contratos_volume!$A:$A,"=LEN",Contratos_volume!AB:AB) -> 365.0054442 | U17: =SUMIF(Apoio!$A:$A,"=LEN",Apoio!W:W)/SUMIF(Contratos_volume!$A:$A,"=LEN",Contratos_volume!AC:AC) -> 379.605662 | V17: =SUMIF(Apoio!$A:$A,"=LEN",Apoio!X:X)/SUMIF(Contratos_volume!$A:$A,"=LEN",Contratos_volume!AD:AD) -> 394.7898885 | W17: =SUMIF(Apoio!$A:$A,"=LEN",Apoio!Y:Y)/SUMIF(Contratos_volume!$A:$A,"=LEN",Contratos_volume!AE:AE) -> 410.581484 | X17: =SUMIF(Apoio!$A:$A,"=LEN",Apoio!Z:Z)/SUMIF(Contratos_volume!$A:$A,"=LEN",Contratos_volume!AF:AF) -> 427.0047434 | Y17: =SUMIF(Apoio!$A:$A,"=LEN",Apoio!AA:AA)/SUMIF(Contratos_volume!$A:$A,"=LEN",Contratos_volume!AG:AG) -> 447.7391344 | Z17: =SUMIF(Apoio!$A:$A,"=LEN",Apoio!AB:AB)/SUMIF(Contratos_volume!$A:$A,"=LEN",Contratos_volume!AH:AH) -> 472.3681209 | AA17: =SUMIF(Apoio!$A:$A,"=LEN",Apoio!AC:AC)/SUMIF(Contratos_volume!$A:$A,"=LEN",Contratos_volume!AI:AI) -> 510.3775536 | AB17: =SUMIF(Apoio!$A:$A,"=LEN",Apoio!AD:AD)/SUMIF(Contratos_volume!$A:$A,"=LEN",Contratos_volume!AJ:AJ) -> 532.2887478 | AC17: =SUMIF(Apoio!$A:$A,"=LEN",Apoio!AE:AE)/SUMIF(Contratos_volume!$A:$A,"=LEN",Contratos_volume!AK:AK) -> 554.6659963
A18: Compra de Energia Nova | G18: 4253249.58 | H18: 5771467.675 | I18: 6975938.345 | J18: 7906016.755 | K18: 8863997.516 | L18: 10006640.17 | M18: 11408806.96 | N18: 13942443.42 | O18: 15426324.55 | P18: 16896233.5 | Q18: 18427536.71 | R18: 19605732.21 | S18: 20819273.58 | T18: 22069221.19 | U18: 23356667.23 | V18: 24682736.64 | W18: 26048588.14 | X18: 27455415.19 | Y18: 29106427.05 | Z18: 30869108.69 | AA18: 33297444.13 | AB18: 35157393.76 | AC18: 37134233.69
A19: Tarifa média Energia Existente [R$/MWh] | B19: =SUMIF(Apoio!$A:$A,"=LEE",Apoio!D:D)/SUMIF(Contratos_volume!$A:$A,"=LEE",Contratos_volume!J:J) -> 0 | C19: =SUMIF(Apoio!$A:$A,"=LEE",Apoio!E:E)/SUMIF(Contratos_volume!$A:$A,"=LEE",Contratos_volume!K:K) -> 202.1516464 | D19: =SUMIF(Apoio!$A:$A,"=LEE",Apoio!F:F)/SUMIF(Contratos_volume!$A:$A,"=LEE",Contratos_volume!L:L) -> 253.0850205 | E19: =SUMIF(Apoio!$A:$A,"=LEE",Apoio!G:G)/SUMIF(Contratos_volume!$A:$A,"=LEE",Contratos_volume!M:M) -> 241.7600156 | F19: =SUMIF(Apoio!$A:$A,"=LEE",Apoio!H:H)/SUMIF(Contratos_volume!$A:$A,"=LEE",Contratos_volume!N:N) -> 256.2471366 | G19: =IF(SUMIF(Apoio!$A:$A,"=LEE",Apoio!I:I)/SUMIF(Contratos_volume!$A:$A,"=LEE",Contratos_volume!O:O)>H17,H17,SUMIF(Apoio!$A:$A,"=LEE",Apoio!I:I)/SUMIF(Contratos_volume!$A:$A,"=LEE",Contratos_volume!O:O)) -> 227.847825 | H19: =IF(SUMIF(Apoio!$A:$A,"=LEE",Apoio!J:J)/SUMIF(Contratos_volume!$A:$A,"=LEE",Contratos_volume!P:P)>I17,I17,SUMIF(Apoio!$A:$A,"=LEE",Apoio!J:J)/SUMIF(Contratos_volume!$A:$A,"=LEE",Contratos_volume!P:P)) -> 251.7761232 | I19: =I17 -> 251.7761232 | J19: 261.8471682 | K19: 272.3210549 | L19: 282.4889409 | M19: 292.073502 | N19: 297.2358399 | O19: 305.0745595 | P19: 315.6254531 | Q19: 324.4885108 | R19: 337.4680512 | S19: 350.9667733 | T19: 365.0054442 | U19: 379.605662 | V19: 394.7898885 | W19: 410.581484 | X19: 427.0047434 | Y19: 447.7391344 | Z19: 472.3681209 | AA19: 510.3775536 | AB19: 532.2887478 | AC19: 554.6659963
A20: Compra de energia Existente | F20: 0
A21: CVU médio [R$/MWh] | B21: 0 | C21: 140 | D21: 120 | E21: 10 | F21: 10 | G21: =45*G3 -> 157.5 | H21: =45*H3 -> 157.5 | I21: =45*I3 -> 157.5 | J21: 171 | K21: 171 | L21: 171 | M21: 171 | N21: 171 | O21: 171 | P21: 171 | Q21: 171 | R21: 171 | S21: 171 | T21: 157.5 | U21: 157.5 | V21: 157.5 | W21: 157.5 | X21: 157.5 | Y21: 157.5 | Z21: 157.5 | AA21: 157.5 | AB21: 157.5 | AC21: =45*AC3 -> 157.5
A22: WACC | E22: 0.1226 | F22: 0.09 | G22: 0.09 | H22: 0.09 | I22: 0.09 | J22: 0.07 | K22: =J22 -> 0.07 | L22: 0.07 | M22: 0.07 | N22: 0.07 | O22: 0.07 | P22: 0.07 | Q22: 0.07 | R22: 0.07 | S22: 0.06 | T22: =S22 -> 0.06 | U22: 0.06 | V22: 0.06 | W22: 0.06 | X22: 0.06 | Y22: 0.06 | Z22: 0.06 | AA22: 0.06 | AB22: 0.06 | AC22: 0.06
A23: Delta de Energia Distribuída | C23: 0.04 | D23: =D24/C24-1 -> 0.02232009712 | E23: =E24/D24-1 -> -0.04307524149 | F23: =F24/E24-1 -> 0.01115615715 | G23: =SUM(Demanda!G13:G15)/SUM(Demanda!F13:F15)-1 -> 0.015 | H23: =SUM(Demanda!H13:H15)/SUM(Demanda!G13:G15)-1 -> 0.03 | I23: =SUM(Demanda!I13:I15)/SUM(Demanda!H13:H15)-1 -> 0.03 | J23: =SUM(Demanda!J13:J15)/SUM(Demanda!I13:I15)-1 -> 0.03 | K23: =SUM(Demanda!K13:K15)/SUM(Demanda!J13:J15)-1 -> 0.03 | L23: =SUM(Demanda!L13:L15)/SUM(Demanda!K13:K15)-1 -> 0.03 | M23: =SUM(Demanda!M13:M15)/SUM(Demanda!L13:L15)-1 -> 0.03 | N23: =SUM(Demanda!N13:N15)/SUM(Demanda!M13:M15)-1 -> 0.03 | O23: =SUM(Demanda!O13:O15)/SUM(Demanda!N13:N15)-1 -> 0.03 | P23: =SUM(Demanda!P13:P15)/SUM(Demanda!O13:O15)-1 -> 0.03 | Q23: =SUM(Demanda!Q13:Q15)/SUM(Demanda!P13:P15)-1 -> 0.03 | R23: =SUM(Demanda!R13:R15)/SUM(Demanda!Q13:Q15)-1 -> 0.03 | S23: =SUM(Demanda!S13:S15)/SUM(Demanda!R13:R15)-1 -> 0.03 | T23: =SUM(Demanda!T13:T15)/SUM(Demanda!S13:S15)-1 -> 0.03 | U23: =SUM(Demanda!U13:U15)/SUM(Demanda!T13:T15)-1 -> 0.03 | V23: =SUM(Demanda!V13:V15)/SUM(Demanda!U13:U15)-1 -> 0.03 | W23: =SUM(Demanda!W13:W15)/SUM(Demanda!V13:V15)-1 -> 0.03 | X23: =SUM(Demanda!X13:X15)/SUM(Demanda!W13:W15)-1 -> 0.03 | Y23: =SUM(Demanda!Y13:Y15)/SUM(Demanda!X13:X15)-1 -> 0.03 | Z23: =SUM(Demanda!Z13:Z15)/SUM(Demanda!Y13:Y15)-1 -> 0.03 | AA23: =SUM(Demanda!AA13:AA15)/SUM(Demanda!Z13:Z15)-1 -> 0.03 | AB23: =SUM(Demanda!AB13:AB15)/SUM(Demanda!AA13:AA15)-1 -> 0.03 | AC23: =SUM(Demanda!AC13:AC15)/SUM(Demanda!AB13:AB15)-1 -> 0.03
A24: Energia Distribuida [MWh] | C24: 20939201 | D24: 21406566 | E24: 20484473 | F24: 20713001 | G24: =Demanda!G17 -> 21023695.54 | H24: =Demanda!H17 -> 21654406.4 | I24: =Demanda!I17 -> 22304038.6 | J24: =Demanda!J17 -> 22973159.75 | K24: =Demanda!K17 -> 23662354.55 | L24: =Demanda!L17 -> 24372225.18 | M24: =Demanda!M17 -> 25103391.94 | N24: =Demanda!N17 -> 25856493.7 | O24: =Demanda!O17 -> 26632188.51 | P24: =Demanda!P17 -> 27431154.16 | Q24: =Demanda!Q17 -> 28254088.79 | R24: =Demanda!R17 -> 29101711.45 | S24: =Demanda!S17 -> 29974762.79 | T24: =Demanda!T17 -> 30874005.68 | U24: =Demanda!U17 -> 31800225.85 | V24: =Demanda!V17 -> 32754232.62 | W24: =Demanda!W17 -> 33736859.6 | X24: =Demanda!X17 -> 34748965.39 | Y24: =Demanda!Y17 -> 35791434.35 | Z24: =Demanda!Z17 -> 36865177.38 | AA24: =Demanda!AA17 -> 37971132.71 | AB24: =Demanda!AB17 -> 39110266.69 | AC24: =Demanda!AC17 -> 40283574.69
A25: Tarifa média contratos [R$/MWh] | B25: =Apoio!D2/(B26-B29) ->  | C25: =Apoio!E2/(C26-C29) -> 146.4076194 | D25: =Apoio!F2/(D26-D29) -> 183.4615581 | E25: =Apoio!G2/(E26-E29) -> 177.2820401 | F25: =Apoio!H2/(F26-F29) -> 181.3012559 | G25: =Apoio!I2/(G26-G29) -> 199.3117696 | H25: =Apoio!J2/(H26-H29) -> 214.3705723 | I25: =Apoio!K2/(I26-I29) -> 226.7959107 | J25: =Apoio!L2/(J26-J29) -> 241.3612259 | K25: =Apoio!M2/(K26-K29) -> 250.3837895 | L25: =Apoio!N2/(L26-L29) -> 258.6751003 | M25: =Apoio!O2/(M26-M29) -> 265.7671267 | N25: =Apoio!P2/(N26-N29) -> 265.3142478 | O25: =Apoio!Q2/(O26-O29) -> 271.9571736 | P25: =Apoio!R2/(P26-P29) -> 280.6147138 | Q25: =Apoio!S2/(Q26-Q29) -> 288.3995306 | R25: =Apoio!T2/(R26-R29) -> 300.5482382 | S25: =Apoio!U2/(S26-S29) -> 313.2220548 | T25: =Apoio!V2/(T26-T29) -> 321.8259104 | U25: =Apoio!W2/(U26-U29) -> 335.6019374 | V25: =Apoio!X2/(V26-V29) -> 349.9657666 | W25: =Apoio!Y2/(W26-W29) -> 364.9404515 | X25: =Apoio!Z2/(X26-X29) -> 380.5499873 | Y25: =Apoio!AA2/(Y26-Y29) -> 398.6354109 | Z25: =Apoio!AB2/(Z26-Z29) -> 419.5688008 | AA25: =Apoio!AC2/(AA26-AA29) -> 448.5013806 | AB25: =Apoio!AD2/(AB26-AB29) -> 468.9686933 | AC25: =Apoio!AE2/(AC26-AC29) -> 490.2316569
A26: Energia Contrada [MWh] | B26: =Contratos_volume!J2 -> 0 | C26: =Contratos_volume!K2 -> 28846620.94 | D26: =Contratos_volume!L2 -> 29725389.81 | E26: =Contratos_volume!M2 -> 30167850.79 | F26: =Contratos_volume!N2 -> 30063731.96 | G26: =Contratos_volume!O2 -> 29222936.8 | H26: =Contratos_volume!P2 -> 30099624.9 | I26: =Contratos_volume!Q2 -> 31002613.65 | J26: =Contratos_volume!R2 -> 31932692.06 | K26: =Contratos_volume!S2 -> 32890672.82 | L26: =Contratos_volume!T2 -> 33877393 | M26: =Contratos_volume!U2 -> 34893714.79 | N26: =Contratos_volume!V2 -> 35940526.24 | O26: =Contratos_volume!W2 -> 37018742.03 | P26: =Contratos_volume!X2 -> 38129304.29 | Q26: =Contratos_volume!Y2 -> 39273183.42 | R26: =Contratos_volume!Z2 -> 40451378.92 | S26: =Contratos_volume!AA2 -> 41664920.29 | T26: =Contratos_volume!AB2 -> 42914867.89 | U26: =Contratos_volume!AC2 -> 44202313.93 | V26: =Contratos_volume!AD2 -> 45528383.35 | W26: =Contratos_volume!AE2 -> 46894234.85 | X26: =Contratos_volume!AF2 -> 48301061.89 | Y26: =Contratos_volume!AG2 -> 49750093.75 | Z26: =Contratos_volume!AH2 -> 51242596.56 | AA26: =Contratos_volume!AI2 -> 52779874.46 | AB26: =Contratos_volume!AJ2 -> 54363270.69 | AC26: =Contratos_volume!AK2 -> 55994168.82
A27: Perdas TUSD | C27: 0.3706 | D27: 0.3743 | E27: 0.3506 | F27: 0.3712 | G27: 0.37 | H27: =G27 -> 0.37 | I27: 0.37 | J27: 0.37 | K27: 0.37 | L27: 0.37 | M27: 0.37 | N27: 0.37 | O27: 0.37 | P27: 0.37 | Q27: 0.37 | R27: 0.37 | S27: 0.37 | T27: 0.37 | U27: 0.37 | V27: 0.37 | W27: 0.37 | X27: 0.37 | Y27: 0.37 | Z27: 0.37 | AA27: 0.37 | AB27: 0.37 | AC27: 0.37
A28: Perdas TE | C28: 0.019 | D28: 0.0197 | E28: 0.0213 | F28: 0.0205 | G28: 0.02 | H28: =G28 -> 0.02 | I28: 0.02 | J28: 0.02 | K28: 0.02 | L28: 0.02 | M28: 0.02 | N28: 0.02 | O28: 0.02 | P28: 0.02 | Q28: 0.02 | R28: 0.02 | S28: 0.02 | T28: 0.02 | U28: 0.02 | V28: 0.02 | W28: 0.02 | X28: 0.02 | Y28: 0.02 | Z28: 0.02 | AA28: 0.02 | AB28: 0.02 | AC28: 0.02
A29: Sobra (+) / Exposição (-) [MWh] | B29: =B26-B24*(1+B27+B28) -> 0 | C29: -250492.7741 | D29: -115363.1905 | E29: =E26-E24*(1+E27+E28) -> 2065202.284 | F29: =F26-F24*(1+F27+F28) -> 1237448.471 | G29: =G26-G24*(1+G27+G28) -> 0 | H29: 0 | I29: 0 | J29: 0 | K29: 0 | L29: 0 | M29: 0 | N29: 0 | O29: 0 | P29: 0 | Q29: 0 | R29: 0 | S29: 0 | T29: 0 | U29: 0 | V29: 0 | W29: 0 | X29: 0 | Y29: 0 | Z29: 0 | AA29: 0 | AB29: 0 | AC29: 0
A30: Valor de venda/compra [R$/Mwh]
A31: TUSD fio A | C31: 204009847.4 | D31: 252235397 | E31: 289573796.7 | F31: 679320056.5 | G31: =F31*(1+F$8) -> 713290987.8 | H31: 743962500.3 | I31: 775952887.8 | J31: 808542909.1 | K31: 842501711.3 | L31: 877886783.2 | M31: 914758028.1 | N31: 951348349.2 | O31: 989402283.2 | P31: 1028978374 | Q31: 1070137509 | R31: 1112943010 | S31: 1157460730 | T31: 1203759159 | U31: 1251909526 | V31: 1301985907 | W31: 1354065343 | X31: 1408227957 | Y31: 1464557075 | Z31: 1523139358 | AA31: 1584064932 | AB31: 1647427530 | AC31: 1713324631
A32: TUSD Perdas | B32: =B27*B25*B24 ->  | C32: 1136133066 | D32: 1469981635 | E32: 1273214125 | F32: =F27*F25*F24 -> 1393964797 | G32: 1550399885 | H32: =H27*H25*H24 -> 1717564973 | I32: 1871631956 | J32: 2051587100 | K32: 2192127900 | L32: 2332660484 | M32: 2468512848 | N32: 2538235585 | O32: 2679841444 | P32: 2848106626 | Q32: 3014932399 | R32: 3236193198 | S32: 3473840014 | T32: 3676340344 | U32: 3948720440 | V32: 4241258248 | W32: 4555419567 | X32: 4892775786 | Y32: 5279061262 | Z32: 5722966958 | AA32: 6301139014 | AB32: 6786351545 | AC32: 7306864918
A33: TUSD fio B | C33: 2271363859 | D33: 2437458411 | E33: 2534845668 | F33: 2690883325 | G33: =(F33)*(0.1+G7/F7-G10) -> 3052921023 | H33: =(G33)*(H7/G7-H10) -> 3134348769 | I33: 3230485758 | J33: 3319029459 | K33: 3410000037 | L33: =(K33)*(0.2+L7/K7-L10) -> 4185464015 | M33: 4300182514 | N33: 4418045308 | O33: 4535303477 | P33: 4655673765 | Q33: =(P33)*(0.2+Q7/P7-Q10) -> 5710373521 | R33: 5861931030 | S33: 6017510988 | T33: 6177220152 | U33: 6341168114 | V33: =(U33)*(0.2+V7/U7-V10) -> 7777700999 | W33: 7984126899 | X33: 8196031495 | Y33: 8413560194 | Z33: 8636862265 | AA33: =(Z33)*(0.2+AA7/Z7-AA10) -> 1.059346339e+10 | AB33: 1.087462169e+10 | AC33: 1.116324214e+10
A34: Custos Operacionais (CO3)
A35: Remuneração do Capital (RC)
A36: Amortização
A37: Investimentos anual
A38: Quota de Reintegração Regulatória (QRR)
A39: Custo anual das instalações móveis e imóveis (CAIMI)
A40: Outras Receitas (OR)
A41: TE_En | B41: =B24*B25 ->  | C41: =C24*C25 -> 3065658571 | D41: =D24*D25 -> 3927281952 | E41: 3631529164 | F41: 3755293095 | G41: 4190269961 | H41: 4642067495 | I41: 5058464746 | J41: 5544830001 | K41: 5924670001 | L41: 6304487795 | M41: 6671656347 | N41: 6860096175 | O41: 7242814714 | P41: 7697585476 | Q41: 8148465944 | R41: 8746468104 | S41: 9388756795 | T41: 9936054985 | U41: 1.06722174e+10 | V41: 1.146286013e+10 | W41: 1.231194478e+10 | X41: 1.322371834e+10 | Y41: 1.426773314e+10 | Z41: 1.546747827e+10 | AA41: 1.703010544e+10 | AB41: 1.834149066e+10 | AC41: 1.974828356e+10
A42: TE Perdas | B42: =B28*B25*B24 ->  | C42: 58247512.85 | D42: 77367454.46 | E42: 77351571.19 | F42: =F28*F25*F24 -> 76983508.44 | G42: 83805399.21 | H42: 92841349.89 | I42: 101169294.9 | J42: 110896600 | K42: 118493400 | L42: 126089755.9 | M42: 133433126.9 | N42: 137201923.5 | O42: 144856294.3 | P42: 153951709.5 | Q42: 162969318.9 | R42: 174929362.1 | S42: 187775135.9 | T42: 198721099.7 | U42: 213444348.1 | V42: 229257202.6 | W42: 246238895.5 | X42: 264474366.8 | Y42: 285354662.8 | Z42: 309349565.3 | AA42: 340602108.9 | AB42: 366829813.3 | AC42: 394965671.3
A43: TE_T | C43: 63107666.08 | D43: 72275157.54 | E43: 77817174.61 | F43: 143247558.5 | G43: =F43*(1+F$8) -> 150410975.7 | H43: 156878647.7 | I43: 163624429.5 | J43: 170496655.6 | K43: 177657515.1 | L43: 185119130.8 | M43: 192894134.3 | N43: 200609899.6 | O43: 208634295.6 | P43: 216979667.4 | Q43: 225658854.1 | R43: 234685208.3 | S43: 244072616.6 | T43: 253835521.3 | U43: 263988942.1 | V43: 274548499.8 | W43: 285530439.8 | X43: 296951657.4 | Y43: 308829723.7 | Z43: 321182912.7 | AA43: 334030229.2 | AB43: 347391438.3 | AC43: 361287095.9
A44: Encargos | B44: =SUM(B47:B53) -> 0 | C44: 502484638.2 | D44: 2506848874 | E44: 2400013301 | F44: 2112659956 | G44: 3023551487 | H44: 3257696746 | I44: 3329214402 | J44: 3169499678 | K44: 3257491579 | L44: 3349637153 | M44: 3451922916 | N44: 3421437036 | O44: 2978710330 | P44: 3079617722 | Q44: 3190779146 | R44: 3315263716 | S44: 3436978518 | T44: 3563562830 | U44: 3693322289 | V44: 3830357156 | W44: 3985701133 | X44: 4134676795 | Y44: 4267638880 | Z44: 4407002409 | AA44: 4553506210 | AB44: 4727506492 | AC44: 4886784996
A45: Encargos descontada a inflação | B45: =B44*$B$7/B$7/10^9 -> 0 | C45: 0.4733593532 | D45: 2.184017579 | E45: 1.911518059 | F45: 1.606533788 | G45: 2.196265172 | H45: 2.277521643 | I45: 2.231563837 | J45: 2.042795643 | K45: 2.018757594 | L45: 1.996021878 | M45: 1.977858792 | N45: 1.884991542 | O45: 1.577959259 | P45: 1.568667812 | Q45: 1.562779051 | R45: 1.561297186 | S45: 1.556363277 | T45: 1.551619533 | U45: 1.546267706 | V45: 1.541961074 | W45: 1.542785435 | X45: 1.538895138 | Y45: 1.527290972 | Z45: 1.51650578 | AA45: 1.506653469 | AB45: 1.504063726 | AC45: 1.494940804
A46: Valor relativo da CDE | B46: =B48/B24 ->  | C46: 5.420305607 | D46: 97.35295805 | E46: =E48/E24 -> 82.25009332 | F46: 72.98526663 | G46: 111.2414197 | H46: 109.1083283 | I46: 107.8743729 | J46: 96.24209999 | K46: 95.51058334 | L46: 94.81451716 | M46: 94.15300625 | N46: 88.51794953 | O46: 67.73935865 | P46: 67.91012639 | Q46: 68.09076455 | R46: 68.28112976 | S46: 68.48108423 | T46: 68.69049559 | U46: 68.90923676 | V46: 69.13718579 | W46: 69.37422575 | X46: 69.62024456 | Y46: 69.2603329 | Z46: 68.92709694 | AA46: 68.61991693 | AB46: 68.33819271 | AC46: 68.08134311
A47: Taxa de Fisc. de Serviços de E.E. – TFSEE | C47: 9774901.65 | D47: 9008654.2 | E47: 9522769.23 | F47: 9920200.52 | G47: =F47*G7/F7 -> 10385162.77 | H47: 10790184.12 | I47: 11254162.04 | J47: 11704328.52 | K47: 12172501.66 | L47: 12659401.72 | M47: 13165777.79 | N47: 13692408.9 | O47: 14240105.26 | P47: 14809709.47 | Q47: 15402097.85 | R47: 16018181.76 | S47: 16658909.04 | T47: 17325265.4 | U47: 18018276.01 | V47: 18739007.05 | W47: 19488567.33 | X47: 20268110.03 | Y47: 21078834.43 | Z47: 21921987.81 | AA47: 22798867.32 | AB47: 23710822.01 | AC47: 24659254.89
A48: Conta de Desenvolvimento Energético – CDE | C48: 113496868.6 | D48: 2083992522 | E48: 1684849816 | F48: 1511743901 | G48: =F48*(1+Encargos!G15) -> 2338705739 | H48: =G48*(1+Encargos!H15) -> 2362676083 | I48: =H48*(1+Encargos!I15) -> 2406034176 | J48: =I48*(1+Encargos!J15) -> 2210985138 | K48: =J48*(1+Encargos!K15) -> 2260005286 | L48: =K48*(1+Encargos!L15) -> 2310840763 | M48: =L48*(1+Encargos!M15) -> 2363559818 | N48: =M48*(1+Encargos!N15) -> 2288763804 | O48: =N48*(1+Encargos!O15) -> 1804047369 | P48: =O48*(1+Encargos!P15) -> 1862853146 | Q48: =P48*(1+Encargos!Q15) -> 1923842507 | R48: =Q48*(1+Encargos!R15) -> 1987097736 | S48: =R48*(1+Encargos!S15) -> 2052704256 | T48: =S48*(1+Encargos!T15) -> 2120750751 | U48: =T48*(1+Encargos!U15) -> 2191329292 | V48: =U48*(1+Encargos!V15) -> 2264535467 | W48: =V48*(1+Encargos!W15) -> 2340468514 | X48: =W48*(1+Encargos!X15) -> 2419231469 | Y48: =X48*(1+Encargos!Y15) -> 2478926658 | Z48: =Y48*(1+Encargos!Z15) -> 2541009655 | AA48: =Z48*(1+Encargos!AA15) -> 2605575972 | AB48: =AA48*(1+Encargos!AB15) -> 2672724942 | AC48: =AB48*(1+Encargos!AC15) -> 2742559870
A49: Compensação financeira - CFURH | D49: 0 | E49: 0 | F49: 0 | G49: -1 | H49: -1 | I49: -1 | J49: -1 | K49: -1 | L49: -1 | M49: -1 | N49: -1 | O49: -1 | P49: -1 | Q49: -1 | R49: -1 | S49: -1 | T49: -1 | U49: -1 | V49: -1 | W49: -1 | X49: -1 | Y49: -1 | Z49: -1 | AA49: -1 | AB49: -1 | AC49: -1
A50: Encargos Serv. Sist. - ESS e Energ. Reserv. - EER | C50: 148789946.1 | D50: 186862607.6 | E50: 417676547.4 | F50: 314786790.2 | G50: =F50*(1+Encargos!F17) -> 375864824.1 | H50: =G50*(1+Encargos!G17) -> 559098925.9 | I50: =H50*(1+Encargos!H17) -> 568495546.5 | J50: =I50*(1+Encargos!I17) -> 587288787.7 | K50: =J50*(1+Encargos!J17) -> 610780339.2 | L50: =K50*(1+Encargos!K17) -> 635211552.8 | M50: =L50*(1+Encargos!L17) -> 660620014.9 | N50: =M50*(1+Encargos!M17) -> 687044815.5 | O50: =N50*(1+Encargos!N17) -> 714526608.1 | P50: =O50*(1+Encargos!O17) -> 743107672.4 | Q50: =P50*(1+Encargos!P17) -> 772831979.3 | R50: =Q50*(1+Encargos!Q17) -> 803745258.5 | S50: =R50*(1+Encargos!R17) -> 835895068.8 | T50: =S50*(1+Encargos!S17) -> 869330871.6 | U50: =T50*(1+Encargos!T17) -> 904104106.4 | V50: =U50*(1+Encargos!U17) -> 940268270.7 | W50: =V50*(1+Encargos!V17) -> 977879001.5 | X50: =W50*(1+Encargos!W17) -> 1016994162 | Y50: =X50*(1+Encargos!X17) -> 1057673928 | Z50: =Y50*(1+Encargos!Y17) -> 1099980885 | AA50: =Z50*(1+Encargos!Z17) -> 1143980121 | AB50: =AA50*(1+Encargos!AA17) -> 1189739325 | AC50: =AB50*(1+Encargos!AB17) -> 1237328898
A51: PROINFA | C51: 157159311.4 | D51: 148025908.4 | E51: 206129225.4 | F51: 181252255 | G51: =F51*G7/F7 -> 189747593 | H51: 197147749.1 | I51: 205625102.3 | J51: 213850106.4 | K51: 222404110.7 | L51: 231300275.1 | M51: 240552286.1 | N51: 250174377.5 | O51: 260181352.6 | P51: 270588606.7 | Q51: 281412151 | R51: 292668637 | S51: 304375382.5 | T51: 316550397.8 | U51: 329212413.7 | V51: 342380910.3 | W51: 356076146.7 | X51: 370319192.6 | Y51: 385131960.3 | Z51: 400537238.7 | AA51: 416558728.2 | AB51: 433221077.3 | AC51: 450549920.4
A52: P&D, Efic.Energ e Ressarc.ICMS Sist.Isol. | C52: 73001877.71 | D52: 78680347.72 | E52: 81549090 | F52: 94646698.38 | G52: =F55*1% -> 108523522.9 | H52: 127646497.2 | I52: 137453604.8 | J52: 145305434.7 | K52: 151748824 | L52: 159229421.4 | M52: 173613451.2 | N52: 181333599.1 | O52: 185269742.8 | P52: 187795628.4 | Q52: 196808933.4 | R52: 215233166.9 | S52: 226824136.3 | T52: 239063948 | U52: 250094940.9 | V52: 263847710.6 | W52: 291179681.4 | X52: 307230270.6 | Y52: 324168564 | Z52: 342867349.4 | AA52: 363879817.3 | AB52: 407369113.3 | AC52: 430916191.7
A53: ONS | C53: 261732.77 | D53: 278833.8 | E53: 285853.56 | F53: 310110.86 | G53: =F53*G7/F7 -> 324645.8327 | H53: 337307.0201 | I53: 351811.222 | J53: 365883.6709 | K53: 380519.0177 | L53: 395739.7784 | M53: 411569.3696 | N53: 428032.1444 | O53: 445153.4301 | P53: 462959.5673 | Q53: 481477.95 | R53: 500737.068 | S53: 520766.5507 | T53: 541597.2128 | U53: 563261.1013 | V53: 585791.5453 | W53: 609223.2072 | X53: 633592.1354 | Y53: 658935.8209 | Z53: 685293.2537 | AA53: 712704.9838 | AB53: 741213.1832 | AC53: 770861.7105
A55: Receita Requerida | B55: =B56+B57 ->  | C55: 7301005161 | D55: 1.074344888e+10 | E55: 1.02843448e+10 | F55: 1.085235229e+10 | G55: 1.276464972e+10 | H55: 1.374536048e+10 | I55: 1.453054347e+10 | J55: 1.51748824e+10 | K55: 1.592294214e+10 | L55: 1.736134512e+10 | M55: 1.813335991e+10 | N55: 1.852697428e+10 | O55: 1.877956284e+10 | P55: 1.968089334e+10 | Q55: 2.152331669e+10 | R55: 2.268241363e+10 | S55: 2.39063948e+10 | T55: 2.500949409e+10 | U55: 2.638477106e+10 | V55: 2.911796814e+10 | W55: 3.072302706e+10 | X55: 3.24168564e+10 | Y55: 3.428673494e+10 | Z55: 3.638798173e+10 | AA55: 4.073691133e+10 | AB55: 4.309161917e+10 | AC55: 4.557475302e+10
A56: TUSD média | B56: =B31+B33+B47+B51+B53+B48+B32 ->  | C56: =C31+C33+C47+C51+C53+C48+C32 -> 3892199588 | D56: =D31+D33+D47+D51+D53+D48+D32 -> 6400981361 | E56: =E31+E33+E47+E51+E53+E48+E32 -> 5998421254 | F56: =F31+F32+F33+F47+F48+F51+F53 -> 6467394645 | G56: 7855775037 | H56: 8166827566 | I56: 8501335853 | J56: 8616064926 | K56: 8939592066 | L56: 9951207461 | M56: 1.030114284e+10 | N56: 1.046068786e+10 | O56: 1.028346118e+10 | P56: 1.068147319e+10 | Q56: 1.201658166e+10 | R56: 1.250735253e+10 | S56: 1.302307105e+10 | T56: 1.351248767e+10 | U56: 1.408092132e+10 | V56: 1.594718633e+10 | W56: 1.661025426e+10 | X56: 1.73074876e+10 | Y56: 1.804297492e+10 | Z56: 1.884712276e+10 | AA56: 2.152431361e+10 | AB56: 2.243879882e+10 | AC56: 2.34019716e+10
A57: TE média | B57: =B41+B43+B52+B50+B49+B42 ->  | C57: 3408805574 | D57: 4342467520 | E57: 4285923547 | F57: 4384957650 | G57: 4908874682 | H57: 5578532914 | I57: 6029207621 | J57: 6558817478 | K57: 6983350078 | L57: 7410137654 | M57: 7832217073 | N57: 8066286411 | O57: 8496101654 | P57: 8999420152 | Q57: 9506735029 | R57: 1.01750611e+10 | S57: 1.088332375e+10 | T57: 1.149700642e+10 | U57: 1.230384974e+10 | V57: 1.317078181e+10 | W57: 1.411277279e+10 | X57: 1.510936879e+10 | Y57: 1.624376002e+10 | Z57: 1.754085898e+10 | AA57: 1.921259772e+10 | AB57: 2.065282035e+10 | AC57: 2.217278142e+10
A58: Tarifa média da Distribuidora | B58: =B55/B24 ->  | C58: 348.676397 | D58: 501.8763346 | E58: 502.0556204 | F58: 523.9391576 | G58: 607.1553736 | H58: 634.7604374 | I58: 651.4758935 | J58: 660.5483341 | K58: 672.9229803 | L58: 712.3414044 | M58: 722.3470023 | N58: 716.5308063 | O58: 705.1453107 | P58: 717.4650116 | Q58: 761.7770601 | R58: 779.4185461 | S58: 797.5507583 | T58: 810.0501876 | U58: 829.7038892 | V58: 888.9833712 | W58: 910.6664763 | X58: 932.8869516 | Y58: 957.9592312 | Z58: 987.0556529 | AA58: 1072.838981 | AB58: 1101.798142 | AC58: 1131.348282
A59: TUSD média | B59: =B56/B$24 ->  | C59: 185.8809984 | D59: 299.0195327 | E59: 292.8277068 | F59: 312.2384171 | G59: 373.6628997 | H59: 377.143913 | I59: 381.1567944 | J59: 375.0491886 | K59: 377.7980779 | L59: 408.3011455 | M59: 410.348644 | N59: 404.5671462 | O59: 386.1290326 | P59: 389.3920439 | Q59: 425.3041658 | R59: 429.7806523 | S59: 434.46786 | T59: 437.6655173 | U59: 442.7931232 | V59: 486.8740633 | W59: 492.3473748 | X59: 498.0720262 | Y59: 504.1143292 | Z59: 511.244597 | AA59: 566.8599295 | AB59: 573.7316752 | AC59: 580.9308579
A60: TE média | B60: =B57/B$24 ->  | C60: 162.7953986 | D60: 202.856802 | E60: 209.2279136 | F60: 211.7007405 | G60: 233.4924739 | H60: 257.6165243 | I60: 270.3190992 | J60: 285.4991454 | K60: 295.1249025 | L60: 304.0402589 | M60: 311.9983583 | N60: 311.9636601 | O60: 319.016278 | P60: 328.0729677 | Q60: 336.4728942 | R60: 349.6378938 | S60: 363.0828983 | T60: 372.3846703 | U60: 386.910766 | V60: 402.1093079 | W60: 418.3191014 | X60: 434.8149254 | Y60: 453.844902 | Z60: 475.8110559 | AA60: 505.9790517 | AB60: 528.066467 | AC60: 550.4174243
A61: TD Atualizada | B61: =B58*$F$7/B$7 ->  | C61: 431.946998 | D61: 574.9954801 | E61: 525.8432782 | F61: 523.9391576 | G61: 579.9719451 | H61: 583.5814062 | I61: 574.2561265 | J61: 559.858852 | K61: 548.4107612 | L61: 558.20723 | M61: 544.2767773 | N61: 519.1291997 | O61: 491.2311215 | P61: 480.5898991 | Q61: 490.6462263 | R61: 482.7007447 | S61: 474.9328681 | T61: 463.8232147 | U61: 456.8044661 | V61: 470.6168943 | W61: 463.5535233 | X61: 456.6003248 | Y61: 450.8383846 | Z61: 446.6652426 | AA61: 466.8116916 | AB61: 460.9734111 | AC61: 455.1314249
A62: TUSD Atualizada | B62: =B59*$F$7/B$7 ->  | C62: 230.2729405 | D62: 342.5841545 | E62: 306.7020366 | F62: 312.2384171 | G62: 356.9333455 | H62: 346.7358111 | I62: 335.9780868 | J62: 317.8792487 | K62: 307.8933808 | L62: 319.9542383 | M62: 309.191063 | N62: 293.1103827 | O62: 268.9922132 | P62: 260.8320686 | Q62: 273.9303859 | R62: 266.1669291 | S62: 258.7209211 | T62: 250.6010496 | U62: 243.785619 | V62: 257.7451581 | W62: 250.6179444 | X62: 243.7807159 | Y62: 237.248186 | Z62: 231.3498649 | AA62: 246.6510326 | AB62: 240.0394748 | AC62: 233.7033549
A63: TE Atualizada | B63: =B60*$F$7/B$7 ->  | C63: 201.6740574 | D63: 232.4113256 | E63: 219.1412415 | F63: 211.7007405 | G63: 223.0385996 | H63: 236.8455951 | I63: 238.2780397 | J63: 241.9796033 | K63: 240.5173803 | L63: 238.2529917 | M63: 235.0857143 | N63: 226.0188171 | O63: 222.2389083 | P63: 219.7578305 | Q63: 216.7158405 | R63: 216.5338156 | S63: 216.2119469 | T63: 213.2221652 | U63: 213.018847 | V63: 212.8717362 | W63: 212.9355789 | X63: 212.8196089 | Y63: 213.5901987 | Z63: 215.3153777 | AA63: 220.1606589 | AB63: 220.9339363 | AC63: 221.42807
A64: Arreccadação Impostos | B64: =SUM(B66:B67) ->  | C64: 3664425169 | D64: 5392211567 | E64: 5161784042 | F64: 5446870946 | G64: 6406666296 | H64: 6898891835 | I64: 7292980630 | J64: 7616378811 | K64: 7991835187 | L64: 8713779623 | M64: 9101259210 | N64: 9298816990 | O64: 9425592943 | P64: 9877976977 | Q64: 1.080270205e+10 | R64: 1.138446085e+10 | S64: 1.199878549e+10 | T64: 1.255243868e+10 | U64: 1.324269974e+10 | V64: 1.461451033e+10 | W64: 1.542010054e+10 | X64: 1.627024524e+10 | Y64: 1.720875026e+10 | Z64: 1.826338061e+10 | AA64: 2.044613856e+10 | AB64: 2.162798277e+10 | AC64: 2.287428489e+10
A65: Arreccadação Impostos Atualizada | B65: =B64*$F$7/B$7/10^9 ->  | C65: 4.539560075 | D65: 6.177811275 | E65: 5.406352068 | F65: 5.446870946 | G65: 6.119828425 | H65: 6.342652694 | I65: 6.428539949 | J65: 6.455389981 | K65: 6.513090719 | L65: 6.828319618 | M65: 6.857651539 | N65: 6.737027047 | O65: 6.566227587 | P65: 6.616707271 | Q65: 6.957816494 | R65: 7.050496496 | S65: 7.145147248 | T65: 7.187347835 | U65: 7.290943749 | V65: 7.736742535 | W65: 7.849242416 | X65: 7.963450714 | Y65: 8.098846918 | Z65: 8.264597145 | AA65: 8.896485582 | AB65: 9.048776371 | AC65: 9.202122847
A66: Federais | B66: =B55/(1-5%)-B55 ->  | C66: 384263429.5 | D66: 565444678 | E66: 541281305.3 | F66: 571176436.6 | G66: 671823669.4 | H66: 723440025.3 | I66: 764765446 | J66: 798678021.2 | K66: 838049586.5 | L66: 913755006.1 | M66: 954387363.9 | N66: 975103909.3 | O66: 988398044.1 | P66: 1035836492 | Q66: 1132806142 | R66: 1193811244 | S66: 1258231305 | T66: 1316289163 | U66: 1388672161 | V66: 1532524639 | W66: 1617001424 | X66: 1706150337 | Y66: 1804564997 | Z66: 1915156933 | AA66: 2144047965 | AB66: 2267979957 | AC66: 2398671212
A67: Estaduais | B67: =B55/(1-18%)-B55 ->  | C67: =C55/(1-31%)-C55 -> 3280161739 | D67: =D55/(1-31%)-D55 -> 4826766889 | E67: 4620502737 | F67: 4875694509 | G67: 5734842627 | H67: 6175451810 | I67: 6528215184 | J67: 6817700790 | K67: 7153785601 | L67: 7800024617 | M67: 8146871846 | N67: 8323713081 | O67: 8437194899 | P67: 8842140486 | Q67: 9669895905 | R67: 1.01906496e+10 | S67: 1.074055418e+10 | T67: 1.123614952e+10 | U67: 1.185402758e+10 | V67: 1.308198569e+10 | W67: 1.380309911e+10 | X67: 1.45640949e+10 | Y67: 1.540418526e+10 | Z67: 1.634822368e+10 | AA67: 1.83020906e+10 | AB67: 1.936000282e+10 | AC67: 2.047561368e+10
B68: =E58/B58-1 ->  | C68: =C58/B58-1 ->  | D68: 0.4393757045 | E68: 0.0003572309743 | F68: 0.0435878741 | G68: 0.1588280143 | H68: 0.0454662266 | I68: 0.02633348769 | J68: 0.0139259804 | K68: 0.01873389978 | L68: 0.05857791342 | M68: 0.01404607091 | N68: -0.008051803367 | O68: -0.01588975034 | P68: 0.01747115204 | Q68: 0.06176196439 | R68: 0.02315833196 | S68: 0.02326376795 | T68: 0.01567226807 | U68: 0.02426232584 | V68: 0.07144655196 | W68: 0.02439090059 | X68: 0.02440023425 | Y68: 0.02687601063 | Z68: 0.03037334029 | AA68: 0.08690829945 | AB68: 0.02699301709 | AC68: 0.02681992177
A69: Tarifa B1 Real | B69: =SUM(B70:B71) -> 328.74 | C69: =SUM(C70:C71) -> 387.08 | D69: =SUM(D70:D71) -> 543.46 | E69: =SUM(E70:E71) -> 478.63 | F69: =SUM(F70:F71) -> 525.82
A70: TUSD B1 Real | B70: 182.53 | C70: 205.76 | D70: 284.44 | E70: 233.04 | F70: 260.73
A71: TE B1 Real | B71: 146.21 | C71: 181.32 | D71: 259.02 | E71: 245.59 | F71: 265.09 | K71: =663.34/K58-1 -> -0.01424082789
A73: Perdas GD FV e EE | I73: 0.05 | J73: 0.05 | K73: 0.05 | L73: 0.05 | M73: 0.05 | N73: 0.05 | O73: 0.05 | P73: 0.05 | Q73: 0.05 | R73: 0.05 | S73: 0.05 | T73: 0.05 | U73: 0.05 | V73: 0.05 | W73: 0.05 | X73: 0.05 | Y73: 0.05 | Z73: 0.05 | AA73: 0.05 | AB73: 0.05 | AC73: 0.05
A74: Perda evitada EE | I74: =I92*SUM($I78:I78)*(I73)+I93*SUM($I77:I77)*(I73) -> 1943895.388 | J74: =J92*SUM($I78:J78)*(J73)+J93*SUM($I77:J77)*(J73) -> 4202806.722 | K74: =K92*SUM($I78:K78)*(K73)+K93*SUM($I77:K77)*(K73) -> 6747066.267 | L74: =L92*SUM($I78:L78)*(L73)+L93*SUM($I77:L77)*(L73) -> 9609722.336 | M74: =M92*SUM($I78:M78)*(M73)+M93*SUM($I77:M77)*(M73) -> 12800562.11 | N74: =N92*SUM($I78:N78)*(N73)+N93*SUM($I77:N77)*(N73) -> 16172645.95 | O74: =O92*SUM($I78:O78)*(O73)+O93*SUM($I77:O77)*(O73) -> 19977254.48 | P74: =P92*SUM($I78:P78)*(P73)+P93*SUM($I77:P77)*(P73) -> 24367074.64 | Q74: =Q92*SUM($I78:Q78)*(Q73)+Q93*SUM($I77:Q77)*(Q73) -> 29085496.68 | R74: =R92*SUM($I78:R78)*(R73)+R93*SUM($I77:R77)*(R73) -> 34618703.66 | S74: =S92*SUM($I78:S78)*(S73)+S93*SUM($I77:S77)*(S73) -> 40798365.87 | T74: =T92*SUM($I78:T78)*(T73)+T93*SUM($I77:T77)*(T73) -> 47344601.88 | U74: =U92*SUM($I78:U78)*(U73)+U93*SUM($I77:U77)*(U73) -> 54979687.06 | V74: =V92*SUM($I78:V78)*(V73)+V93*SUM($I77:V77)*(V73) -> 63476095.37 | W74: =W92*SUM($I78:W78)*(W73)+W93*SUM($I77:W77)*(W73) -> 72920332.94 | X74: =X92*SUM($I78:X78)*(X73)+X93*SUM($I77:X77)*(X73) -> 83407090.54 | Y74: =Y92*SUM($I78:Y78)*(Y73)+Y93*SUM($I77:Y77)*(Y73) -> 95991997.28 | Z74: =Z92*SUM($I78:Z78)*(Z73)+Z93*SUM($I77:Z77)*(Z73) -> 111020493 | AA74: =AA92*SUM($I78:AA78)*(AA73)+AA93*SUM($I77:AA77)*(AA73) -> 133563137 | AB74: =AB92*SUM($I78:AB78)*(AB73)+AB93*SUM($I77:AB77)*(AB73) -> 152046578.2 | AC74: =AC92*SUM($I78:AC78)*(AC73)+AC93*SUM($I77:AC77)*(AC73) -> 171557862.1
A75: Perda evitada GDFV | I75: =I24*I114*I17*(I73) -> 1965468.53 | J75: =J24*J114*J17*(J73) -> 4225557.647 | K75: 6813417.346 | L75: 9740518.637 | M75: 13011959.02 | N75: 16424592.17 | O75: 20328700.1 | P75: 24844642.34 | Q75: 29701576.74 | R75: 35476357.56 | S75: 41950341.16 | T75: 45545601.66 | U75: 49440814.24 | V75: 53660513.2 | W75: 58231209.38 | X75: 63181547.41 | Y75: 69106484.73 | Z75: 76040883.49 | AA75: 85677958.65 | AB75: 93169850.05 | AC75: 101216476.9
H77: FP | I77: =SUMPRODUCT($B$83:$B$86,I79:I82) -> 104484.9533 | J77: =SUMPRODUCT($B$83:$B$86,J79:J82) -> 111583.8055 | K77: 119047.0451 | L77: 126891.4254 | M77: 135134.4277 | N77: 143794.2919 | O77: 152890.0481 | P77: 162441.55 | Q77: 172469.5095 | R77: 182995.5325 | S77: 194042.1565 | T77: 205632.8895 | U77: 217792.2507 | V77: 230545.8126 | W77: 243920.2453 | X77: 257943.3621 | Y77: 272644.1671 | Z77: 288052.9052 | AA77: 304201.1134 | AB77: 321121.675 | AC77: 338848.8752
A78: EE | H78: P | I78: =SUM(I79:I82)-I77 -> 29511.48531 | J78: =SUM(J79:J82)-J77 -> 31524.55256 | K78: 33641.26646 | L78: 35866.40146 | M78: 38204.93955 | N78: 40662.07902 | O78: 43243.24349 | P78: 45954.0914 | Q78: 48800.52584 | R78: 51788.70476 | S78: 54925.05171 | T78: 58216.26686 | U78: 61669.33862 | V78: 65291.55562 | W78: 69090.51928 | X78: 73074.15682 | Y78: 77250.73483 | Z78: 81628.87341 | AA78: 86217.56084 | AB78: 91026.16893 | AC78: 96064.46892 | AD78: =SUM(I77:AC78)/AC24 -> 0.1365353018
A79: Outros | I79: =Demanda!I36*I$24*I83 -> 21101.74003 | J79: =Demanda!J36*J$24*J83-SUM($I79:I79) -> 22418.13891 | K79: =Demanda!K36*K$24*K83-SUM($I79:J79) -> 23796.15887 | L79: =Demanda!L36*L$24*L83-SUM($I79:K79) -> 25238.36516 | M79: =Demanda!M36*M$24*M83-SUM($I79:L79) -> 26747.42318 | N79: =Demanda!N36*N$24*N83-SUM($I79:M79) -> 28326.10227 | O79: =Demanda!O36*O$24*O83-SUM($I79:N79) -> 29977.27957 | P79: =Demanda!P36*P$24*P83-SUM($I79:O79) -> 31703.94409 | Q79: =Demanda!Q36*Q$24*Q83-SUM($I79:P79) -> 33509.20085 | R79: =Demanda!R36*R$24*R83-SUM($I79:Q79) -> 35396.27523 | S79: =Demanda!S36*S$24*S83-SUM($I79:R79) -> 37368.51751 | T79: =Demanda!T36*T$24*T83-SUM($I79:S79) -> 39429.40744 | U79: =Demanda!U36*U$24*U83-SUM($I79:T79) -> 41582.55912 | V79: =Demanda!V36*V$24*V83-SUM($I79:U79) -> 43831.72601 | W79: =Demanda!W36*W$24*W83-SUM($I79:V79) -> 46180.80607 | X79: =Demanda!X36*X$24*X83-SUM($I79:W79) -> 48633.84714 | Y79: =Demanda!Y36*Y$24*Y83-SUM($I79:X79) -> 51195.05254 | Z79: =Demanda!Z36*Z$24*Z83-SUM($I79:Y79) -> 53868.7868 | AA79: =Demanda!AA36*AA$24*AA83-SUM($I79:Z79) -> 56659.58162 | AB79: =Demanda!AB36*AB$24*AB83-SUM($I79:AA79) -> 59572.14212 | AC79: =Demanda!AC36*AC$24*AC83-SUM($I79:AB79) -> 62611.35317
A80: Residencial | I80: =Demanda!I37*I$24*I84 -> 61691.50434 | J80: =Demanda!J37*J$24*J84-SUM($I80:I80) -> 65921.53229 | K80: =Demanda!K37*K$24*K84-SUM($I80:J80) -> 70370.2239 | L80: =Demanda!L37*L$24*L84-SUM($I80:K80) -> 75047.67814 | M80: =Demanda!M37*M$24*M84-SUM($I80:L80) -> 79964.43343 | N80: =Demanda!N37*N$24*N84-SUM($I80:M80) -> 85131.48612 | O80: =Demanda!O37*O$24*O84-SUM($I80:N80) -> 90560.30966 | P80: =Demanda!P37*P$24*P84-SUM($I80:O80) -> 96262.8746 | Q80: =Demanda!Q37*Q$24*Q84-SUM($I80:P80) -> 102251.6694 | R80: =Demanda!R37*R$24*R84-SUM($I80:Q80) -> 108539.7221 | S80: =Demanda!S37*S$24*S84-SUM($I80:R80) -> 115140.623 | T80: =Demanda!T37*T$24*T84-SUM($I80:S80) -> 122068.5476 | U80: =Demanda!U37*U$24*U84-SUM($I80:T80) -> 129338.282 | V80: =Demanda!V37*V$24*V84-SUM($I80:U80) -> 136965.2472 | W80: =Demanda!W37*W$24*W84-SUM($I80:V80) -> 144965.5265 | X80: =Demanda!X37*X$24*X84-SUM($I80:W80) -> 153355.8925 | Y80: =Demanda!Y37*Y$24*Y84-SUM($I80:X80) -> 162153.8359 | Z80: =Demanda!Z37*Z$24*Z84-SUM($I80:Y80) -> 171377.5953 | AA80: =Demanda!AA37*AA$24*AA84-SUM($I80:Z80) -> 181046.1885 | AB80: =Demanda!AB37*AB$24*AB84-SUM($I80:AA80) -> 191179.4446 | AC80: =Demanda!AC37*AC$24*AC84-SUM($I80:AB80) -> 201798.0373
A81: Comercial | I81: =Demanda!I38*I$24*I85 -> 41905.18221 | J81: =Demanda!J38*J$24*J85-SUM($I81:I81) -> 44771.5355 | K81: =Demanda!K38*K$24*K85-SUM($I81:J81) -> 47785.67409 | L81: =Demanda!L38*L$24*L85-SUM($I81:K81) -> 50954.40449 | M81: =Demanda!M38*M$24*M85-SUM($I81:L81) -> 54284.82856 | N81: =Demanda!N38*N$24*N85-SUM($I81:M81) -> 57784.35584 | O81: =Demanda!O38*O$24*O85-SUM($I81:N81) -> 61460.71639 | P81: =Demanda!P38*P$24*P85-SUM($I81:O81) -> 65321.97423 | Q81: =Demanda!Q38*Q$24*Q85-SUM($I81:P81) -> 69376.54123 | R81: =Demanda!R38*R$24*R85-SUM($I81:Q81) -> 73633.19164 | S81: =Demanda!S38*S$24*S85-SUM($I81:R81) -> 78101.07717 | T81: =Demanda!T38*T$24*T85-SUM($I81:S81) -> 82789.74273 | U81: =Demanda!U38*U$24*U85-SUM($I81:T81) -> 87709.14276 | V81: =Demanda!V38*V$24*V85-SUM($I81:U81) -> 92869.65821 | W81: =Demanda!W38*W$24*W85-SUM($I81:V81) -> 98282.11433 | X81: =Demanda!X38*X$24*X85-SUM($I81:W81) -> 103957.799 | Y81: =Demanda!Y38*Y$24*Y85-SUM($I81:X81) -> 109908.4821 | Z81: =Demanda!Z38*Z$24*Z85-SUM($I81:Y81) -> 116146.4352 | AA81: =Demanda!AA38*AA$24*AA85-SUM($I81:Z81) -> 122684.4523 | AB81: =Demanda!AB38*AB$24*AB85-SUM($I81:AA81) -> 129535.872 | AC81: =Demanda!AC38*AC$24*AC85-SUM($I81:AB81) -> 136714.5993
A82: Industrial | B82: FP | C82: P | I82: =Demanda!I39*I$24*I86 -> 9298.012075 | J82: =Demanda!J39*J$24*J86-SUM($I82:I82) -> 9997.151408 | K82: =Demanda!K39*K$24*K86-SUM($I82:J82) -> 10736.2547 | L82: =Demanda!L39*L$24*L86-SUM($I82:K82) -> 11517.37906 | M82: =Demanda!M39*M$24*M86-SUM($I82:L82) -> 12342.68209 | N82: =Demanda!N39*N$24*N86-SUM($I82:M82) -> 13214.42667 | O82: =Demanda!O39*O$24*O86-SUM($I82:N82) -> 14134.98593 | P82: =Demanda!P39*P$24*P86-SUM($I82:O82) -> 15106.84848 | Q82: =Demanda!Q39*Q$24*Q86-SUM($I82:P82) -> 16132.62385 | R82: =Demanda!R39*R$24*R86-SUM($I82:Q82) -> 17215.04826 | S82: =Demanda!S39*S$24*S86-SUM($I82:R82) -> 18356.99057 | T82: =Demanda!T39*T$24*T86-SUM($I82:S82) -> 19561.45854 | U82: =Demanda!U39*U$24*U86-SUM($I82:T82) -> 20831.60542 | V82: =Demanda!V39*V$24*V86-SUM($I82:U82) -> 22170.73678 | W82: =Demanda!W39*W$24*W86-SUM($I82:V82) -> 23582.3177 | X82: =Demanda!X39*X$24*X86-SUM($I82:W82) -> 25069.98026 | Y82: =Demanda!Y39*Y$24*Y86-SUM($I82:X82) -> 26637.53146 | Z82: =Demanda!Z39*Z$24*Z86-SUM($I82:Y82) -> 28288.96137 | AA82: =Demanda!AA39*AA$24*AA86-SUM($I82:Z82) -> 30028.45179 | AB82: =Demanda!AB39*AB$24*AB86-SUM($I82:AA82) -> 31860.38525 | AC82: =Demanda!AC39*AC$24*AC86-SUM($I82:AB82) -> 33789.35439
A83: Outros | B83: ='Energia deslocada EE'!F46 -> 0.8639842121 | C83: ='Energia deslocada EE'!G46 -> 0.1360157879 | G83: 0 | H83: 0 | I83: =EE!R31 -> 0.002314008029 | J83: =(1+I83)*(1+EE!$R31)-1 -> 0.004633370691 | K83: =(1+J83)*(1+EE!$R31)-1 -> 0.006958100377 | L83: =(1+K83)*(1+EE!$R31)-1 -> 0.009288209506 | M83: =(1+L83)*(1+EE!$R31)-1 -> 0.01162371053 | N83: =(1+M83)*(1+EE!$R31)-1 -> 0.01396461592 | O83: =(1+N83)*(1+EE!$R31)-1 -> 0.01631093818 | P83: =(1+O83)*(1+EE!$R31)-1 -> 0.01866268985 | Q83: =(1+P83)*(1+EE!$R31)-1 -> 0.02101988349 | R83: =(1+Q83)*(1+EE!$R31)-1 -> 0.0233825317 | S83: =(1+R83)*(1+EE!$R31)-1 -> 0.0257506471 | T83: =(1+S83)*(1+EE!$R31)-1 -> 0.02812424233 | U83: =(1+T83)*(1+EE!$R31)-1 -> 0.03050333008 | V83: =(1+U83)*(1+EE!$R31)-1 -> 0.03288792306 | W83: =(1+V83)*(1+EE!$R31)-1 -> 0.03527803401 | X83: =(1+W83)*(1+EE!$R31)-1 -> 0.03767367569 | Y83: =(1+X83)*(1+EE!$R31)-1 -> 0.04007486091 | Z83: =(1+Y83)*(1+EE!$R31)-1 -> 0.04248160249 | AA83: =(1+Z83)*(1+EE!$R31)-1 -> 0.04489391328 | AB83: =(1+AA83)*(1+EE!$R31)-1 -> 0.04731180619 | AC83: =(1+AB83)*(1+EE!$R31)-1 -> 0.04973529412
A84: Residencial | B84: ='Energia deslocada EE'!F47 -> 0.6830774366 | C84: ='Energia deslocada EE'!G47 -> 0.3169225634 | G84: 0 | H84: 0 | I84: =EE!R32 -> 0.008317893852 | J84: =(1+I84)*(1+EE!$R32)-1 -> 0.01670497506 | K84: =(1+J84)*(1+EE!$R32)-1 -> 0.02516181912 | L84: =(1+K84)*(1+EE!$R32)-1 -> 0.03368900632 | M84: =(1+L84)*(1+EE!$R32)-1 -> 0.04228712175 | N84: =(1+M84)*(1+EE!$R32)-1 -> 0.05095675539 | O84: =(1+N84)*(1+EE!$R32)-1 -> 0.05969850212 | P84: =(1+O84)*(1+EE!$R32)-1 -> 0.06851296178 | Q84: =(1+P84)*(1+EE!$R32)-1 -> 0.07740073918 | R84: =(1+Q84)*(1+EE!$R32)-1 -> 0.08636244416 | S84: =(1+R84)*(1+EE!$R32)-1 -> 0.09539869166 | T84: =(1+S84)*(1+EE!$R32)-1 -> 0.1045101017 | U84: =(1+T84)*(1+EE!$R32)-1 -> 0.1136972995 | V84: =(1+U84)*(1+EE!$R32)-1 -> 0.1229609154 | W84: =(1+V84)*(1+EE!$R32)-1 -> 0.1323015851 | X84: =(1+W84)*(1+EE!$R32)-1 -> 0.1417199495 | Y84: =(1+X84)*(1+EE!$R32)-1 -> 0.1512166548 | Z84: =(1+Y84)*(1+EE!$R32)-1 -> 0.1607923528 | AA84: =(1+Z84)*(1+EE!$R32)-1 -> 0.1704477004 | AB84: =(1+AA84)*(1+EE!$R32)-1 -> 0.1801833601 | AC84: =(1+AB84)*(1+EE!$R32)-1 -> 0.19
A85: Comercial | B85: ='Energia deslocada EE'!F48 -> 0.8605733164 | C85: ='Energia deslocada EE'!G48 -> 0.1394266836 | G85: 0 | H85: 0 | I85: =EE!R33 -> 0.008156239529 | J85: =(1+I85)*(1+EE!$R33)-1 -> 0.0163790033 | K85: =(1+J85)*(1+EE!$R33)-1 -> 0.0246688339 | L85: =(1+K85)*(1+EE!$R33)-1 -> 0.03302627835 | M85: =(1+L85)*(1+EE!$R33)-1 -> 0.04145188812 | N85: =(1+M85)*(1+EE!$R33)-1 -> 0.04994621917 | O85: =(1+N85)*(1+EE!$R33)-1 -> 0.05850983203 | P85: =(1+O85)*(1+EE!$R33)-1 -> 0.06714329176 | Q85: =(1+P85)*(1+EE!$R33)-1 -> 0.07584716806 | R85: =(1+Q85)*(1+EE!$R33)-1 -> 0.08462203526 | S85: =(1+R85)*(1+EE!$R33)-1 -> 0.09346847238 | T85: =(1+S85)*(1+EE!$R33)-1 -> 0.1023870632 | U85: =(1+T85)*(1+EE!$R33)-1 -> 0.1113783961 | V85: =(1+U85)*(1+EE!$R33)-1 -> 0.1204430645 | W85: =(1+V85)*(1+EE!$R33)-1 -> 0.1295816665 | X85: =(1+W85)*(1+EE!$R33)-1 -> 0.1387948052 | Y85: =(1+X85)*(1+EE!$R33)-1 -> 0.1480830884 | Z85: =(1+Y85)*(1+EE!$R33)-1 -> 0.157447129 | AA85: =(1+Z85)*(1+EE!$R33)-1 -> 0.166887545 | AB85: =(1+AA85)*(1+EE!$R33)-1 -> 0.1764049594 | AC85: =(1+AB85)*(1+EE!$R33)-1 -> 0.186
A86: Industrial | B86: ='Energia deslocada EE'!F49 -> 0.8658653883 | C86: ='Energia deslocada EE'!G49 -> 0.1341346117 | G86: 0 | H86: 0 | I86: =EE!R34 -> 0.01474984964 | J86: =(1+I86)*(1+EE!$R34)-1 -> 0.02971725734 | K86: =(1+J86)*(1+EE!$R34)-1 -> 0.04490543205 | L86: =(1+K86)*(1+EE!$R34)-1 -> 0.06031763006 | M86: =(1+L86)*(1+EE!$R34)-1 -> 0.07595715567 | N86: =(1+M86)*(1+EE!$R34)-1 -> 0.09182736193 | O86: =(1+N86)*(1+EE!$R34)-1 -> 0.1079316514 | P86: =(1+O86)*(1+EE!$R34)-1 -> 0.1242734766 | Q86: =(1+P86)*(1+EE!$R34)-1 -> 0.1408563413 | R86: =(1+Q86)*(1+EE!$R34)-1 -> 0.1576838008 | S86: =(1+R86)*(1+EE!$R34)-1 -> 0.1747594628 | T86: =(1+S86)*(1+EE!$R34)-1 -> 0.1920869883 | U86: =(1+T86)*(1+EE!$R34)-1 -> 0.2096700921 | V86: =(1+U86)*(1+EE!$R34)-1 -> 0.2275125441 | W86: =(1+V86)*(1+EE!$R34)-1 -> 0.2456181695 | X86: =(1+W86)*(1+EE!$R34)-1 -> 0.2639908502 | Y86: =(1+X86)*(1+EE!$R34)-1 -> 0.2826345252 | Z86: =(1+Y86)*(1+EE!$R34)-1 -> 0.3015531916 | AA86: =(1+Z86)*(1+EE!$R34)-1 -> 0.3207509055 | AB86: =(1+AA86)*(1+EE!$R34)-1 -> 0.3402317827 | AC86: =(1+AB86)*(1+EE!$R34)-1 -> 0.36
A87: Custo EE | B87: R$/MWh | C87: Federal | D87: Estadual | E87: Municipal | I87: =SUM(I88:I91) -> 32117088.47 | J87: =SUM(J88:J91) -> 35678429.42 | K87: 39595044.23 | L87: 43900349.2 | M87: 48630788.7 | N87: 53826102.6 | O87: 59529616.98 | P87: 65788559.91 | Q87: 72654404.69 | R87: 80183242.58 | S87: 88436187.92 | T87: 97479817.98 | U87: 107386650.9 | V87: 118235664.7 | W87: 130112860.8 | X87: 143111876.2 | Y87: 157334648.1 | Z87: 172892135.4 | AA87: 189905102.2 | AB87: 208504968.3 | AC87: 228834732.5
A88: Outros | B88: 111.0612517 | C88: 0.04 | D88: 0.18 | E88: 0.039 | I88: =I79*EE!$Q2*I$7/$F$7 -> 2611234.544 | J88: =J79*EE!$Q2*J$7/$F$7 -> 2885097.599 | K88: =K79*EE!$Q2*K$7/$F$7 -> 3184939.247 | L88: =L79*EE!$Q2*L$7/$F$7 -> 3513086.568 | M88: =M79*EE!$Q2*M$7/$F$7 -> 3872067.505 | N88: =N79*EE!$Q2*N$7/$F$7 -> 4264627.758 | O88: =O79*EE!$Q2*O$7/$F$7 -> 4693749.068 | P88: =P79*EE!$Q2*P$7/$F$7 -> 5162669.013 | Q88: =Q79*EE!$Q2*Q$7/$F$7 -> 5674902.431 | R88: =R79*EE!$Q2*R$7/$F$7 -> 6234264.603 | S88: =S79*EE!$Q2*S$7/$F$7 -> 6844896.347 | T88: =T79*EE!$Q2*T$7/$F$7 -> 7511291.159 | U88: =U79*EE!$Q2*U$7/$F$7 -> 8238324.595 | V88: =V79*EE!$Q2*V$7/$F$7 -> 9031286.044 | W88: =W79*EE!$Q2*W$7/$F$7 -> 9895913.111 | X88: =X79*EE!$Q2*X$7/$F$7 -> 10838428.8 | Y88: =Y79*EE!$Q2*Y$7/$F$7 -> 11865581.75 | Z88: =Z79*EE!$Q2*Z$7/$F$7 -> 12984689.74 | AA88: =AA79*EE!$Q2*AA$7/$F$7 -> 14203686.72 | AB88: =AB79*EE!$Q2*AB$7/$F$7 -> 15531173.73 | AC88: =AC79*EE!$Q2*AC$7/$F$7 -> 16976473.9
A89: Residencial | B89: 252.6695097 | C89: 0.04 | D89: 0.18 | E89: 0.039 | I89: =I80*EE!$Q3*I$7/$F$7 -> 17367737.59 | J89: =J80*EE!$Q3*J$7/$F$7 -> 19300942.68 | K89: =K80*EE!$Q3*K$7/$F$7 -> 21427598.46 | L89: =L80*EE!$Q3*L$7/$F$7 -> 23765949.3 | M89: =M80*EE!$Q3*M$7/$F$7 -> 26335896.68 | N89: =N80*EE!$Q3*N$7/$F$7 -> 29159145.93 | O89: =O80*EE!$Q3*O$7/$F$7 -> 32259365.61 | P89: =P80*EE!$Q3*P$7/$F$7 -> 35662360.8 | Q89: =Q80*EE!$Q3*Q$7/$F$7 -> 39396261.33 | R89: =R80*EE!$Q3*R$7/$F$7 -> 43491726.39 | S89: =S80*EE!$Q3*S$7/$F$7 -> 47982166.77 | T89: =T80*EE!$Q3*T$7/$F$7 -> 52903986.36 | U89: =U80*EE!$Q3*U$7/$F$7 -> 58296844.45 | V89: =V80*EE!$Q3*V$7/$F$7 -> 64203940.66 | W89: =W80*EE!$Q3*W$7/$F$7 -> 70672324.41 | X89: =X80*EE!$Q3*X$7/$F$7 -> 77753231.06 | Y89: =Y80*EE!$Q3*Y$7/$F$7 -> 85502446.89 | Z89: =Z80*EE!$Q3*Z$7/$F$7 -> 93980705.48 | AA89: =AA80*EE!$Q3*AA$7/$F$7 -> 103254118.1 | AB89: =AB80*EE!$Q3*AB$7/$F$7 -> 113394640.9 | AC89: =AC80*EE!$Q3*AC$7/$F$7 -> 124480582.5
A90: Comercial | B90: 243.9583976 | C90: 0.04 | D90: 0.18 | E90: 0.039 | I90: =I81*EE!$Q4*I$7/$F$7 -> 11390651.26 | J90: =J81*EE!$Q4*J$7/$F$7 -> 12656573.66 | K90: =K81*EE!$Q4*K$7/$F$7 -> 14048993.7 | L90: =L81*EE!$Q4*L$7/$F$7 -> 15579824.84 | M90: =M81*EE!$Q4*M$7/$F$7 -> 17262061.13 | N90: =N81*EE!$Q4*N$7/$F$7 -> 19109872.75 | O90: =O81*EE!$Q4*O$7/$F$7 -> 21138709.79 | P90: =P81*EE!$Q4*P$7/$F$7 -> 23365415.02 | Q90: =Q81*EE!$Q4*Q$7/$F$7 -> 25808346.51 | R90: =R81*EE!$Q4*R$7/$F$7 -> 28487510.71 | S90: =S81*EE!$Q4*S$7/$F$7 -> 31424707.15 | T90: =T81*EE!$Q4*T$7/$F$7 -> 34643685.53 | U90: =U81*EE!$Q4*U$7/$F$7 -> 38170316.44 | V90: =V81*EE!$Q4*V$7/$F$7 -> 42032776.69 | W90: =W81*EE!$Q4*W$7/$F$7 -> 46261750.65 | X90: =X81*EE!$Q4*X$7/$F$7 -> 50890648.85 | Y90: =Y81*EE!$Q4*Y$7/$F$7 -> 55955845.37 | Z90: =Z81*EE!$Q4*Z$7/$F$7 -> 61496935.57 | AA90: =AA81*EE!$Q4*AA$7/$F$7 -> 67557015.98 | AB90: =AB81*EE!$Q4*AB$7/$F$7 -> 74182988 | AC90: =AC81*EE!$Q4*AC$7/$F$7 -> 81425887.76
A91: Industrial | B91: 72.1499027 | C91: 0.04 | D91: 0.18 | E91: 0.039 | I91: =I82*EE!$Q5*I$7/$F$7 -> 747465.0763 | J91: =J82*EE!$Q5*J$7/$F$7 -> 835815.4774 | K91: =K82*EE!$Q5*K$7/$F$7 -> 933512.8157 | L91: =L82*EE!$Q5*L$7/$F$7 -> 1041488.499 | M91: =M82*EE!$Q5*M$7/$F$7 -> 1160763.385 | N91: =N82*EE!$Q5*N$7/$F$7 -> 1292456.164 | O91: =O82*EE!$Q5*O$7/$F$7 -> 1437792.509 | P91: =P82*EE!$Q5*P$7/$F$7 -> 1598115.076 | Q91: =Q82*EE!$Q5*Q$7/$F$7 -> 1774894.413 | R91: =R82*EE!$Q5*R$7/$F$7 -> 1969740.88 | S91: =S82*EE!$Q5*S$7/$F$7 -> 2184417.655 | T91: =T82*EE!$Q5*T$7/$F$7 -> 2420854.935 | U91: =U82*EE!$Q5*U$7/$F$7 -> 2681165.439 | V91: =V82*EE!$Q5*V$7/$F$7 -> 2967661.325 | W91: =W82*EE!$Q5*W$7/$F$7 -> 3282872.653 | X91: =X82*EE!$Q5*X$7/$F$7 -> 3629567.535 | Y91: =Y82*EE!$Q5*Y$7/$F$7 -> 4010774.126 | Z91: =Z82*EE!$Q5*Z$7/$F$7 -> 4429804.611 | AA91: =AA82*EE!$Q5*AA$7/$F$7 -> 4890281.385 | AB91: =AB82*EE!$Q5*AB$7/$F$7 -> 5396165.608 | AC91: =AC82*EE!$Q5*AC$7/$F$7 -> 5951788.363
A92: Custo da energia Ponta [R$/MWh] | I92: =SUMIF(Apoio!$C:$C,"=DIS",Apoio!K:K)/SUMIF(Contratos_volume!$G:$G,"=DIS",Contratos_volume!Q:Q)+I21 -> 425.9728423 | J92: =SUMIF(Apoio!$C:$C,"=DIS",Apoio!L:L)/SUMIF(Contratos_volume!$G:$G,"=DIS",Contratos_volume!R:R)+J21 -> 450.211756 | K92: =SUMIF(Apoio!$C:$C,"=DIS",Apoio!M:M)/SUMIF(Contratos_volume!$G:$G,"=DIS",Contratos_volume!S:S)+K21 -> 461.3802262 | L92: =SUMIF(Apoio!$C:$C,"=DIS",Apoio!N:N)/SUMIF(Contratos_volume!$G:$G,"=DIS",Contratos_volume!T:T)+L21 -> 472.5046944 | M92: =SUMIF(Apoio!$C:$C,"=DIS",Apoio!O:O)/SUMIF(Contratos_volume!$G:$G,"=DIS",Contratos_volume!U:U)+M21 -> 483.5712138 | N92: =SUMIF(Apoio!$C:$C,"=DIS",Apoio!P:P)/SUMIF(Contratos_volume!$G:$G,"=DIS",Contratos_volume!V:V)+N21 -> 492.9078973 | O92: =SUMIF(Apoio!$C:$C,"=DIS",Apoio!Q:Q)/SUMIF(Contratos_volume!$G:$G,"=DIS",Contratos_volume!W:W)+O21 -> 502.115674 | P92: =SUMIF(Apoio!$C:$C,"=DIS",Apoio!R:R)/SUMIF(Contratos_volume!$G:$G,"=DIS",Contratos_volume!X:X)+P21 -> 515.5807585 | Q92: =SUMIF(Apoio!$C:$C,"=DIS",Apoio!S:S)/SUMIF(Contratos_volume!$G:$G,"=DIS",Contratos_volume!Y:Y)+Q21 -> 526.7540407 | R92: =SUMIF(Apoio!$C:$C,"=DIS",Apoio!T:T)/SUMIF(Contratos_volume!$G:$G,"=DIS",Contratos_volume!Z:Z)+R21 -> 540.9842024 | S92: =SUMIF(Apoio!$C:$C,"=DIS",Apoio!U:U)/SUMIF(Contratos_volume!$G:$G,"=DIS",Contratos_volume!AA:AA)+S21 -> 555.7835705 | T92: =SUMIF(Apoio!$C:$C,"=DIS",Apoio!V:V)/SUMIF(Contratos_volume!$G:$G,"=DIS",Contratos_volume!AB:AB)+T21 -> 557.6749133 | U92: =SUMIF(Apoio!$C:$C,"=DIS",Apoio!W:W)/SUMIF(Contratos_volume!$G:$G,"=DIS",Contratos_volume!AC:AC)+U21 -> 573.6819098 | V92: =SUMIF(Apoio!$C:$C,"=DIS",Apoio!X:X)/SUMIF(Contratos_volume!$G:$G,"=DIS",Contratos_volume!AD:AD)+V21 -> 590.3291862 | W92: =SUMIF(Apoio!$C:$C,"=DIS",Apoio!Y:Y)/SUMIF(Contratos_volume!$G:$G,"=DIS",Contratos_volume!AE:AE)+W21 -> 607.6423537 | X92: =SUMIF(Apoio!$C:$C,"=DIS",Apoio!Z:Z)/SUMIF(Contratos_volume!$G:$G,"=DIS",Contratos_volume!AF:AF)+X21 -> 625.6480478 | Y92: =SUMIF(Apoio!$C:$C,"=DIS",Apoio!AA:AA)/SUMIF(Contratos_volume!$G:$G,"=DIS",Contratos_volume!AG:AG)+Y21 -> 653.6347667 | Z92: =SUMIF(Apoio!$C:$C,"=DIS",Apoio!AB:AB)/SUMIF(Contratos_volume!$G:$G,"=DIS",Contratos_volume!AH:AH)+Z21 -> 692.3619306 | AA92: =SUMIF(Apoio!$C:$C,"=DIS",Apoio!AC:AC)/SUMIF(Contratos_volume!$G:$G,"=DIS",Contratos_volume!AI:AI)+AA21 -> 799.1482626 | AB92: =SUMIF(Apoio!$C:$C,"=DIS",Apoio!AD:AD)/SUMIF(Contratos_volume!$G:$G,"=DIS",Contratos_volume!AJ:AJ)+AB21 -> 840.7869304 | AC92: =SUMIF(Apoio!$C:$C,"=DIS",Apoio!AE:AE)/SUMIF(Contratos_volume!$G:$G,"=DIS",Contratos_volume!AK:AK)+AC21 -> 868.1184076
A93: Custo da energia Fora Ponta [R$/MWh] | D93: em 2020 | F93: =SUMIF(Apoio!$C:$C,"=QTD",Apoio!H:H)/SUMIF(Contratos_volume!$G:$G,"=QTD",Contratos_volume!N:N) -> 196.0599385 | I93: =I17 -> 251.7761232 | J93: 261.8471682 | K93: 272.3210549 | L93: 282.4889409 | M93: 292.073502 | N93: 297.2358399 | O93: 305.0745595 | P93: 315.6254531 | Q93: 324.4885108 | R93: 337.4680512 | S93: 350.9667733 | T93: 365.0054442 | U93: 379.605662 | V93: 394.7898885 | W93: 410.581484 | X93: 427.0047434 | Y93: 447.7391344 | Z93: 472.3681209 | AA93: 510.3775536 | AB93: 532.2887478 | AC93: 554.6659963
A94: ="Custo Energia deslocada (R$ "&TEXT(D94,"0,00")&"/MWh)" -> Custo Energia deslocada (R$ 300/MWh) | D94: 300 | F94: =AC94 -> 0.04161657202 | I94: =((I$55+I$87-SUM($I77:I78)*(1+I$27)*$D94*I$7/$I$7+I$106*I$33)/(I$24-SUM($I77:I78)))/I$58-1 -> 0.004454676793 | J94: =((J$55+J$87-SUM($I77:J78)*(1+J$27)*$D94*J$7/$I$7+J$106*J$33)/(J$24-SUM($I77:J78)))/J$58-1 -> 0.006688562465 | K94: =((K$55+K$87-SUM($I77:K78)*(1+K$27)*$D94*K$7/$I$7+K$106*K$33)/(K$24-SUM($I77:K78)))/K$58-1 -> 0.00881130449 | L94: =((L$55+L$87-SUM($I77:L78)*(1+L$27)*$D94*L$7/$I$7+L$106*L$33)/(L$24-SUM($I77:L78)))/L$58-1 -> 0.01450946326 | M94: =((M$55+M$87-SUM($I77:M78)*(1+M$27)*$D94*M$7/$I$7+M$106*M$33)/(M$24-SUM($I77:M78)))/M$58-1 -> 0.01642883458 | N94: =((N$55+N$87-SUM($I77:N78)*(1+N$27)*$D94*N$7/$I$7+N$106*N$33)/(N$24-SUM($I77:N78)))/N$58-1 -> 0.01772254815 | O94: =((O$55+O$87-SUM($I77:O78)*(1+O$27)*$D94*O$7/$I$7+O$106*O$33)/(O$24-SUM($I77:O78)))/O$58-1 -> 0.01836061955 | P94: =((P$55+P$87-SUM($I77:P78)*(1+P$27)*$D94*P$7/$I$7+P$106*P$33)/(P$24-SUM($I77:P78)))/P$58-1 -> 0.01950132727 | Q94: =((Q$55+Q$87-SUM($I77:Q78)*(1+Q$27)*$D94*Q$7/$I$7+Q$106*Q$33)/(Q$24-SUM($I77:Q78)))/Q$58-1 -> 0.02257982549 | R94: =((R$55+R$87-SUM($I77:R78)*(1+R$27)*$D94*R$7/$I$7+R$106*R$33)/(R$24-SUM($I77:R78)))/R$58-1 -> 0.02380330479 | S94: =((S$55+S$87-SUM($I77:S78)*(1+S$27)*$D94*S$7/$I$7+S$106*S$33)/(S$24-SUM($I77:S78)))/S$58-1 -> 0.02488803195 | T94: =((T$55+T$87-SUM($I77:T78)*(1+T$27)*$D94*T$7/$I$7+T$106*T$33)/(T$24-SUM($I77:T78)))/T$58-1 -> 0.02540584997 | U94: =((U$55+U$87-SUM($I77:U78)*(1+U$27)*$D94*U$7/$I$7+U$106*U$33)/(U$24-SUM($I77:U78)))/U$58-1 -> 0.02618709064 | V94: =((V$55+V$87-SUM($I77:V78)*(1+V$27)*$D94*V$7/$I$7+V$106*V$33)/(V$24-SUM($I77:V78)))/V$58-1 -> 0.03048931898 | W94: =((W$55+W$87-SUM($I77:W78)*(1+W$27)*$D94*W$7/$I$7+W$106*W$33)/(W$24-SUM($I77:W78)))/W$58-1 -> 0.0312777293 | X94: =((X$55+X$87-SUM($I77:X78)*(1+X$27)*$D94*X$7/$I$7+X$106*X$33)/(X$24-SUM($I77:X78)))/X$58-1 -> 0.03190600962 | Y94: =((Y$55+Y$87-SUM($I77:Y78)*(1+Y$27)*$D94*Y$7/$I$7+Y$106*Y$33)/(Y$24-SUM($I77:Y78)))/Y$58-1 -> 0.03257992435 | Z94: =((Z$55+Z$87-SUM($I77:Z78)*(1+Z$27)*$D94*Z$7/$I$7+Z$106*Z$33)/(Z$24-SUM($I77:Z78)))/Z$58-1 -> 0.03344433549 | AA94: =((AA$55+AA$87-SUM($I77:AA78)*(1+AA$27)*$D94*AA$7/$I$7+AA$106*AA$33)/(AA$24-SUM($I77:AA78)))/AA$58-1 -> 0.04028665664 | AB94: =((AB$55+AB$87-SUM($I77:AB78)*(1+AB$27)*$D94*AB$7/$I$7+AB$106*AB$33)/(AB$24-SUM($I77:AB78)))/AB$58-1 -> 0.04103235589 | AC94: =((AC$55+AC$87-SUM($I77:AC78)*(1+AC$27)*$D94*AC$7/$I$7+AC$106*AC$33)/(AC$24-SUM($I77:AC78)))/AC$58-1 -> 0.04161657202
A95: ="Custo Energia deslocada (R$ "&TEXT(D95,"0,00")&"/MWh)" -> Custo Energia deslocada (R$ 440/MWh) | D95: 440 | F95: =AC95 -> -0.0003892394454 | I95: =((I$55+I$87-SUM($I78:I79)*(1+I$27)*$D95*I$7/$I$7+I$106*I$33)/(I$24-SUM($I78:I79)))/I$58-1 -> 0.00238527781 | J95: =((J$55+J$87-SUM($I78:J79)*(1+J$27)*$D95*J$7/$I$7+J$106*J$33)/(J$24-SUM($I78:J79)))/J$58-1 -> 0.002594715938 | K95: =((K$55+K$87-SUM($I78:K79)*(1+K$27)*$D95*K$7/$I$7+K$106*K$33)/(K$24-SUM($I78:K79)))/K$58-1 -> 0.002718254442 | L95: =((L$55+L$87-SUM($I78:L79)*(1+L$27)*$D95*L$7/$I$7+L$106*L$33)/(L$24-SUM($I78:L79)))/L$58-1 -> 0.006119763156 | M95: =((M$55+M$87-SUM($I78:M79)*(1+M$27)*$D95*M$7/$I$7+M$106*M$33)/(M$24-SUM($I78:M79)))/M$58-1 -> 0.006068151376 | N95: =((N$55+N$87-SUM($I78:N79)*(1+N$27)*$D95*N$7/$I$7+N$106*N$33)/(N$24-SUM($I78:N79)))/N$58-1 -> 0.005720353834 | O95: =((O$55+O$87-SUM($I78:O79)*(1+O$27)*$D95*O$7/$I$7+O$106*O$33)/(O$24-SUM($I78:O79)))/O$58-1 -> 0.005031905598 | P95: =((P$55+P$87-SUM($I78:P79)*(1+P$27)*$D95*P$7/$I$7+P$106*P$33)/(P$24-SUM($I78:P79)))/P$58-1 -> 0.004507205722 | Q95: =((Q$55+Q$87-SUM($I78:Q79)*(1+Q$27)*$D95*Q$7/$I$7+Q$106*Q$33)/(Q$24-SUM($I78:Q79)))/Q$58-1 -> 0.005099407199 | R95: =((R$55+R$87-SUM($I78:R79)*(1+R$27)*$D95*R$7/$I$7+R$106*R$33)/(R$24-SUM($I78:R79)))/R$58-1 -> 0.00455858917 | S95: =((S$55+S$87-SUM($I78:S79)*(1+S$27)*$D95*S$7/$I$7+S$106*S$33)/(S$24-SUM($I78:S79)))/S$58-1 -> 0.003928365163 | T95: =((T$55+T$87-SUM($I78:T79)*(1+T$27)*$D95*T$7/$I$7+T$106*T$33)/(T$24-SUM($I78:T79)))/T$58-1 -> 0.00301128963 | U95: =((U$55+U$87-SUM($I78:U79)*(1+U$27)*$D95*U$7/$I$7+U$106*U$33)/(U$24-SUM($I78:U79)))/U$58-1 -> 0.002190948481 | V95: =((V$55+V$87-SUM($I78:V79)*(1+V$27)*$D95*V$7/$I$7+V$106*V$33)/(V$24-SUM($I78:V79)))/V$58-1 -> 0.003270290625 | W95: =((W$55+W$87-SUM($I78:W79)*(1+W$27)*$D95*W$7/$I$7+W$106*W$33)/(W$24-SUM($I78:W79)))/W$58-1 -> 0.002404804396 | X95: =((X$55+X$87-SUM($I78:X79)*(1+X$27)*$D95*X$7/$I$7+X$106*X$33)/(X$24-SUM($I78:X79)))/X$58-1 -> 0.001442743671 | Y95: =((Y$55+Y$87-SUM($I78:Y79)*(1+Y$27)*$D95*Y$7/$I$7+Y$106*Y$33)/(Y$24-SUM($I78:Y79)))/Y$58-1 -> 0.0004806602175 | Z95: =((Z$55+Z$87-SUM($I78:Z79)*(1+Z$27)*$D95*Z$7/$I$7+Z$106*Z$33)/(Z$24-SUM($I78:Z79)))/Z$58-1 -> -0.000413324645 | AA95: =((AA$55+AA$87-SUM($I78:AA79)*(1+AA$27)*$D95*AA$7/$I$7+AA$106*AA$33)/(AA$24-SUM($I78:AA79)))/AA$58-1 -> 0.001712746468 | AB95: =((AB$55+AB$87-SUM($I78:AB79)*(1+AB$27)*$D95*AB$7/$I$7+AB$106*AB$33)/(AB$24-SUM($I78:AB79)))/AB$58-1 -> 0.0007095061104 | AC95: =((AC$55+AC$87-SUM($I78:AC79)*(1+AC$27)*$D95*AC$7/$I$7+AC$106*AC$33)/(AC$24-SUM($I78:AC79)))/AC$58-1 -> -0.0003892394454
A96: ="Custo Energia deslocada (R$ "&TEXT(D96,"0,00")&"/MWh)" -> Custo Energia deslocada (R$ 500/MWh) | D96: 500 | F96: =AC96 -> -0.02094992487 | I96: =((I$55+I$87-SUM($I79:I80)*(1+I$27)*$D96*I$7/$I$7+I$106*I$33)/(I$24-SUM($I79:I80)))/I$58-1 -> 0.00202682311 | J96: =((J$55+J$87-SUM($I79:J80)*(1+J$27)*$D96*J$7/$I$7+J$106*J$33)/(J$24-SUM($I79:J80)))/J$58-1 -> 0.001779656479 | K96: =((K$55+K$87-SUM($I79:K80)*(1+K$27)*$D96*K$7/$I$7+K$106*K$33)/(K$24-SUM($I79:K80)))/K$58-1 -> 0.001369491863 | L96: =((L$55+L$87-SUM($I79:L80)*(1+L$27)*$D96*L$7/$I$7+L$106*L$33)/(L$24-SUM($I79:L80)))/L$58-1 -> 0.004464955192 | M96: =((M$55+M$87-SUM($I79:M80)*(1+M$27)*$D96*M$7/$I$7+M$106*M$33)/(M$24-SUM($I79:M80)))/M$58-1 -> 0.003738555839 | N96: =((N$55+N$87-SUM($I79:N80)*(1+N$27)*$D96*N$7/$I$7+N$106*N$33)/(N$24-SUM($I79:N80)))/N$58-1 -> 0.002323866266 | O96: =((O$55+O$87-SUM($I79:O80)*(1+O$27)*$D96*O$7/$I$7+O$106*O$33)/(O$24-SUM($I79:O80)))/O$58-1 -> 0.0001976276972 | P96: =((P$55+P$87-SUM($I79:P80)*(1+P$27)*$D96*P$7/$I$7+P$106*P$33)/(P$24-SUM($I79:P80)))/P$58-1 -> -0.001462497941 | Q96: =((Q$55+Q$87-SUM($I79:Q80)*(1+Q$27)*$D96*Q$7/$I$7+Q$106*Q$33)/(Q$24-SUM($I79:Q80)))/Q$58-1 -> -0.001234674092 | R96: =((R$55+R$87-SUM($I79:R80)*(1+R$27)*$D96*R$7/$I$7+R$106*R$33)/(R$24-SUM($I79:R80)))/R$58-1 -> -0.002916816209 | S96: =((S$55+S$87-SUM($I79:S80)*(1+S$27)*$D96*S$7/$I$7+S$106*S$33)/(S$24-SUM($I79:S80)))/S$58-1 -> -0.00478942709 | T96: =((T$55+T$87-SUM($I79:T80)*(1+T$27)*$D96*T$7/$I$7+T$106*T$33)/(T$24-SUM($I79:T80)))/T$58-1 -> -0.007278747651 | U96: =((U$55+U$87-SUM($I79:U80)*(1+U$27)*$D96*U$7/$I$7+U$106*U$33)/(U$24-SUM($I79:U80)))/U$58-1 -> -0.009555597855 | V96: =((V$55+V$87-SUM($I79:V80)*(1+V$27)*$D96*V$7/$I$7+V$106*V$33)/(V$24-SUM($I79:V80)))/V$58-1 -> -0.008418072659 | W96: =((W$55+W$87-SUM($I79:W80)*(1+W$27)*$D96*W$7/$I$7+W$106*W$33)/(W$24-SUM($I79:W80)))/W$58-1 -> -0.01080605806 | X96: =((X$55+X$87-SUM($I79:X80)*(1+X$27)*$D96*X$7/$I$7+X$106*X$33)/(X$24-SUM($I79:X80)))/X$58-1 -> -0.01340606049 | Y96: =((Y$55+Y$87-SUM($I79:Y80)*(1+Y$27)*$D96*Y$7/$I$7+Y$106*Y$33)/(Y$24-SUM($I79:Y80)))/Y$58-1 -> -0.01601643182 | Z96: =((Z$55+Z$87-SUM($I79:Z80)*(1+Z$27)*$D96*Z$7/$I$7+Z$106*Z$33)/(Z$24-SUM($I79:Z80)))/Z$58-1 -> -0.01849797848 | AA96: =((AA$55+AA$87-SUM($I79:AA80)*(1+AA$27)*$D96*AA$7/$I$7+AA$106*AA$33)/(AA$24-SUM($I79:AA80)))/AA$58-1 -> -0.01525433894 | AB96: =((AB$55+AB$87-SUM($I79:AB80)*(1+AB$27)*$D96*AB$7/$I$7+AB$106*AB$33)/(AB$24-SUM($I79:AB80)))/AB$58-1 -> -0.01799364572 | AC96: =((AC$55+AC$87-SUM($I79:AC80)*(1+AC$27)*$D96*AC$7/$I$7+AC$106*AC$33)/(AC$24-SUM($I79:AC80)))/AC$58-1 -> -0.02094992487
A97: Eficiência Energética | I97: =((I55+I87-I98-I74-I33+I107)/(I24-SUM($I77:I78))) -> 655.0208004 | J97: =((J55+J87-J98-J74-J33+J107)/(J24-SUM($I77:J78))) -> 666.296496 | K97: =((K55+K87-K98-K74-K33+K107)/(K24-SUM($I77:K78))) -> 680.977379 | L97: =((L55+L87-L98-L74-L33+L107)/(L24-SUM($I77:L78))) -> 723.4082814 | M97: =((M55+M87-M98-M74-M33+M107)/(M24-SUM($I77:M78))) -> 735.9463271 | N97: =((N55+N87-N98-N74-N33+N107)/(N24-SUM($I77:N78))) -> 732.268144 | O97: =((O55+O87-O98-O74-O33+O107)/(O24-SUM($I77:O78))) -> 722.720204 | P97: =((P55+P87-P98-P74-P33+P107)/(P24-SUM($I77:P78))) -> 737.7298147 | Q97: =((Q55+Q87-Q98-Q74-Q33+Q107)/(Q24-SUM($I77:Q78))) -> 786.7894401 | R97: =((R55+R87-R98-R74-R33+R107)/(R24-SUM($I77:R78))) -> 807.7903734 | S97: =((S55+S87-S98-S74-S33+S107)/(S24-SUM($I77:S78))) -> 829.4085988 | T97: =((T55+T87-T98-T74-T33+T107)/(T24-SUM($I77:T78))) -> 845.2781134 | U97: =((U55+U87-U98-U74-U33+U107)/(U24-SUM($I77:U78))) -> 868.699847 | V97: =((V55+V87-V98-V74-V33+V107)/(V24-SUM($I77:V78))) -> 934.8515764 | W97: =((W55+W87-W98-W74-W33+W107)/(W24-SUM($I77:W78))) -> 961.0522237 | X97: =((X55+X87-X98-X74-X33+X107)/(X24-SUM($I77:X78))) -> 987.9567716 | Y97: =((Y55+Y87-Y98-Y74-Y33+Y107)/(Y24-SUM($I77:Y78))) -> 1017.535525 | Z97: =((Z55+Z87-Z98-Z74-Z33+Z107)/(Z24-SUM($I77:Z78))) -> 1051.064911 | AA97: =((AA55+AA87-AA98-AA74-AA33+AA107)/(AA24-SUM($I77:AA78))) -> 1144.491231 | AB97: =((AB55+AB87-AB98-AB74-AB33+AB107)/(AB24-SUM($I77:AB78))) -> 1178.670921 | AC97: =((AC55+AC87-AC98-AC74-AC33+AC107)/(AC24-SUM($I77:AC78))) -> 1214.16156
A98: Custo energia deslocada EE | I98: =I92*SUM($I78:I78)*(1)+I93*SUM($I77:I77)*(1) -> 38877907.77 | J98: =J92*SUM($I78:J78)*(1)+J93*SUM($I77:J77)*(1) -> 84056134.43 | K98: =K92*SUM($I78:K78)*(1)+K93*SUM($I77:K77)*(1) -> 134941325.3 | L98: =L92*SUM($I78:L78)*(1)+L93*SUM($I77:L77)*(1) -> 192194446.7 | M98: =M92*SUM($I78:M78)*(1)+M93*SUM($I77:M77)*(1) -> 256011242.3 | N98: =N92*SUM($I78:N78)*(1)+N93*SUM($I77:N77)*(1) -> 323452918.9 | O98: =O92*SUM($I78:O78)*(1)+O93*SUM($I77:O77)*(1) -> 399545089.6 | P98: =P92*SUM($I78:P78)*(1)+P93*SUM($I77:P77)*(1) -> 487341492.8 | Q98: =Q92*SUM($I78:Q78)*(1)+Q93*SUM($I77:Q77)*(1) -> 581709933.6 | R98: =R92*SUM($I78:R78)*(1)+R93*SUM($I77:R77)*(1) -> 692374073.1 | S98: =S92*SUM($I78:S78)*(1)+S93*SUM($I77:S77)*(1) -> 815967317.5 | T98: =T92*SUM($I78:T78)*(1)+T93*SUM($I77:T77)*(1) -> 946892037.5 | U98: =U92*SUM($I78:U78)*(1)+U93*SUM($I77:U77)*(1) -> 1099593741 | V98: =V92*SUM($I78:V78)*(1)+V93*SUM($I77:V77)*(1) -> 1269521907 | W98: =W92*SUM($I78:W78)*(1)+W93*SUM($I77:W77)*(1) -> 1458406659 | X98: =X92*SUM($I78:X78)*(1)+X93*SUM($I77:X77)*(1) -> 1668141811 | Y98: =Y92*SUM($I78:Y78)*(1)+Y93*SUM($I77:Y77)*(1) -> 1919839946 | Z98: =Z92*SUM($I78:Z78)*(1)+Z93*SUM($I77:Z77)*(1) -> 2220409861 | AA98: =AA92*SUM($I78:AA78)*(1)+AA93*SUM($I77:AA77)*(1) -> 2671262739 | AB98: =AB92*SUM($I78:AB78)*(1)+AB93*SUM($I77:AB77)*(1) -> 3040931563 | AC98: =AC92*SUM($I78:AC78)*(1)+AC93*SUM($I77:AC77)*(1) -> 3431157243
A99: Variação TD com EE | H99: =AC99 -> 0.07319874813 | I99: =I97/I58-1 -> 0.005441347734 | J99: 0.008702106538 | K99: 0.01196927272 | L99: 0.01553591701 | M99: 0.01882658167 | N99: 0.02196323954 | O99: 0.02492378961 | P99: 0.02824500537 | Q99: 0.03283425214 | R99: 0.03640127305 | S99: 0.03994459313 | T99: 0.04348857188 | U99: 0.04699984939 | V99: 0.05159624652 | W99: 0.05532843121 | X99: 0.05903161136 | Y99: 0.06219084456 | Z99: 0.06484868174 | AA99: 0.06678751479 | AB99: 0.06977029247 | AC99: 0.07319874813
A100: TD EE Atualizada | C100: Fator de Emissão [tCO2/MWh] | I100: =I97*$F$7/I7 -> 577.3808538 | J100: 564.7308034 | K100: 554.9748391 | L100: 566.8794912 | M100: 554.5236485 | N100: 530.5309587 | O100: 503.4744626 | P100: 494.1641634 | Q100: 506.7562282 | R100: 500.2716663 | S100: 493.9038683 | T100: 483.9942239 | U100: 478.2742072 | V100: 494.8989596 | W100: 489.2012125 | X100: 483.5541777 | Y100: 478.8764045 | Z100: 475.6308947 | AA100: 497.9888843 | AB100: 493.1356608 | AC100: 488.4464755
A101: Variação Impostos com EE | C101: P | D101: 0.224 | E101: tCO2/MWh | F101: GN | I101: =(I103+I104)/I64-1 -> -0.4571363936 | J101: -0.4586286126 | K101: -0.4601669943 | L101: -0.4616357135 | M101: -0.4632510034 | N101: -0.4649648523 | O101: -0.4668003755 | P101: -0.4685378586 | Q101: -0.4697381205 | R101: -0.4714626664 | S101: -0.4732504878 | T101: -0.4750767736 | U101: -0.4769851414 | V101: -0.4784915532 | W101: -0.4804044481 | X101: -0.4823866083 | Y101: -0.4846919299 | Z101: -0.487297094 | AA101: -0.4904060443 | AB101: -0.4929516914 | AC101: -0.495340908
A102: Arrecadação Impostos EE Atualizada | C102: FP | D102: 0.224 | E102: tCO2/MWh | F102: FE SIN 2016 médio | H102: =1-SUM(I102:AC102)/SUM($I$65:$AC$65) -> 0.4755322808 | I102: =(I103+I104+I105)*$F$7/I7/10^9 -> 3.48982038 | J102: 3.49476343 | K102: 3.515981339 | L102: 3.676123419 | M102: 3.680837582 | N102: 3.604546262 | O102: 3.501110084 | P102: 3.516529415 | Q102: 3.689464851 | R102: 3.726450618 | S102: 3.763702828 | T102: 3.772805815 | U102: 3.813271914 | V102: 4.034776582 | W102: 4.078431445 | X102: 4.121988734 | Y102: 4.173401175 | Z102: 4.237282973 | AA102: 4.53359528 | AB102: 4.588166754 | AC102: 4.64393496
A103: Federais | G103: =H103*10^6/150 -> -493586.5615 | H103: =SUM(I102:AC102)-SUM($I$65:$AC$65) -> -74.03798422 | I103: =(I55+I87-I98-I74+I107-I33)*(1/(1-5%)-1)+SUMPRODUCT(I88:I91,$C$88:$C$91) -> 765591986.7 | J103: =(J55+J87-J98-J74+J107-J33)*(1/(1-5%)-1)+SUMPRODUCT(J88:J91,$C$88:$C$91) -> 797337763.1 | K103: 834260054.2 | L103: 907146186.5 | M103: 944634439 | N103: 962046626 | O103: 971804157.2 | P103: 1015118287 | Q103: 1107639016 | R103: 1163482626 | S103: 1222107429 | T103: 1274052321 | U103: 1339213628 | V103: 1473685691 | W103: 1549200852 | X103: 1628359855 | Y103: 1714599823 | Z103: 1810461599 | AA103: 2014555778 | AB103: 2120335485 | AC103: 2231928202
A104: Estaduais | I104: =(I55+I87-I98-I74+I107-I33)*(1/(1-18%)-1)+SUMPRODUCT(I88:I91,$D$88:$D$91) -> 3193501779 | J104: =(J55+J87-J98-J74+J107-J33)*(1/(1-18%)-1)+SUMPRODUCT(J88:J91,$D$88:$D$91) -> 3325951801 | K104: 3479996356 | L104: 3784041563 | M104: 3940457309 | N104: 4013147296 | O104: 4053918460 | P104: 4234652510 | Q104: 4620622075 | R104: 4853629953 | S104: 5098246974 | T104: 5315014291 | U104: 5586915104 | V104: 6147904889 | W104: 6463014796 | X104: 6793336967 | Y104: 7153208061 | Z104: 7553226713 | AA104: 8404672850 | AB104: 8846096600 | AC104: 9311787640
A105: Variação da Parcela B EE | I105: =I$10-I106 -> 0.01232792243 | J105: 0.01259121124 | K105: 0.01259121124 | L105: -0.0002456159905 | M105: -0.0002456159905 | N105: -0.0002456159905 | O105: 0.0006224378742 | P105: 0.0006224378742 | Q105: 0.0008315193075 | R105: 0.0008315193075 | S105: 0.0008315193075 | T105: 0.0008315193075 | U105: 0.0008315193075 | V105: 0.0008952805077 | W105: 0.0008952805077 | X105: 0.0008952805077 | Y105: 0.0008952805077 | Z105: 0.0008952805077 | AA105: 0.0009667622015 | AB105: 0.0009667622015 | AC105: 0.0009667622015
A106: Pd | L106: =1.53%+0.14*((1+(Demanda!L47/Demanda!L46)*LN(Demanda!L47/Demanda!G47)+(Demanda!L48/Demanda!L46)*LN(Demanda!L48/Demanda!G48)+(Demanda!L49/Demanda!L46)*LN(Demanda!L49/Demanda!G49))^0.2-1-4.65%)-0.04*((L12/G12)^0.2-1-3.39%) -> 0.01283682723 | M106: =L106 -> 0.01283682723 | N106: =M106 -> 0.01283682723 | O106: =N106 -> 0.01283682723 | P106: =O106 -> 0.01283682723 | Q106: =1.53%+0.14*((1+(Demanda!Q47/Demanda!Q46)*LN(Demanda!Q47/Demanda!L47)+(Demanda!Q48/Demanda!Q46)*LN(Demanda!Q48/Demanda!L48)+(Demanda!Q49/Demanda!Q46)*LN(Demanda!Q49/Demanda!L49))^0.2-1-4.65%)-0.04*((Q12/L12)^0.2-1-3.39%) -> 0.01262774579 | R106: =Q106 -> 0.01262774579 | S106: =R106 -> 0.01262774579 | T106: =S106 -> 0.01262774579 | U106: =T106 -> 0.01262774579 | V106: =1.53%+0.14*((1+(Demanda!V47/Demanda!V46)*LN(Demanda!V47/Demanda!Q47)+(Demanda!V48/Demanda!V46)*LN(Demanda!V48/Demanda!Q48)+(Demanda!V49/Demanda!V46)*LN(Demanda!V49/Demanda!Q49))^0.2-1-4.65%)-0.04*((V12/Q12)^0.2-1-3.39%) -> 0.01256398459 | W106: =V106 -> 0.01256398459 | X106: =W106 -> 0.01256398459 | Y106: =X106 -> 0.01256398459 | Z106: =Y106 -> 0.01256398459 | AA106: =1.53%+0.14*((1+(Demanda!AA47/Demanda!AA46)*LN(Demanda!AA47/Demanda!V47)+(Demanda!AA48/Demanda!AA46)*LN(Demanda!AA48/Demanda!V48)+(Demanda!AA49/Demanda!AA46)*LN(Demanda!AA49/Demanda!V49))^0.2-1-4.65%)-0.04*((AA12/V12)^0.2-1-3.39%) -> 0.0124925029 | AB106: =AA106 -> 0.0124925029 | AC106: =AB106 -> 0.0124925029
A107: Parcela B | G107: =G$33 -> 3052921023 | H107: =H$33 -> 3134348769 | I107: =I$33 -> 3230485758 | J107: =J$33 -> 3319029459 | K107: =K$33 -> 3410000037 | L107: =L33*(1+L10-L106) -> 4184435998 | M107: =L107*(M$7/L$7-M106) -> 4298098556 | N107: 4414848550 | O107: 4534769843 | P107: 4657948580 | Q107: =Q33*(1+Q10-Q106) -> 5715121806 | R107: 5871557573 | S107: =R107*(S$7/R$7-S106) -> 6032275340 | T107: =S107*(T$7/S$7-T106) -> 6197392314 | U107: =T107*(U$7/T$7-U106) -> 6367028912 | V107: =V33*(1+V10-V106) -> 7784664223 | W107: 7998244391 | X107: =W107*(X$7/W$7-X106) -> 8217684347 | Y107: =X107*(Y$7/X$7-Y106) -> 8443144861 | Z107: =Y107*(Z$7/Y$7-Z106) -> 8674791114 | AA107: =AA33*(1+AA10-AA106) -> 1.060370475e+10 | AB107: 1.089538613e+10 | AC107: 1.119509093e+10
A108: Geração de Empregos Liquido EE | B108: Postos/GWh | C108: =0.34 -> 0.34 | D108: Indiretos | I108: =SUM($I77:I78)*$C$108/1000+SUM(I77:I78)*$C$109/8760 -> 320.893937 | J108: =SUM($I77:J78)*$C$108/1000+SUM(J77:J78)*$C$109/8760 -> 388.273901 | K108: =SUM($I77:K78)*$C$108/1000+SUM(K77:K78)*$C$109/8760 -> 459.8727628 | L108: =SUM($I77:L78)*$C$108/1000+SUM(L77:L78)*$C$109/8760 -> 535.9012087 | M108: =SUM($I77:M78)*$C$108/1000+SUM(M77:M78)*$C$109/8760 -> 616.5794849 | N108: =SUM($I77:N78)*$C$108/1000+SUM(N77:N78)*$C$109/8760 -> 702.1378091 | O108: =SUM($I77:O78)*$C$108/1000+SUM(O77:O78)*$C$109/8760 -> 792.8168009 | P108: =SUM($I77:P78)*$C$108/1000+SUM(P77:P78)*$C$109/8760 -> 888.8679282 | Q108: =SUM($I77:Q78)*$C$108/1000+SUM(Q77:Q78)*$C$109/8760 -> 990.5539743 | R108: =SUM($I77:R78)*$C$108/1000+SUM(R77:R78)*$C$109/8760 -> 1098.149523 | S108: =SUM($I77:S78)*$C$108/1000+SUM(S77:S78)*$C$109/8760 -> 1211.941465 | T108: =SUM($I77:T78)*$C$108/1000+SUM(T77:T78)*$C$109/8760 -> 1332.229524 | U108: =SUM($I77:U78)*$C$108/1000+SUM(U77:U78)*$C$109/8760 -> 1459.326806 | V108: =SUM($I77:V78)*$C$108/1000+SUM(V77:V78)*$C$109/8760 -> 1593.560372 | W108: =SUM($I77:W78)*$C$108/1000+SUM(W77:W78)*$C$109/8760 -> 1735.271832 | X108: =SUM($I77:X78)*$C$108/1000+SUM(X77:X78)*$C$109/8760 -> 1884.817969 | Y108: =SUM($I77:Y78)*$C$108/1000+SUM(Y77:Y78)*$C$109/8760 -> 2042.571379 | Z108: =SUM($I77:Z78)*$C$108/1000+SUM(Z77:Z78)*$C$109/8760 -> 2208.921149 | AA108: =SUM($I77:AA78)*$C$108/1000+SUM(AA77:AA78)*$C$109/8760 -> 2384.273558 | AB108: =SUM($I77:AB78)*$C$108/1000+SUM(AB77:AB78)*$C$109/8760 -> 2569.052804 | AC108: =SUM($I77:AC78)*$C$108/1000+SUM(AC77:AC78)*$C$109/8760 -> 2763.701766
A109: Postos de trabalho / R$ milhão | C109: =33-15 -> 18 | D109: Direros | I109: =I108/(I87/10^6) -> 9.991376938 | J109: =J108/(J87/10^6) -> 10.8825951 | K109: =K108/(K87/10^6) -> 11.61440205 | L109: 12.20721973 | M109: 12.67878851 | N109: 13.04455971 | O109: 13.31802288 | P109: 13.51098017 | Q109: 13.63377731 | R109: 13.69549906 | S109: 13.70413508 | T109: 13.66672149 | U109: 13.58946194 | V109: 13.47783154 | W109: 13.3366665 | X109: 13.17024148 | Y109: 12.98233671 | Z109: 12.7762963 | AA109: 12.55507899 | AB109: 12.32130258 | AC109: 12.07728274
A110: Emissão de GEE | I110: =$D$101*SUM($I78:I78)+$D$102*SUM($I77:I77) -> 30015.20226 | J110: =$D$101*SUM($I78:J78)+$D$102*SUM($I77:J77) -> 62071.47447 | K110: =$D$101*SUM($I78:K78)+$D$102*SUM($I77:K77) -> 96273.65626 | L110: =$D$101*SUM($I78:L78)+$D$102*SUM($I77:L77) -> 132731.4095 | M110: =$D$101*SUM($I78:M78)+$D$102*SUM($I77:M77) -> 171559.4277 | N110: =$D$101*SUM($I78:N78)+$D$102*SUM($I77:N77) -> 212877.6548 | O110: =$D$101*SUM($I78:O78)+$D$102*SUM($I77:O77) -> 256811.5121 | P110: =$D$101*SUM($I78:P78)+$D$102*SUM($I77:P77) -> 303492.1358 | Q110: =$D$101*SUM($I78:Q78)+$D$102*SUM($I77:Q77) -> 353056.6237 | R110: =$D$101*SUM($I78:R78)+$D$102*SUM($I77:R77) -> 405648.2929 | S110: =$D$101*SUM($I78:S78)+$D$102*SUM($I77:S77) -> 461416.9475 | T110: =$D$101*SUM($I78:T78)+$D$102*SUM($I77:T77) -> 520519.1585 | U110: =$D$101*SUM($I78:U78)+$D$102*SUM($I77:U77) -> 583118.5545 | V110: =$D$101*SUM($I78:V78)+$D$102*SUM($I77:V77) -> 649386.125 | W110: =$D$101*SUM($I78:W78)+$D$102*SUM($I77:W77) -> 719500.5363 | X110: =$D$101*SUM($I78:X78)+$D$102*SUM($I77:X77) -> 793648.4605 | Y110: =$D$101*SUM($I78:Y78)+$D$102*SUM($I77:Y77) -> 872024.9186 | Z110: =$D$101*SUM($I78:Z78)+$D$102*SUM($I77:Z77) -> 954833.637 | AA110: =$D$101*SUM($I78:AA78)+$D$102*SUM($I77:AA77) -> 1042287.42 | AB110: =$D$101*SUM($I78:AB78)+$D$102*SUM($I77:AB77) -> 1134608.537 | AC110: =$D$101*SUM($I78:AC78)+$D$102*SUM($I77:AC77) -> 1232029.126
A111: Relativo a Emissão Brasil 2005 | B111: Emissão 2005 | C111: 2351289291 | D111: tCO2-eq | I111: =I110/$C$111 -> 1.276542294e-05 | J111: 2.639891004e-05 | K111: 4.094504944e-05 | L111: 5.645048016e-05 | M111: 7.296398125e-05 | N111: 9.053656462e-05 | O111: 0.0001092215718 | P111: 0.0001290747748 | Q111: 0.0001501544812 | R111: 0.0001725216435 | S111: 0.0001962399732 | T111: 0.0002213760597 | U111: 0.0002479994941 | V111: 0.0002761829978 | W111: 0.0003060025574 | X111: 0.0003375375644 | Y111: 0.0003708709608 | Z111: 0.0004060893913 | AA111: 0.0004432833612 | AB111: 0.0004825474013 | AC111: 0.0005239802396
A113: Inserção DG FV base Residencial | G113: 0 | H113: 0 | I113: =(1+S114*Demanda!S17/Demanda!S9)^0.1-1 -> 0.03065441449 | J113: =I113 -> 0.03065441449 | K113: =J113 -> 0.03065441449 | L113: 0.03065441449 | M113: 0.03065441449 | N113: 0.03065441449 | O113: 0.03065441449 | P113: 0.03065441449 | Q113: 0.03065441449 | R113: 0.03065441449 | S113: 0.03065441449 | T113: =(1+(AC114*Demanda!AC17-S114*Demanda!T17)/Demanda!AC9)^0.1-1 -> 0.012320952 | U113: =T113 -> 0.012320952 | V113: =U113 -> 0.012320952 | W113: 0.012320952 | X113: 0.012320952 | Y113: 0.012320952 | Z113: 0.012320952 | AA113: 0.012320952 | AB113: 0.012320952 | AC113: 0.012320952
A114: GD FV | H114: 0 | I114: =(1+H114)*(1+0.7%)-1 -> 0.007 | J114: =(1+I114)*(1+0.7%)-1 -> 0.014049 | K114: =(1+J114)*(1+0.7%)-1 -> 0.021147343 | L114: 0.0282953744 | M114: 0.03549344202 | N114: 0.04274189612 | O114: 0.05004108939 | P114: 0.05739137701 | Q114: 0.06479311665 | R114: 0.07224666847 | S114: 0.07975239515 | T114: =(1+S114)*(1+0.1%)-1 -> 0.08083214754 | U114: =(1+T114)*(1+0.1%)-1 -> 0.08191297969 | V114: 0.08299489267 | W114: 0.08407788756 | X114: 0.08516196545 | Y114: 0.08624712742 | Z114: 0.08733337454 | AA114: 0.08842070792 | AB114: 0.08950912863 | AC114: 0.09059863776
A115: Penetração | B115: Distribuição de mercados | F115: Projeção | G115: Calculadora 2050 - IV.d | I115: =I24*I114 -> 156128.2702 | J115: =J24*J114-SUM($I$115:I115) -> 166621.6512 | K115: =K24*K114-SUM($I$115:J115) -> 177646.0064 | L115: =L24*L114-SUM($I$115:K115) -> 189225.3088 | M115: =M24*M114-SUM($I$115:L115) -> 201384.5498 | N115: =N24*N114-SUM($I$115:M115) -> 214149.7812 | O115: =O24*O114-SUM($I$115:N115) -> 227548.1582 | P115: =P24*P114-SUM($I$115:O115) -> 241607.9848 | Q115: =Q24*Q114-SUM($I$115:P115) -> 256358.7603 | R115: =R24*R114-SUM($I$115:Q115) -> 271831.2284 | S115: =S24*S114-SUM($I$115:R115) -> 288057.4278 | T115: =T24*T114-SUM($I$115:S115) -> 105053.0554 | U115: =U24*U114-SUM($I$115:T115) -> 109239.0719 | V115: =V24*V114-SUM($I$115:U115) -> 113582.767 | W115: =W24*W114-SUM($I$115:V115) -> 118089.8673 | X115: =X24*X114-SUM($I$115:W115) -> 122766.3017 | Y115: =Y24*Y114-SUM($I$115:X115) -> 127618.209 | Z115: =Z24*Z114-SUM($I$115:Y115) -> 132651.945 | AA115: =AA24*AA114-SUM($I$115:Z115) -> 137874.0902 | AB115: =AB24*AB114-SUM($I$115:AA115) -> 143291.4572 | AC115: =AC24*AC114-SUM($I$115:AB115) -> 148911.0991
A116: 5 kW | F116: 0.4 | G116: =5*8760*0.17/12 -> 620.5 | I116: =I$115*$F116/'GD FV'!B$16/8760 -> 41.93614563 | J116: =J$115*$F116/'GD FV'!C$16/8760 -> 44.75467398 | K116: =K$115*$F116/'GD FV'!D$16/8760 -> 47.71582229 | L116: =L$115*$F116/'GD FV'!E$16/8760 -> 50.82602975 | M116: =M$115*$F116/'GD FV'!F$16/8760 -> 54.09200907 | N116: =N$115*$F116/'GD FV'!G$16/8760 -> 57.52075777 | O116: =O$115*$F116/'GD FV'!H$16/8760 -> 51.9516343 | P116: =P$115*$F116/'GD FV'!I$16/8760 -> 55.16164036 | Q116: =Q$115*$F116/'GD FV'!J$16/8760 -> 58.52939732 | R116: =R$115*$F116/'GD FV'!K$16/8760 -> 62.06192429 | S116: =S$115*$F116/'GD FV'!L$16/8760 -> 65.76653603 | T116: =T$115*$F116/'GD FV'!M$16/8760 -> 19.18777267 | U116: =U$115*$F116/'GD FV'!N$16/8760 -> 19.95234189 | V116: =V$115*$F116/'GD FV'!O$16/8760 -> 20.74571088 | W116: =W$115*$F116/'GD FV'!P$16/8760 -> 21.56892553 | X116: =X$115*$F116/'GD FV'!Q$16/8760 -> 22.42306879 | Y116: =Y$115*$F116/'GD FV'!R$16/8760 -> 23.30926191 | Z116: =Z$115*$F116/'GD FV'!S$16/8760 -> 24.22866575 | AA116: =AA$115*$F116/'GD FV'!T$16/8760 -> 25.18248223 | AB116: =AB$115*$F116/'GD FV'!U$16/8760 -> 26.17195565 | AC116: =AC$115*$F116/'GD FV'!V$16/8760 -> 27.19837426
A117: 5 a 30 kWp | F117: 0.05 | I117: =I$115*$F117/'GD FV'!B$16/8760 -> 5.242018204 | J117: =J$115*$F117/'GD FV'!C$16/8760 -> 5.594334247 | K117: =K$115*$F117/'GD FV'!D$16/8760 -> 5.964477787 | L117: =L$115*$F117/'GD FV'!E$16/8760 -> 6.353253719 | M117: =M$115*$F117/'GD FV'!F$16/8760 -> 6.761501134 | N117: =N$115*$F117/'GD FV'!G$16/8760 -> 7.190094722 | O117: =O$115*$F117/'GD FV'!H$16/8760 -> 6.493954287 | P117: =P$115*$F117/'GD FV'!I$16/8760 -> 6.895205045 | Q117: =Q$115*$F117/'GD FV'!J$16/8760 -> 7.316174665 | R117: =R$115*$F117/'GD FV'!K$16/8760 -> 7.757740536 | S117: =S$115*$F117/'GD FV'!L$16/8760 -> 8.220817003 | T117: =T$115*$F117/'GD FV'!M$16/8760 -> 2.398471584 | U117: =U$115*$F117/'GD FV'!N$16/8760 -> 2.494042737 | V117: =V$115*$F117/'GD FV'!O$16/8760 -> 2.593213859 | W117: =W$115*$F117/'GD FV'!P$16/8760 -> 2.696115691 | X117: =X$115*$F117/'GD FV'!Q$16/8760 -> 2.802883599 | Y117: =Y$115*$F117/'GD FV'!R$16/8760 -> 2.913657739 | Z117: =Z$115*$F117/'GD FV'!S$16/8760 -> 3.028583219 | AA117: =AA$115*$F117/'GD FV'!T$16/8760 -> 3.147810278 | AB117: =AB$115*$F117/'GD FV'!U$16/8760 -> 3.271494456 | AC117: =AC$115*$F117/'GD FV'!V$16/8760 -> 3.399796783
A118: 31 a 100 kWp | F118: 0.05 | I118: =I$115*$F118/'GD FV'!B$16/8760 -> 5.242018204 | J118: =J$115*$F118/'GD FV'!C$16/8760 -> 5.594334247 | K118: =K$115*$F118/'GD FV'!D$16/8760 -> 5.964477787 | L118: =L$115*$F118/'GD FV'!E$16/8760 -> 6.353253719 | M118: =M$115*$F118/'GD FV'!F$16/8760 -> 6.761501134 | N118: =N$115*$F118/'GD FV'!G$16/8760 -> 7.190094722 | O118: =O$115*$F118/'GD FV'!H$16/8760 -> 6.493954287 | P118: =P$115*$F118/'GD FV'!I$16/8760 -> 6.895205045 | Q118: =Q$115*$F118/'GD FV'!J$16/8760 -> 7.316174665 | R118: =R$115*$F118/'GD FV'!K$16/8760 -> 7.757740536 | S118: =S$115*$F118/'GD FV'!L$16/8760 -> 8.220817003 | T118: =T$115*$F118/'GD FV'!M$16/8760 -> 2.398471584 | U118: =U$115*$F118/'GD FV'!N$16/8760 -> 2.494042737 | V118: =V$115*$F118/'GD FV'!O$16/8760 -> 2.593213859 | W118: =W$115*$F118/'GD FV'!P$16/8760 -> 2.696115691 | X118: =X$115*$F118/'GD FV'!Q$16/8760 -> 2.802883599 | Y118: =Y$115*$F118/'GD FV'!R$16/8760 -> 2.913657739 | Z118: =Z$115*$F118/'GD FV'!S$16/8760 -> 3.028583219 | AA118: =AA$115*$F118/'GD FV'!T$16/8760 -> 3.147810278 | AB118: =AB$115*$F118/'GD FV'!U$16/8760 -> 3.271494456 | AC118: =AC$115*$F118/'GD FV'!V$16/8760 -> 3.399796783
A119: > 100 kWp | F119: 0.5 | I119: =I$115*$F119/'GD FV'!B$16/8760 -> 52.42018204 | J119: =J$115*$F119/'GD FV'!C$16/8760 -> 55.94334247 | K119: =K$115*$F119/'GD FV'!D$16/8760 -> 59.64477787 | L119: =L$115*$F119/'GD FV'!E$16/8760 -> 63.53253719 | M119: =M$115*$F119/'GD FV'!F$16/8760 -> 67.61501134 | N119: =N$115*$F119/'GD FV'!G$16/8760 -> 71.90094722 | O119: =O$115*$F119/'GD FV'!H$16/8760 -> 64.93954287 | P119: =P$115*$F119/'GD FV'!I$16/8760 -> 68.95205045 | Q119: =Q$115*$F119/'GD FV'!J$16/8760 -> 73.16174665 | R119: =R$115*$F119/'GD FV'!K$16/8760 -> 77.57740536 | S119: =S$115*$F119/'GD FV'!L$16/8760 -> 82.20817003 | T119: =T$115*$F119/'GD FV'!M$16/8760 -> 23.98471584 | U119: =U$115*$F119/'GD FV'!N$16/8760 -> 24.94042737 | V119: =V$115*$F119/'GD FV'!O$16/8760 -> 25.93213859 | W119: =W$115*$F119/'GD FV'!P$16/8760 -> 26.96115691 | X119: =X$115*$F119/'GD FV'!Q$16/8760 -> 28.02883599 | Y119: =Y$115*$F119/'GD FV'!R$16/8760 -> 29.13657739 | Z119: =Z$115*$F119/'GD FV'!S$16/8760 -> 30.28583219 | AA119: =AA$115*$F119/'GD FV'!T$16/8760 -> 31.47810278 | AB119: =AB$115*$F119/'GD FV'!U$16/8760 -> 32.71494456 | AC119: =AC$115*$F119/'GD FV'!V$16/8760 -> 33.99796783
A120: Custo GD FV | I120: =SUM(I121:I124) -> 511096774.8 | J120: =SUM(J121:J124) -> 520832518.4 | K120: =SUM(K121:K124) -> 529049179.7 | L120: 535579288.5 | M120: 540243940.6 | N120: 542852151.5 | O120: 471720839.4 | P120: 481147408 | Q120: 489598408.6 | R120: 496960858.7 | S120: 503114000.6 | T120: 143812356.2 | U120: 146450189.5 | V120: 149057932.6 | W120: 151629546.5 | X120: 154158598 | Y120: 156638240 | Z120: 159061190.7 | AA120: 161419711.1 | AB120: 163705582.6 | AC120: 165910083
A121: 5 kW | I121: =I116*'GD FV'!C12*10^6 -> 251616873.8 | J121: =J116*'GD FV'!D12*10^6 -> 255101641.7 | K121: =K116*'GD FV'!E12*10^6 -> 257665440.4 | L121: =L116*'GD FV'!F12*10^6 -> 259212751.7 | M121: =M116*'GD FV'!G12*10^6 -> 259641643.6 | N121: =N116*'GD FV'!H12*10^6 -> 258843410 | O121: =O116*'GD FV'!I12*10^6 -> 223392027.5 | P121: =P116*'GD FV'!J12*10^6 -> 226162725.5 | Q121: =Q116*'GD FV'!K12*10^6 -> 228264649.5 | R121: =R116*'GD FV'!L12*10^6 -> 229629119.9 | S121: =S116*'GD FV'!M12*10^6 -> 230182876.1 | T121: =T116*'GD FV'!N12*10^6 -> 66197815.72 | U121: =U116*'GD FV'!O12*10^6 -> 67837962.44 | V121: =V116*'GD FV'!P12*10^6 -> 69498131.43 | W121: =W116*'GD FV'!Q12*10^6 -> 71177454.25 | X121: =X116*'GD FV'!R12*10^6 -> 72874973.58 | Y121: =Y116*'GD FV'!S12*10^6 -> 74589638.11 | Z121: =Z116*'GD FV'!T12*10^6 -> 76320297.13 | AA121: =AA116*'GD FV'!U12*10^6 -> 78065694.9 | AB121: =AB116*'GD FV'!V12*10^6 -> 79824464.73 | AC121: =AC116*'GD FV'!W12*10^6 -> 81595122.79
A122: 5 a 30 kWp | I122: =I117*'GD FV'!C13*10^6 -> 26210091.02 | J122: =J117*'GD FV'!D13*10^6 -> 26852804.39 | K122: =K117*'GD FV'!E13*10^6 -> 27436597.82 | L122: =L117*'GD FV'!F13*10^6 -> 27954316.36 | M122: =M117*'GD FV'!G13*10^6 -> 28398304.76 | N122: =N117*'GD FV'!H13*10^6 -> 28760378.89 | O122: =O117*'GD FV'!I13*10^6 -> 24936784.46 | P122: =P117*'GD FV'!J13*10^6 -> 25374354.57 | Q122: =Q117*'GD FV'!K13*10^6 -> 25752934.82 | R122: =R117*'GD FV'!L13*10^6 -> 26066008.2 | S122: =S117*'GD FV'!M13*10^6 -> 26306614.41 | T122: =T117*'GD FV'!N13*10^6 -> 7555185.49 | U122: =U117*'GD FV'!O13*10^6 -> 7731532.484 | V122: =V117*'GD FV'!P13*10^6 -> 7909302.271 | W122: =W117*'GD FV'!Q13*10^6 -> 8088347.074 | X122: =X117*'GD FV'!R13*10^6 -> 8268506.618 | Y122: =Y117*'GD FV'!S13*10^6 -> 8449607.442 | Z122: =Z117*'GD FV'!T13*10^6 -> 8631462.175 | AA122: =AA117*'GD FV'!U13*10^6 -> 8813868.779 | AB122: =AB117*'GD FV'!V13*10^6 -> 8996609.755 | AC122: =AC117*'GD FV'!W13*10^6 -> 9179451.314
A123: 31 a 100 kWp | I123: =I118*'GD FV'!C14*10^6 -> 23589081.92 | J123: =J118*'GD FV'!D14*10^6 -> 24055637.26 | K123: =K118*'GD FV'!E14*10^6 -> 24454358.93 | L123: =L118*'GD FV'!F14*10^6 -> 24777689.5 | M123: =M118*'GD FV'!G14*10^6 -> 25017554.2 | N123: =N118*'GD FV'!H14*10^6 -> 25165331.53 | O123: =O118*'GD FV'!I14*10^6 -> 22079444.58 | P123: =P118*'GD FV'!J14*10^6 -> 22754176.65 | Q123: =Q118*'GD FV'!K14*10^6 -> 23411758.93 | R123: =R118*'GD FV'!L14*10^6 -> 24048995.66 | S123: =S118*'GD FV'!M14*10^6 -> 24662451.01 | T123: =T118*'GD FV'!N14*10^6 -> 6979552.31 | U123: =U118*'GD FV'!O14*10^6 -> 7033200.517 | V123: =V118*'GD FV'!P14*10^6 -> 7079473.836 | W123: =W118*'GD FV'!Q14*10^6 -> 7117745.425 | X123: =X118*'GD FV'!R14*10^6 -> 7147353.178 | Y123: =Y118*'GD FV'!S14*10^6 -> 7167598.037 | Z123: =Z118*'GD FV'!T14*10^6 -> 7177742.23 | AA123: =AA118*'GD FV'!U14*10^6 -> 7177007.434 | AB123: =AB118*'GD FV'!V14*10^6 -> 7164572.859 | AC123: =AC118*'GD FV'!W14*10^6 -> 7139573.245
A124: > 100 kWp | I124: =I119*'GD FV'!C15*10^6 -> 209680728.1 | J124: =J119*'GD FV'!D15*10^6 -> 214822435.1 | K124: =K119*'GD FV'!E15*10^6 -> 219492782.6 | L124: =L119*'GD FV'!F15*10^6 -> 223634530.9 | M124: =M119*'GD FV'!G15*10^6 -> 227186438.1 | N124: =N119*'GD FV'!H15*10^6 -> 230083031.1 | O124: =O119*'GD FV'!I15*10^6 -> 201312582.9 | P124: =P119*'GD FV'!J15*10^6 -> 206856151.3 | Q124: =Q119*'GD FV'!K15*10^6 -> 212169065.3 | R124: =R119*'GD FV'!L15*10^6 -> 217216735 | S124: =S119*'GD FV'!M15*10^6 -> 221962059.1 | T124: =T119*'GD FV'!N15*10^6 -> 63079802.66 | U124: =U119*'GD FV'!O15*10^6 -> 63847494.06 | V124: =V119*'GD FV'!P15*10^6 -> 64571025.1 | W124: =W119*'GD FV'!Q15*10^6 -> 65245999.73 | X124: =X119*'GD FV'!R15*10^6 -> 65867764.59 | Y124: =Y119*'GD FV'!S15*10^6 -> 66431396.44 | Z124: =Z119*'GD FV'!T15*10^6 -> 66931689.15 | AA124: =AA119*'GD FV'!U15*10^6 -> 67363139.95 | AB124: =AB119*'GD FV'!V15*10^6 -> 67719935.24 | AC124: =AC119*'GD FV'!W15*10^6 -> 67995935.66
A126: Fator de Desacoplamento | I126: 0 | J126: 0.1 | K126: =J126+0.1 -> 0.2 | L126: =K126+0.1 -> 0.3 | M126: 0.4 | N126: 0.5 | O126: 0.6 | P126: 0.7 | Q126: 0.8 | R126: 0.9 | S126: 1 | T126: =S126 -> 1 | U126: =T126 -> 1 | V126: 1 | W126: 1 | X126: 1 | Y126: 1 | Z126: 1 | AA126: 1 | AB126: 1 | AC126: 1
A127: Variação TD com Desacoplamento Progressivo | B127: Variação TD com tarifa Convencional | H127: =AC127 -> -0.002697996799 | I127: =((I57-I129)/(I24*(1-I114))+(I56-I75+I139-I33-I114*I24*I59*I126)/(I24*(1-I114)))/I58-1 -> 0.004188764202 | J127: =((J57-J129)/(J24*(1-J114))+(J56-J75+J139-J33-J114*J24*J59*J126)/(J24*(1-J114)))/J58-1 -> 0.007509211799 | K127: =((K57-K129)/(K24*(1-K114))+(K56-K75+K139-K33-K114*K24*K59*K126)/(K24*(1-K114)))/K58-1 -> 0.009998350378 | L127: =((L57-L129)/(L24*(1-L114))+(L56-L75+L139-L33-L114*L24*L59*L126)/(L24*(1-L114)))/L58-1 -> 0.01195095843 | M127: 0.01274348325 | N127: 0.01249006943 | O127: 0.01150999117 | P127: 0.009876150637 | Q127: 0.007624120934 | R127: 0.004354719443 | S127: 0.0001882861484 | T127: -0.0001621046747 | U127: =((U57-U129)/(U24*(1-U114))+(U56-U75+U139-U33-U114*U24*U59*U126)/(U24*(1-U114)))/U58-1 -> -1.679424099e-05 | V127: -0.001120591449 | W127: -0.001012642341 | X127: -0.0009484350501 | Y127: -0.001083485709 | Z127: -0.001326277096 | AA127: -0.002662403648 | AB127: -0.002669940075 | AC127: -0.002697996799
A128: TD GD FV | B128: Auto consumo: | C128: 0.2 | I128: =((I55-I129-I75+I139-I33)/(I24*(1-I114))) -> 654.2047724 | J128: =((J55-J129-J75+J139-J33)/(J24*(1-J114))) -> 666.042946 | K128: 681.2835062 | L128: 724.421402 | M128: 737.5924833 | N128: 734.5123553 | O128: 725.4656237 | P128: 741.1466866 | Q128: 791.1577203 | R128: 812.9340619 | S128: 835.3536755 | T128: 848.407431 | U128: 869.196563 | V128: 932.0524355 | W128: 954.9397634 | X128: 978.3675266 | Y128: 1004.503541 | Z128: 1034.66771 | AA128: 1124.96652 | AB128: 1155.259194 | AC128: 1186.170843
A129: Custo energia deslocada GD FV | I129: =I24*I114*I17*(1) -> 39309370.59 | J129: =J24*J114*J17*(1) -> 84511152.94 | K129: 136268346.9 | L129: 194810372.7 | M129: 260239180.4 | N129: 328491843.3 | O129: 406574002 | P129: 496892846.9 | Q129: 594031534.8 | R129: 709527151.1 | S129: 839006823.1 | T129: 910912033.2 | U129: 988816284.7 | V129: 1073210264 | W129: 1164624188 | X129: 1263630948 | Y129: 1382129695 | Z129: 1520817670 | AA129: 1713559173 | AB129: 1863397001 | AC129: 2024329537
A130: Variação TD com GD FV | H130: =AC130 -> 0.048457722 | I130: =I128/I$58-1 -> 0.004188764202 | J130: =J128/J58-1 -> 0.00831825872 | K130: 0.01242419436 | L130: 0.01695815729 | M130: 0.02110548111 | N130: 0.02509529094 | O130: 0.02881719945 | P130: 0.0330074284 | Q130: 0.038568581 | R130: 0.04300066495 | S130: 0.04739876023 | T130: 0.04735168759 | U130: 0.04759851601 | V130: 0.0484475477 | W130: 0.04861635769 | X130: 0.04875250416 | Y130: 0.04858694196 | Z130: 0.04823644643 | AA130: 0.04858840829 | AB130: 0.04852163888 | AC130: 0.048457722
A131: TD GD FV Atualizada | I131: =I128*$F$7/I$7 -> 576.66155 | J131: =J128*$F$7/J7 -> 564.5159028 | K131: 555.2243231 | L131: 567.6733961 | M131: 555.7640005 | N131: 532.156898 | O131: 505.3870267 | P131: 496.4529358 | Q131: 509.569755 | R131: 503.4571977 | S131: 497.4440972 | T131: 485.7860267 | U131: 478.5476807 | V131: 493.4171287 | W131: 486.0898072 | X131: 478.8607341 | Y131: 472.743243 | Z131: 468.2107866 | AA131: 489.4933286 | AB131: 483.3405965 | AC131: 477.186057
A132: Variação Impostos com GD FV | F132: =3500/0.065 -> 53846.15385 | I132: =(I134+I135+I136)/I64-1 -> -0.4319069639 | J132: -0.433941532 | K132: -0.4362574966 | L132: -0.4394511895 | M132: -0.4418761104 | N132: -0.4439959624 | O132: -0.4491868392 | P132: -0.4515436843 | Q132: -0.4541445852 | R132: -0.4566745079 | S132: -0.4593184723 | T132: -0.4717931975 | U132: -0.4724881658 | V132: -0.473136312 | W132: -0.4738557625 | X132: -0.4745882504 | Y132: -0.4754790895 | Z132: -0.4764733833 | AA132: -0.4773535754 | AB132: -0.4781730585 | AC132: -0.478986677
A133: Arrecadação Impostos GD FV Atualizada | H133: =1-SUM(I133:AC133)/SUM($I$65:$AC$65) -> 0.4611917316 | I133: =(I135+I134+I136)*$F$7/I7/10^9 -> 3.652008777 | J133: 3.654128163 | K133: 3.671706067 | L133: 3.82760644 | M133: 3.82741915 | N133: 3.74581424 | O133: 3.616764572 | P133: 3.628974892 | Q133: 3.797961808 | R133: 3.830714478 | S133: 3.86324913 | T133: 3.796406019 | U133: 3.84605911 | V133: 4.076208705 | W133: 4.129833666 | X133: 4.184090572 | Y133: 4.24801456 | Z133: 4.326736582 | AA133: 4.649716381 | AB133: 4.721895298 | AC133: 4.794428603
A134: Federais | B134: 0.21 | H134: =SUM(I133:AC133)-SUM($I$65:$AC$65) -> -71.80523285 | I134: =(I$120+SUM($I120:I120)*1%)*$B134+(I55-I129-I75+I139-I33)*(1/(1-5%)-1) -> 870996712 | J134: =(J$120+SUM($I120:J120)*1%)*$B134+(J55-J129-J75+J139-J33)*(1/(1-5%)-1) -> 905549548.4 | K134: =(K$120+SUM($I120:K120)*1%)*$B134+(K55-K129-K75+K139-K33)*(1/(1-5%)-1) -> 944897349.9 | L134: =(L$120+SUM($I120:L120)*1%)*$B134+(L55-L129-L75+L139-L33)*(1/(1-5%)-1) -> 1019831535 | M134: =(M$120+SUM($I120:M120)*1%)*$B134+(M55-M129-M75+M139-M33)*(1/(1-5%)-1) -> 1058929249 | N134: =(N$120+SUM($I120:N120)*1%)*$B134+(N55-N129-N75+N139-N33)*(1/(1-5%)-1) -> 1077526944 | O134: =(O$120+SUM($I120:O120)*1%)*$B134+(O55-O129-O75+O139-O33)*(1/(1-5%)-1) -> 1072724342 | P134: =(P$120+SUM($I120:P120)*1%)*$B134+(P55-P129-P75+P139-P33)*(1/(1-5%)-1) -> 1118335732 | Q134: =(Q$120+SUM($I120:Q120)*1%)*$B134+(Q55-Q129-Q75+Q139-Q33)*(1/(1-5%)-1) -> 1212790087 | R134: =(R$120+SUM($I120:R120)*1%)*$B134+(R55-R129-R75+R139-R33)*(1/(1-5%)-1) -> 1270300128 | S134: =(S$120+SUM($I120:S120)*1%)*$B134+(S55-S129-S75+S139-S33)*(1/(1-5%)-1) -> 1330227178 | T134: =(T$120+SUM($I120:T120)*1%)*$B134+(T55-T129-T75+T139-T33)*(1/(1-5%)-1) -> 1309490260 | U134: =(U$120+SUM($I120:U120)*1%)*$B134+(U55-U129-U75+U139-U33)*(1/(1-5%)-1) -> 1378776978 | V134: =(V$120+SUM($I120:V120)*1%)*$B134+(V55-V129-V75+V139-V33)*(1/(1-5%)-1) -> 1517449204 | W134: =(W$120+SUM($I120:W120)*1%)*$B134+(W55-W129-W75+W139-W33)*(1/(1-5%)-1) -> 1597940298 | X134: =(X$120+SUM($I120:X120)*1%)*$B134+(X55-X129-X75+X139-X33)*(1/(1-5%)-1) -> 1682691270 | Y134: =(Y$120+SUM($I120:Y120)*1%)*$B134+(Y55-Y129-Y75+Y139-Y33)*(1/(1-5%)-1) -> 1775637052 | Z134: =(Z$120+SUM($I120:Z120)*1%)*$B134+(Z55-Z129-Z75+Z139-Z33)*(1/(1-5%)-1) -> 1879649449 | AA134: =(AA$120+SUM($I120:AA120)*1%)*$B134+(AA55-AA129-AA75+AA139-AA33)*(1/(1-5%)-1) -> 2097705727 | AB134: =(AB$120+SUM($I120:AB120)*1%)*$B134+(AB55-AB129-AB75+AB139-AB33)*(1/(1-5%)-1) -> 2214266263 | AC134: =(AC$120+SUM($I120:AC120)*1%)*$B134+(AC55-AC129-AC75+AC139-AC33)*(1/(1-5%)-1) -> 2336964954
A135: Estaduais | B135: 0.1273 | H135: =H134*1000000000/150 -> -478701552.3 | I135: =(I$120+SUM($H120:I120)*1%)*$B135+(I55-I129-I75+I139-I33)*(1/(1-18%)-1) -> 3246284409 | J135: =(J$120+SUM($H120:J120)*1%)*$B135+(J55-J129-J75+J139-J33)*(1/(1-18%)-1) -> 3379208583 | K135: =(K$120+SUM($H120:K120)*1%)*$B135+(K55-K129-K75+K139-K33)*(1/(1-18%)-1) -> 3533206877 | L135: =(L$120+SUM($H120:L120)*1%)*$B135+(L55-L129-L75+L139-L33)*(1/(1-18%)-1) -> 3836840025 | M135: =(M$120+SUM($H120:M120)*1%)*$B135+(M55-M129-M75+M139-M33)*(1/(1-18%)-1) -> 3992370343 | N135: =(N$120+SUM($H120:N120)*1%)*$B135+(N55-N129-N75+N139-N33)*(1/(1-18%)-1) -> 4063920412 | O135: =(O$120+SUM($H120:O120)*1%)*$B135+(O55-O129-O75+O139-O33)*(1/(1-18%)-1) -> 4093604569 | P135: =(P$120+SUM($H120:P120)*1%)*$B135+(P55-P129-P75+P139-P33)*(1/(1-18%)-1) -> 4273179497 | Q135: =(Q$120+SUM($H120:Q120)*1%)*$B135+(Q55-Q129-Q75+Q139-Q33)*(1/(1-18%)-1) -> 4657132339 | R135: =(R$120+SUM($H120:R120)*1%)*$B135+(R55-R129-R75+R139-R33)*(1/(1-18%)-1) -> 4887760080 | S135: =(S$120+SUM($H120:S120)*1%)*$B135+(S55-S129-S75+S139-S33)*(1/(1-18%)-1) -> 5129327693 | T135: =(T$120+SUM($H120:T120)*1%)*$B135+(T55-T129-T75+T139-T33)*(1/(1-18%)-1) -> 5310719619 | U135: =(U$120+SUM($H120:U120)*1%)*$B135+(U55-U129-U75+U139-U33)*(1/(1-18%)-1) -> 5596625114 | V135: =(V$120+SUM($H120:V120)*1%)*$B135+(V55-V129-V75+V139-V33)*(1/(1-18%)-1) -> 6171921950 | W135: =(W$120+SUM($H120:W120)*1%)*$B135+(W55-W129-W75+W139-W33)*(1/(1-18%)-1) -> 6504568690 | X135: =(X$120+SUM($H120:X120)*1%)*$B135+(X55-X129-X75+X139-X33)*(1/(1-18%)-1) -> 6854995165 | Y135: =(Y$120+SUM($H120:Y120)*1%)*$B135+(Y55-Y129-Y75+Y139-Y33)*(1/(1-18%)-1) -> 7239618419 | Z135: =(Z$120+SUM($H120:Z120)*1%)*$B135+(Z55-Z129-Z75+Z139-Z33)*(1/(1-18%)-1) -> 7670421851 | AA135: =(AA$120+SUM($H120:AA120)*1%)*$B135+(AA55-AA129-AA75+AA139-AA33)*(1/(1-18%)-1) -> 8576902292 | AB135: =(AB$120+SUM($H120:AB120)*1%)*$B135+(AB55-AB129-AB75+AB139-AB33)*(1/(1-18%)-1) -> 9060108495 | AC135: =(AC$120+SUM($H120:AC120)*1%)*$B135+(AC55-AC129-AC75+AC139-AC33)*(1/(1-18%)-1) -> 9568959703
A136: Municipais | B136: 0.05 | I136: =(I$120+SUM($H120:I120)*1%)*$B136 -> 25810387.13 | J136: =(J$120+SUM($H120:J120)*1%)*$B136 -> 26557590.57 | K136: =(K$120+SUM($H120:K120)*1%)*$B136 -> 27232948.22 | L136: =(L$120+SUM($H120:L120)*1%)*$B136 -> 27827243.3 | M136: =(M$120+SUM($H120:M120)*1%)*$B136 -> 28330597.88 | N136: =(N$120+SUM($H120:N120)*1%)*$B136 -> 28732434.5 | O136: =(O$120+SUM($H120:O120)*1%)*$B136 -> 25411729.32 | P136: =(P$120+SUM($H120:P120)*1%)*$B136 -> 26123631.45 | Q136: =(Q$120+SUM($H120:Q120)*1%)*$B136 -> 26790980.68 | R136: =(R$120+SUM($H120:R120)*1%)*$B136 -> 27407583.62 | S136: =(S$120+SUM($H120:S120)*1%)*$B136 -> 27966797.71 | T136: =(T$120+SUM($H120:T120)*1%)*$B136 -> 10073621.67 | U136: =(U$120+SUM($H120:U120)*1%)*$B136 -> 10278738.43 | V136: =(V$120+SUM($H120:V120)*1%)*$B136 -> 10483654.56 | W136: =(W$120+SUM($H120:W120)*1%)*$B136 -> 10688050.02 | X136: =(X$120+SUM($H120:X120)*1%)*$B136 -> 10891581.89 | Y136: =(Y$120+SUM($H120:Y120)*1%)*$B136 -> 11093883.12 | Z136: =(Z$120+SUM($H120:Z120)*1%)*$B136 -> 11294561.25 | AA136: =(AA$120+SUM($H120:AA120)*1%)*$B136 -> 11493197.12 | AB136: =(AB$120+SUM($H120:AB120)*1%)*$B136 -> 11689343.49 | AC136: =(AC$120+SUM($H120:AC120)*1%)*$B136 -> 11882523.55
A137: Variação da Parcela B GD FV | I137: =I$10-I138 -> 0.01232792243 | J137: 0.01259121124 | K137: 0.01259121124 | L137: -0.0001455204126 | M137: -0.0001455204126 | N137: -0.0001455204126 | O137: 0.0007225334521 | P137: 0.0007225334521 | Q137: 0.0009645285928 | R137: 0.0009645285928 | S137: 0.0009645285928 | T137: 0.0009645285928 | U137: 0.0009645285928 | V137: 0.0004939605373 | W137: 0.0004939605373 | X137: 0.0004939605373 | Y137: 0.0004939605373 | Z137: 0.0004939605373 | AA137: 0.0001489108026 | AB137: 0.0001489108026 | AC137: 0.0001489108026
A138: Pd | L138: =1.53%+0.14*((1+(Demanda!L52/Demanda!L51)*LN(Demanda!L52/Demanda!G52)+(Demanda!L53/Demanda!L51)*LN(Demanda!L53/Demanda!G53)+(Demanda!L54/Demanda!L51)*LN(Demanda!L54/Demanda!G54))^0.2-1-4.65%)-0.04*((L12/G12)^0.2-1-3.39%) -> 0.01273673165 | M138: =L138 -> 0.01273673165 | N138: =M138 -> 0.01273673165 | O138: =N138 -> 0.01273673165 | P138: =O138 -> 0.01273673165 | Q138: =1.53%+0.14*((1+(Demanda!Q52/Demanda!Q51)*LN(Demanda!Q52/Demanda!L52)+(Demanda!Q53/Demanda!Q51)*LN(Demanda!Q53/Demanda!L53)+(Demanda!Q54/Demanda!Q51)*LN(Demanda!Q54/Demanda!L54))^0.2-1-4.65%)-0.04*((Q12/L12)^0.2-1-3.39%) -> 0.01249473651 | R138: =Q138 -> 0.01249473651 | S138: =R138 -> 0.01249473651 | T138: =S138 -> 0.01249473651 | U138: =T138 -> 0.01249473651 | V138: =1.53%+0.14*((1+(Demanda!V52/Demanda!V51)*LN(Demanda!V52/Demanda!Q52)+(Demanda!V53/Demanda!V51)*LN(Demanda!V53/Demanda!Q53)+(Demanda!V54/Demanda!V51)*LN(Demanda!V54/Demanda!Q54))^0.2-1-4.65%)-0.04*((V12/Q12)^0.2-1-3.39%) -> 0.01296530456 | W138: =V138 -> 0.01296530456 | X138: =W138 -> 0.01296530456 | Y138: =X138 -> 0.01296530456 | Z138: =Y138 -> 0.01296530456 | AA138: =1.53%+0.14*((1+(Demanda!AA52/Demanda!AA51)*LN(Demanda!AA52/Demanda!V52)+(Demanda!AA53/Demanda!AA51)*LN(Demanda!AA53/Demanda!V53)+(Demanda!AA54/Demanda!AA51)*LN(Demanda!AA54/Demanda!V54))^0.2-1-4.65%)-0.04*((AA12/V12)^0.2-1-3.39%) -> 0.0133103543 | AB138: =AA138 -> 0.0133103543 | AC138: =AB138 -> 0.0133103543
A139: Parcela B | G139: =G$33 -> 3052921023 | H139: =H$33 -> 3134348769 | I139: =I$33 -> 3230485758 | J139: =J$33 -> 3319029459 | K139: =K$33 -> 3410000037 | L139: =L33*(1+L10-L138) -> 4184854944 | M139: =L139*(M$7/L$7-M138) -> 4298947768 | N139: =M139*(N$7/M$7-N138) -> 4416151134 | O139: =N139*(O$7/N$7-O138) -> 4536549848 | P139: =O139*(P$7/O$7-P138) -> 4660231024 | Q139: =Q33*(1+Q10-Q138) -> 5715881339 | R139: =Q139*(R$7/Q$7-R138) -> 5873098162 | S139: =R139*(S$7/R$7-S138) -> 6034639274 | T139: =S139*(T$7/S$7-T138) -> 6200623617 | U139: =T139*(U$7/T$7-U138) -> 6371173404 | V139: =V33*(1+V10-V138) -> 7781542876 | W139: =V139*(W$7/V$7-W138) -> 7991914518 | X139: =W139*(X$7/W$7-X138) -> 8207973493 | Y139: =X139*(Y$7/X$7-Y138) -> 8429873557 | Z139: =Y139*(Z$7/Y$7-Z138) -> 8657772621 | AA139: =AA33*(1+AA10-AA138) -> 1.059504087e+10 | AB139: =AA139*(AB$7/AA$7-AB138) -> 1.087781876e+10 | AC139: =AB139*(AC$7/AB$7-AC138) -> 1.116814389e+10
A140: Geração de Empregos Liquido GD FV | C140: Postos/GWh | D140: =0.7 -> 0.7 | E140: Indiretos | I140: =SUM(I116:I119)*$D$141+I114*I24*$D$140/1000 -> 948.0127017 | J140: 1121.018424 | K140: 1304.593595 | L140: 1499.255461 | M140: 1705.544232 | N140: 1924.024053 | O140: 1971.925294 | P140: 2205.251005 | Q140: 2452.057276 | R140: 2712.989675 | S140: 2988.722109 | T140: 2130.683981 | U140: 2222.442716 | V140: 2317.818032 | W140: 2416.945233 | X140: 2519.964509 | Y140: 2627.021118 | Z140: 2738.265556 | AA140: 2853.853749 | AB140: 2973.947237 | AC140: 3098.713379
A141: Postos de trabalho / R$ milhão | C141: Postos/MWp | D141: =23-15 -> 8 | E141: Direros | I141: =I140/(I120/10^6) -> 1.854859487 | J141: 2.152358743 | K141: 2.465921214 | L141: 2.799315606 | M141: 3.1569891 | N141: 3.544287422 | O141: 4.180280219 | P141: 4.583316813 | Q141: 5.008303199 | R141: 5.459161677 | S141: 5.940447107 | T141: 14.81572264 | U141: 15.17541714 | V141: 15.54977982 | W141: 15.93980387 | X141: 16.34657127 | Y141: 16.77126299 | Z141: 17.21517074 | AA141: 17.67971043 | AB141: 18.16643752 | AC141: 18.67706484
A142: Emissão de GEE | C142: Fator de Emissão [tCO2/MWh] | D142: 0.224 | I142: =$D$142*SUM($I$115:I115) -> 34972.73252 | J142: =$D$142*SUM($I$115:J115) -> 72295.98239 | K142: =$D$142*SUM($I$115:K115) -> 112088.6878 | L142: =$D$142*SUM($I$115:L115) -> 154475.157 | M142: =$D$142*SUM($I$115:M115) -> 199585.2961 | N142: =$D$142*SUM($I$115:N115) -> 247554.8471 | O142: =$D$142*SUM($I$115:O115) -> 298525.6346 | P142: =$D$142*SUM($I$115:P115) -> 352645.8232 | Q142: =$D$142*SUM($I$115:Q115) -> 410070.1855 | R142: =$D$142*SUM($I$115:R115) -> 470960.3806 | S142: =$D$142*SUM($I$115:S115) -> 535485.2444 | T142: =$D$142*SUM($I$115:T115) -> 559017.1288 | U142: =$D$142*SUM($I$115:U115) -> 583486.6809 | V142: =$D$142*SUM($I$115:V115) -> 608929.2208 | W142: =$D$142*SUM($I$115:W115) -> 635381.351 | X142: =$D$142*SUM($I$115:X115) -> 662881.0026 | Y142: =$D$142*SUM($I$115:Y115) -> 691467.4814 | Z142: =$D$142*SUM($I$115:Z115) -> 721181.5171 | AA142: =$D$142*SUM($I$115:AA115) -> 752065.3133 | AB142: =$D$142*SUM($I$115:AB115) -> 784162.5997 | AC142: =$D$142*SUM($I$115:AC115) -> 817518.6859
A143: Relativo a Emissão Brasil 2005 | I143: =I142/$C$111 -> 1.487385353e-05 | J143: 3.074737875e-05 | K143: 4.767115993e-05 | L143: 6.569806513e-05 | M143: 8.488334332e-05 | N143: 0.0001052847253 | O143: 0.0001269625289 | P143: 0.0001499797683 | Q143: 0.0001744022682 | R143: 0.0002002987818 | S143: 0.0002277411148 | T143: 0.0002377491919 | U143: 0.0002481560577 | V143: 0.0002589767338 | W143: 0.0002702267873 | X143: 0.0002819223501 | Y143: 0.0002940801389 | Z143: 0.0003067174762 | AA143: 0.0003198523109 | AB143: 0.0003335032413 | AC143: 0.0003476895374
A145: EE e GD FV
A146: TD EE e GD FV | I146: =(I55+I87-I129-I74-I75+I156-I33-I98)/(I24*(1-I114)-SUM($I77:I78)) -> 657.7914311 | J146: =(J55+J87-J129-J74-J75+J156-J33-J98)/(J24*(1-J114)-SUM($I77:J78)) -> 671.9420826 | K146: =(K55+K87-K129-K74-K75+K156-K33-K98)/(K24*(1-K114)-SUM($I77:K78)) -> 689.6732748 | L146: =(L55+L87-L129-L74-L75+L156-L33-L98)/(L24*(1-L114)-SUM($I77:L78)) -> 736.2916389 | M146: =(M55+M87-M129-M74-M75+M156-M33-M98)/(M24*(1-M114)-SUM($I77:M78)) -> 752.5317328 | N146: =(N55+N87-N129-N74-N75+N156-N33-N98)/(N24*(1-N114)-SUM($I77:N78)) -> 752.1898283 | O146: =(O55+O87-O129-O74-O75+O156-O33-O98)/(O24*(1-O114)-SUM($I77:O78)) -> 745.4779584 | P146: =(P55+P87-P129-P74-P75+P156-P33-P98)/(P24*(1-P114)-SUM($I77:P78)) -> 764.5385078 | Q146: =(Q55+Q87-Q129-Q74-Q75+Q156-Q33-Q98)/(Q24*(1-Q114)-SUM($I77:Q78)) -> 819.9014366 | R146: =(R55+R87-R129-R74-R75+R156-R33-R98)/(R24*(1-R114)-SUM($I77:R78)) -> 846.1337558 | S146: =(S55+S87-S129-S74-S75+S156-S33-S98)/(S24*(1-S114)-SUM($I77:S78)) -> 873.3224226 | T146: =(T55+T87-T129-T74-T75+T156-T33-T98)/(T24*(1-T114)-SUM($I77:T78)) -> 890.5336501 | U146: =(U55+U87-U129-U74-U75+U156-U33-U98)/(U24*(1-U114)-SUM($I77:U78)) -> 916.009011 | V146: =(V55+V87-V129-V74-V75+V156-V33-V98)/(V24*(1-V114)-SUM($I77:V78)) -> 987.1547067 | W146: =(W55+W87-W129-W74-W75+W156-W33-W98)/(W24*(1-W114)-SUM($I77:W78)) -> 1015.699338 | X146: =(X55+X87-X129-X74-X75+X156-X33-X98)/(X24*(1-X114)-SUM($I77:X78)) -> 1045.026367 | Y146: =(Y55+Y87-Y129-Y74-Y75+Y156-Y33-Y98)/(Y24*(1-Y114)-SUM($I77:Y78)) -> 1076.906287 | Z146: =(Z55+Z87-Z129-Z74-Z75+Z156-Z33-Z98)/(Z24*(1-Z114)-SUM($I77:Z78)) -> 1112.792682 | AA146: =(AA55+AA87-AA129-AA74-AA75+AA156-AA33-AA98)/(AA24*(1-AA114)-SUM($I77:AA78)) -> 1212.788983 | AB146: =(AB55+AB87-AB129-AB74-AB75+AB156-AB33-AB98)/(AB24*(1-AB114)-SUM($I77:AB78)) -> 1249.897709 | AC146: =(AC55+AC87-AC129-AC74-AC75+AC156-AC33-AC98)/(AC24*(1-AC114)-SUM($I77:AC78)) -> 1288.512085
A147: Variação TD com EE e GD FV | H147: =AC147 -> 0.1389172599 | I147: =I146/I$58-1 -> 0.009694199936 | J147: 0.01724892486 | K147: 0.02489184496 | L147: 0.03362184805 | M147: 0.04178702264 | N147: 0.04976620925 | O147: 0.05719764015 | P147: 0.06561085969 | Q147: 0.07630103288 | R147: 0.08559612802 | S147: 0.09500544443 | T147: 0.09935614334 | U147: 0.1040191843 | V147: 0.1104310144 | W147: 0.1153362554 | X147: 0.1202068643 | Y147: 0.1241671376 | Z147: 0.1273859576 | AA147: 0.1304482816 | AB147: 0.1344162433 | AC147: 0.1389172599
A148: TD Atualizada com EE e GD FV | I148: =I146*$F$7/I$7 -> 579.8230802 | J148: =J146*$F$7/J$7 -> 569.5158153 | K148: 562.0617168 | L148: 576.9751887 | M148: 567.0204833 | N148: 544.9642921 | O148: 519.3283824 | P148: 512.1218156 | Q148: 528.0830402 | R148: 524.0180594 | S148: 520.0540763 | T148: 509.9069005 | U148: 504.320894 | V148: 522.5875953 | W148: 517.0180508 | X148: 511.4868181 | Y148: 506.8176964 | Z148: 503.5641222 | AA148: 527.7064746 | AB148: 522.9357253 | AC148: 518.3570354
A149: Variação Impostos com EE e GD FV | I149: =(I151+I152+I153)/I64-1 -> -0.4310911943 | J149: -0.434607038 | K149: -0.4384508542 | L149: -0.4429925864 | M149: -0.4469103673 | N149: -0.4506123422 | O149: -0.4576096076 | P149: -0.4616934414 | Q149: -0.4658244786 | R149: -0.4700519648 | S149: -0.4744569063 | T149: -0.4887284817 | U149: -0.4913053051 | V149: -0.4935126808 | W149: -0.4961135737 | X149: -0.4987971794 | Y149: -0.5019636983 | Z149: -0.5055355373 | AA149: -0.5095990155 | AB149: -0.5129338776 | AC149: -0.5161069233
A150: Impostos EE e GD FV Atualizada | G150: =AC150/I150-1 -> 0.2175377407 | H150: =1-SUM(I150:AC150)/SUM($I$65:$AC$65) -> 0.4785626661 | I150: =(I152+I151+I153)*$F$7/I7/10^9 -> 3.657252985 | J150: 3.649832062 | K150: 3.65742053 | L150: 3.80342465 | M150: 3.792895971 | N150: 3.70123951 | O150: 3.561458758 | P150: 3.561816921 | Q150: 3.716695254 | R150: 3.736396765 | S150: 3.75508279 | T150: 3.67468624 | U150: 3.708864406 | V150: 3.918561986 | W150: 3.955126711 | X150: 3.99130396 | Y150: 4.033519767 | Z150: 4.086549586 | AA150: 4.362845288 | AB150: 4.40735242 | AC150: 4.452843536
A151: Federais | H151: =SUM(I150:AC150)-SUM($I$65:$AC$65) -> -74.50979997 | I151: =(I55+I87-I98-I74-I129-I75+I156-I33)*(1/(1-5%)-1)+(I$120+SUM($H120:I120)*1%)*$B134+SUMPRODUCT(I88:I91,$C$88:$C$91) -> 871823252.6 | J151: =(J55+J87-J98-J74-J129-J75+J156-J33)*(1/(1-5%)-1)+(J$120+SUM($H120:J120)*1%)*$B134+SUMPRODUCT(J88:J91,$C$88:$C$91) -> 904209290.3 | K151: =(K55+K87-K98-K74-K129-K75+K156-K33)*(1/(1-5%)-1)+(K$120+SUM($H120:K120)*1%)*$B134+SUMPRODUCT(K88:K91,$C$88:$C$91) -> 941107817.6 | L151: =(L55+L87-L98-L74-L129-L75+L156-L33)*(1/(1-5%)-1)+(L$120+SUM($H120:L120)*1%)*$B134+SUMPRODUCT(L88:L91,$C$88:$C$91) -> 1013420592 | M151: =(M55+M87-M98-M74-M129-M75+M156-M33)*(1/(1-5%)-1)+(M$120+SUM($H120:M120)*1%)*$B134+SUMPRODUCT(M88:M91,$C$88:$C$91) -> 1049577540 | N151: =(N55+N87-N98-N74-N129-N75+N156-N33)*(1/(1-5%)-1)+(N$120+SUM($H120:N120)*1%)*$B134+SUMPRODUCT(N88:N91,$C$88:$C$91) -> 1065085252 | O151: =(O55+O87-O98-O74-O129-O75+O156-O33)*(1/(1-5%)-1)+(O$120+SUM($H120:O120)*1%)*$B134+SUMPRODUCT(O88:O91,$C$88:$C$91) -> 1056770065 | P151: =(P55+P87-P98-P74-P129-P75+P156-P33)*(1/(1-5%)-1)+(P$120+SUM($H120:P120)*1%)*$B134+SUMPRODUCT(P88:P91,$C$88:$C$91) -> 1098282225 | Q151: =(Q55+Q87-Q98-Q74-Q129-Q75+Q156-Q33)*(1/(1-5%)-1)+(Q$120+SUM($H120:Q120)*1%)*$B134+SUMPRODUCT(Q88:Q91,$C$88:$C$91) -> 1187655377 | R151: =(R55+R87-R98-R74-R129-R75+R156-R33)*(1/(1-5%)-1)+(R$120+SUM($H120:R120)*1%)*$B134+SUMPRODUCT(R88:R91,$C$88:$C$91) -> 1240037805 | S151: =(S55+S87-S98-S74-S129-S75+S156-S33)*(1/(1-5%)-1)+(S$120+SUM($H120:S120)*1%)*$B134+SUMPRODUCT(S88:S91,$C$88:$C$91) -> 1294205854 | T151: =(T55+T87-T98-T74-T129-T75+T156-T33)*(1/(1-5%)-1)+(T$120+SUM($H120:T120)*1%)*$B134+SUMPRODUCT(T88:T91,$C$88:$C$91) -> 1267394726 | U151: =(U55+U87-U98-U74-U129-U75+U156-U33)*(1/(1-5%)-1)+(U$120+SUM($H120:U120)*1%)*$B134+SUMPRODUCT(U88:U91,$C$88:$C$91) -> 1329501135 | V151: =(V55+V87-V98-V74-V129-V75+V156-V33)*(1/(1-5%)-1)+(V$120+SUM($H120:V120)*1%)*$B134+SUMPRODUCT(V88:V91,$C$88:$C$91) -> 1458664662 | W151: =(W55+W87-W98-W74-W129-W75+W156-W33)*(1/(1-5%)-1)+(W$120+SUM($H120:W120)*1%)*$B134+SUMPRODUCT(W88:W91,$C$88:$C$91) -> 1530250503 | X151: =(X55+X87-X98-X74-X129-X75+X156-X33)*(1/(1-5%)-1)+(X$120+SUM($H120:X120)*1%)*$B134+SUMPRODUCT(X88:X91,$C$88:$C$91) -> 1605071412 | Y151: =(Y55+Y87-Y98-Y74-Y129-Y75+Y156-Y33)*(1/(1-5%)-1)+(Y$120+SUM($H120:Y120)*1%)*$B134+SUMPRODUCT(Y88:Y91,$C$88:$C$91) -> 1685905983 | Z151: =(Z55+Z87-Z98-Z74-Z129-Z75+Z156-Z33)*(1/(1-5%)-1)+(Z$120+SUM($H120:Z120)*1%)*$B134+SUMPRODUCT(Z88:Z91,$C$88:$C$91) -> 1775255502 | AA151: =(AA55+AA87-AA98-AA74-AA129-AA75+AA156-AA33)*(1/(1-5%)-1)+(AA$120+SUM($H120:AA120)*1%)*$B134+SUMPRODUCT(AA88:AA91,$C$88:$C$91) -> 1968284542 | AB151: =(AB55+AB87-AB98-AB74-AB129-AB75+AB156-AB33)*(1/(1-5%)-1)+(AB$120+SUM($H120:AB120)*1%)*$B134+SUMPRODUCT(AB88:AB91,$C$88:$C$91) -> 2066766007 | AC151: =(AC55+AC87-AC98-AC74-AC129-AC75+AC156-AC33)*(1/(1-5%)-1)+(AC$120+SUM($H120:AC120)*1%)*$B134+SUMPRODUCT(AC88:AC91,$C$88:$C$91) -> 2170443538
A152: Estaduais | I152: =(I55+I87-I98-I74-I129-I75+I156-I33)*(1/(1-18%)-1)+(I$120+SUM($H120:I120)*1%)*$B135+SUMPRODUCT(I88:I91,$D$88:$D$91) -> 3250154694 | J152: =(J55+J87-J98-J74-J129-J75+J156-J33)*(1/(1-18%)-1)+(J$120+SUM($H120:J120)*1%)*$B135+SUMPRODUCT(J88:J91,$D$88:$D$91) -> 3374088636 | K152: =(K55+K87-K98-K74-K129-K75+K156-K33)*(1/(1-18%)-1)+(K$120+SUM($H120:K120)*1%)*$B135+SUMPRODUCT(K88:K91,$D$88:$D$91) -> 3517923250 | L152: =(L55+L87-L98-L74-L129-L75+L156-L33)*(1/(1-18%)-1)+(L$120+SUM($H120:L120)*1%)*$B135+SUMPRODUCT(L88:L91,$D$88:$D$91) -> 3810679901 | M152: =(M55+M87-M98-M74-M129-M75+M156-M33)*(1/(1-18%)-1)+(M$120+SUM($H120:M120)*1%)*$B135+SUMPRODUCT(M88:M91,$D$88:$D$91) -> 3954007375 | N152: =(N55+N87-N98-N74-N129-N75+N156-N33)*(1/(1-18%)-1)+(N$120+SUM($H120:N120)*1%)*$B135+SUMPRODUCT(N88:N91,$D$88:$D$91) -> 4012738381 | O152: =(O55+O87-O98-O74-O129-O75+O156-O33)*(1/(1-18%)-1)+(O$120+SUM($H120:O120)*1%)*$B135+SUMPRODUCT(O88:O91,$D$88:$D$91) -> 4027847606 | P152: =(P55+P87-P98-P74-P129-P75+P156-P33)*(1/(1-18%)-1)+(P$120+SUM($H120:P120)*1%)*$B135+SUMPRODUCT(P88:P91,$D$88:$D$91) -> 4190408183 | Q152: =(Q55+Q87-Q98-Q74-Q129-Q75+Q156-Q33)*(1/(1-18%)-1)+(Q$120+SUM($H120:Q120)*1%)*$B135+SUMPRODUCT(Q88:Q91,$D$88:$D$91) -> 4553259119 | R152: =(R55+R87-R98-R74-R129-R75+R156-R33)*(1/(1-18%)-1)+(R$120+SUM($H120:R120)*1%)*$B135+SUMPRODUCT(R88:R91,$D$88:$D$91) -> 4762600122 | S152: =(S55+S87-S98-S74-S129-S75+S156-S33)*(1/(1-18%)-1)+(S$120+SUM($H120:S120)*1%)*$B135+SUMPRODUCT(S88:S91,$D$88:$D$91) -> 4980257184 | T152: =(T55+T87-T98-T74-T129-T75+T156-T33)*(1/(1-18%)-1)+(T$120+SUM($H120:T120)*1%)*$B135+SUMPRODUCT(T88:T91,$D$88:$D$91) -> 5136434323 | U152: =(U55+U87-U98-U74-U129-U75+U156-U33)*(1/(1-18%)-1)+(U$120+SUM($H120:U120)*1%)*$B135+SUMPRODUCT(U88:U91,$D$88:$D$91) -> 5392523152 | V152: =(V55+V87-V98-V74-V129-V75+V156-V33)*(1/(1-18%)-1)+(V$120+SUM($H120:V120)*1%)*$B135+SUMPRODUCT(V88:V91,$D$88:$D$91) -> 5928304648 | W152: =(W55+W87-W98-W74-W129-W75+W156-W33)*(1/(1-18%)-1)+(W$120+SUM($H120:W120)*1%)*$B135+SUMPRODUCT(W88:W91,$D$88:$D$91) -> 6223966398 | X152: =(X55+X87-X98-X74-X129-X75+X156-X33)*(1/(1-18%)-1)+(X$120+SUM($H120:X120)*1%)*$B135+SUMPRODUCT(X88:X91,$D$88:$D$91) -> 6533148449 | Y152: =(Y55+Y87-Y98-Y74-Y129-Y75+Y156-Y33)*(1/(1-18%)-1)+(Y$120+SUM($H120:Y120)*1%)*$B135+SUMPRODUCT(Y88:Y91,$D$88:$D$91) -> 6867446417 | Z152: =(Z55+Z87-Z98-Z74-Z129-Z75+Z156-Z33)*(1/(1-18%)-1)+(Z$120+SUM($H120:Z120)*1%)*$B135+SUMPRODUCT(Z88:Z91,$D$88:$D$91) -> 7237299824 | AA152: =(AA55+AA87-AA98-AA74-AA129-AA75+AA156-AA33)*(1/(1-18%)-1)+(AA$120+SUM($H120:AA120)*1%)*$B135+SUMPRODUCT(AA88:AA91,$D$88:$D$91) -> 8039622442 | AB152: =(AB55+AB87-AB98-AB74-AB129-AB75+AB156-AB33)*(1/(1-18%)-1)+(AB$120+SUM($H120:AB120)*1%)*$B135+SUMPRODUCT(AB88:AB91,$D$88:$D$91) -> 8447670662 | AC152: =(AC55+AC87-AC98-AC74-AC129-AC75+AC156-AC33)*(1/(1-18%)-1)+(AC$120+SUM($H120:AC120)*1%)*$B135+SUMPRODUCT(AC88:AC91,$D$88:$D$91) -> 8877457474
A153: Municipais | I153: =(I$120+SUM($H120:I120)*1%)*$B136+SUMPRODUCT(I88:I91,$E$88:$E$91) -> 27062953.58 | J153: =(J$120+SUM($H120:J120)*1%)*$B136+SUMPRODUCT(J88:J91,$E$88:$E$91) -> 27949049.31 | K153: =(K$120+SUM($H120:K120)*1%)*$B136+SUMPRODUCT(K88:K91,$E$88:$E$91) -> 28777154.95 | L153: =(L$120+SUM($H120:L120)*1%)*$B136+SUMPRODUCT(L88:L91,$E$88:$E$91) -> 29539356.92 | M153: =(M$120+SUM($H120:M120)*1%)*$B136+SUMPRODUCT(M88:M91,$E$88:$E$91) -> 30227198.64 | N153: =(N$120+SUM($H120:N120)*1%)*$B136+SUMPRODUCT(N88:N91,$E$88:$E$91) -> 30831652.5 | O153: =(O$120+SUM($H120:O120)*1%)*$B136+SUMPRODUCT(O88:O91,$E$88:$E$91) -> 27733384.38 | P153: =(P$120+SUM($H120:P120)*1%)*$B136+SUMPRODUCT(P88:P91,$E$88:$E$91) -> 28689385.29 | Q153: =(Q$120+SUM($H120:Q120)*1%)*$B136+SUMPRODUCT(Q88:Q91,$E$88:$E$91) -> 29624502.47 | R153: =(R$120+SUM($H120:R120)*1%)*$B136+SUMPRODUCT(R88:R91,$E$88:$E$91) -> 30534730.08 | S153: =(S$120+SUM($H120:S120)*1%)*$B136+SUMPRODUCT(S88:S91,$E$88:$E$91) -> 31415809.04 | T153: =(T$120+SUM($H120:T120)*1%)*$B136+SUMPRODUCT(T88:T91,$E$88:$E$91) -> 13875334.57 | U153: =(U$120+SUM($H120:U120)*1%)*$B136+SUMPRODUCT(U88:U91,$E$88:$E$91) -> 14466817.82 | V153: =(V$120+SUM($H120:V120)*1%)*$B136+SUMPRODUCT(V88:V91,$E$88:$E$91) -> 15094845.48 | W153: =(W$120+SUM($H120:W120)*1%)*$B136+SUMPRODUCT(W88:W91,$E$88:$E$91) -> 15762451.59 | X153: =(X$120+SUM($H120:X120)*1%)*$B136+SUMPRODUCT(X88:X91,$E$88:$E$91) -> 16472945.07 | Y153: =(Y$120+SUM($H120:Y120)*1%)*$B136+SUMPRODUCT(Y88:Y91,$E$88:$E$91) -> 17229934.39 | Z153: =(Z$120+SUM($H120:Z120)*1%)*$B136+SUMPRODUCT(Z88:Z91,$E$88:$E$91) -> 18037354.53 | AA153: =(AA$120+SUM($H120:AA120)*1%)*$B136+SUMPRODUCT(AA88:AA91,$E$88:$E$91) -> 18899496.1 | AB153: =(AB$120+SUM($H120:AB120)*1%)*$B136+SUMPRODUCT(AB88:AB91,$E$88:$E$91) -> 19821037.25 | AC153: =(AC$120+SUM($H120:AC120)*1%)*$B136+SUMPRODUCT(AC88:AC91,$E$88:$E$91) -> 20807078.12
A154: Variação da Parcela B com EE e GD FV | I154: =I$10-I155 -> 0.01232792243 | J154: 0.01259121124 | K154: 0.01259121124 | L154: 0.0005071287238 | M154: 0.0005071287238 | N154: 0.0005071287238 | O154: 0.001375182589 | P154: 0.001375182589 | Q154: 0.001903904724 | R154: 0.001903904724 | S154: 0.001903904724 | T154: 0.001903904724 | U154: 0.001903904724 | V154: 0.001522149139 | W154: 0.001522149139 | X154: 0.001522149139 | Y154: 0.001522149139 | Z154: 0.001522149139 | AA154: 0.00124301825 | AB154: 0.00124301825 | AC154: 0.00124301825
A155: Pd | L155: =1.53%+0.14*((1+(Demanda!L57/Demanda!L56)*LN(Demanda!L57/Demanda!G57)+(Demanda!L58/Demanda!L56)*LN(Demanda!L58/Demanda!G58)+(Demanda!L59/Demanda!L56)*LN(Demanda!L59/Demanda!G59))^0.2-1-4.65%)-0.04*((L12/G12)^0.2-1-3.39%) -> 0.01208408251 | M155: =L155 -> 0.01208408251 | N155: =M155 -> 0.01208408251 | O155: =N155 -> 0.01208408251 | P155: =O155 -> 0.01208408251 | Q155: =1.53%+0.14*((1+(Demanda!Q57/Demanda!Q56)*LN(Demanda!Q57/Demanda!L57)+(Demanda!Q58/Demanda!Q56)*LN(Demanda!Q58/Demanda!L58)+(Demanda!Q59/Demanda!Q56)*LN(Demanda!Q59/Demanda!L59))^0.2-1-4.65%)-0.04*((Q12/L12)^0.2-1-3.39%) -> 0.01155536038 | R155: =Q155 -> 0.01155536038 | S155: =R155 -> 0.01155536038 | T155: =S155 -> 0.01155536038 | U155: =T155 -> 0.01155536038 | V155: =1.53%+0.14*((1+(Demanda!V57/Demanda!V56)*LN(Demanda!V57/Demanda!Q57)+(Demanda!V58/Demanda!V56)*LN(Demanda!V58/Demanda!Q58)+(Demanda!V59/Demanda!V56)*LN(Demanda!V59/Demanda!Q59))^0.2-1-4.65%)-0.04*((V12/Q12)^0.2-1-3.39%) -> 0.01193711596 | W155: =V155 -> 0.01193711596 | X155: =W155 -> 0.01193711596 | Y155: =X155 -> 0.01193711596 | Z155: =Y155 -> 0.01193711596 | AA155: =1.53%+0.14*((1+(Demanda!AA57/Demanda!AA56)*LN(Demanda!AA57/Demanda!V57)+(Demanda!AA58/Demanda!AA56)*LN(Demanda!AA58/Demanda!V58)+(Demanda!AA59/Demanda!AA56)*LN(Demanda!AA59/Demanda!V59))^0.2-1-4.65%)-0.04*((AA12/V12)^0.2-1-3.39%) -> 0.01221624685 | AB155: =AA155 -> 0.01221624685 | AC155: =AB155 -> 0.01221624685
A156: Parcela B | G156: =G$33 -> 3052921023 | H156: =H$33 -> 3134348769 | I156: =I$33 -> 3230485758 | J156: =J$33 -> 3319029459 | K156: =K$33 -> 3410000037 | L156: =L33*(1+L10-L155) -> 4187586584 | M156: =L156*(M$7/L$7-M155) -> 4304486905 | N156: =M156*(N$7/M$7-N155) -> 4424650607 | O156: =N156*(O$7/N$7-O155) -> 4548168788 | P156: =O156*(P$7/O$7-P155) -> 4675135092 | Q156: =Q33*(1+Q10-Q155) -> 5721245528 | R156: 5883984295 | S156: 6051352108 | T156: =S156*(T$7/S$7-T155) -> 6223480638 | U156: =T156*(U$7/T$7-U155) -> 6400505302 | V156: =V33*(1+V10-V155) -> 7789539820 | W156: 8008136773 | X156: 8232868186 | Y156: 8463906211 | Z156: 8701427830 | AA156: =AA33*(1+AA10-AA155) -> 1.060663126e+10 | AB156: 1.090132328e+10 | AC156: 1.120420296e+10
A157: Geração de Empregos Liquido EE e GD FV | I157: =I140+I108 -> 1268.906639 | J157: =J140+J108 -> 1509.292325 | K157: 1764.466358 | L157: 2035.156669 | M157: 2322.123717 | N157: 2626.161862 | O157: 2764.742095 | P157: 3094.118933 | Q157: 3442.61125 | R157: 3811.139198 | S157: 4200.663574 | T157: 3462.913505 | U157: 3681.769521 | V157: 3911.378404 | W157: 4152.217065 | X157: 4404.782478 | Y157: 4669.592496 | Z157: 4947.186705 | AA157: 5238.127307 | AB157: 5543.000041 | AC157: 5862.415145
A158: Postos de trabalho / R$ milhão | I158: =I157/((I120+I87)/10^6) -> 2.335924623 | J158: 2.712062236 | K158: 3.102935516 | L158: 3.51204173 | M158: 3.943323768 | N158: 4.401303121 | O158: 5.204215943 | P158: 5.65718679 | Q158: 6.122888439 | R158: 6.603444772 | S158: 7.10111104 | T158: 14.35153675 | U158: 14.5044727 | V158: 14.63326635 | W158: 14.73763607 | X158: 14.81742339 | Y158: 14.87259783 | Z158: 14.90325994 | AA158: 14.90964233 | AB158: 14.89210886 | AC158: 14.85115172
A159: Emissão de GEE | I159: =I142+I110 -> 64987.93478 | J159: 134367.4569 | K159: 208362.3441 | L159: 287206.5665 | M159: 371144.7239 | N159: 460432.5019 | O159: 555337.1467 | P159: 656137.959 | Q159: 763126.8092 | R159: 876608.6735 | S159: 996902.1919 | T159: 1079536.287 | U159: 1166605.235 | V159: 1258315.346 | W159: 1354881.887 | X159: 1456529.463 | Y159: 1563492.4 | Z159: 1676015.154 | AA159: 1794352.733 | AB159: 1918771.137 | AC159: 2049547.812
A160: Relativo a Emissão Brasil 2005 | I160: =I159/$C$111 -> 2.763927647e-05 | J160: 5.71462888e-05 | K160: 8.861620936e-05 | L160: 0.0001221485453 | M160: 0.0001578473246 | N160: 0.0001958212899 | O160: 0.0002361841007 | P160: 0.0002790545432 | Q160: 0.0003245567494 | R160: 0.0003728204253 | S160: 0.0004239810881 | T160: 0.0004591252516 | U160: 0.0004961555517 | V160: 0.0005351597316 | W160: 0.0005762293447 | X160: 0.0006194599145 | Y160: 0.0006649510998 | Z160: 0.0007128068675 | AA160: 0.0007631356721 | AB160: 0.0008160506426 | AC160: 0.000871669777

Sheet PCAT
B1: 2013 | C1: 2014 | D1: 2015 | E1: 2016 | F1: 2017 | G1: 2018 | H1: 2019 | I1: 2020 | J1: 2021 | K1: 2022 | L1: 2023 | M1: 2024 | N1: 2025 | O1: 2026 | P1: 2027 | Q1: 2028 | R1: 2029 | S1: 2030 | T1: 2031 | U1: 2032 | V1: 2033 | W1: 2034 | X1: 2035 | Y1: 2036 | Z1: 2037 | AA1: 2038 | AB1: 2039 | AC1: 2040
A2: =A5 & " " & "Atualizada" -> Tarifa B1 PCAT Atualizada | B2: =Resumo!B69*Resumo!$F$7/Resumo!B$7 -> 432.3070197 | C2: =Resumo!C69*Resumo!$F$7/Resumo!C$7 -> 479.5221168 | D2: =Resumo!D69*Resumo!$F$7/Resumo!D$7 -> 622.6375345 | E2: =Resumo!E69*Resumo!$F$7/Resumo!E$7 -> 501.3077396 | F2: =Resumo!F69*Resumo!$F$7/Resumo!F$7 -> 525.82 | G2: =G5*Resumo!$F$7/Resumo!G$7 -> 508.0453155 | H2: =H5*Resumo!$F$7/Resumo!H$7 -> 518.0878811 | I2: =I5*Resumo!$F$7/Resumo!I$7 -> 514.887303 | J2: =J5*Resumo!$F$7/Resumo!J$7 -> 508.1716597 | K2: =K5*Resumo!$F$7/Resumo!K$7 -> 501.9363161 | L2: =L5*Resumo!$F$7/Resumo!L$7 -> 513.695052 | M2: =M5*Resumo!$F$7/Resumo!M$7 -> 504.7086836 | N2: =N5*Resumo!$F$7/Resumo!N$7 -> 484.7385967 | O2: =O5*Resumo!$F$7/Resumo!O$7 -> 463.6662279 | P2: =P5*Resumo!$F$7/Resumo!P$7 -> 456.8169487 | Q2: =Q5*Resumo!$F$7/Resumo!Q$7 -> 468.5185035 | R2: =R5*Resumo!$F$7/Resumo!R$7 -> 464.3341432 | S2: =S5*Resumo!$F$7/Resumo!S$7 -> 460.1276656 | T2: =T5*Resumo!$F$7/Resumo!T$7 -> 452.2356229 | U2: =U5*Resumo!$F$7/Resumo!U$7 -> 448.424429 | V2: =V5*Resumo!$F$7/Resumo!V$7 -> 464.314684 | W2: =W5*Resumo!$F$7/Resumo!W$7 -> 460.3838206 | X2: =X5*Resumo!$F$7/Resumo!X$7 -> 456.384607 | Y2: =Y5*Resumo!$F$7/Resumo!Y$7 -> 453.5375924 | Z2: =Z5*Resumo!$F$7/Resumo!Z$7 -> 452.2301634 | AA2: =AA5*Resumo!$F$7/Resumo!AA$7 -> 475.2761496 | AB2: =AB5*Resumo!$F$7/Resumo!AB$7 -> 472.1517582 | AC2: =AC5*Resumo!$F$7/Resumo!AC$7 -> 468.8524188
A3: =A6 & " " & "Atualizada" -> TUSD B1 PCAT Atualizada | B3: =Resumo!B70*Resumo!$F$7/Resumo!B$7 -> 240.0346788 | C3: =Resumo!C70*Resumo!$F$7/Resumo!C$7 -> 254.8994284 | D3: =Resumo!D70*Resumo!$F$7/Resumo!D$7 -> 325.880507 | E3: =Resumo!E70*Resumo!$F$7/Resumo!E$7 -> 244.081557 | F3: =Resumo!F70*Resumo!$F$7/Resumo!F$7 -> 260.73 | G3: =G6*Resumo!$F$7/Resumo!G$7 -> 287.7933856 | H3: =H6*Resumo!$F$7/Resumo!H$7 -> 284.0382433 | I3: =I6*Resumo!$F$7/Resumo!I$7 -> 279.160966 | J3: =J6*Resumo!$F$7/Resumo!J$7 -> 268.457233 | K3: =K6*Resumo!$F$7/Resumo!K$7 -> 263.3794616 | L3: =L6*Resumo!$F$7/Resumo!L$7 -> 277.1240693 | M3: =M6*Resumo!$F$7/Resumo!M$7 -> 271.1409478 | N3: =N6*Resumo!$F$7/Resumo!N$7 -> 260.0076839 | O3: =O6*Resumo!$F$7/Resumo!O$7 -> 242.4200018 | P3: =P6*Resumo!$F$7/Resumo!P$7 -> 237.7459642 | Q3: =Q6*Resumo!$F$7/Resumo!Q$7 -> 252.2788603 | R3: =R6*Resumo!$F$7/Resumo!R$7 -> 248.1474389 | S3: =S6*Resumo!$F$7/Resumo!S$7 -> 244.0555255 | T3: =T6*Resumo!$F$7/Resumo!T$7 -> 238.9805436 | U3: =U6*Resumo!$F$7/Resumo!U$7 -> 235.1614005 | V3: =V6*Resumo!$F$7/Resumo!V$7 -> 251.0108321 | W3: =W6*Resumo!$F$7/Resumo!W$7 -> 246.9284872 | X3: =X6*Resumo!$F$7/Resumo!X$7 -> 242.8654844 | Y3: =Y6*Resumo!$F$7/Resumo!Y$7 -> 239.0601909 | Z3: =Z6*Resumo!$F$7/Resumo!Z$7 -> 235.8341936 | AA3: =AA6*Resumo!$F$7/Resumo!AA$7 -> 253.8020022 | AB3: =AB6*Resumo!$F$7/Resumo!AB$7 -> 249.8506703 | AC3: =AC6*Resumo!$F$7/Resumo!AC$7 -> 245.8878661
A4: =A7 & " " & "Atualizada" -> TE B1 PCAT Atualizada | B4: =Resumo!B71*Resumo!$F$7/Resumo!B$7 -> 192.2723409 | C4: =Resumo!C71*Resumo!$F$7/Resumo!C$7 -> 224.6226884 | D4: =Resumo!D71*Resumo!$F$7/Resumo!D$7 -> 296.7570276 | E4: =Resumo!E71*Resumo!$F$7/Resumo!E$7 -> 257.2261826 | F4: =Resumo!F71*Resumo!$F$7/Resumo!F$7 -> 265.09 | G4: =G7*Resumo!$F$7/Resumo!G$7 -> 220.2519299 | H4: =H7*Resumo!$F$7/Resumo!H$7 -> 234.0496378 | I4: =I7*Resumo!$F$7/Resumo!I$7 -> 235.726337 | J4: =J7*Resumo!$F$7/Resumo!J$7 -> 239.7144267 | K4: =K7*Resumo!$F$7/Resumo!K$7 -> 238.5568546 | L4: =L7*Resumo!$F$7/Resumo!L$7 -> 236.5709827 | M4: =M7*Resumo!$F$7/Resumo!M$7 -> 233.5677358 | N4: =N7*Resumo!$F$7/Resumo!N$7 -> 224.7309127 | O4: =O7*Resumo!$F$7/Resumo!O$7 -> 221.2462261 | P4: =P7*Resumo!$F$7/Resumo!P$7 -> 219.0709845 | Q4: =Q7*Resumo!$F$7/Resumo!Q$7 -> 216.2396432 | R4: =R7*Resumo!$F$7/Resumo!R$7 -> 216.1867043 | S4: =S7*Resumo!$F$7/Resumo!S$7 -> 216.0721401 | T4: =T7*Resumo!$F$7/Resumo!T$7 -> 213.2550793 | U4: =U7*Resumo!$F$7/Resumo!U$7 -> 213.2630285 | V4: =V7*Resumo!$F$7/Resumo!V$7 -> 213.3038519 | W4: =W7*Resumo!$F$7/Resumo!W$7 -> 213.4553335 | X4: =X7*Resumo!$F$7/Resumo!X$7 -> 213.5191226 | Y4: =Y7*Resumo!$F$7/Resumo!Y$7 -> 214.4774016 | Z4: =Z7*Resumo!$F$7/Resumo!Z$7 -> 216.3959699 | AA4: =AA7*Resumo!$F$7/Resumo!AA$7 -> 221.4741474 | AB4: =AB7*Resumo!$F$7/Resumo!AB$7 -> 222.3010879 | AC4: =AC7*Resumo!$F$7/Resumo!AC$7 -> 222.9645527
A5: Tarifa B1 PCAT | F5: =F2 -> 525.82 | G5: =G6+G7 -> 531.857525 | H5: 563.5232488 | I5: 584.1237913 | J5: 599.5653048 | K5: 615.8968892 | L5: 655.5383647 | M5: 669.8334742 | N5: 669.0629957 | O5: 665.5768578 | P5: 681.9747523 | Q5: 727.4215699 | R5: 749.7619317 | S5: 772.6885067 | T5: 789.8128847 | U5: 814.4830456 | V5: 877.0786559 | W5: 904.4394889 | X5: 932.4462154 | Y5: 963.6946148 | Z5: 999.3531995 | AA5: 1092.292223 | AB5: 1128.51613 | AC5: 1165.455404
A6: TUSD B1 PCAT | B6: MWh | F6: =F3 -> 260.73 | G6: 301.2823327 | H6: 308.9478822 | I6: 316.6995203 | J6: 316.7387234 | K6: 323.177634 | L6: 353.6445572 | M6: 359.8497291 | N6: 358.8769723 | O6: 347.9855409 | P6: 354.9271662 | Q6: 391.6880192 | R6: 400.6845196 | S6: 409.8403849 | T6: 417.370731 | U6: 427.1287676 | V6: 474.1530924 | W6: 485.0993122 | X6: 496.202103 | Y6: 507.9645489 | Z6: 521.1542152 | AA6: 583.294477 | AB6: 597.1819582 | AC6: 611.2186497
A7: TE B1 PCAT | B7: MWh | F7: =F4 -> 265.09 | G7: 230.5751923 | H7: 254.5753667 | I7: 267.4242711 | J7: 282.8265815 | K7: 292.7192552 | L7: 301.8938075 | M7: 309.9837451 | N7: 310.1860234 | O7: 317.591317 | P7: 327.0475861 | Q7: 335.7335507 | R7: 349.0774121 | S7: 362.8481218 | T7: 372.4421537 | U7: 387.3542781 | V7: 402.9255635 | W7: 419.3401767 | X7: 436.2441124 | Y7: 455.7300659 | Z7: 478.1989843 | AA7: 508.9977456 | AB7: 531.3341719 | AC7: 554.2367541
A8: PCAT A4 BaU | C8: Horas | D8: Consumo | G8: =($D$9*($C$9*G9+$C$10*G10)/24+$D$11*G11+$D$12*G12+$D$13*G13)/$D$9 -> 397.5384525 | H8: 423.4771918 | I8: 438.8343793 | J8: 448.9192282 | K8: 461.0570097 | L8: 481.7580541 | M8: 492.0080392 | N8: 489.5360357 | O8: 482.8997614 | P8: 495.0596074 | Q8: 517.9350939 | R8: 534.5231629 | S8: 551.6125577 | T8: 564.0498774 | U8: 582.4520443 | V8: 615.8341895 | W8: 636.0263859 | X8: 656.7949871 | Y8: 679.9518976 | Z8: 706.4923816 | AA8: 759.848853 | AB8: 786.382775 | AC8: 813.5981459
A9: A4 TE EP | B9: MWh | C9: 3 | D9: 18 | E9: MWh/mês | G9: 354.498932 | H9: 388.0080544 | I9: 408.7412798 | J9: 433.3748896 | K9: 449.0524155 | L9: 463.5616914 | M9: 476.2417857 | N9: 476.3139352 | O9: 488.0314534 | P9: 503.0668131 | Q9: 516.7890964 | R9: 537.9150991 | S9: 559.8062465 | T9: 574.9676989 | U9: 598.7085003 | V9: 623.4874112 | W9: 649.5035116 | X9: 676.4183161 | Y9: 707.4876021 | Z9: 743.3500845 | AA9: 792.613002 | AB9: 828.075035 | AC9: 864.6176028
A10: A4 TE EFP | B10: MWh | C10: 21 | D10: Demanda | G10: 219.3093978 | H10: 242.4451223 | I10: 254.5772703 | J10: 269.1403716 | K10: 278.5071497 | L10: 287.1967272 | M10: 294.8693777 | N10: 295.083486 | O10: 302.0967591 | P10: 311.0458382 | Q10: 319.2739556 | R10: 331.9103496 | S10: 344.9428377 | T10: 354.0307405 | U10: 368.1402579 | V10: 382.8744865 | W10: 398.4162372 | X10: 414.4100938 | Y10: 432.8430172 | Z10: 454.0943388 | AA10: 483.2145404 | AB10: 504.3577298 | AC10: 526.0203133
A11: A4 TUSD Azul DP | B11: kW | D11: =D9*1000/30/24 -> 25 | E11: kWh | G11: 26.70142293 | H11: 26.98212607 | I11: 27.35014858 | J11: 27.63946126 | K11: 27.92680518 | L11: 32.80111412 | M11: 33.12100269 | N11: 33.42762832 | O11: 33.70666477 | P11: 33.98206207 | Q11: 39.93786163 | R11: 40.24083882 | S11: 40.53916761 | T11: 40.83280747 | U11: 41.12172396 | V11: 48.39599051 | W11: 48.71191059 | X11: 49.02196758 | Y11: 49.32614854 | Z11: 49.62444716 | AA11: 58.47424621 | AB11: 58.7980167 | AC11: 59.11464313
A12: A4 TUSD Azul DFP | B12: kW | D12: =D11 -> 25 | E12: =E11 -> kWh | G12: 14.07414523 | H12: 14.24030393 | I12: 14.44751713 | J12: 14.61683373 | K12: 14.78561935 | L12: 17.08761846 | M12: 17.27230466 | N12: 17.44742527 | O12: 17.60996614 | P12: 17.7710618 | Q12: 20.5736544 | R12: 20.74806338 | S12: 20.92055362 | T12: 21.09110511 | U12: 21.25970082 | V12: 24.67655727 | W12: 24.85818738 | X12: 25.03732949 | Y12: 25.21397708 | Z12: 25.38812689 | AA12: 29.53875759 | AB12: 29.72522545 | AC12: 29.90860866
A13: A4 TUSD Azul E | B13: MWh | D13: =D9 -> 18 | E13: =E9 -> MWh/mês | G13: 104.6976294 | H13: 105.583328 | I13: 106.9342943 | J13: 100.5602433 | K13: 101.9088899 | L13: 103.2258 | M13: 104.4764058 | N13: 101.1389469 | O13: 86.28806705 | P13: 88.13180864 | Q13: 89.92797346 | R13: 92.15541097 | S13: 94.45106998 | T13: 96.39658295 | U13: 98.84988841 | V13: 101.3934377 | W13: 104.0435478 | X13: 106.7737306 | Y13: 109.2503551 | Z13: 112.056944 | AA13: 115.7192218 | AB13: 118.6114346 | AC13: 121.6097661
A14: PCAT A2 BaU | G14: =($D$9*($C$9*G15+$C$10*G16)/24+$D$11*G17+$D$12*G18+$D$13*G19)/$D$9 -> 354.9728308 | H14: 379.9654037 | I14: 394.3238734 | J14: 403.8196594 | K14: 415.1709105 | L14: 428.852277 | M14: 438.3339243 | N14: 435.6290305 | O14: 429.113228 | P14: 440.4530468 | Q14: 454.7901482 | R14: 470.3370129 | S14: 486.3602018 | T14: 497.9170213 | U14: 515.1937408 | V14: 537.8826927 | W14: 556.8223164 | X14: 576.3085182 | Y14: 598.0826243 | Z14: 623.0897702 | AA14: 662.8285619 | AB14: 687.7672228 | AC14: 713.348963
A15: A2 TE EP | B15: MWh | G15: 354.498932 | H15: 388.0080544 | I15: 408.7412798 | J15: 433.3748896 | K15: 449.0524155 | L15: 463.5616914 | M15: 476.2417857 | N15: 476.3139352 | O15: 488.0314534 | P15: 503.0668131 | Q15: 516.7890964 | R15: 537.9150991 | S15: 559.8062465 | T15: 574.9676989 | U15: 598.7085003 | V15: 623.4874112 | W15: 649.5035116 | X15: 676.4183161 | Y15: 707.4876021 | Z15: 743.3500845 | AA15: 792.613002 | AB15: 828.075035 | AC15: 864.6176028
A16: A2 TE EFP | B16: MWh | G16: 219.3093978 | H16: 242.4451223 | I16: 254.5772703 | J16: 269.1403716 | K16: 278.5071497 | L16: 287.1967272 | M16: 294.8693777 | N16: 295.083486 | O16: 302.0967591 | P16: 311.0458382 | Q16: 319.2739556 | R16: 331.9103496 | S16: 344.9428377 | T16: 354.0307405 | U16: 368.1402579 | V16: 382.8744865 | W16: 398.4162372 | X16: 414.4100938 | Y16: 432.8430172 | Z16: 454.0943388 | AA16: 483.2145404 | AB16: 504.3577298 | AC16: 526.0203133
A17: A2 TUSD Azul DP | B17: kW | G17: 12.14476679 | H17: 12.30544591 | I17: 12.4967925 | J17: 12.65887879 | K17: 12.8209887 | L17: 14.55165067 | M17: 14.72627619 | N17: 14.890201 | O17: 15.04514564 | P17: 15.19929338 | Q17: 17.29548567 | R17: 17.45994617 | S17: 17.62325706 | T17: 17.78540239 | U17: 17.9463685 | V17: 20.49540873 | W17: 20.66647076 | X17: 20.8359599 | Y17: 21.00387083 | Z17: 21.17020078 | AA17: 24.2599214 | AB17: 24.43581624 | AC17: 24.60969851
A18: A2 TUSD Azul DFP | B18: kW | G18: 6.87819134 | H18: 6.984528263 | I18: 7.104048099 | J18: 7.210019616 | K18: 7.316431467 | L18: 8.07158663 | M18: 8.184031638 | N18: 8.288246826 | O18: 8.389028704 | P18: 8.489757707 | Q18: 9.393446282 | R18: 9.498985701 | S18: 9.604321697 | T18: 9.709446372 | U18: 9.814352933 | V18: 10.90656527 | W18: 11.01618037 | X18: 11.12541209 | Y18: 11.23425769 | Z18: 11.34271564 | AA18: 12.6597334 | AB18: 12.77267578 | AC18: 12.88505189
A19: A2 TUSD Azul E | B19: MWh | G19: 92.34396603 | H19: 92.53328402 | I19: 93.25271228 | J19: 86.55428076 | K19: 87.37696346 | L19: 88.18876642 | M19: 88.97312359 | N19: 85.69944975 | O19: 71.22716773 | P19: 72.50312692 | Q19: 73.75883891 | R19: 75.23310862 | S19: 76.7433564 | T19: 78.0818711 | U19: 79.67589514 | V19: 81.31773787 | W19: 83.01648776 | X19: 84.75660215 | Y19: 86.13385551 | Z19: 87.68163481 | AA19: 89.66191539 | AB19: 91.26636866 | AC19: 92.92794634
A20: =A21& " " & "Atualizada" -> PCAT B1 EE Atualizada | G20: =(G22+G23)*Resumo!$F$7/Resumo!G$7 -> 508.0453155 | H20: =(H22+H23)*Resumo!$F$7/Resumo!H$7 -> 518.0878811 | I20: =(I22+I23)*Resumo!$F$7/Resumo!I$7 -> 516.6099054 | J20: =(J22+J23)*Resumo!$F$7/Resumo!J$7 -> 510.673733 | K20: =(K22+K23)*Resumo!$F$7/Resumo!K$7 -> 505.2193726 | L20: =(L22+L23)*Resumo!$F$7/Resumo!L$7 -> 518.0015526 | M20: =(M22+M23)*Resumo!$F$7/Resumo!M$7 -> 509.7923631 | N20: =(N22+N23)*Resumo!$F$7/Resumo!N$7 -> 490.3619341 | O20: =(O22+O23)*Resumo!$F$7/Resumo!O$7 -> 469.7904967 | P20: =(P22+P23)*Resumo!$F$7/Resumo!P$7 -> 463.7046442 | Q20: =(Q22+Q23)*Resumo!$F$7/Resumo!Q$7 -> 476.9097213 | R20: =(R22+R23)*Resumo!$F$7/Resumo!R$7 -> 473.679644 | S20: =(S22+S23)*Resumo!$F$7/Resumo!S$7 -> 470.4230167 | T20: =(T22+T23)*Resumo!$F$7/Resumo!T$7 -> 463.3622212 | U20: =(U22+U23)*Resumo!$F$7/Resumo!U$7 -> 460.5007118 | V20: =(V22+V23)*Resumo!$F$7/Resumo!V$7 -> 478.1887838 | W20: =(W22+W23)*Resumo!$F$7/Resumo!W$7 -> 475.3465641 | X20: =(X22+X23)*Resumo!$F$7/Resumo!X$7 -> 472.4244086 | Y20: =(Y22+Y23)*Resumo!$F$7/Resumo!Y$7 -> 470.473692 | Z20: =(Z22+Z23)*Resumo!$F$7/Resumo!Z$7 -> 469.9288694 | AA20: =(AA22+AA23)*Resumo!$F$7/Resumo!AA$7 -> 494.108486 | AB20: =(AB22+AB23)*Resumo!$F$7/Resumo!AB$7 -> 491.8920724 | AC20: =(AC22+AC23)*Resumo!$F$7/Resumo!AC$7 -> 489.7144091
A21: PCAT B1 EE | G21: =(G22+G23)/G$5-1 -> 0 | H21: 0 | I21: 0.00334559099 | J21: 0.004923677385 | K21: 0.006540782823 | L21: 0.008383379662 | M21: 0.01007250259 | N21: 0.01160076262 | O21: 0.01320835636 | P21: 0.01507758312 | Q21: 0.01791010964 | R21: 0.02012667158 | S21: 0.02237498815 | T21: 0.0246035423 | U21: 0.02693047486 | V21: 0.02988081204 | W21: 0.03250058486 | X21: 0.03514536058 | Y21: 0.03734221782 | Z21: 0.03913650025 | AA21: 0.03962398796 | AB21: 0.04180925693 | AC21: 0.0444958573
A22: Residencial TUSD | B22: MWh | G22: 301.2823327 | H22: 308.9478822 | I22: 318.8492907 | J22: 320.065921 | K22: 327.795259 | L22: 359.9729034 | M22: 367.7159879 | N22: 368.2227241 | O22: 358.6912314 | P22: 367.5314386 | Q22: 407.4178319 | R22: 418.8377454 | S22: 430.5762186 | T22: 440.7811784 | U22: 453.4726408 | V22: 505.2154894 | W22: 519.791017 | X22: 534.747414 | Y22: 550.6003706 | Z22: 568.1984069 | AA22: 638.3774083 | AB22: 657.658715 | AC22: 677.4381096
A23: Residencial TE | B23: MWh | G23: 230.5751923 | H23: 254.5753667 | I23: 267.22874 | J23: 282.4514499 | K23: 292.1300779 | L23: 301.0610883 | M23: 308.8643856 | N23: 308.6019125 | O23: 315.6768028 | P23: 324.7258447 | Q23: 333.031938 | R23: 346.0143985 | S23: 359.4011843 | T23: 368.4639009 | U23: 382.9448201 | V23: 398.070989 | W23: 414.0432843 | X23: 430.4699598 | Y23: 449.0807384 | Z23: 470.2659793 | AA23: 497.1957881 | AB23: 518.039836 | AC23: 539.8752315
A24: PCAT A4 EE | G24: =(($D$9*($C$9*G25+$C$10*G26)/24+$D$11*G27+$D$12*G28+$D$13*G29)/$D$9)/G$8-1 -> 0 | H24: 0 | I24: 0.003364567259 | J24: 0.00433410186 | K24: 0.005314206736 | L24: 0.006424776962 | M24: 0.007395015225 | N24: 0.008045218914 | O24: 0.00849431057 | P24: 0.009380127923 | Q24: 0.01100028526 | R24: 0.01215751258 | S24: 0.01331999412 | T24: 0.01436383332 | U24: 0.01554605778 | V24: 0.01735576961 | W24: 0.01871863462 | X24: 0.02007360191 | Y24: 0.02076496148 | Z24: 0.02087581237 | AA24: 0.01855677691 | AB24: 0.01892792945 | AC24: 0.01996426233
A25: A4 TE EP | B25: MWh | G25: 354.498932 | H25: 388.0080544 | I25: 408.2771052 | J25: 432.4649664 | K25: 447.6329195 | L25: 461.5766119 | M25: 473.6107183 | N25: 472.7454034 | O25: 483.7343189 | P25: 497.9078204 | Q25: 510.8005328 | R25: 531.1073383 | S25: 552.1357402 | T25: 566.1875212 | U25: 588.9655708 | V25: 612.7438457 | W25: 637.7371446 | X25: 663.5681901 | Y25: 692.8892059 | Z25: 726.3187967 | AA25: 768.9209001 | AB25: 801.5485018 | AC25: 835.9497525
A26: A4 TE EFP | B26: MWh | G26: 219.3093978 | H26: 242.4451223 | I26: 254.4061613 | J26: 268.8138575 | K26: 277.993456 | L26: 286.468768 | M26: 293.8874463 | N26: 293.679777 | O26: 300.3988468 | P26: 308.9820287 | Q26: 316.8711567 | R26: 329.1877676 | S26: 341.879861 | T26: 350.4890264 | U26: 364.2156609 | V26: 378.5552747 | W26: 393.7074788 | X26: 409.2792116 | Y26: 426.9163322 | Z26: 446.9884505 | AA26: 472.4935052 | AB26: 492.2663209 | AC26: 512.9593659
A27: A4 TUSD Azul DP | B27: kW | G27: 26.70142293 | H27: 26.98212607 | I27: 27.45069101 | J27: 27.84634101 | K27: 28.2459867 | L27: 33.30145343 | M27: 33.75885903 | N27: 34.2100554 | O27: 34.6654212 | P27: 35.12508772 | Q27: 41.48322697 | R27: 42.02745031 | S27: 42.57705664 | T27: 43.13223563 | U27: 43.69318826 | V27: 51.55042752 | W27: 52.21045668 | X27: 52.87771594 | Y27: 53.55249064 | Z27: 54.23508189 | AA27: 64.09611923 | AB27: 64.90443717 | AC27: 65.72275865
A28: A4 TUSD Azul DFP | B28: kW | G28: 14.07414523 | H28: 14.24030393 | I28: 14.50081729 | J28: 14.72659134 | K28: 14.95509047 | L28: 17.34932278 | M28: 17.60647483 | N28: 17.85779755 | O28: 18.11183973 | P28: 18.36868092 | Q28: 21.36898979 | R28: 21.66680502 | S28: 21.96798269 | T28: 22.27263277 | U28: 22.58087135 | V28: 26.28263673 | W28: 26.63882322 | X28: 26.99934936 | Y28: 27.36437457 | Z28: 27.73406675 | AA28: 32.37257903 | AB28: 32.80288464 | AC28: 33.23896527
A29: A4 TUSD Azul E | B29: MWh | G29: 104.6976294 | H29: 105.583328 | I29: 108.404854 | J29: 102.4655711 | K29: 104.3072769 | L29: 106.1476933 | M29: 107.9528493 | N29: 105.0950176 | O29: 90.38412988 | P29: 92.80867633 | Q29: 95.22545355 | R29: 98.12967752 | S29: 101.1522999 | T29: 103.8603626 | U29: 107.1501728 | V29: 110.5921415 | W29: 114.2078556 | X29: 117.9735258 | Y29: 121.5235962 | Z29: 125.4902005 | AA29: 130.4179659 | AB29: 134.6361656 | AC29: 139.0610297
A30: PCAT A2 EE | G30: =(($D$9*($C$9*G31+$C$10*G32)/24+$D$11*G33+$D$12*G34+$D$13*G35)/$D$9)/G$14-1 -> 0 | H30: 0 | I30: 0.003363657321 | J30: 0.004053264438 | K30: 0.00474691693 | L30: 0.005477044882 | M30: 0.006119486045 | N30: 0.006361692258 | O30: 0.006273677094 | P30: 0.006708317222 | Q30: 0.007538019536 | R30: 0.008202299364 | S30: 0.008871389729 | T30: 0.009367428677 | U30: 0.01005606558 | V30: 0.01105072499 | W30: 0.01186254752 | X30: 0.01266422341 | Y30: 0.01273295691 | Z30: 0.01217767448 | AA30: 0.00814557558 | AB30: 0.007788902121 | AC30: 0.008189826099
A31: A2 TE EP | B31: MWh | G31: 354.498932 | H31: 388.0080544 | I31: 408.2771052 | J31: 432.4649664 | K31: 447.6329195 | L31: 461.5766119 | M31: 473.6107183 | N31: 472.7454034 | O31: 483.7343189 | P31: 497.9078204 | Q31: 510.8005328 | R31: 531.1073383 | S31: 552.1357402 | T31: 566.1875212 | U31: 588.9655708 | V31: 612.7438457 | W31: 637.7371446 | X31: 663.5681901 | Y31: 692.8892059 | Z31: 726.3187967 | AA31: 768.9209001 | AB31: 801.5485018 | AC31: 835.9497525
A32: A2 TE EFP | B32: MWh | G32: 219.3093978 | H32: 242.4451223 | I32: 254.4061613 | J32: 268.8138575 | K32: 277.993456 | L32: 286.468768 | M32: 293.8874463 | N32: 293.679777 | O32: 300.3988468 | P32: 308.9820287 | Q32: 316.8711567 | R32: 329.1877676 | S32: 341.879861 | T32: 350.4890264 | U32: 364.2156609 | V32: 378.5552747 | W32: 393.7074788 | X32: 409.2792116 | Y32: 426.9163322 | Z32: 446.9884505 | AA32: 472.4935052 | AB32: 492.2663209 | AC32: 512.9593659
A33: A2 TUSD Azul DP | B33: kW | G33: 12.14476679 | H33: 12.30544591 | I33: 12.54304809 | J33: 12.75421111 | K33: 12.96831304 | L33: 14.77541641 | M33: 15.01251914 | N33: 15.24216115 | O33: 15.47464473 | P33: 15.71004834 | Q33: 17.96307528 | R33: 18.23038732 | S33: 18.50109858 | T33: 18.77531341 | U33: 19.05314162 | V33: 21.82657336 | W33: 22.14167692 | X33: 22.46102584 | Y33: 22.78476624 | Z33: 23.11305168 | AA33: 26.58051894 | AB33: 26.95568595 | AC33: 27.33631098
A34: A2 TUSD Azul DFP | B34: kW | G34: 6.87819134 | H34: 6.984528263 | I34: 7.130504034 | J34: 7.264615976 | K34: 7.400913962 | L34: 8.196624482 | M34: 8.344440811 | N34: 8.485877821 | O34: 8.629363873 | P34: 8.774952114 | Q34: 9.755380196 | R34: 9.916012998 | S34: 10.07901349 | T34: 10.24444917 | U34: 10.41239083 | V34: 11.61285294 | W34: 11.79830671 | X34: 11.98661046 | Y34: 12.17785454 | Z34: 12.37213368 | AA34: 13.86508685 | AB34: 14.08115528 | AC34: 14.30073821
A35: A2 TUSD Azul E | B35: MWh | G35: 92.34396603 | H35: 92.53328402 | I35: 94.68583659 | J35: 88.38227459 | K35: 89.65271036 | L35: 90.93825935 | M35: 92.22322518 | N35: 89.38177839 | O35: 75.01177529 | P35: 76.80304787 | Q35: 78.60818169 | R35: 80.67492126 | S35: 82.81844669 | T35: 84.82465946 | U35: 87.14081262 | V35: 89.55419268 | W35: 92.07759437 | X35: 94.69774482 | Y35: 96.97584761 | Z35: 99.48783117 | AA35: 102.5062999 | AB35: 105.201968 | AC35: 108.0287678
A36: =A37& " " & "Atualizada" -> PCAT B1 GD FV Atualizada | G36: =(G38+G39)*Resumo!$F$7/Resumo!G$7 -> 508.0453155 | H36: =(H38+H39)*Resumo!$F$7/Resumo!H$7 -> 518.0878811 | I36: =(I38+I39)*Resumo!$F$7/Resumo!I$7 -> 515.9006842 | J36: =(J38+J39)*Resumo!$F$7/Resumo!J$7 -> 510.2221003 | K36: =(K38+K39)*Resumo!$F$7/Resumo!K$7 -> 504.9908233 | L36: =(L38+L39)*Resumo!$F$7/Resumo!L$7 -> 518.0034287 | M36: =(M38+M39)*Resumo!$F$7/Resumo!M$7 -> 510.0117709 | N36: =(N38+N39)*Resumo!$F$7/Resumo!N$7 -> 490.7810722 | O36: =(O38+O39)*Resumo!$F$7/Resumo!O$7 -> 470.4418719 | P36: =(P38+P39)*Resumo!$F$7/Resumo!P$7 -> 464.5670033 | Q36: =(Q38+Q39)*Resumo!$F$7/Resumo!Q$7 -> 477.9435411 | R36: =(R38+R39)*Resumo!$F$7/Resumo!R$7 -> 474.9320244 | S36: =(S38+S39)*Resumo!$F$7/Resumo!S$7 -> 471.8912165 | T36: =(T38+T39)*Resumo!$F$7/Resumo!T$7 -> 463.8875726 | U36: =(U38+U39)*Resumo!$F$7/Resumo!U$7 -> 460.2675826 | V36: =(V38+V39)*Resumo!$F$7/Resumo!V$7 -> 476.8200217 | W36: =(W38+W39)*Resumo!$F$7/Resumo!W$7 -> 473.0623274 | X36: =(X38+X39)*Resumo!$F$7/Resumo!X$7 -> 469.2183338 | Y36: =(Y38+Y39)*Resumo!$F$7/Resumo!Y$7 -> 466.447491 | Z36: =(Z38+Z39)*Resumo!$F$7/Resumo!Z$7 -> 465.1990395 | AA36: =(AA38+AA39)*Resumo!$F$7/Resumo!AA$7 -> 488.9975709 | AB36: =(AB38+AB39)*Resumo!$F$7/Resumo!AB$7 -> 486.0127334 | AC36: =(AC38+AC39)*Resumo!$F$7/Resumo!AC$7 -> 482.8466771
A37: PCAT B1 GD FV | G37: =(G38+G39)/G$5-1 -> 0 | H37: 0 | I37: 0.001968161187 | J37: 0.004034936816 | K37: 0.006085447596 | L37: 0.008387031737 | M37: 0.01050722417 | N37: 0.012465431 | O37: 0.0146131929 | P37: 0.01696533935 | Q37: 0.02011668164 | R37: 0.02282382496 | S37: 0.02556584137 | T37: 0.02576521861 | U37: 0.02641058966 | V37: 0.02693289294 | W37: 0.02753899301 | X37: 0.02812041982 | Y37: 0.02846489199 | Z37: 0.02867760064 | AA37: 0.02887041844 | AB37: 0.02935703403 | AC37: 0.02984789614
A38: Residencial TUSD | B38: MWh | G38: 301.2823327 | H38: 308.9478822 | I38: 317.7826269 | J38: 318.9523286 | K38: 326.6312018 | L38: 358.7806185 | M38: 366.4921766 | N38: 366.9594507 | O38: 357.4395678 | P38: 366.2627933 | Q38: 406.0809381 | R38: 417.5222773 | S38: 429.2930746 | T38: 437.8283684 | U38: 448.752423 | V38: 497.8874 | W38: 510.0979103 | X38: 522.5071529 | Y38: 535.6441968 | Z38: 550.3252756 | AA38: 616.1289082 | AB38: 631.6390955 | AC38: 647.3515554
A39: Residencial TE | B39: MWh | G39: 230.5751923 | H39: 254.5753667 | I39: 267.4908142 | J39: 283.0321843 | K39: 293.0136956 | L39: 302.2557673 | M39: 310.379388 | N39: 310.4437036 | O39: 317.8634931 | P39: 327.2818921 | Q39: 335.9739399 | R39: 349.3520895 | S39: 363.1498639 | T39: 372.3342179 | U39: 387.2416002 | V39: 402.8135215 | W39: 419.2489314 | X39: 436.1598415 | Y39: 455.4818811 | Z39: 477.6869758 | AA39: 507.6982479 | AB39: 530.006921 | AC39: 552.8902401
A40: PCAT A4 GD FV | G40: =(($D$9*($C$9*G41+$C$10*G42)/24+$D$11*G43+$D$12*G44+$D$13*G45)/$D$9)/G$8-1 -> 0 | H40: 0 | I40: 0.001410687592 | J40: 0.002882990423 | K40: 0.004288282019 | L40: 0.005829023762 | M40: 0.007185987943 | N40: 0.008214367685 | O40: 0.00914597565 | P40: 0.01044229442 | Q40: 0.01239265199 | R40: 0.01392143261 | S40: 0.01543867378 | T40: 0.01502667546 | U40: 0.0152638536 | V40: 0.01569967255 | W40: 0.01592513428 | X40: 0.01612339195 | Y40: 0.015989478 | Z40: 0.01568201338 | AA40: 0.01519712571 | AB40: 0.01528923052 | AC40: 0.01539597576
A41: A4 TE EP | B41: MWh | G41: 354.498932 | H41: 388.0080544 | I41: 408.6757318 | J41: 433.3524467 | K41: 448.9819417 | L41: 463.3986649 | M41: 475.91859 | N41: 475.5487901 | O41: 487.0605501 | P41: 501.7945879 | Q41: 515.2720752 | R41: 536.1752886 | S41: 557.8230826 | T41: 572.2460581 | U41: 595.8998345 | V41: 620.5962835 | W41: 646.5492905 | X41: 673.3864111 | Y41: 704.0959075 | Z41: 739.4303913 | AA41: 787.3026824 | AB41: 822.597999 | AC41: 859.0013398
A42: A4 TE EFP | B42: MWh | G42: 219.3093978 | H42: 242.4451223 | I42: 254.6558217 | J42: 269.3667059 | K42: 278.8347642 | L42: 287.606413 | M42: 295.3303696 | N42: 295.4341503 | O42: 302.4819425 | P42: 311.4171015 | Q42: 319.6741094 | R42: 332.3681623 | S42: 345.4522985 | T42: 354.1604142 | U42: 368.2726698 | V42: 383.0150886 | W42: 398.5852623 | X42: 414.5937897 | Y42: 432.880606 | Z42: 453.8921198 | AA42: 482.279663 | AB42: 503.4077321 | AC42: 525.0619584
A43: A4 TUSD Azul DP | B43: kW | G43: 26.70142293 | H43: 26.98212607 | I43: 27.44502031 | J43: 27.83455514 | K43: 28.22761523 | L43: 33.2799205 | M43: 33.732839 | N43: 34.17913233 | O43: 34.6291044 | P43: 35.08285578 | Q43: 41.42440409 | R43: 41.96349237 | S43: 42.50737637 | T43: 42.89381703 | U43: 43.27674819 | V43: 50.81496946 | W43: 51.22216544 | X43: 51.62453136 | Y43: 52.0220187 | Z43: 52.41458527 | AA43: 61.72587684 | AB43: 62.14328837 | AC43: 62.55434767
A44: A4 TUSD Azul DFP | B44: kW | G44: 14.07414523 | H44: 14.24030393 | I44: 14.49614848 | J44: 14.71689677 | K44: 14.93999345 | L44: 17.33024947 | M44: 17.58263443 | N44: 17.82884001 | O44: 18.07735565 | P44: 18.32823807 | Q44: 21.31742548 | R44: 21.60923795 | S44: 21.90392204 | T44: 22.12017515 | U44: 22.33509882 | V44: 25.87736375 | W44: 26.10417384 | X44: 26.3290398 | Y44: 26.5519391 | Z44: 26.77285232 | AA44: 31.14106223 | AB44: 31.3741328 | AC44: 31.60455307
A45: A4 TUSD Azul E | B45: MWh | G45: 104.6976294 | H45: 105.583328 | I45: 107.2935037 | J45: 101.2492958 | K45: 102.9759787 | L45: 104.693886 | M45: 106.368215 | N45: 103.3754895 | O45: 88.55866574 | P45: 90.83280349 | Q45: 93.08839826 | R45: 95.8249792 | S45: 98.66994082 | T45: 100.8073408 | U45: 103.4888764 | V45: 106.2727172 | W45: 109.1767322 | X45: 112.1730339 | Y45: 114.9109579 | Z45: 118.0046487 | AA45: 122.0069713 | AB45: 125.2141399 | AC45: 128.5436511
A46: PCAT A2 GD FV | G46: =(($D$9*($C$9*G47+$C$10*G48)/24+$D$11*G49+$D$12*G50+$D$13*G51)/$D$9)/G$14-1 -> 0 | H46: 0 | I46: 0.001168933665 | J46: 0.002394865035 | K46: 0.003536631718 | L46: 0.004697209603 | M46: 0.005735112192 | N46: 0.006359115805 | O46: 0.006757035394 | P46: 0.007603815984 | Q46: 0.008807924974 | R46: 0.009831093967 | S46: 0.0108357882 | T46: 0.01016809645 | U46: 0.01027208813 | V46: 0.0105007687 | W46: 0.01062605539 | X46: 0.01072302759 | Y46: 0.01045765621 | Z46: 0.01001614787 | AA46: 0.00899516382 | AB46: 0.009023982222 | AC46: 0.009069320564
A47: A2 TE EP | B47: MWh | G47: 354.498932 | H47: 388.0080544 | I47: 408.6757318 | J47: 433.3524467 | K47: 448.9819417 | L47: 463.3986649 | M47: 475.91859 | N47: 475.5487901 | O47: 487.0605501 | P47: 501.7945879 | Q47: 515.2720752 | R47: 536.1752886 | S47: 557.8230826 | T47: 572.2460581 | U47: 595.8998345 | V47: 620.5962835 | W47: 646.5492905 | X47: 673.3864111 | Y47: 704.0959075 | Z47: 739.4303913 | AA47: 787.3026824 | AB47: 822.597999 | AC47: 859.0013398
A48: A2 TE EFP | B48: MWh | G48: 219.3093978 | H48: 242.4451223 | I48: 254.6558217 | J48: 269.3667059 | K48: 278.8347642 | L48: 287.606413 | M48: 295.3303696 | N48: 295.4341503 | O48: 302.4819425 | P48: 311.4171015 | Q48: 319.6741094 | R48: 332.3681623 | S48: 345.4522985 | T48: 354.1604142 | U48: 368.2726698 | V48: 383.0150886 | W48: 398.5852623 | X48: 414.5937897 | Y48: 432.880606 | Z48: 453.8921198 | AA48: 482.279663 | AB48: 503.4077321 | AC48: 525.0619584
A49: A2 TUSD Azul DP | B49: kW | G49: 12.14476679 | H49: 12.30544591 | I49: 12.53744109 | J49: 12.74257284 | K49: 12.9501964 | L49: 14.75169091 | M49: 14.98241553 | N49: 15.20525332 | O49: 15.43043637 | P49: 15.65801716 | Q49: 17.89921197 | R49: 18.15823045 | S49: 18.42005258 | T49: 18.61855555 | U49: 18.81640667 | V49: 21.46053198 | W49: 21.66777069 | X49: 21.87390495 | Y49: 22.07891827 | Z49: 22.28279655 | AA49: 25.53570359 | AB49: 25.7491699 | AC49: 25.96101441
A50: A2 TUSD Azul DFP | B50: kW | G50: 6.87819134 | H50: 6.984528263 | I50: 7.125911716 | J50: 7.255087674 | K50: 7.386087974 | L50: 8.176674285 | M50: 8.318853127 | N50: 8.454301089 | O50: 8.591389949 | P50: 8.730152565 | Q50: 9.701875355 | R50: 9.855032437 | S50: 10.01006715 | T50: 10.13307775 | U50: 10.25615756 | V50: 11.39066836 | W50: 11.51830452 | X50: 11.64582208 | Y50: 11.7732143 | Z50: 11.90047555 | AA50: 13.28829825 | AB50: 13.42019999 | AC50: 13.55177112
A51: A2 TUSD Azul E | B51: MWh | G51: 92.34396603 | H51: 92.53328402 | I51: 93.56628922 | J51: 87.14730091 | K51: 88.29121635 | L51: 89.44128994 | M51: 90.58104822 | N51: 87.59027347 | O51: 73.09484518 | P51: 74.71542548 | Q51: 76.33720706 | R51: 78.20957756 | S51: 80.145374 | T51: 81.6259459 | U51: 83.38122956 | V51: 85.19146936 | W51: 87.06660415 | X51: 88.99024653 | Y51: 90.53779729 | Z51: 92.26955893 | AA51: 94.46104818 | AB51: 96.26520388 | AC51: 98.13530361
A52: =A53& " " & "Atualizada" -> PCAT B1 EE e GD FV Atualizada | G52: =(G54+G55)*Resumo!$F$7/Resumo!G$7 -> 508.0453155 | H52: =(H54+H55)*Resumo!$F$7/Resumo!H$7 -> 518.0878811 | I52: =(I54+I55)*Resumo!$F$7/Resumo!I$7 -> 517.6324385 | J52: =(J54+J55)*Resumo!$F$7/Resumo!J$7 -> 512.7558251 | K52: =(K54+K55)*Resumo!$F$7/Resumo!K$7 -> 508.3414232 | L52: =(L54+L55)*Resumo!$F$7/Resumo!L$7 -> 522.5431381 | M52: =(M54+M55)*Resumo!$F$7/Resumo!M$7 -> 515.4956663 | N52: =(N54+N55)*Resumo!$F$7/Resumo!N$7 -> 496.9670713 | O52: =(O54+O55)*Resumo!$F$7/Resumo!O$7 -> 477.2075013 | P52: =(P54+P55)*Resumo!$F$7/Resumo!P$7 -> 472.2029903 | Q52: =(Q54+Q55)*Resumo!$F$7/Resumo!Q$7 -> 486.9873509 | R52: =(R54+R55)*Resumo!$F$7/Resumo!R$7 -> 485.1213296 | S52: =(S54+S55)*Resumo!$F$7/Resumo!S$7 -> 483.2475954 | T52: =(T54+T55)*Resumo!$F$7/Resumo!T$7 -> 476.1886848 | U52: =(U54+U55)*Resumo!$F$7/Resumo!U$7 -> 473.6708257 | V52: =(V54+V55)*Resumo!$F$7/Resumo!V$7 -> 492.2037147 | W52: =(W54+W55)*Resumo!$F$7/Resumo!W$7 -> 489.7216988 | X52: =(X54+X55)*Resumo!$F$7/Resumo!X$7 -> 487.1479519 | Y52: =(Y54+Y55)*Resumo!$F$7/Resumo!Y$7 -> 485.4465663 | Z52: =(Z54+Z55)*Resumo!$F$7/Resumo!Z$7 -> 485.1221261 | AA52: =(AA54+AA55)*Resumo!$F$7/Resumo!AA$7 -> 510.1775688 | AB52: =(AB54+AB55)*Resumo!$F$7/Resumo!AB$7 -> 508.3093109 | AC52: =(AC54+AC55)*Resumo!$F$7/Resumo!AC$7 -> 506.5071947
A53: PCAT B1 EE e GD FV | G53: =(G54+G55)/G$5-1 -> 0 | H53: 0 | I53: 0.005331526744 | J53: 0.009020899319 | K53: 0.01276079637 | L53: 0.01722439424 | M53: 0.021372691 | N53: 0.02522694655 | O53: 0.02920478685 | P53: 0.03368097797 | Q53: 0.0394196756 | R53: 0.04476773193 | S53: 0.05024677185 | T53: 0.05296588915 | U53: 0.056300226 | V53: 0.06006493352 | W53: 0.06372482448 | X53: 0.06740662231 | Y53: 0.07035574194 | Z53: 0.07273279253 | AA53: 0.07343397991 | AB53: 0.0765803624 | AC53: 0.08031264085
A54: Residencial TUSD | B54: MWh | G54: 301.2823327 | H54: 308.9478822 | I54: 319.9437444 | J54: 322.3197045 | K54: 331.3390203 | L54: 365.4219436 | M54: 374.9187692 | N54: 377.1439737 | O54: 369.1570249 | P54: 380.1180453 | Q54: 423.004661 | R54: 437.2700739 | S54: 452.1044489 | T54: 463.6742822 | U54: 477.9424017 | V54: 532.2920495 | W54: 548.667843 | X54: 565.5204714 | Y54: 583.3991853 | Z54: 603.2156089 | AA54: 678.1106207 | AB54: 699.9465017 | AC54: 722.4246006
A55: Residencial TE | B55: MWh | G55: 230.5751923 | H55: 254.5753667 | I55: 267.2943186 | J55: 282.6542185 | K55: 292.4172036 | L55: 301.4076724 | M55: 309.2308488 | N55: 308.7974384 | O55: 315.8578632 | P55: 324.8262836 | Q55: 333.0916312 | R55: 346.056999 | S55: 359.4091608 | T55: 367.9717441 | U55: 382.3962235 | V55: 397.4682776 | W55: 413.4068936 | X55: 429.7787939 | Y55: 448.0968791 | Z55: 468.8233395 | AA55: 494.392967 | AB55: 514.9918027 | AC55: 536.6316044
A56: PCAT A4 EE e GD FV | G56: =(($D$9*($C$9*G57+$C$10*G58)/24+$D$11*G59+$D$12*G60+$D$13*G61)/$D$9)/G$8-1 -> 0 | H56: 0 | I56: 0.004790396322 | J56: 0.007264270342 | K56: 0.009697627164 | L56: 0.01252832038 | M56: 0.01504272439 | N56: 0.01690427474 | O56: 0.01838005151 | P56: 0.02067833704 | Q56: 0.02411628219 | R56: 0.02701277523 | S56: 0.02993107783 | T56: 0.03064724072 | U56: 0.03223298551 | V56: 0.03464429977 | W56: 0.03644008066 | X56: 0.03820652821 | Y56: 0.03888291223 | Z56: 0.03872672571 | AA56: 0.03552719863 | AB56: 0.03609999547 | AC56: 0.03743574885
A57: A4 TE EP | B57: MWh | G57: 354.498932 | H57: 388.0080544 | I57: 408.2079556 | J57: 432.4294199 | K57: 447.5305848 | L57: 461.3514943 | M57: 473.1793582 | N57: 471.7882647 | O57: 482.4862249 | P57: 496.2421157 | Q57: 508.7569545 | R57: 528.6878714 | S57: 549.2910058 | T57: 562.4028584 | U57: 584.9502923 | V57: 608.4923393 | W57: 633.261475 | X57: 658.8384263 | Y57: 687.5077676 | Z57: 720.0024454 | AA57: 760.1836381 | AB57: 792.1803563 | AC57: 826.0416394
A58: A4 TE EFP | B58: MWh | G58: 219.3093978 | H58: 242.4451223 | I58: 254.483988 | J58: 269.0382912 | K58: 278.3159872 | L58: 286.8673249 | M58: 294.3264389 | N58: 293.9800906 | O58: 300.7098303 | P58: 309.2430262 | Q58: 317.1220563 | R58: 329.4541924 | S58: 342.1471749 | T58: 350.2961883 | U58: 363.9822173 | V58: 378.284272 | W58: 393.4201134 | X58: 408.9551909 | Y58: 426.3322529 | Z58: 445.9888753 | AA58: 470.2301787 | AB58: 489.7928432 | AC58: 510.3216012
A59: A4 TUSD Azul DP | B59: kW | G59: 26.70142293 | H59: 26.98212607 | I59: 27.54625542 | J59: 28.04434661 | K59: 28.55368021 | L59: 33.82121079 | M59: 34.44725832 | N59: 35.0774848 | O59: 35.72293966 | P59: 36.38434747 | Q59: 43.09003654 | R59: 43.91122997 | S59: 44.75432403 | T59: 45.43881629 | U59: 46.13336171 | V59: 54.30500357 | W59: 55.10793165 | X59: 55.92300976 | Y59: 56.75070444 | Z59: 57.59150829 | AA59: 68.02526179 | AB59: 69.00900594 | AC59: 70.00911452
A60: A4 TUSD Azul DFP | B60: kW | G60: 14.07414523 | H60: 14.24030393 | I60: 14.54980455 | J60: 14.82815083 | K60: 15.11300315 | L60: 17.61162782 | M60: 17.95344582 | N60: 18.29469048 | O60: 18.64429093 | P60: 19.00263171 | Q60: 22.17279187 | R60: 22.60822759 | S60: 23.05532807 | T60: 23.42368586 | U60: 23.79777428 | V60: 27.64962046 | W60: 28.07630818 | X60: 28.50979589 | Y60: 28.95033483 | Z60: 29.3981899 | AA60: 34.30779589 | AB60: 34.82467025 | AC60: 35.35049198
A61: A4 TUSD Azul E | B61: MWh | G61: 104.6976294 | H61: 105.583328 | I61: 108.770336 | J61: 103.1729813 | K61: 105.4121854 | L61: 107.6813291 | M61: 109.947371 | N61: 107.4771538 | O61: 92.8335618 | P61: 95.75234451 | Q61: 98.70652699 | R61: 102.2155792 | S61: 105.9026899 | T61: 108.8845636 | U61: 112.4964082 | V61: 116.2831866 | W61: 120.2692886 | X61: 124.4304623 | Y61: 128.3819942 | Z61: 132.7929215 | AA61: 138.2405462 | AB61: 142.9664681 | AC61: 147.9364089
A62: PCAT A2 EE e GD FV | G62: =(($D$9*($C$9*G63+$C$10*G64)/24+$D$11*G65+$D$12*G66+$D$13*G67)/$D$9)/G$14-1 -> 0 | H62: 0 | I62: 0.00454659105 | J62: 0.006488816928 | K62: 0.008361920003 | L62: 0.01034355639 | M62: 0.01211982759 | N62: 0.01306024293 | O62: 0.01340341578 | P62: 0.01474037109 | Q62: 0.01675055519 | R62: 0.01854870226 | S62: 0.02034694899 | T62: 0.02016475591 | U62: 0.02103870369 | V62: 0.02235342476 | W62: 0.02339878831 | X62: 0.02440655433 | Y62: 0.02420865263 | Z62: 0.02312029235 | AA62: 0.0174485267 | AB62: 0.01708459447 | AC62: 0.01758302827
A63: A2 TE EP | B63: MWh | G63: 354.498932 | H63: 388.0080544 | I63: 408.2079556 | J63: 432.4294199 | K63: 447.5305848 | L63: 461.3514943 | M63: 473.1793582 | N63: 471.7882647 | O63: 482.4862249 | P63: 496.2421157 | Q63: 508.7569545 | R63: 528.6878714 | S63: 549.2910058 | T63: 562.4028584 | U63: 584.9502923 | V63: 608.4923393 | W63: 633.261475 | X63: 658.8384263 | Y63: 687.5077676 | Z63: 720.0024454 | AA63: 760.1836381 | AB63: 792.1803563 | AC63: 826.0416394
A64: A2 TE EFP | B64: MWh | G64: 219.3093978 | H64: 242.4451223 | I64: 254.483988 | J64: 269.0382912 | K64: 278.3159872 | L64: 286.8673249 | M64: 294.3264389 | N64: 293.9800906 | O64: 300.7098303 | P64: 309.2430262 | Q64: 317.1220563 | R64: 329.4541924 | S64: 342.1471749 | T64: 350.2961883 | U64: 363.9822173 | V64: 378.284272 | W64: 393.4201134 | X64: 408.9551909 | Y64: 426.3322529 | Z64: 445.9888753 | AA64: 470.2301787 | AB64: 489.7928432 | AC64: 510.3216012
A65: A2 TUSD Azul DP | B65: kW | G65: 12.14476679 | H65: 12.30544591 | I65: 12.5839949 | J65: 12.83915949 | K65: 13.10048766 | L65: 14.9906039 | M65: 15.29672037 | N65: 15.59970075 | O65: 15.91020083 | P65: 16.22855474 | Q65: 18.61537749 | R65: 18.99342755 | S65: 19.38165294 | T65: 19.7065747 | U65: 20.03684912 | V65: 22.92481737 | W65: 23.29613694 | X65: 23.67369722 | Y65: 24.05771993 | Z65: 24.44843853 | AA65: 28.12037608 | AB65: 28.56458995 | AC65: 29.01682591
A66: A2 TUSD Azul DFP | B66: kW | G66: 6.87819134 | H66: 6.984528263 | I66: 7.152528807 | J66: 7.310362188 | K66: 7.472175356 | L66: 8.308681744 | M66: 8.492027385 | N66: 8.671258152 | O66: 8.855025175 | P66: 9.043519913 | Q66: 10.08849086 | R66: 10.30479402 | S66: 10.52696242 | T66: 10.71736732 | U66: 10.91116762 | V66: 12.16332931 | W66: 12.37656311 | X66: 12.59366508 | Y66: 12.81476528 | Z66: 13.04000036 | AA66: 14.6228364 | AB66: 14.87304463 | AC66: 15.12806765
A67: A2 TUSD Azul E | B67: MWh | G67: 92.34396603 | H67: 92.53328402 | I67: 95.00538044 | J67: 88.99234218 | K67: 90.60158151 | L67: 92.25016968 | M67: 93.92347465 | N67: 91.40267401 | O67: 77.03678415 | P67: 79.22747215 | Q67: 81.46523324 | R67: 84.01077743 | S67: 86.67625066 | T67: 88.89239943 | U67: 91.44616607 | V67: 94.11239558 | W67: 96.90558351 | X67: 99.81229151 | Y67: 102.3704215 | Z67: 105.18794 | AA67: 108.5540097 | AB67: 111.5961165 | AC67: 114.7928398
A70: Desacoplamento
A71: PCAT B1 GD FV Desacoplada | G71: =(G72+G73)/G$5-1 -> 0 | H71: 0 | I71: -3.675073711e-05 | J71: 3.244496203e-05 | K71: -1.284625215e-06 | L71: -0.0001139736912 | M71: -0.0002873617373 | N71: -0.0007225079866 | O71: -0.0007644377823 | P71: -0.0008855774329 | Q71: -0.001020699212 | R71: -0.0009788729296 | S71: -0.0009691488241 | T71: -0.001371441986 | U71: -0.001248295731 | V71: -0.002179900893 | W71: -0.00210608842 | X71: -0.00205656628 | Y71: -0.002206956926 | Z71: -0.002462421036 | AA71: -0.003687493386 | AB71: -0.003719520346 | AC71: -0.003746809202
A72: Residencial TUSD | G72: 301.2823327 | H72: 308.9478822 | I72: 316.6115102 | J72: 316.5525734 | K72: 322.8824023 | L72: 353.2078833 | M72: 359.2616017 | N72: 358.1358887 | O72: 347.2045727 | P72: 354.0889188 | Q72: 390.7051514 | R72: 399.6759205 | S72: 408.7897926 | T72: 416.3954843 | U72: 426.2247297 | V72: 472.3531899 | W72: 483.285728 | X72: 494.3687365 | Y72: 506.0859012 | Z72: 519.2053954 | AA72: 580.5661543 | AB72: 594.3116704 | AC72: 608.1984245
A73: Residencial TE | G73: 230.5751923 | H73: 254.5753667 | I73: 267.4908142 | J73: 283.0321843 | K73: 293.0136956 | L73: 302.2557673 | M73: 310.379388 | N73: 310.4437036 | O73: 317.8634931 | P73: 327.2818921 | Q73: 335.9739399 | R73: 349.3520895 | S73: 363.1498639 | T73: 372.3342179 | U73: 387.2416002 | V73: 402.8135215 | W73: 419.2489314 | X73: 436.1598415 | Y73: 455.4818811 | Z73: 477.6869758 | AA73: 507.6982479 | AB73: 530.006921 | AC73: 552.8902401
B99: 2013 | C99: 2014 | D99: 2015 | E99: 2016 | F99: 2017 | G99: 2018 | H99: 2019 | I99: 2020 | J99: 2021 | K99: 2022 | L99: 2023 | M99: 2024 | N99: 2025 | O99: 2026 | P99: 2027 | Q99: 2028 | R99: 2029 | S99: 2030 | T99: 2031 | U99: 2032 | V99: 2033 | W99: 2034 | X99: 2035 | Y99: 2036 | Z99: 2037 | AA99: 2038 | AB99: 2039 | AC99: 2040
G100: 1.015 | H100: 1.04545 | I100: 1.0768135 | J100: 1.109117905 | K100: 1.142391442 | L100: 1.176663185 | M100: 1.211963081 | N100: 1.248321973 | O100: 1.285771633 | P100: 1.324344782 | Q100: 1.364075125 | R100: 1.404997379 | S100: 1.4471473 | T100: 1.490561719 | U100: 1.535278571 | V100: 1.581336928 | W100: 1.628777036 | X100: 1.677640347 | Y100: 1.727969557 | Z100: 1.779808644 | AA100: 1.833202903 | AB100: 1.88819899 | AC100: 1.94484496 | AE100: =2144225.74744327-1000000 -> 1144225.747 | AF100: =AE100*AC100 -> 2225341.678
G101: 1.015 | H101: 1.04545 | I101: 1.0768135 | J101: 1.109117905 | K101: 1.142391442 | L101: 1.176663185 | M101: 1.211963081 | N101: 1.248321973 | O101: 1.285771633 | P101: 1.324344782 | Q101: 1.364075125 | R101: 1.404997379 | S101: 1.4471473 | T101: 1.490561719 | U101: 1.535278571 | V101: 1.581336928 | W101: 1.628777036 | X101: 1.677640347 | Y101: 1.727969557 | Z101: 1.779808644 | AA101: 1.833202903 | AB101: 1.88819899 | AC101: 1.94484496 | AE101: =5666102.89102855-1029000 -> 4637102.891 | AF101: =AE101*AC101 -> 9018446.187
G102: 1.015 | H102: 1.04545 | I102: 1.0768135 | J102: 1.109117905 | K102: 1.142391442 | L102: 1.176663185 | M102: 1.211963081 | N102: 1.248321973 | O102: 1.285771633 | P102: 1.324344782 | Q102: 1.364075125 | R102: 1.404997379 | S102: 1.4471473 | T102: 1.490561719 | U102: 1.535278571 | V102: 1.581336928 | W102: 1.628777036 | X102: 1.677640347 | Y102: 1.727969557 | Z102: 1.779808644 | AA102: 1.833202903 | AB102: 1.88819899 | AC102: 1.94484496 | AE102: 6790754.57 | AF102: =AE102*AC102 -> 13206964.8
G103: 1.015 | H103: 1.04545 | I103: 1.0768135 | J103: 1.109117905 | K103: 1.142391442 | L103: 1.176663185 | M103: 1.211963081 | N103: 1.248321973 | O103: 1.285771633 | P103: 1.324344782 | Q103: 1.364075125 | R103: 1.404997379 | S103: 1.4471473 | T103: 1.490561719 | U103: 1.535278571 | V103: 1.581336928 | W103: 1.628777036 | X103: 1.677640347 | Y103: 1.727969557 | Z103: 1.779808644 | AA103: 1.833202903 | AB103: 1.88819899 | AC103: 1.94484496 | AE103: 4434799.285 | AF103: =AE103*AC103 -> 8624997.038
AE104: =SUM(AE100:AE103) -> 17006882.49 | AF104: =SUM(AF100:AF103) -> 33075749.7 | AG104: 33563834.55 | AH104: 38304069.6
G105: 1.015 | H105: 1.04545 | I105: 1.073456508 | J105: 1.102183936 | K105: 1.131649592 | L105: 1.161871147 | M105: 1.192866633 | N105: 1.224654452 | O105: 1.257253381 | P105: 1.290682575 | Q105: 1.324961569 | R105: 1.360110288 | S105: 1.396149044 | T105: 1.433098548 | U105: 1.470979905 | V105: 1.509814623 | W105: 1.549624617 | X105: 1.590432206 | Y105: 1.632260123 | Z105: 1.675131512 | AA105: 1.719069933 | AB105: 1.764099362 | AC105: 1.810244193 | AD105: =$AC$100-AC105 -> 0.1346007671 | AE105: =AE100 -> 1144225.747 | AF105: =AE105*AC105 -> 2071328.015
G106: 1.015 | H106: 1.04545 | I106: 1.070841569 | J106: 1.096763874 | K106: 1.123223782 | L106: 1.15022801 | M106: 1.177783102 | N106: 1.205895408 | O106: 1.234571066 | P106: 1.263815977 | Q106: 1.29363578 | R106: 1.32403583 | S106: 1.355021169 | T106: 1.386596496 | U106: 1.41876614 | V106: 1.451534026 | W106: 1.484903642 | X106: 1.518878005 | Y106: 1.553459619 | Z106: 1.588650442 | AA106: 1.624451838 | AB106: 1.660864539 | AC106: 1.697888592 | AD106: =$AC$100-AC106 -> 0.2469563684 | AE106: =AE101 -> 4637102.891 | AF106: =AE106*AC106 -> 7873284.097
G107: 1.015 | H107: 1.04545 | I107: 1.069933653 | J107: 1.094891144 | K107: 1.12032678 | L107: 1.146244621 | M107: 1.172648453 | N107: 1.199541774 | O107: 1.226927758 | P107: 1.25480924 | Q107: 1.283188682 | R107: 1.312068149 | S107: 1.341449274 | T107: 1.371333231 | U107: 1.401720701 | V107: 1.432611832 | W107: 1.464006209 | X107: 1.49590281 | Y107: 1.52829997 | Z107: 1.561195331 | AA107: 1.594585806 | AB107: 1.628467522 | AC107: 1.662835779 | AD107: =$AC$100-AC107 -> 0.2820091814 | AE107: =AE102 -> 6790754.57 | AF107: =AE107*AC107 -> 11291909.66
G108: 1.015 | H108: 1.04545 | I108: 1.069933653 | J108: 1.094891144 | K108: 1.12032678 | L108: 1.146244621 | M108: 1.172648453 | N108: 1.199541774 | O108: 1.226927758 | P108: 1.25480924 | Q108: 1.283188682 | R108: 1.312068149 | S108: 1.341449274 | T108: 1.371333231 | U108: 1.401720701 | V108: 1.432611832 | W108: 1.464006209 | X108: 1.49590281 | Y108: 1.52829997 | Z108: 1.561195331 | AA108: 1.594585806 | AB108: 1.628467522 | AC108: 1.662835779 | AD108: =$AC$100-AC108 -> 0.2820091814 | AE108: =AE103 -> 4434799.285 | AF108: =AE108*AC108 -> 7374342.922
AE109: =SUM(AE105:AE108) -> 17006882.49 | AF109: =SUM(AF105:AF108) -> 28610864.7 | AG109: =AF104-AF109 -> 4464885.006 | AH109: 3368706.173
G110: 1.015 | H110: 1.04545 | I110: 1.0768135 | J110: 1.109117905 | K110: 1.142391442 | L110: 1.176663185 | M110: 1.211963081 | N110: 1.248321973 | O110: 1.285771633 | P110: 1.324344782 | Q110: 1.364075125 | R110: 1.404997379 | S110: 1.4471473 | T110: 1.490561719 | U110: 1.535278571 | V110: 1.581336928 | W110: 1.628777036 | X110: 1.677640347 | Y110: 1.727969557 | Z110: 1.779808644 | AA110: 1.833202903 | AB110: 1.88819899 | AC110: 1.94484496 | AD110: =$AC$100-AC110 -> 0 | AE110: =AE105 -> 1144225.747 | AF110: =AE110*AC110 -> 2225341.678 | AG110: =AG109/$AF$104 -> 0.1349896842 | AH110: =(AG109-AH109)/AH109 -> 0.3254005476
G111: 1.015 | H111: 1.04545 | I111: 1.0768135 | J111: 1.109117905 | K111: 1.142391442 | L111: 1.176663185 | M111: 1.211963081 | N111: 1.248321973 | O111: 1.285771633 | P111: 1.324344782 | Q111: 1.364075125 | R111: 1.404997379 | S111: 1.4471473 | T111: 1.490561719 | U111: 1.535278571 | V111: 1.581336928 | W111: 1.628777036 | X111: 1.677640347 | Y111: 1.727969557 | Z111: 1.779808644 | AA111: 1.833202903 | AB111: 1.88819899 | AC111: 1.94484496 | AD111: =$AC$100-AC111 -> 0 | AE111: =AE106 -> 4637102.891 | AF111: =AE111*AC111 -> 9018446.187
G112: 1.015 | H112: 1.04545 | I112: 1.066091832 | J112: 1.086953967 | K112: 1.108028166 | L112: 1.129305397 | M112: 1.150775777 | N112: 1.172428539 | O112: 1.194251972 | P112: 1.216233375 | Q112: 1.238359006 | R112: 1.260614018 | S112: 1.28298241 | T112: 1.319182608 | U112: 1.356397775 | V112: 1.394656157 | W112: 1.433986777 | X112: 1.474419459 | Y112: 1.51598485 | Z112: 1.558714439 | AA112: 1.602640585 | AB112: 1.647796536 | AC112: 1.694216457 | AD112: =$AC$100-AC112 -> 0.2506285027 | AE112: =AE107 -> 6790754.57 | AF112: =AE112*AC112 -> 11505008.15
G113: 1.015 | H113: 1.04545 | I113: 1.066091832 | J113: 1.086953967 | K113: 1.108028166 | L113: 1.129305397 | M113: 1.150775777 | N113: 1.172428539 | O113: 1.194251972 | P113: 1.216233375 | Q113: 1.238359006 | R113: 1.260614018 | S113: 1.28298241 | T113: 1.319182608 | U113: 1.356397775 | V113: 1.394656157 | W113: 1.433986777 | X113: 1.474419459 | Y113: 1.51598485 | Z113: 1.558714439 | AA113: 1.602640585 | AB113: 1.647796536 | AC113: 1.694216457 | AD113: =$AC$100-AC113 -> 0.2506285027 | AE113: =AE108 -> 4434799.285 | AF113: =AE113*AC113 -> 7513509.933
AE114: =SUM(AE110:AE113) -> 17006882.49 | AF114: =SUM(AF110:AF113) -> 30262305.95 | AG114: =AF104-AF114 -> 2813443.755 | AH114: 3040837.688
G115: 1.015 | H115: 1.04545 | I115: 1.073456508 | J115: 1.102183936 | K115: 1.131649592 | L115: 1.161871147 | M115: 1.192866633 | N115: 1.224654452 | O115: 1.257253381 | P115: 1.290682575 | Q115: 1.324961569 | R115: 1.360110288 | S115: 1.396149044 | T115: 1.433098548 | U115: 1.470979905 | V115: 1.509814623 | W115: 1.549624617 | X115: 1.590432206 | Y115: 1.632260123 | Z115: 1.675131512 | AA115: 1.719069933 | AB115: 1.764099362 | AC115: 1.810244193 | AD115: =$AC$100-AC115 -> 0.1346007671 | AG115: =AG114/$AG$104 -> 0.08382366892 | AH115: =AH114/$AG$104 -> 0.09059863776
G116: 1.015 | H116: 1.04545 | I116: 1.070841569 | J116: 1.096763874 | K116: 1.123223782 | L116: 1.15022801 | M116: 1.177783102 | N116: 1.205895408 | O116: 1.234571066 | P116: 1.263815977 | Q116: 1.29363578 | R116: 1.32403583 | S116: 1.355021169 | T116: 1.386596496 | U116: 1.41876614 | V116: 1.451534026 | W116: 1.484903642 | X116: 1.518878005 | Y116: 1.553459619 | Z116: 1.588650442 | AA116: 1.624451838 | AB116: 1.660864539 | AC116: 1.697888592 | AD116: =$AC$100-AC116 -> 0.2469563684
G117: 1.015 | H117: 1.04545 | I117: 1.059211985 | J117: 1.072727205 | K117: 1.085963504 | L117: 1.098886832 | M117: 1.11146115 | N117: 1.123648339 | O117: 1.135408097 | P117: 1.146697834 | Q117: 1.157472563 | R117: 1.167684788 | S117: 1.177284384 | T117: 1.19995412 | U117: 1.222839905 | V117: 1.24593106 | W117: 1.269215949 | X117: 1.292681922 | Y117: 1.316315262 | Z117: 1.340101126 | AA117: 1.364023487 | AB117: 1.388065068 | AC117: 1.412207276 | AD117: =$AC$100-AC117 -> 0.5326376841
G118: 1.015 | H118: 1.04545 | I118: 1.059211985 | J118: 1.072727205 | K118: 1.085963504 | L118: 1.098886832 | M118: 1.11146115 | N118: 1.123648339 | O118: 1.135408097 | P118: 1.146697834 | Q118: 1.157472563 | R118: 1.167684788 | S118: 1.177284384 | T118: 1.19995412 | U118: 1.222839905 | V118: 1.24593106 | W118: 1.269215949 | X118: 1.292681922 | Y118: 1.316315262 | Z118: 1.340101126 | AA118: 1.364023487 | AB118: 1.388065068 | AC118: 1.412207276 | AD118: =$AC$100-AC118 -> 0.5326376841

Sheet Gráficos
CQ1: 2009 | CR1: 2010 | CS1: 2011 | CT1: 2012 | CU1: 2013 | CV1: 2014 | CW1: 2015 | CX1: 2016
CQ2: =CQ3*CQ4/CQ5 -> 49528.41256 | CR2: =CR3*CR4/CR5 -> 61979.35468 | CS2: 41291.99257 | CT2: 42466.60439 | CU2: 41219.57702 | CV2: 41063.46971
CQ3: 1.62 | CR3: 1.603 | CS3: 1.44 | CT3: 1.3701627 | CU3: 1.2708823 | CV3: 1.2043349 | CW3: 1.1616458 | CX3: 1.0508419
CQ4: 136356 | CR4: 168423 | CS4: 138873 | CT4: 155992 | CU4: 190419 | CV4: 187837 | CW4: 135942 | CX4: 88257
CQ5: 4.46 | CR5: 4.356 | CS5: 4.843 | CT5: 5.033 | CU5: 5.871 | CV5: 5.509
R33: ,
BN46: x
F72: 480
F73: 385
F74: =F72/F73-1 -> 0.2467532468
AK84: 470
AK85: 560
AK86: =AK84/AK85-1 -> -0.1607142857
P104: =560/406 -> 1.379310345
AK106: 0.168
AK107: 0.15
AK108: =AK106/AK107-1 -> 0.12
B125: 2011 | C125: =B125+1 -> 2012 | D125: =C125+1 -> 2013 | E125: =D125+1 -> 2014 | F125: 2015 | G125: 2016 | H125: 2017 | I125: 2018 | J125: 2019 | K125: 2020 | L125: 2021 | M125: 2022 | N125: 2023 | O125: 2024 | P125: 2025 | Q125: 2026 | R125: 2027 | S125: 2028 | T125: 2029 | U125: 2030 | V125: 2031 | W125: 2032 | X125: 2033 | Y125: 2034 | Z125: 2035 | AA125: 2036 | AB125: 2037 | AC125: 2038 | AD125: 2039 | AE125: 2040
A126: Tarifa B1 PCAT Atualizada | B126: =B127+B128 -> 343.04 | C126: =C127+C128 -> 281.2602279 | D126: =D127+D128 -> 328.74 | E126: =E127+E128 -> 387.08 | F126: =F127+F128 -> 543.46 | G126: 478.63 | H126: 525.82 | I126: =I127+I128 -> 508.0453155 | J126: 518.0878811 | K126: 514.887303 | L126: 508.1716597 | M126: 501.9363161 | N126: 513.695052 | O126: 504.7086836 | P126: 484.7385967 | Q126: 463.6662279 | R126: 456.8169487 | S126: 468.5185035 | T126: 464.3341432 | U126: 460.1276656 | V126: 452.2356229 | W126: 448.424429 | X126: 464.314684 | Y126: 460.3838206 | Z126: 456.384607 | AA126: 453.5375924 | AB126: 452.2301634 | AC126: 475.2761496 | AD126: 472.1517582 | AE126: 468.8524188
A127: TUSD B1 PCAT Atualizada | B127: 215.93 | C127: =D127/1.16 -> 157.3534483 | D127: 182.53 | E127: 205.76 | F127: 284.44 | G127: 233.04 | H127: 260.73 | I127: =PCAT!G3 -> 287.7933856 | J127: =PCAT!H3 -> 284.0382433 | K127: =PCAT!I3 -> 279.160966 | L127: =PCAT!J3 -> 268.457233 | M127: =PCAT!K3 -> 263.3794616 | N127: =PCAT!L3 -> 277.1240693 | O127: =PCAT!M3 -> 271.1409478 | P127: =PCAT!N3 -> 260.0076839 | Q127: =PCAT!O3 -> 242.4200018 | R127: =PCAT!P3 -> 237.7459642 | S127: =PCAT!Q3 -> 252.2788603 | T127: =PCAT!R3 -> 248.1474389 | U127: =PCAT!S3 -> 244.0555255 | V127: =PCAT!T3 -> 238.9805436 | W127: =PCAT!U3 -> 235.1614005 | X127: =PCAT!V3 -> 251.0108321 | Y127: =PCAT!W3 -> 246.9284872 | Z127: =PCAT!X3 -> 242.8654844 | AA127: =PCAT!Y3 -> 239.0601909 | AB127: =PCAT!Z3 -> 235.8341936 | AC127: =PCAT!AA3 -> 253.8020022 | AD127: =PCAT!AB3 -> 249.8506703 | AE127: =PCAT!AC3 -> 245.8878661
A128: TE B1 PCAT Atualizada | B128: 127.11 | C128: =D128/1.18 -> 123.9067797 | D128: 146.21 | E128: 181.32 | F128: 259.02 | G128: 245.59 | H128: 265.09 | I128: =PCAT!G4 -> 220.2519299 | J128: =PCAT!H4 -> 234.0496378 | K128: =PCAT!I4 -> 235.726337 | L128: =PCAT!J4 -> 239.7144267 | M128: =PCAT!K4 -> 238.5568546 | N128: =PCAT!L4 -> 236.5709827 | O128: =PCAT!M4 -> 233.5677358 | P128: =PCAT!N4 -> 224.7309127 | Q128: =PCAT!O4 -> 221.2462261 | R128: =PCAT!P4 -> 219.0709845 | S128: =PCAT!Q4 -> 216.2396432 | T128: =PCAT!R4 -> 216.1867043 | U128: =PCAT!S4 -> 216.0721401 | V128: =PCAT!T4 -> 213.2550793 | W128: =PCAT!U4 -> 213.2630285 | X128: =PCAT!V4 -> 213.3038519 | Y128: =PCAT!W4 -> 213.4553335 | Z128: =PCAT!X4 -> 213.5191226 | AA128: =PCAT!Y4 -> 214.4774016 | AB128: =PCAT!Z4 -> 216.3959699 | AC128: =PCAT!AA4 -> 221.4741474 | AD128: =PCAT!AB4 -> 222.3010879 | AE128: =PCAT!AC4 -> 222.9645527
B129: 383.59 | C129: 314.16 | D129: =C126/B130 -> 314.5073777
B130: =B126/B129 -> 0.8942881723 | C130: =C126/B126-1 -> -0.1800949512
A131: Tarifa B1 PCAT Atualizada Encargos | H131: =H126 -> 525.82 | I131: 479.52 | J131: 490.99 | K131: 489.3 | L131: 484.11 | M131: 479.25 | N131: 492.31 | O131: 484.55 | P131: 484.49 | Q131: 463.66 | R131: 456.82 | S131: 468.52 | T131: 464.33 | U131: 460.13 | V131: 452.24 | W131: 448.42 | X131: 464.31 | Y131: 460.38 | Z131: 456.38 | AA131: 453.54 | AB131: 452.23 | AC131: 475.28 | AD131: 472.15 | AE131: 468.85
A132: Tarifa B1 PCAT Atualizada Crescimento 1% | H132: =H126 -> 525.82 | I132: 508.05 | J132: 520.29 | K132: 518.54 | L132: 513.64 | M132: 509.04 | N132: 523.54 | O132: 516.09 | P132: 496.9 | Q132: 476.04 | R132: 470.32 | S132: 486.16 | T132: 483.38 | U132: 480.46 | V132: 472.81 | W132: 470.05 | X132: 491.79 | Y132: 489.08 | Z132: 486.15 | AA132: 483.64 | AB132: 482.18 | AC132: 510.25 | AD132: 507.75 | AE132: 505.02

Sheet Graphics
CQ1: 2009 | CR1: 2010 | CS1: 2011 | CT1: 2012 | CU1: 2013 | CV1: 2014 | CW1: 2015 | CX1: 2016
CQ2: =CQ3*CQ4/CQ5 -> 49528.41256 | CR2: =CR3*CR4/CR5 -> 61979.35468 | CS2: 41291.99257 | CT2: 42466.60439 | CU2: 41219.57702 | CV2: 41063.46971
CQ3: 1.62 | CR3: 1.603 | CS3: 1.44 | CT3: 1.3701627 | CU3: 1.2708823 | CV3: 1.2043349 | CW3: 1.1616458 | CX3: 1.0508419
CQ4: 136356 | CR4: 168423 | CS4: 138873 | CT4: 155992 | CU4: 190419 | CV4: 187837 | CW4: 135942 | CX4: 88257
CQ5: 4.46 | CR5: 4.356 | CS5: 4.843 | CT5: 5.033 | CU5: 5.871 | CV5: 5.509
C26: Actual Resintial Tariff | L26: Base
C27: Projected Residential Tariff | L27: EE
C28: Projected Residential Tariff with lower growth (1% per year) | L28: PVDG
C29: Projected Residential Tariff without indemnity charges | L29: EE and PVDG
R33: ,
BN46: x
N58: Taxes collection
B124: 3248.2 | C124: 3438.19
B125: 2011 | C125: =B125+1 -> 2012 | D125: =C125+1 -> 2013 | E125: =D125+1 -> 2014 | F125: 2015 | G125: 2016 | H125: 2017 | I125: 2018 | J125: 2019 | K125: 2020 | L125: 2021 | M125: 2022 | N125: 2023 | O125: 2024 | P125: 2025 | Q125: 2026 | R125: 2027 | S125: 2028 | T125: 2029 | U125: 2030 | V125: 2031 | W125: 2032 | X125: 2033 | Y125: 2034 | Z125: 2035 | AA125: 2036 | AB125: 2037 | AC125: 2038 | AD125: 2039 | AE125: 2040
A126: Tarifa B1 PCAT Atualizada | B126: =B127+B128 -> 593.0252095 | C126: =C127+C128 -> 560.2553918 | D126: =D127+D128 -> 388.3153178 | E126: =E127+E128 -> 406.6436308 | F126: =F127+F128 -> 460.5255753 | G126: 501.0676321 | H126: 466.99 | I126: 508.0453155 | J126: 518.0878811 | K126: 514.887303 | L126: 508.1716597 | M126: 501.9363161 | N126: 513.695052 | O126: 504.7086836 | P126: 484.7385967 | Q126: 463.6662279 | R126: 456.8169487 | S126: 468.5185035 | T126: 464.3341432 | U126: 460.1276656 | V126: 452.2356229 | W126: 448.424429 | X126: 464.314684 | Y126: 460.3838206 | Z126: 456.384607 | AA126: 453.5375924 | AB126: 452.2301634 | AC126: 475.2761496 | AD126: 472.1517582 | AE126: 468.8524188
A127: TUSD B1 PCAT Atualizada | B127: 361.6684618 | C127: 341.6831233 | D127: 202.5170697 | E127: 186.1036391 | F127: 183.1830786 | G127: 244.0048198 | H127: 231.35 | I127: =PCAT!G3 -> 287.7933856 | J127: =PCAT!H3 -> 284.0382433 | K127: =PCAT!I3 -> 279.160966 | L127: =PCAT!J3 -> 268.457233 | M127: =PCAT!K3 -> 263.3794616 | N127: =PCAT!L3 -> 277.1240693 | O127: =PCAT!M3 -> 271.1409478 | P127: =PCAT!N3 -> 260.0076839 | Q127: =PCAT!O3 -> 242.4200018 | R127: =PCAT!P3 -> 237.7459642 | S127: =PCAT!Q3 -> 252.2788603 | T127: =PCAT!R3 -> 248.1474389 | U127: =PCAT!S3 -> 244.0555255 | V127: =PCAT!T3 -> 238.9805436 | W127: =PCAT!U3 -> 235.1614005 | X127: =PCAT!V3 -> 251.0108321 | Y127: =PCAT!W3 -> 246.9284872 | Z127: =PCAT!X3 -> 242.8654844 | AA127: =PCAT!Y3 -> 239.0601909 | AB127: =PCAT!Z3 -> 235.8341936 | AC127: =PCAT!AA3 -> 253.8020022 | AD127: =PCAT!AB3 -> 249.8506703 | AE127: =PCAT!AC3 -> 245.8878661
A128: TE B1 PCAT Atualizada | B128: 231.3567477 | C128: 218.5722685 | D128: 185.7982481 | E128: 220.5399918 | F128: 277.3424967 | G128: 257.0628123 | H128: 235.64 | I128: =PCAT!G4 -> 220.2519299 | J128: =PCAT!H4 -> 234.0496378 | K128: =PCAT!I4 -> 235.726337 | L128: =PCAT!J4 -> 239.7144267 | M128: =PCAT!K4 -> 238.5568546 | N128: =PCAT!L4 -> 236.5709827 | O128: =PCAT!M4 -> 233.5677358 | P128: =PCAT!N4 -> 224.7309127 | Q128: =PCAT!O4 -> 221.2462261 | R128: =PCAT!P4 -> 219.0709845 | S128: =PCAT!Q4 -> 216.2396432 | T128: =PCAT!R4 -> 216.1867043 | U128: =PCAT!S4 -> 216.0721401 | V128: =PCAT!T4 -> 213.2550793 | W128: =PCAT!U4 -> 213.2630285 | X128: =PCAT!V4 -> 213.3038519 | Y128: =PCAT!W4 -> 213.4553335 | Z128: =PCAT!X4 -> 213.5191226 | AA128: =PCAT!Y4 -> 214.4774016 | AB128: =PCAT!Z4 -> 216.3959699 | AC128: =PCAT!AA4 -> 221.4741474 | AD128: =PCAT!AB4 -> 222.3010879 | AE128: =PCAT!AC4 -> 222.9645527
A131: Tarifa B1 PCAT Atualizada Encargos | H131: 466.99 | I131: 500.9980854 | J131: 483.3923473 | K131: 470.5310716 | L131: 484.6469836 | M131: 476.9781622 | N131: 457.4544254 | O131: 441.2820287 | P131: 424.1857745 | Q131: 442.5723203 | R131: 436.1776341 | S131: 423.1716215 | T131: 417.3004487 | U131: 411.6502827 | V131: 427.0881551 | W131: 420.9898826 | X131: 413.3936469 | Y131: 410.8762552 | Z131: 406.2525695 | AA131: 425.6216328 | AB131: 420.3658354 | AC131: 418.2486282 | AD131: 406.1857534 | AE131: 396.5860481
A132: Tarifa B1 PCAT Atualizada Crescimento 1% | H132: 466.99 | I132: 550.4134827 | J132: 560.334655 | K132: 549.7285924 | L132: 565.5629865 | M132: 553.1817279 | N132: 533.351162 | O132: 519.5006503 | P132: 503.9166353 | Q132: 520.783432 | R132: 504.4002622 | S132: 494.1714985 | T132: 489.5929783 | U132: 485.7632366 | V132: 504.2755916 | W132: 500.0069977 | X132: 493.3939014 | Y132: 490.5178724 | Z132: 486.724826 | AA132: 512.3582447 | AB132: 507.6366625 | AC132: 505.1273816 | AD132: 495.3216962 | AE132: 487.4437413

Sheet Resultados
B1: Cenário Base
B2: EE | C2: GD FV | D2: EE e GD FV
A3: Tarifa residencial | B3: =PCAT!AC21 -> 0.0444958573 | C3: =PCAT!AC37 -> 0.02984789614 | D3: =PCAT!AC53 -> 0.08031264085
A4: Arrecadação fiscal [R$ mi] | B4: =SUM(B5:B7) -> -5174.645106 | C4: =SUM(C5:C7) -> -2590.921481 | D4: =SUM(D5:D7) -> -7739.872897
A5: Federal | B5: =Impostos!C10 -> -444.0581904 | C5: =Impostos!D10 -> 783.5638197 | D5: =Impostos!E10 -> 342.1999524
A6: Estadual | B6: =Impostos!C11 -> -4775.964594 | C6: =Impostos!D11 -> -3644.746201 | D6: =Impostos!E11 -> -8397.711427
A7: Municipal | B7: =Impostos!C12 -> 45.37767813 | C7: =Impostos!D12 -> 270.2609001 | D7: =Impostos!E12 -> 315.6385782
A8: Receita da distribuidora [R$ mi] | B8: =(SUM(Resumo!$G$107:$AC$107)-SUM(Resumo!$G$33:$AC$33))/1000000 -> 243.7062523 | C8: =(SUM(Resumo!$G$139:$AC$139)-SUM(Resumo!$G$33:$AC$33))/1000000 -> 159.7491305 | D8: =(SUM(Resumo!$G$156:$AC$156)-SUM(Resumo!$G$33:$AC$33))/1000000 -> 486.1502017
A9: Emissões de GEE [MtCO2-eq.] | B9: =-SUM(Resumo!I110:AC110)/1000000 -> -10.98791081 | C9: =-SUM(Resumo!I142:AC142)/1000000 -> -9.704750953 | D9: =-SUM(Resumo!I159:AC159)/1000000 -> -20.69266176
A10: Geração líquida de empregos | B10: =SUM(Resumo!I108:AC108)/21 -> 1332.367426 | C10: =SUM(Resumo!I140:AC140)/21 -> 2225.383302 | D10: =SUM(Resumo!I157:AC157)/21 -> 3557.750728 | F10: =B4*1000000/B10/21 -> -184942.7319 | G10: =C4*1000000/C10/21 -> -55440.88215
B12: =B4/B10 -> -3.88379737 | C12: =C4/C10 -> -1.164258525 | D12: -2.175496118
A14: Arrecadação fiscal Total | B14: =Impostos!C14 -> -0.03323578857 | C14: =Impostos!D14 -> -0.01664100953 | D14: =Impostos!E14 -> -0.04971177228
A15: Federal | B15: =Impostos!C15 -> -0.02719832164 | C15: =Impostos!D15 -> 0.04799285601 | D15: =Impostos!E15 -> 0.02095956019
A16: Estadual | B16: =Impostos!C16 -> -0.0342686594 | C16: =Impostos!D16 -> -0.02727820221 | D16: =Impostos!E16 -> -0.06569158844
A17: Municipal | B17: =Impostos!C17 -> 0.000291452435 | C17: =Impostos!D17 -> 0.001735835782 | D17: =Impostos!E17 -> 0.002027288217
A19: Receita da distribuidora | B19: =(SUM(Resumo!$G$107:$AC$107)-SUM(Resumo!$G$33:$AC$33))/SUM(Resumo!$G$33:$AC$33) -> 0.001716370944 | C19: =(SUM(Resumo!$G$139:$AC$139)-SUM(Resumo!$G$33:$AC$33))/SUM(Resumo!$G$33:$AC$33) -> 0.001125078915 | D19: =(SUM(Resumo!$G$156:$AC$156)-SUM(Resumo!$G$33:$AC$33))/SUM(Resumo!$G$33:$AC$33) -> 0.00342385176

Sheet Contratos_volume
B1: Contratos | C1: Volume Energia do contrato(R$/MWh)
K2: =SUM(K4:K1048576)-K6 -> 28846620.94 | L2: =SUM(L4:L1048576)-L6 -> 29725389.81 | M2: =SUM(M4:M1048576)-M6 -> 30167850.79 | N2: 30063731.96 | O2: 29222936.8 | P2: 30099624.9 | Q2: 31002613.65 | R2: 31932692.06 | S2: 32890672.82 | T2: 33877393 | U2: 34893714.79 | V2: 35940526.24 | W2: 37018742.03 | X2: 38129304.29 | Y2: 39273183.42 | Z2: 40451378.92 | AA2: 41664920.29 | AB2: 42914867.89 | AC2: 44202313.93 | AD2: 45528383.35 | AE2: 46894234.85 | AF2: 48301061.89 | AG2: 49750093.75 | AH2: 51242596.56 | AI2: 52779874.46 | AJ2: 54363270.69 | AK2: 55994168.82
B3: Descrição | C3: Início | D3: Fim | E3: IPCA data contrato | F3: Fonte | G3: Tipo | H3: Montante | I3: Energia Total | J3: Energia anual | K3: 2014 | L3: 2015 | M3: 2016 | N3: 2017 | O3: 2018 | P3: 2019 | Q3: 2020 | R3: 2021 | S3: 2022 | T3: 2023 | U3: 2024 | V3: 2025 | W3: 2026 | X3: 2027 | Y3: 2028 | Z3: 2029 | AA3: 2030 | AB3: 2031 | AC3: 2032 | AD3: 2033 | AE3: 2034 | AF3: 2035 | AG3: 2036 | AH3: 2037 | AI3: 2038 | AJ3: 2039 | AK3: 2040
A4: =RIGHT(B4,3) -> IPU | B4: QUOTA ITAIPU | C4: 2013-01-01 | D4: 2040-12-31 | E4: 82.27 | F4: UHE | K4: 5401116 | L4: 5096982 | M4: 5088686 | N4: 5080566 | O4: =N4 -> 5080566 | P4: 5080566 | Q4: 5080566 | R4: 5080566 | S4: 5080566 | T4: 5080566 | U4: 5080566 | V4: 5080566 | W4: 5080566 | X4: 5080566 | Y4: 5080566 | Z4: 5080566 | AA4: 5080566 | AB4: 5080566 | AC4: 5080566 | AD4: 5080566 | AE4: 5080566 | AF4: 5080566 | AG4: 5080566 | AH4: 5080566 | AI4: 5080566 | AJ4: 5080566 | AK4: 5080566
A5: =RIGHT(B5,3) -> NFA | B5: PROINFA | I5: 434864 | K5: 521588 | L5: 525206 | M5: 539412 | N5: 515904 | O5: =N5 -> 515904 | P5: 515904 | Q5: 515904 | R5: 515904 | S5: 515904 | T5: 515904 | U5: 515904 | V5: 515904 | W5: 515904 | X5: 515904 | Y5: 515904 | Z5: 515904 | AA5: 515904 | AB5: 515904 | AC5: 515904 | AD5: 515904 | AE5: 515904 | AF5: 515904 | AG5: 515904 | AH5: 515904 | AI5: 515904 | AJ5: 515904 | AK5: 515904
A6: ade | B6: Contratos de Disponibilidade | E6: Delta PLD médio | F6: UTE | K6: =SUMIF($G11:$G78,"=DIS",K11:K78) -> 3680724.927 | L6: 3804240.825 | M6: 3794521.311 | N6: =SUMIF($G11:$G78,"=DIS",N11:N78) -> 4026547.151 | O6: =SUMIF($G11:$G78,"=DIS",O11:O78) -> 4933518.831 | P6: =SUMIF($G11:$G78,"=DIS",P11:P78) -> 5326074.997 | Q6: 6022409.37 | R6: 6022409.37 | S6: 6022409.37 | T6: 5866486.897 | U6: 5480641.906 | V6: 3993816.887 | W6: 3588151.54 | X6: 3228804.852 | Y6: 2841380.77 | Z6: 2841380.77 | AA6: 2841380.77 | AB6: 2841380.77 | AC6: 2841380.77 | AD6: 2841380.77 | AE6: 2841380.77 | AF6: 2841380.77 | AG6: 2639400.768 | AH6: 2369221.936 | AI6: 1500301.47 | AJ6: 1418675.485 | AK6: 1418675.485
A7: II | B7: Cota Angra I/Angra II | E7: =Resumo!F7 -> 4829.3878 | H7: 186317473.9 | I7: 830995 | K7: 927355 | L7: 890855 | M7: 870070 | N7: 830995 | O7: =N7 -> 830995 | P7: 830995 | Q7: 830995 | R7: 830995 | S7: 830995 | T7: 830995 | U7: 830995 | V7: 830995 | W7: 830995 | X7: 830995 | Y7: 830995 | Z7: 830995 | AA7: 830995 | AB7: 830995 | AC7: 830995 | AD7: 830995 | AE7: 830995 | AF7: 830995 | AG7: 830995 | AH7: 830995 | AI7: 830995 | AJ7: 830995 | AK7: 830995
A8: 013 | B8: Cotas Lei n º 12783/2013 | E8: =Resumo!F7 -> 4829.3878 | H8: 400979539 | I8: 6339061 | K8: 7736090 | L8: 8640654 | M8: 7559203 | N8: 7361726 | O8: =N8 -> 7361726 | P8: 7361726 | Q8: 7361726 | R8: 7361726 | S8: 7361726 | T8: 7361726 | U8: 7361726 | V8: 7361726 | W8: 7361726 | X8: 7361726 | Y8: 7361726 | Z8: 7361726 | AA8: 7361726 | AB8: 7361726 | AC8: 7361726 | AD8: 7361726 | AE8: 7361726 | AF8: 7361726 | AG8: 7361726 | AH8: 7361726 | AI8: 7361726 | AJ8: 7361726 | AK8: 7361726
A9: ova | B9: Energia nova | O9: =Resumo!G18 -> 4253249.58 | P9: =Resumo!H18 -> 5771467.675 | Q9: =Resumo!I18 -> 6975938.345 | R9: =Resumo!J18 -> 7906016.755 | S9: =Resumo!K18 -> 8863997.516 | T9: =Resumo!L18 -> 10006640.17 | U9: =Resumo!M18 -> 11408806.96 | V9: =Resumo!N18 -> 13942443.42 | W9: =Resumo!O18 -> 15426324.55 | X9: =Resumo!P18 -> 16896233.5 | Y9: =Resumo!Q18 -> 18427536.71 | Z9: =Resumo!R18 -> 19605732.21 | AA9: =Resumo!S18 -> 20819273.58 | AB9: =Resumo!T18 -> 22069221.19 | AC9: =Resumo!U18 -> 23356667.23 | AD9: =Resumo!V18 -> 24682736.64 | AE9: =Resumo!W18 -> 26048588.14 | AF9: =Resumo!X18 -> 27455415.19 | AG9: =Resumo!Y18 -> 29106427.05 | AH9: =Resumo!Z18 -> 30869108.69 | AI9: =Resumo!AA18 -> 33297444.13 | AJ9: =Resumo!AB18 -> 35157393.76 | AK9: =Resumo!AC18 -> 37134233.69
A10: nte | B10: Energia Existente | O10: =Resumo!G20 -> 0 | P10: =Resumo!H20 -> 0 | Q10: =Resumo!I20 -> 0 | R10: =Resumo!J20 -> 0 | S10: =Resumo!K20 -> 0 | T10: =Resumo!L20 -> 0 | U10: =Resumo!M20 -> 0 | V10: =Resumo!N20 -> 0 | W10: =Resumo!O20 -> 0 | X10: =Resumo!P20 -> 0 | Y10: =Resumo!Q20 -> 0 | Z10: =Resumo!R20 -> 0 | AA10: =Resumo!S20 -> 0 | AB10: =Resumo!T20 -> 0 | AC10: =Resumo!U20 -> 0 | AD10: =Resumo!V20 -> 0 | AE10: =Resumo!W20 -> 0 | AF10: =Resumo!X20 -> 0 | AG10: =Resumo!Y20 -> 0 | AH10: =Resumo!Z20 -> 0 | AI10: =Resumo!AA20 -> 0 | AJ10: =Resumo!AB20 -> 0 | AK10: =Resumo!AC20 -> 0
A11: LEE | B11: 01ºLEE | C11: 2007-01-01 | D11: 2014-12-31 | E11: 2398.92 | F11: - | G11: QTD | H11: 645135794.9 | I11: 8549692.49 | J11: =I11/((D11-C11)/365) -> 1068345.689 | K11: 154163.56 | AN11: =H11*1000000 -> 6.451357949e+14
A12: LEN | B12: 01ºLEN | C12: 2008-01-01 | D12: 2022-12-31 | E12: 2535.4 | F12: UTE | G12: DIS | H12: =308.51222362516*1000000 -> 308512223.6 | I12: 2340118.646 | J12: =I12/((D12-C12)/365) -> 155922.4728 | K12: 155922.4728 | L12: 155922.4728 | M12: 155922.4728 | N12: 155922.4728 | O12: 155922.4728 | P12: 155922.4728 | Q12: 155922.4728 | R12: 155922.4728 | S12: 155922.4728 | AN12: =H12*1000000 -> 308512223625160
A13: LEN | B13: 01ºLEN | C13: 2008-01-01 | D13: 2037-12-31 | E13: 2535.4 | F13: UHE | G13: QTD | H13: 70986487.25 | I13: 664536.816 | J13: 22137.07564 | K13: 22137.07564 | L13: 22137.07564 | M13: 22137.07564 | N13: 22137.07564 | O13: 22137.07564 | P13: 22137.07564 | Q13: 22137.07564 | R13: 22137.07564 | S13: 22137.07564 | T13: 22137.07564 | U13: 22137.07564 | V13: 22137.07564 | W13: 22137.07564 | X13: 22137.07564 | Y13: 22137.07564 | Z13: 22137.07564 | AA13: 22137.07564 | AB13: 22137.07564 | AC13: 22137.07564 | AD13: 22137.07564 | AE13: 22137.07564 | AF13: 22137.07564 | AG13: 22137.07564 | AH13: 22137.07564 | AN13: 7.098648725e+13
A14: LEN | B14: 01ºLEN | C14: 2009-01-01 | D14: 2023-12-31 | E14: 2535.4 | F14: UTE | G14: DIS | H14: 768984225.3 | I14: 5946680.256 | J14: 396300.5831 | K14: 275250 | L14: 275250 | M14: 275250 | N14: 275250 | O14: 275250 | P14: 275250 | Q14: 275250 | R14: 275250 | S14: 275250 | T14: 275250 | AN14: 768984225300420
A15: LEN | B15: 01ºLEN | C15: 2009-01-01 | D15: 2038-12-31 | E15: 2535.4 | F15: UHE | G15: QTD | H15: 72364965.07 | I15: 633432.037 | J15: 21102.83803 | K15: 21102.83803 | L15: 21102.83803 | M15: 21102.83803 | N15: 21102.83803 | O15: 21102.83803 | P15: 21102.83803 | Q15: 21102.83803 | R15: 21102.83803 | S15: 21102.83803 | T15: 21102.83803 | U15: 21102.83803 | V15: 21102.83803 | W15: 21102.83803 | X15: 21102.83803 | Y15: 21102.83803 | Z15: 21102.83803 | AA15: 21102.83803 | AB15: 21102.83803 | AC15: 21102.83803 | AD15: 21102.83803 | AE15: 21102.83803 | AF15: 21102.83803 | AG15: 21102.83803 | AH15: 21102.83803 | AI15: 21102.83803 | AN15: 72364965066360
A16: LEN | B16: 01ºLEN | C16: 2010-01-01 | D16: 2024-12-31 | E16: 2535.4 | F16: UTE | G16: DIS | H16: 552019313.1 | I16: 4531649.965 | J16: 301944.5486 | K16: 301944.5486 | L16: 301944.5486 | M16: 301944.5486 | N16: 301944.5486 | O16: 301944.5486 | P16: 301944.5486 | Q16: 301944.5486 | R16: 301944.5486 | S16: 301944.5486 | T16: 301944.5486 | U16: 301944.5486 | AN16: 5.520193131e+14
A17: LEN | B17: 01ºLEN | C17: 2010-01-01 | D17: 2039-12-31 | E17: 2535.4 | F17: PCH | G17: QTD | H17: 29422546.57 | I17: 294372.652 | J17: 9807.048008 | K17: 9807.048008 | L17: 9807.048008 | M17: 9807.048008 | N17: 9807.048008 | O17: 9807.048008 | P17: 9807.048008 | Q17: 9807.048008 | R17: 9807.048008 | S17: 9807.048008 | T17: 9807.048008 | U17: 9807.048008 | V17: 9807.048008 | W17: 9807.048008 | X17: 9807.048008 | Y17: 9807.048008 | Z17: 9807.048008 | AA17: 9807.048008 | AB17: 9807.048008 | AC17: 9807.048008 | AD17: 9807.048008 | AE17: 9807.048008 | AF17: 9807.048008 | AG17: 9807.048008 | AH17: 9807.048008 | AI17: 9807.048008 | AJ17: 9807.048008 | AN17: 2.942254657e+13
A18: LEN | B18: 01ºLEN | C18: 2010-01-01 | D18: 2039-12-31 | E18: 2535.4 | F18: UHE | G18: QTD | H18: 1031658351 | I18: 8967853.096 | J18: 298764.7298 | K18: 298764.7298 | L18: 298764.7298 | M18: 298764.7298 | N18: 298764.7298 | O18: 298764.7298 | P18: 298764.7298 | Q18: 298764.7298 | R18: 298764.7298 | S18: 298764.7298 | T18: 298764.7298 | U18: 298764.7298 | V18: 298764.7298 | W18: 298764.7298 | X18: 298764.7298 | Y18: 298764.7298 | Z18: 298764.7298 | AA18: 298764.7298 | AB18: 298764.7298 | AC18: 298764.7298 | AD18: 298764.7298 | AE18: 298764.7298 | AF18: 298764.7298 | AG18: 298764.7298 | AH18: 298764.7298 | AI18: 298764.7298 | AJ18: 298764.7298 | AN18: 1.031658351e+15
A19: LFA | B19: 01ºLFA | C19: 2010-01-01 | D19: 2024-12-31 | E19: 2669.38 | F19: UTE | G19: DIS | H19: 181249349 | I19: 1304722.37 | J19: 86933.85634 | K19: 86933.85634 | L19: 86933.85634 | M19: 86933.85634 | N19: 86933.85634 | O19: 86933.85634 | P19: 86933.85634 | Q19: 86933.85634 | R19: 86933.85634 | S19: 86933.85634 | T19: 86933.85634 | U19: 86933.85634 | AN19: 1.81249349e+14
A20: LFA | B20: 01ºLFA | C20: 2010-01-01 | D20: 2039-12-31 | E20: 2669.38 | F20: PCH | G20: QTD | H20: 151422988.2 | I20: 1121714.985 | J20: 37370.02278 | K20: 37370.02278 | L20: 37370.02278 | M20: 37370.02278 | N20: 37370.02278 | O20: 37370.02278 | P20: 37370.02278 | Q20: 37370.02278 | R20: 37370.02278 | S20: 37370.02278 | T20: 37370.02278 | U20: 37370.02278 | V20: 37370.02278 | W20: 37370.02278 | X20: 37370.02278 | Y20: 37370.02278 | Z20: 37370.02278 | AA20: 37370.02278 | AB20: 37370.02278 | AC20: 37370.02278 | AD20: 37370.02278 | AE20: 37370.02278 | AF20: 37370.02278 | AG20: 37370.02278 | AH20: 37370.02278 | AI20: 37370.02278 | AJ20: 37370.02278 | AN20: 151422988187250
A21: LEE | B21: 02ºLEE | C21: 2008-01-01 | D21: 2015-12-31 | E21: 2463.11 | F21: - | G21: QTD | H21: 394561993.9 | I21: 4746411.574 | J21: 593098.3309 | K21: 593098.3309 | L21: 85539 | AN21: 3.945619939e+14
A22: LEN | B22: 02ºLEN | C22: 2009-01-01 | D22: 2023-12-31 | E22: 2574.39 | F22: UTE | G22: DIS | H22: 219712169.1 | I22: 1659530.871 | J22: 110594.9914 | K22: 110594.9914 | L22: 110594.9914 | M22: 110594.9914 | N22: 89271 | O22: 110594.9914 | P22: 110594.9914 | Q22: 110594.9914 | R22: 110594.9914 | S22: 110594.9914 | T22: 110594.9914 | AN22: 219712169128740
A23: LEN | B23: 02ºLEN | C23: 2009-01-01 | D23: 2038-12-31 | E23: 2574.39 | F23: PCH | G23: QTD | H23: 55689753.8 | I23: 446642.351 | J23: 14879.92498 | K23: 14879.92498 | L23: 14879.92498 | M23: 14879.92498 | N23: 14879.92498 | O23: 14879.92498 | P23: 14879.92498 | Q23: 14879.92498 | R23: 14879.92498 | S23: 14879.92498 | T23: 14879.92498 | U23: 14879.92498 | V23: 14879.92498 | W23: 14879.92498 | X23: 14879.92498 | Y23: 14879.92498 | Z23: 14879.92498 | AA23: 14879.92498 | AB23: 14879.92498 | AC23: 14879.92498 | AD23: 14879.92498 | AE23: 14879.92498 | AF23: 14879.92498 | AG23: 14879.92498 | AH23: 14879.92498 | AI23: 14879.92498 | AN23: 5.56897538e+13
A24: LEN | B24: 02ºLEN | C24: 2009-01-01 | D24: 2038-12-31 | E24: 2574.39 | F24: UHE | G24: QTD | H24: 605727461.9 | I24: 4770952.288 | J24: 158944.65 | K24: 158944.65 | L24: 158944.65 | M24: 158944.65 | N24: 158944.65 | O24: 158944.65 | P24: 158944.65 | Q24: 158944.65 | R24: 158944.65 | S24: 158944.65 | T24: 158944.65 | U24: 158944.65 | V24: 158944.65 | W24: 158944.65 | X24: 158944.65 | Y24: 158944.65 | Z24: 158944.65 | AA24: 158944.65 | AB24: 158944.65 | AC24: 158944.65 | AD24: 158944.65 | AE24: 158944.65 | AF24: 158944.65 | AG24: 158944.65 | AH24: 158944.65 | AI24: 158944.65 | AN24: 605727461926550
A25: LEN | B25: 03ºLEN | C25: 2011-01-01 | D25: 2025-12-31 | E25: 2594.52 | F25: UTE | G25: DIS | H25: 836778959.5 | I25: 6088314.43 | J25: 405665.3463 | K25: 405665.3463 | L25: 405665.3463 | M25: 405665.3463 | N25: 405665.3463 | O25: 405665.3463 | P25: 405665.3463 | Q25: 405665.3463 | R25: 405665.3463 | S25: 405665.3463 | T25: 405665.3463 | U25: 405665.3463 | V25: 405665.3463 | AN25: 836778959482380
A26: LEN | B26: 03ºLEN | C26: 2011-01-01 | D26: 2040-12-31 | E26: 2594.52 | F26: UHE | G26: QTD | H26: 1565223019 | I26: 12950470.68 | J26: 431406.5708 | K26: 431406.5708 | L26: 431406.5708 | M26: 431406.5708 | N26: 431406.5708 | O26: 431406.5708 | P26: 431406.5708 | Q26: 431406.5708 | R26: 431406.5708 | S26: 431406.5708 | T26: 431406.5708 | U26: 431406.5708 | V26: 431406.5708 | W26: 431406.5708 | X26: 431406.5708 | Y26: 431406.5708 | Z26: 431406.5708 | AA26: 431406.5708 | AB26: 431406.5708 | AC26: 431406.5708 | AD26: 431406.5708 | AE26: 431406.5708 | AF26: 431406.5708 | AG26: 431406.5708 | AH26: 431406.5708 | AI26: 431406.5708 | AJ26: 431406.5708 | AK26: 431406.5708 | AN26: 1565223018700840
A27: LFA | B27: 03ºLFA | C27: 2016-01-01 | D27: 2035-12-31 | E27: 4245.19 | F27: UTE | G27: DIS | H27: 140629161.1 | I27: 669953.925 | J27: 33479.3514 | M27: 33479.3514 | N27: 33479.3514 | O27: 33479.3514 | P27: 33479.3514 | Q27: 33479.3514 | R27: 33479.3514 | S27: 33479.3514 | T27: 33479.3514 | U27: 33479.3514 | V27: 33479.3514 | W27: 33479.3514 | X27: 33479.3514 | Y27: 33479.3514 | Z27: 33479.3514 | AA27: 33479.3514 | AB27: 33479.3514 | AC27: 33479.3514 | AD27: 33479.3514 | AE27: 33479.3514 | AF27: 33479.3514 | AN27: 1.406291611e+14
A28: LFA | B28: 03ºLFA | C28: 2017-07-01 | D28: 2037-06-30 | E28: 4245.19 | F28: UEE | G28: DIS | H28: 47526405.55 | I28: 267799.761 | J28: 13382.65509 | N28: 8908 | O28: 13382.65509 | P28: 13382.65509 | Q28: 13382.65509 | R28: 13382.65509 | S28: 13382.65509 | T28: 13382.65509 | U28: 13382.65509 | V28: 13382.65509 | W28: 13382.65509 | X28: 13382.65509 | Y28: 13382.65509 | Z28: 13382.65509 | AA28: 13382.65509 | AB28: 13382.65509 | AC28: 13382.65509 | AD28: 13382.65509 | AE28: 13382.65509 | AF28: 13382.65509 | AG28: 13382.65509 | AH28: 13382.65509 | AN28: 4.752640555e+13
A29: LEE | B29: 04ºLEE | C29: 2013-01-01 | D29: 2016-12-31 | E29: 2512.49 | F29: - | G29: QTD | H29: 0 | I29: 0 | J29: 0 | K29: 0 | L29: 0 | M29: 0 | AN29: 0
A30: LEN | B30: 04ºLEN | C30: 2010-01-01 | D30: 2024-12-31 | E30: 2675.79 | F30: UTE | G30: DIS | H30: 2223780865 | I30: 16478223.43 | J30: 1097946.614 | K30: 1097946.614 | L30: 1097946.614 | M30: 1097946.614 | N30: 1097946.614 | O30: 1097946.614 | P30: 1097946.614 | Q30: 1097946.614 | R30: 1097946.614 | S30: 1097946.614 | T30: 1097946.614 | U30: 1097946.614 | AN30: 2223780864756740
A31: LEE | B31: 05ºLEE | C31: 2013-01-01 | D31: 2014-12-31 | E31: 2615.05 | F31: - | G31: QTD | H31: 0 | I31: 0 | J31: 0 | K31: 0 | AN31: 0
A32: LEN | B32: 05ºLEN | C32: 2012-01-01 | D32: 2026-12-31 | E32: 2701.29 | F32: UTE | G32: DIS | H32: 691836602.1 | I32: 5393153.854 | J32: 359346.688 | K32: 359346.688 | L32: 359346.688 | M32: 359346.688 | N32: 359346.688 | O32: 359346.688 | P32: 359346.688 | Q32: 359346.688 | R32: 359346.688 | S32: 359346.688 | T32: 359346.688 | U32: 359346.688 | V32: 359346.688 | W32: 359346.688 | AN32: 691836602058350
A33: LEN | B33: 05ºLEN | C33: 2012-01-01 | D33: 2041-12-31 | E33: 2701.29 | F33: UHE | G33: QTD | H33: 644236578.8 | I33: 4988492.904 | J33: 166176.865 | K33: 166176.865 | L33: 166176.865 | M33: 166176.865 | N33: 166176.865 | O33: 166176.865 | P33: 166176.865 | Q33: 166176.865 | R33: 166176.865 | S33: 166176.865 | T33: 166176.865 | U33: 166176.865 | V33: 166176.865 | W33: 166176.865 | X33: 166176.865 | Y33: 166176.865 | Z33: 166176.865 | AA33: 166176.865 | AB33: 166176.865 | AC33: 166176.865 | AD33: 166176.865 | AE33: 166176.865 | AF33: 166176.865 | AG33: 166176.865 | AH33: 166176.865 | AI33: 166176.865 | AJ33: 166176.865 | AK33: 166176.865 | AN33: 644236578834200
A34: ºLA | B34: 06ºLA | C34: 2008-01-01 | D34: 2008-12-31 | E34: 2693.21 | F34: - | G34: QTD | H34: 36642456 | I34: 263520 | J34: 263520 | AN34: 36642456000000
A35: LEN | B35: 07ºLEN | C35: 2013-01-01 | D35: 2027-12-31 | E35: 2861.55 | F35: UTE | G35: DIS | H35: 837547652.6 | I35: 5813484.105 | J35: 387424.0822 | K35: 634458.09 | L35: 639658.54 | M35: 387424.0822 | N35: 387424.0822 | O35: 387424.0822 | P35: 387424.0822 | Q35: 387424.0822 | R35: 387424.0822 | S35: 387424.0822 | T35: 387424.0822 | U35: 387424.0822 | V35: 387424.0822 | W35: 387424.0822 | X35: 387424.0822 | AN35: 8.375476526e+14
A36: LEN | B36: 07ºLEN | C36: 2013-01-01 | D36: 2042-12-31 | E36: 2861.55 | F36: UHE | G36: QTD | H36: 150068992.3 | I36: 1516154.701 | J36: 0 | AN36: 1.500689923e+14
A37: LEE | B37: 08ºLEE | C37: 2013-01-01 | D37: 2014-12-31 | E37: 3006.47 | F37: - | G37: QTD | H37: 0 | I37: 0 | J37: 0 | K37: 0 | AN37: 0
A38: LEE | B38: 10ºLEE | C38: 2013-01-01 | D38: 2014-12-31 | E38: 3386.8 | F38: UHE | G38: QTD | H38: 0 | I38: 0 | J38: 0 | K38: 0 | AN38: 0
A39: LEN | B39: 10ºLEN | C39: 2015-01-01 | D39: 2044-12-31 | E39: 3111.05 | F39: PCH | G39: QTD | H39: 58583435.15 | I39: 379913.462 | J39: 12655.69167 | L39: 12655.69167 | M39: 12655.69167 | N39: 12655.69167 | O39: 12655.69167 | P39: 12655.69167 | Q39: 12655.69167 | R39: 12655.69167 | S39: 12655.69167 | T39: 12655.69167 | U39: 12655.69167 | V39: 12655.69167 | W39: 12655.69167 | X39: 12655.69167 | Y39: 12655.69167 | Z39: 12655.69167 | AA39: 12655.69167 | AB39: 12655.69167 | AC39: 12655.69167 | AD39: 12655.69167 | AE39: 12655.69167 | AF39: 12655.69167 | AG39: 12655.69167 | AH39: 12655.69167 | AI39: 12655.69167 | AJ39: 12655.69167 | AK39: 12655.69167 | AN39: 58583435151600
A40: LEN | B40: 10ºLEN | C40: 2015-01-01 | D40: 2044-12-31 | E40: 3111.05 | F40: UHE | G40: QTD | H40: 258289896.5 | I40: 2805514.6 | J40: 93457.40887 | K40: 88405.63 | L40: 93457.40887 | M40: 93457.40887 | N40: 93457.40887 | O40: 93457.40887 | P40: 93457.40887 | Q40: 93457.40887 | R40: 93457.40887 | S40: 93457.40887 | T40: 93457.40887 | U40: 93457.40887 | V40: 93457.40887 | W40: 93457.40887 | X40: 93457.40887 | Y40: 93457.40887 | Z40: 93457.40887 | AA40: 93457.40887 | AB40: 93457.40887 | AC40: 93457.40887 | AD40: 93457.40887 | AE40: 93457.40887 | AF40: 93457.40887 | AG40: 93457.40887 | AH40: 93457.40887 | AI40: 93457.40887 | AJ40: 93457.40887 | AK40: 93457.40887 | AN40: 258289896495760
A41: LEN | B41: 11ºLEN | C41: 2015-01-01 | D41: 2044-12-31 | E41: 3195.89 | F41: UHE | G41: QTD | H41: 622063801.6 | I41: 9241742.694 | J41: 307861.2835 | K41: 307861.2835 | L41: 307861.2835 | M41: 307861.2835 | N41: 307861.2835 | O41: 307861.2835 | P41: 307861.2835 | Q41: 307861.2835 | R41: 307861.2835 | S41: 307861.2835 | T41: 307861.2835 | U41: 307861.2835 | V41: 307861.2835 | W41: 307861.2835 | X41: 307861.2835 | Y41: 307861.2835 | Z41: 307861.2835 | AA41: 307861.2835 | AB41: 307861.2835 | AC41: 307861.2835 | AD41: 307861.2835 | AE41: 307861.2835 | AF41: 307861.2835 | AG41: 307861.2835 | AH41: 307861.2835 | AI41: 307861.2835 | AJ41: 307861.2835 | AK41: 307861.2835 | AN41: 622063801615700
A42: LEE | B42: 12ºLEE | C42: 2014-01-01 | D42: 2014-12-31 | E42: 3815.39 | F42: UHE | G42: QTD | H42: 119352098.8 | I42: 623529.333 | J42: 625242.3257 | K42: 104904 | AN42: 119352098774990
A43: LEE | B43: 12ºLEE | C43: 2014-01-01 | D43: 2014-12-31 | E43: 3815.39 | F43: UTE | G43: QTD | H43: 799240.9756 | I43: 4174.573 | J43: 4186.041607 | K43: 4186.041607 | AN43: 799240975600
A44: LEE | B44: 12ºLEE | C44: 2014-01-01 | D44: 2015-06-30 | E44: 3815.39 | F44: UHE | G44: QTD | H44: 9191517.7 | I44: 55638.727 | J44: 37262.63368 | K44: 24660 | L44: 37262.63368 | AN44: 9.1915177e+12
A45: LEE | B45: 12ºLEE | C45: 2014-01-01 | D45: 2016-12-31 | E45: 3815.39 | F45: UHE | G45: QTD | H45: 139986780.9 | I45: 933301.88 | J45: 311100.6267 | K45: 311100.6267 | L45: 311100.6267 | M45: 100914 | AN45: 1.399867809e+14
A46: LEE | B46: 13ºLEE | C46: 2014-05-01 | D46: 2019-12-31 | E46: 3924.5 | F46: - | G46: QTD | H46: =I46*270.8087 -> 167563614.3 | I46: 618752.7 | J46: 618752.7 | K46: 618752.7 | L46: 618752.7 | M46: 618752.7 | N46: 618752.7 | O46: 618752.7 | P46: 618752.7 | AN46: 1.675636143e+14
A47: LEE | B47: 13ºLEE | C47: 2014-05-01 | D47: 2019-12-31 | E47: 3924.5 | F47: PCH | G47: QTD | H47: 2699346.857 | I47: 9968.046 | J47: 1757.650623 | K47: 1757.650623 | L47: 1757.650623 | M47: 1757.650623 | N47: 1757.650623 | O47: 1757.650623 | P47: 1757.650623 | AN47: 2699346856800
A48: LEE | B48: 13ºLEE | C48: 2014-05-01 | D48: 2019-12-31 | E48: 3924.5 | F48: UHE | G48: QTD | H48: 889511396.7 | I48: 3284471.72 | J48: 579145.9796 | K48: 220000 | L48: 579145.9796 | M48: 579145.9796 | N48: 579145.9796 | O48: 579145.9796 | P48: 579145.9796 | AN48: 8.895113967e+14
A49: LEE | B49: 13ºLEE | C49: 2014-05-01 | D49: 2019-12-31 | E49: 3924.5 | F49: UTE | G49: DIS | H49: 375418605.3 | I49: 1432906.854 | J49: 252662.3197 | K49: 252662.3197 | L49: 252662.3197 | M49: 252662.3197 | N49: 252662.3197 | O49: 252662.3197 | P49: 252662.3197 | AN49: 3.754186053e+14
A50: LEE | B50: 14ºLEE | C50: 2015-01-01 | D50: 2017-12-31 | E50: 4059.86 | F50: - | G50: QTD | H50: 93011717.86 | I50: 462744.865 | J50: 154248.2883 | L50: 154248.2883 | M50: 154248.2883 | N50: 154248.2883 | AN50: 93011717865000
A51: LEE | B51: 14ºLEE | C51: 2015-01-01 | D51: 2017-12-31 | E51: 4059.86 | F51: UTE | G51: DIS | H51: 68147397.66 | I51: 354946.345 | J51: 118315.4483 | L51: 118315.4483 | M51: 118315.4483 | N51: 118315.4483 | AN51: 6.814739766e+13
A52: LEE | B52: 15ºLEE | C52: 2016-01-01 | D52: 2016-12-31 | E52: 4493.17 | F52: UTE | G52: DIS | H52: 25090304.49 | I52: 154426.506 | J52: 154426.506 | M52: 25737 | AN52: 25090304493520
A53: LEE | B53: 15ºLEE | C53: 2016-01-01 | D53: 2018-12-31 | E53: 4493.17 | F53: - | G53: QTD | H53: 457772724 | I53: 3107567.552 | J53: 1035855.851 | M53: 1035855.851 | N53: 1035855.851 | O53: 1035855.851 | AN53: 4.57772724e+14
A54: LEE | B54: 15ºLEE | C54: 2016-01-01 | D54: 2018-12-31 | E54: 4493.17 | F54: UTE | G54: DIS | H54: 5737901.495 | I54: 44393.822 | J54: 14797.94067 | M54: 14797.94067 | N54: 14797.94067 | O54: 14797.94067 | AN54: 5.737901495e+12
A55: LEN | B55: 16ºLEN | C55: 2018-01-01 | D55: 2042-12-31 | E55: 3725.95 | F55: UTE | G55: DIS | H55: 358618665.3 | I55: 2652517.076 | J55: 106042.5775 | O55: 106042.5775 | P55: 106042.5775 | Q55: 106042.5775 | R55: 106042.5775 | S55: 106042.5775 | T55: 106042.5775 | U55: 106042.5775 | V55: 106042.5775 | W55: 106042.5775 | X55: 106042.5775 | Y55: 106042.5775 | Z55: 106042.5775 | AA55: 106042.5775 | AB55: 106042.5775 | AC55: 106042.5775 | AD55: 106042.5775 | AE55: 106042.5775 | AF55: 106042.5775 | AG55: 106042.5775 | AH55: 106042.5775 | AI55: 106042.5775 | AJ55: 106042.5775 | AK55: 106042.5775 | AN55: 358618665348810
A56: LEN | B56: 16ºLEN | C56: 2018-01-01 | D56: 2047-12-31 | E56: 3725.95 | F56: PCH | G56: QTD | H56: 130777481 | I56: 1029665.161 | J56: 34303.37566 | O56: 34303.37566 | P56: 34303.37566 | Q56: 34303.37566 | R56: 34303.37566 | S56: 34303.37566 | T56: 34303.37566 | U56: 34303.37566 | V56: 34303.37566 | W56: 34303.37566 | X56: 34303.37566 | Y56: 34303.37566 | Z56: 34303.37566 | AA56: 34303.37566 | AB56: 34303.37566 | AC56: 34303.37566 | AD56: 34303.37566 | AE56: 34303.37566 | AF56: 34303.37566 | AG56: 34303.37566 | AH56: 34303.37566 | AI56: 34303.37566 | AJ56: 34303.37566 | AK56: 34303.37566 | AN56: 130777480953860
A57: LEN | B57: 16ºLEN | C57: 2018-01-01 | D57: 2047-12-31 | E57: 3725.95 | F57: UHE | G57: QTD | H57: 348019521.5 | I57: 3152522.406 | J57: 105026.5314 | O57: 105026.5314 | P57: 105026.5314 | Q57: 105026.5314 | R57: 105026.5314 | S57: 105026.5314 | T57: 105026.5314 | U57: 105026.5314 | V57: 105026.5314 | W57: 105026.5314 | X57: 105026.5314 | Y57: 105026.5314 | Z57: 105026.5314 | AA57: 105026.5314 | AB57: 105026.5314 | AC57: 105026.5314 | AD57: 105026.5314 | AE57: 105026.5314 | AF57: 105026.5314 | AG57: 105026.5314 | AH57: 105026.5314 | AI57: 105026.5314 | AJ57: 105026.5314 | AK57: 105026.5314 | AN57: 3.480195215e+14
A58: LEN | B58: 17ºLEN | C58: 2016-01-01 | D58: 2035-12-31 | E58: 3780.61 | F58: UEE | G58: DIS | H58: 419553959.8 | I58: 3371859.604 | J58: 168500.6511 | M58: 168500.6511 | N58: 168500.6511 | O58: 168500.6511 | P58: 168500.6511 | Q58: 168500.6511 | R58: 168500.6511 | S58: 168500.6511 | T58: 168500.6511 | U58: 168500.6511 | V58: 168500.6511 | W58: 168500.6511 | X58: 168500.6511 | Y58: 168500.6511 | Z58: 168500.6511 | AA58: 168500.6511 | AB58: 168500.6511 | AC58: 168500.6511 | AD58: 168500.6511 | AE58: 168500.6511 | AF58: 168500.6511 | AN58: 419553959764100
A59: ºLA | B59: 18ºLA | C59: 2015-01-01 | D59: 2015-03-31 | E59: 4110.2 | F59: - | G59: QTD | H59: 120037075 | I59: 310410.156 | J59: 1273030.415 | AN59: 1.20037075e+14
A60: ºLA | B60: 18ºLA | C60: 2015-01-01 | D60: 2015-06-30 | E60: 4110.2 | F60: - | G60: QTD | H60: 103138470.9 | I60: 265695.346 | J60: 538771.1183 | AN60: 1.031384709e+14
A61: LEN | B61: 18ºLEN | C61: 2018-05-01 | D61: 2037-12-31 | E61: 3815.39 | F61: UEE | G61: DIS | H61: 1043823896 | I61: 8769296.285 | J61: 445544.7027 | O61: 445544.7027 | P61: 445544.7027 | Q61: 445544.7027 | R61: 445544.7027 | S61: 445544.7027 | T61: 445544.7027 | U61: 445544.7027 | V61: 445544.7027 | W61: 445544.7027 | X61: 445544.7027 | Y61: 445544.7027 | Z61: 445544.7027 | AA61: 445544.7027 | AB61: 445544.7027 | AC61: 445544.7027 | AD61: 445544.7027 | AE61: 445544.7027 | AF61: 445544.7027 | AG61: 445544.7027 | AH61: 445544.7027 | AN61: 1.043823896e+15
A62: LEN | B62: 18ºLEN | C62: 2018-05-01 | D62: 2042-12-31 | E62: 3815.39 | F62: UTE | G62: DIS | H62: 125160927.6 | I62: 935758.7055 | J62: 37908.09406 | O62: 37908.09406 | P62: 37908.09406 | Q62: 37908.09406 | R62: 37908.09406 | S62: 37908.09406 | T62: 37908.09406 | U62: 37908.09406 | V62: 37908.09406 | W62: 37908.09406 | X62: 37908.09406 | Y62: 37908.09406 | Z62: 37908.09406 | AA62: 37908.09406 | AB62: 37908.09406 | AC62: 37908.09406 | AD62: 37908.09406 | AE62: 37908.09406 | AF62: 37908.09406 | AG62: 37908.09406 | AH62: 37908.09406 | AI62: 37908.09406 | AJ62: 37908.09406 | AK62: 37908.09406 | AN62: 1.251609276e+14
A63: LEN | B63: 18ºLEN | C63: 2018-05-01 | D63: 2047-12-31 | E63: 3815.39 | F63: PCH | G63: QTD | H63: 135182366.3 | I63: 991726.9424 | J63: 33405.34644 | O63: 33405.34644 | P63: 33405.34644 | Q63: 33405.34644 | R63: 33405.34644 | S63: 33405.34644 | T63: 33405.34644 | U63: 33405.34644 | V63: 33405.34644 | W63: 33405.34644 | X63: 33405.34644 | Y63: 33405.34644 | Z63: 33405.34644 | AA63: 33405.34644 | AB63: 33405.34644 | AC63: 33405.34644 | AD63: 33405.34644 | AE63: 33405.34644 | AF63: 33405.34644 | AG63: 33405.34644 | AH63: 33405.34644 | AI63: 33405.34644 | AJ63: 33405.34644 | AK63: 33405.34644 | AN63: 1.351823663e+14
A64: LEN | B64: 18ºLEN | C64: 2018-05-01 | D64: 2047-12-31 | E64: 3815.39 | F64: UHE | G64: QTD | H64: 456958303.9 | I64: 5473210.012 | J64: 184359.6949 | O64: 184359.6949 | P64: 184359.6949 | Q64: 184359.6949 | R64: 184359.6949 | S64: 184359.6949 | T64: 184359.6949 | U64: 184359.6949 | V64: 184359.6949 | W64: 184359.6949 | X64: 184359.6949 | Y64: 184359.6949 | Z64: 184359.6949 | AA64: 184359.6949 | AB64: 184359.6949 | AC64: 184359.6949 | AD64: 184359.6949 | AE64: 184359.6949 | AF64: 184359.6949 | AG64: 184359.6949 | AH64: 184359.6949 | AI64: 184359.6949 | AJ64: 184359.6949 | AK64: 184359.6949 | AN64: 4.569583039e+14
A65: LEN | B65: 19ºLEN | C65: 2017-01-01 | D65: 2036-12-31 | E65: 3958.32 | F65: UEE | G65: DIS | H65: 702664309 | I65: 5406537.49 | J65: 270178.8313 | N65: 270178.8313 | O65: 270178.8313 | P65: 270178.8313 | Q65: 270178.8313 | R65: 270178.8313 | S65: 270178.8313 | T65: 270178.8313 | U65: 270178.8313 | V65: 270178.8313 | W65: 270178.8313 | X65: 270178.8313 | Y65: 270178.8313 | Z65: 270178.8313 | AA65: 270178.8313 | AB65: 270178.8313 | AC65: 270178.8313 | AD65: 270178.8313 | AE65: 270178.8313 | AF65: 270178.8313 | AG65: 270178.8313 | AN65: 702664308953300
A66: LEN | B66: 19ºLEN | C66: 2017-01-01 | D66: 2046-12-31 | E66: 3958.32 | F66: UHE | G66: QTD | H66: 478798698.8 | I66: 3957014.04 | J66: 131828.2334 | N66: 131828.2334 | O66: 131828.2334 | P66: 131828.2334 | Q66: 131828.2334 | R66: 131828.2334 | S66: 131828.2334 | T66: 131828.2334 | U66: 131828.2334 | V66: 131828.2334 | W66: 131828.2334 | X66: 131828.2334 | Y66: 131828.2334 | Z66: 131828.2334 | AA66: 131828.2334 | AB66: 131828.2334 | AC66: 131828.2334 | AD66: 131828.2334 | AE66: 131828.2334 | AF66: 131828.2334 | AG66: 131828.2334 | AH66: 131828.2334 | AI66: 131828.2334 | AJ66: 131828.2334 | AK66: 131828.2334 | AN66: 4.787986988e+14
A67: =RIGHT(B67,3) -> LEN | B67: 20ºLEN | C67: 2019-01-01 | D67: 2038-12-31 | E67: 4028.44 | F67: UEE | G67: DIS | H67: 222152331.2 | I67: 1633414.23 | J67: 81625.98493 | P67: 81625.98493 | Q67: 81625.98493 | R67: 81625.98493 | S67: 81625.98493 | T67: 81625.98493 | U67: 81625.98493 | V67: 81625.98493 | W67: 81625.98493 | X67: 81625.98493 | Y67: 81625.98493 | Z67: 81625.98493 | AA67: 81625.98493 | AB67: 81625.98493 | AC67: 81625.98493 | AD67: 81625.98493 | AE67: 81625.98493 | AF67: 81625.98493 | AG67: 81625.98493 | AH67: 81625.98493 | AI67: 81625.98493 | AN67: 2.221523312e+14
A68: LEN | B68: 20ºLEN | C68: 2019-01-01 | D68: 2043-12-31 | E68: 4028.44 | F68: UTE | G68: DIS | H68: 1667938763 | I68: 8147665.054 | J68: 325728.121 | P68: 325728.121 | Q68: 325728.121 | R68: 325728.121 | S68: 325728.121 | T68: 325728.121 | U68: 325728.121 | V68: 325728.121 | W68: 325728.121 | X68: 325728.121 | Y68: 325728.121 | Z68: 325728.121 | AA68: 325728.121 | AB68: 325728.121 | AC68: 325728.121 | AD68: 325728.121 | AE68: 325728.121 | AF68: 325728.121 | AG68: 325728.121 | AH68: 325728.121 | AI68: 325728.121 | AJ68: 325728.121 | AK68: 325728.121 | AN68: 1667938762561380
A69: LEN | B69: 20ºLEN | C69: 2019-01-01 | D69: 2048-12-31 | E69: 4028.44 | F69: PCH | G69: QTD | H69: 8547776.137 | I69: 53124.774 | J69: 1769.694488 | P69: 1769.694488 | Q69: 1769.694488 | R69: 1769.694488 | S69: 1769.694488 | T69: 1769.694488 | U69: 1769.694488 | V69: 1769.694488 | W69: 1769.694488 | X69: 1769.694488 | Y69: 1769.694488 | Z69: 1769.694488 | AA69: 1769.694488 | AB69: 1769.694488 | AC69: 1769.694488 | AD69: 1769.694488 | AE69: 1769.694488 | AF69: 1769.694488 | AG69: 1769.694488 | AH69: 1769.694488 | AI69: 1769.694488 | AJ69: 1769.694488 | AK69: 1769.694488 | AN69: 8.547776137e+12
A70: LEN | B70: 21ºLEN | C70: 2020-01-01 | D70: 2044-12-31 | E70: 4245.19 | F70: UTE | G70: DIS | H70: 6610829232 | I70: 23740517.27 | J70: 948996.6929 | Q70: 948996.6929 | R70: 948996.6929 | S70: 948996.6929 | T70: 948996.6929 | U70: 948996.6929 | V70: 948996.6929 | W70: 948996.6929 | X70: 948996.6929 | Y70: 948996.6929 | Z70: 948996.6929 | AA70: 948996.6929 | AB70: 948996.6929 | AC70: 948996.6929 | AD70: 948996.6929 | AE70: 948996.6929 | AF70: 948996.6929 | AG70: 948996.6929 | AH70: 948996.6929 | AI70: 948996.6929 | AJ70: 948996.6929 | AK70: 948996.6929 | AN70: 6610829232323670
A71: LEN | B71: 21ºLEN | C71: 2020-01-01 | D71: 2049-12-31 | E71: 4245.19 | F71: PCH | G71: QTD | H71: 576326688.6 | I71: 2799044.166 | J71: 93241.86553 | Q71: 93241.86553 | R71: 93241.86553 | S71: 93241.86553 | T71: 93241.86553 | U71: 93241.86553 | V71: 93241.86553 | W71: 93241.86553 | X71: 93241.86553 | Y71: 93241.86553 | Z71: 93241.86553 | AA71: 93241.86553 | AB71: 93241.86553 | AC71: 93241.86553 | AD71: 93241.86553 | AE71: 93241.86553 | AF71: 93241.86553 | AG71: 93241.86553 | AH71: 93241.86553 | AI71: 93241.86553 | AJ71: 93241.86553 | AK71: 93241.86553 | AN71: 5.763266886e+14
A72: LEN | B72: 21ºLEN | C72: 2020-01-01 | D72: 2049-12-31 | E72: 4245.19 | F72: UHE | G72: QTD | H72: 536476673.9 | I72: 3260027.756 | J72: 108598.1684 | Q72: 108598.1684 | R72: 108598.1684 | S72: 108598.1684 | T72: 108598.1684 | U72: 108598.1684 | V72: 108598.1684 | W72: 108598.1684 | X72: 108598.1684 | Y72: 108598.1684 | Z72: 108598.1684 | AA72: 108598.1684 | AB72: 108598.1684 | AC72: 108598.1684 | AD72: 108598.1684 | AE72: 108598.1684 | AF72: 108598.1684 | AG72: 108598.1684 | AH72: 108598.1684 | AI72: 108598.1684 | AJ72: 108598.1684 | AK72: 108598.1684 | AN72: 5.364766739e+14
A73: LEN | B73: 22ºLEN | C73: 2018-01-01 | D73: 2037-12-31 | E73: 4346.65 | F73: UEE | G73: DIS | H73: 1256761287 | I73: 6938106.975 | J73: 346715.3677 | O73: 346715.3677 | P73: 346715.3677 | Q73: 346715.3677 | R73: 346715.3677 | S73: 346715.3677 | T73: 346715.3677 | U73: 346715.3677 | V73: 346715.3677 | W73: 346715.3677 | X73: 346715.3677 | Y73: 346715.3677 | Z73: 346715.3677 | AA73: 346715.3677 | AB73: 346715.3677 | AC73: 346715.3677 | AD73: 346715.3677 | AE73: 346715.3677 | AF73: 346715.3677 | AG73: 346715.3677 | AH73: 346715.3677 | AN73: 1256761286673800
A74: LEN | B74: 22ºLEN | C74: 2018-01-01 | D74: 2037-12-31 | E74: 4346.65 | F74: UTE | G74: DIS | H74: 269397527.8 | I74: 1266248.265 | J74: 63277.74052 | O74: 63277.74052 | P74: 63277.74052 | Q74: 63277.74052 | R74: 63277.74052 | S74: 63277.74052 | T74: 63277.74052 | U74: 63277.74052 | V74: 63277.74052 | W74: 63277.74052 | X74: 63277.74052 | Y74: 63277.74052 | Z74: 63277.74052 | AA74: 63277.74052 | AB74: 63277.74052 | AC74: 63277.74052 | AD74: 63277.74052 | AE74: 63277.74052 | AF74: 63277.74052 | AG74: 63277.74052 | AH74: 63277.74052 | AN74: 2.693975278e+14
A75: LEN | B75: 22ºLEN | C75: 2018-01-01 | D75: 2047-12-31 | E75: 4346.65 | F75: PCH | G75: QTD | H75: 296961864.8 | I75: 1448533.622 | J75: =I75/((D75-C75)/365) -> 48258.01132 | O75: 48258.01132 | P75: 48258.01132 | Q75: 48258.01132 | R75: 48258.01132 | S75: 48258.01132 | T75: 48258.01132 | U75: 48258.01132 | V75: 48258.01132 | W75: 48258.01132 | X75: 48258.01132 | Y75: 48258.01132 | Z75: 48258.01132 | AA75: 48258.01132 | AB75: 48258.01132 | AC75: 48258.01132 | AD75: 48258.01132 | AE75: 48258.01132 | AF75: 48258.01132 | AG75: 48258.01132 | AH75: 48258.01132 | AI75: 48258.01132 | AJ75: 48258.01132 | AK75: 48258.01132 | AN75: 296961864763950
A76: nte | B76: UHE Belo Monte | C76: 2015-01-01 | D76: 2044-12-31 | E76: 3097.42 | F76: UHE | G76: QTD | H76: 2295764183 | I76: 29444198.84 | J76: 980846.2695 | K76: 18637.46 | L76: 315036 | M76: 980846.2695 | N76: 1003721 | O76: 980846.2695 | P76: 980846.2695 | Q76: 980846.2695 | R76: 980846.2695 | S76: 980846.2695 | T76: 980846.2695 | U76: 980846.2695 | V76: 980846.2695 | W76: 980846.2695 | X76: 980846.2695 | Y76: 980846.2695 | Z76: 980846.2695 | AA76: 980846.2695 | AB76: 980846.2695 | AC76: 980846.2695 | AD76: 980846.2695 | AE76: 980846.2695 | AF76: 980846.2695 | AG76: 980846.2695 | AH76: 980846.2695 | AI76: 980846.2695 | AJ76: 980846.2695 | AK76: 980846.2695 | AN76: =H76*1000000 -> 2295764183164950
A77: rau | B77: UHE Jirau | C77: 2013-01-01 | D77: 2042-12-31 | E77: 2810.36 | F77: UHE | G77: QTD | H77: 1250507930 | I77: 17521478.63 | J77: 583729.4359 | K77: 291786 | L77: 428000 | M77: 583729.4359 | N77: 426789 | O77: 583729.4359 | P77: 583729.4359 | Q77: 583729.4359 | R77: 583729.4359 | S77: 583729.4359 | T77: 583729.4359 | U77: 583729.4359 | V77: 583729.4359 | W77: 583729.4359 | X77: 583729.4359 | Y77: 583729.4359 | Z77: 583729.4359 | AA77: 583729.4359 | AB77: 583729.4359 | AC77: 583729.4359 | AD77: 583729.4359 | AE77: 583729.4359 | AF77: 583729.4359 | AG77: 583729.4359 | AH77: 583729.4359 | AI77: 583729.4359 | AJ77: 583729.4359 | AK77: 583729.4359 | AN77: 1250507929680360
A78: nio | B78: UHE Santo Antônio | C78: 2012-01-01 | D78: 2041-12-31 | E78: 2731.62 | F78: UHE | G78: QTD | H78: 793491617 | I78: 10060753.35 | J78: 335144.1977 | K78: 328844 | L78: 311045 | M78: 335144.1977 | N78: 370331 | O78: 335144.1977 | P78: 335144.1977 | Q78: 335144.1977 | R78: 335144.1977 | S78: 335144.1977 | T78: 335144.1977 | U78: 335144.1977 | V78: 335144.1977 | W78: 335144.1977 | X78: 335144.1977 | Y78: 335144.1977 | Z78: 335144.1977 | AA78: 335144.1977 | AB78: 335144.1977 | AC78: 335144.1977 | AD78: 335144.1977 | AE78: 335144.1977 | AF78: 335144.1977 | AG78: 335144.1977 | AH78: 335144.1977 | AI78: 335144.1977 | AJ78: 335144.1977 | AK78: 335144.1977 | AN78: 7.93491617e+14
B79: UTE NORTE FLUMINENSE | C79: BILATERAL | D79: BILATERAL | E79: 4829.3878 | F79: UTE | H79: 1364464630 | I79: 6082399.28 | K79: 6351000 | L79: 6351000 | M79: 6351000 | N79: 6351000 | AN79: 1364464629880000
AN80: 0
A92: =RIGHT(B92,3) -> 
A139: =RIGHT(B139,3) -> 
A140: =RIGHT(B140,3) -> 
A141: =RIGHT(B141,3) -> 
A142: =RIGHT(B142,3) -> 
A143: =RIGHT(B143,3) -> 

Sheet Contratos_preço
A1: Contratos | B1: Tarifa Energia do contrato(R$/MWh)
A2: Descrição | B2: Tarifa Base | D2: 2014 | E2: 2015 | F2: 2016 | G2: 2017 | H2: 2018 | I2: 2019 | J2: 2020 | K2: 2021 | L2: 2022 | M2: 2023 | N2: 2024 | O2: 2025 | P2: 2026 | Q2: 2027 | R2: 2028 | S2: 2029 | T2: 2030 | U2: 2031 | V2: 2032 | W2: 2033 | X2: 2034 | Y2: 2035 | Z2: 2036 | AA2: 2037 | AB2: 2038 | AC2: 2039 | AD2: 2040
A3: =Contratos_volume!B4 -> QUOTA ITAIPU | D3: =Resumo!C4 -> 137.2 | E3: =Resumo!D4 -> 325.17 | F3: =Resumo!E4 -> 180.15 | G3: =Resumo!F4 -> 195.12 | H3: =Resumo!G4 -> 201.5225226 | I3: =Resumo!H4 -> 228.4166192 | J3: =Resumo!I4 -> 238.2385339 | K3: =Resumo!J4 -> 269.0053388 | L3: =Resumo!K4 -> 279.7655524 | M3: =Resumo!L4 -> 290.9561745 | N3: =Resumo!M4 -> 302.5944214 | O3: =Resumo!N4 -> 314.6981983 | P3: =Resumo!O4 -> 327.2861262 | Q3: =Resumo!P4 -> 340.3775713 | R3: =Resumo!Q4 -> 353.9926741 | S3: =Resumo!R4 -> 368.1523811 | T3: =Resumo!S4 -> 382.8784763 | U3: =Resumo!T4 -> 366.7572773 | V3: =Resumo!U4 -> 381.4275684 | W3: =Resumo!V4 -> 396.6846712 | X3: =Resumo!W4 -> 412.552058 | Y3: =Resumo!X4 -> 429.0541403 | Z3: =Resumo!Y4 -> 446.2163059 | AA3: =Resumo!Z4 -> 464.0649582 | AB3: =Resumo!AA4 -> 482.6275565 | AC3: =Resumo!AB4 -> 501.9326588 | AD3: =Resumo!AC4 -> 522.0099651
A4: PROINFA
A5: =Contratos_volume!B6 -> Contratos de Disponibilidade | D5: =Resumo!C21 -> 140 | E5: =Resumo!D21 -> 120 | F5: =Resumo!E21 -> 10 | G5: =Resumo!F21 -> 10 | H5: =Resumo!G21 -> 157.5 | I5: =Resumo!H21 -> 157.5 | J5: =Resumo!I21 -> 157.5 | K5: =Resumo!J21 -> 171 | L5: =Resumo!K21 -> 171 | M5: =Resumo!L21 -> 171 | N5: =Resumo!M21 -> 171 | O5: =Resumo!N21 -> 171 | P5: =Resumo!O21 -> 171 | Q5: =Resumo!P21 -> 171 | R5: =Resumo!Q21 -> 171 | S5: =Resumo!R21 -> 171 | T5: =Resumo!S21 -> 171 | U5: =Resumo!T21 -> 157.5 | V5: =Resumo!U21 -> 157.5 | W5: =Resumo!V21 -> 157.5 | X5: =Resumo!W21 -> 157.5 | Y5: =Resumo!X21 -> 157.5 | Z5: =Resumo!Y21 -> 157.5 | AA5: =Resumo!Z21 -> 157.5 | AB5: =Resumo!AA21 -> 157.5 | AC5: =Resumo!AB21 -> 157.5 | AD5: =Resumo!AC21 -> 157.5
A6: =Contratos_volume!B7 -> Cota Angra I/Angra II | B6: =IFERROR((Contratos_volume!H7/Contratos_volume!I7),0) -> 224.2101022 | D6: 156.79 | E6: 162.09 | F6: 206.29 | G6: =$B6*Resumo!F$7/Contratos_volume!$E7 -> 224.2101022 | H6: =$B6*Resumo!G$7/Contratos_volume!$E7 -> 234.7188852 | I6: =$B6*Resumo!H$7/Contratos_volume!$E7 -> 243.8729217 | J6: =$B6*Resumo!I$7/Contratos_volume!$E7 -> 254.3594573 | K6: =$B6*Resumo!J$7/Contratos_volume!$E7 -> 264.5338356 | L6: =$B6*Resumo!K$7/Contratos_volume!$E7 -> 275.115189 | M6: =$B6*Resumo!L$7/Contratos_volume!$E7 -> 286.1197966 | N6: =$B6*Resumo!M$7/Contratos_volume!$E7 -> 297.5645884 | O6: =$B6*Resumo!N$7/Contratos_volume!$E7 -> 309.467172 | P6: =$B6*Resumo!O$7/Contratos_volume!$E7 -> 321.8458589 | Q6: =$B6*Resumo!P$7/Contratos_volume!$E7 -> 334.7196932 | R6: =$B6*Resumo!Q$7/Contratos_volume!$E7 -> 348.1084809 | S6: =$B6*Resumo!R$7/Contratos_volume!$E7 -> 362.0328202 | T6: =$B6*Resumo!S$7/Contratos_volume!$E7 -> 376.514133 | U6: =$B6*Resumo!T$7/Contratos_volume!$E7 -> 391.5746983 | V6: =$B6*Resumo!U$7/Contratos_volume!$E7 -> 407.2376862 | W6: =$B6*Resumo!V$7/Contratos_volume!$E7 -> 423.5271937 | X6: =$B6*Resumo!W$7/Contratos_volume!$E7 -> 440.4682814 | Y6: =$B6*Resumo!X$7/Contratos_volume!$E7 -> 458.0870127 | Z6: =$B6*Resumo!Y$7/Contratos_volume!$E7 -> 476.4104932 | AA6: =$B6*Resumo!Z$7/Contratos_volume!$E7 -> 495.4669129 | AB6: =$B6*Resumo!AA$7/Contratos_volume!$E7 -> 515.2855895 | AC6: =$B6*Resumo!AB$7/Contratos_volume!$E7 -> 535.897013 | AD6: =$B6*Resumo!AC$7/Contratos_volume!$E7 -> 557.3328936
A7: =Contratos_volume!B8 -> Cotas Lei n º 12783/2013 | B7: 63.66 | D7: 33.34 | E7: 35.82 | F7: 64.94 | G7: =B7 -> 63.66 | H7: =$B7*Resumo!G$7/Contratos_volume!$E8 -> 66.64375994 | I7: =H7*Resumo!H$7/Resumo!G$7 -> 69.24286657 | J7: =I7*Resumo!I$7/Resumo!H$7 -> 72.22030984 | K7: =J7*Resumo!J$7/Resumo!I$7 -> 75.10912223 | L7: =K7*Resumo!K$7/Resumo!J$7 -> 78.11348712 | M7: =L7*Resumo!L$7/Resumo!K$7 -> 81.2380266 | N7: =M7*Resumo!M$7/Resumo!L$7 -> 84.48754767 | O7: =N7*Resumo!N$7/Resumo!M$7 -> 87.86704958 | P7: =O7*Resumo!O$7/Resumo!N$7 -> 91.38173156 | Q7: =P7*Resumo!P$7/Resumo!O$7 -> 95.03700082 | R7: =Q7*Resumo!Q$7/Resumo!P$7 -> 98.83848085 | S7: =R7*Resumo!R$7/Resumo!Q$7 -> 102.7920201 | T7: =S7*Resumo!S$7/Resumo!R$7 -> 106.9037009 | U7: =T7*Resumo!T$7/Resumo!S$7 -> 111.1798489 | V7: =U7*Resumo!U$7/Resumo!T$7 -> 115.6270429 | W7: =V7*Resumo!V$7/Resumo!U$7 -> 120.2521246 | X7: =W7*Resumo!W$7/Resumo!V$7 -> 125.0622096 | Y7: =X7*Resumo!X$7/Resumo!W$7 -> 130.064698 | Z7: =Y7*Resumo!Y$7/Resumo!X$7 -> 135.2672859 | AA7: =Z7*Resumo!Z$7/Resumo!Y$7 -> 140.6779773 | AB7: =AA7*Resumo!AA$7/Resumo!Z$7 -> 146.3050964 | AC7: =AB7*Resumo!AB$7/Resumo!AA$7 -> 152.1573003 | AD7: =AC7*Resumo!AC$7/Resumo!AB$7 -> 158.2435923
A8: =Contratos_volume!B9 -> Energia nova | B8: =IFERROR((Contratos_volume!H9/Contratos_volume!I9),0) -> 0 | D8: =Resumo!C17 -> 184.2590395 | E8: =Resumo!D17 -> 199.198443 | F8: =Resumo!E17 -> 214.8252271 | G8: =Resumo!F17 -> 219.473643 | H8: =Resumo!G17 -> 218.0455812 | I8: =Resumo!H17 -> 227.847825 | J8: =Resumo!I17 -> 251.7761232 | K8: =Resumo!J17 -> 261.8471682 | L8: =Resumo!K17 -> 272.3210549 | M8: =Resumo!L17 -> 282.4889409 | N8: =Resumo!M17 -> 292.073502 | O8: =Resumo!N17 -> 297.2358399 | P8: =Resumo!O17 -> 305.0745595 | Q8: =Resumo!P17 -> 315.6254531 | R8: =Resumo!Q17 -> 324.4885108 | S8: =Resumo!R17 -> 337.4680512 | T8: =Resumo!S17 -> 350.9667733 | U8: =Resumo!T17 -> 365.0054442 | V8: =Resumo!U17 -> 379.605662 | W8: =Resumo!V17 -> 394.7898885 | X8: =Resumo!W17 -> 410.581484 | Y8: =Resumo!X17 -> 427.0047434 | Z8: =Resumo!Y17 -> 447.7391344 | AA8: =Resumo!Z17 -> 472.3681209 | AB8: =Resumo!AA17 -> 510.3775536 | AC8: =Resumo!AB17 -> 532.2887478 | AD8: =Resumo!AC17 -> 554.6659963
A9: =Contratos_volume!B10 -> Energia Existente | B9: =IFERROR((Contratos_volume!H10/Contratos_volume!I10),0) -> 0 | D9: =Resumo!C19 -> 202.1516464 | E9: =Resumo!D19 -> 253.0850205 | F9: =Resumo!E19 -> 241.7600156 | G9: =Resumo!F19 -> 256.2471366 | H9: =Resumo!G19 -> 227.847825 | I9: =Resumo!H19 -> 251.7761232 | J9: =Resumo!I19 -> 251.7761232 | K9: =Resumo!J19 -> 261.8471682 | L9: =Resumo!K19 -> 272.3210549 | M9: =Resumo!L19 -> 282.4889409 | N9: =Resumo!M19 -> 292.073502 | O9: =Resumo!N19 -> 297.2358399 | P9: =Resumo!O19 -> 305.0745595 | Q9: =Resumo!P19 -> 315.6254531 | R9: =Resumo!Q19 -> 324.4885108 | S9: =Resumo!R19 -> 337.4680512 | T9: =Resumo!S19 -> 350.9667733 | U9: =Resumo!T19 -> 365.0054442 | V9: =Resumo!U19 -> 379.605662 | W9: =Resumo!V19 -> 394.7898885 | X9: =Resumo!W19 -> 410.581484 | Y9: =Resumo!X19 -> 427.0047434 | Z9: =Resumo!Y19 -> 447.7391344 | AA9: =Resumo!Z19 -> 472.3681209 | AB9: =Resumo!AA19 -> 510.3775536 | AC9: =Resumo!AB19 -> 532.2887478 | AD9: =Resumo!AC19 -> 554.6659963
A10: =Contratos_volume!B11 -> 01ºLEE | B10: =IFERROR((Contratos_volume!H11/Contratos_volume!I11),0) -> 75.45719283 | D10: =$B10*Resumo!C$7/Contratos_volume!$E11 -> 122.6221847 | E10: =$B10*Resumo!D$7/Contratos_volume!$E11 -> 132.5895347 | F10: =$B10*Resumo!E$7/Contratos_volume!$E11 -> 145.0348822 | G10: =$B10*Resumo!F$7/Contratos_volume!$E11 -> 151.9067107 | H10: =$B10*Resumo!G$7/Contratos_volume!$E11 -> 159.0266158 | I10: =$B10*Resumo!H$7/Contratos_volume!$E11 -> 165.2286538 | J10: =$B10*Resumo!I$7/Contratos_volume!$E11 -> 172.3334859 | K10: =$B10*Resumo!J$7/Contratos_volume!$E11 -> 179.2268254 | L10: =$B10*Resumo!K$7/Contratos_volume!$E11 -> 186.3958984 | M10: =$B10*Resumo!L$7/Contratos_volume!$E11 -> 193.8517343 | N10: =$B10*Resumo!M$7/Contratos_volume!$E11 -> 201.6058037 | O10: =$B10*Resumo!N$7/Contratos_volume!$E11 -> 209.6700358 | P10: =$B10*Resumo!O$7/Contratos_volume!$E11 -> 218.0568373 | Q10: =$B10*Resumo!P$7/Contratos_volume!$E11 -> 226.7791108 | R10: =$B10*Resumo!Q$7/Contratos_volume!$E11 -> 235.8502752 | S10: =$B10*Resumo!R$7/Contratos_volume!$E11 -> 245.2842862 | T10: =$B10*Resumo!S$7/Contratos_volume!$E11 -> 255.0956577 | U10: =$B10*Resumo!T$7/Contratos_volume!$E11 -> 265.299484 | V10: =$B10*Resumo!U$7/Contratos_volume!$E11 -> 275.9114633 | W10: =$B10*Resumo!V$7/Contratos_volume!$E11 -> 286.9479219 | X10: =$B10*Resumo!W$7/Contratos_volume!$E11 -> 298.4258387 | Y10: =$B10*Resumo!X$7/Contratos_volume!$E11 -> 310.3628723 | Z10: =$B10*Resumo!Y$7/Contratos_volume!$E11 -> 322.7773872 | AA10: =$B10*Resumo!Z$7/Contratos_volume!$E11 -> 335.6884827 | AB10: =$B10*Resumo!AA$7/Contratos_volume!$E11 -> 349.116022 | AC10: =$B10*Resumo!AB$7/Contratos_volume!$E11 -> 363.0806628 | AD10: =$B10*Resumo!AC$7/Contratos_volume!$E11 -> 377.6038894
A11: =Contratos_volume!B12 -> 01ºLEN | B11: =IFERROR((Contratos_volume!H12/Contratos_volume!I12),0) -> 131.8361461 | D11: =$B11*Resumo!C$7/Contratos_volume!$E12 -> 202.7086042 | E11: =$B11*Resumo!D$7/Contratos_volume!$E12 -> 219.1857825 | F11: =$B11*Resumo!E$7/Contratos_volume!$E12 -> 239.7593763 | G11: =$B11*Resumo!F$7/Contratos_volume!$E12 -> 251.1193009 | H11: =$B11*Resumo!G$7/Contratos_volume!$E12 -> 262.8893246 | I11: =$B11*Resumo!H$7/Contratos_volume!$E12 -> 273.1420082 | J11: =$B11*Resumo!I$7/Contratos_volume!$E12 -> 284.8871146 | K11: =$B11*Resumo!J$7/Contratos_volume!$E12 -> 296.2825992 | L11: =$B11*Resumo!K$7/Contratos_volume!$E12 -> 308.1339031 | M11: =$B11*Resumo!L$7/Contratos_volume!$E12 -> 320.4592593 | N11: =$B11*Resumo!M$7/Contratos_volume!$E12 -> 333.2776296 | O11: =$B11*Resumo!N$7/Contratos_volume!$E12 -> 346.6087348 | P11: =$B11*Resumo!O$7/Contratos_volume!$E12 -> 360.4730842 | Q11: =$B11*Resumo!P$7/Contratos_volume!$E12 -> 374.8920076 | R11: =$B11*Resumo!Q$7/Contratos_volume!$E12 -> 389.8876879 | S11: =$B11*Resumo!R$7/Contratos_volume!$E12 -> 405.4831954 | T11: =$B11*Resumo!S$7/Contratos_volume!$E12 -> 421.7025232 | U11: =$B11*Resumo!T$7/Contratos_volume!$E12 -> 438.5706241 | V11: =$B11*Resumo!U$7/Contratos_volume!$E12 -> 456.1134491 | W11: =$B11*Resumo!V$7/Contratos_volume!$E12 -> 474.3579871 | X11: =$B11*Resumo!W$7/Contratos_volume!$E12 -> 493.3323065 | Y11: =$B11*Resumo!X$7/Contratos_volume!$E12 -> 513.0655988 | Z11: =$B11*Resumo!Y$7/Contratos_volume!$E12 -> 533.5882228 | AA11: =$B11*Resumo!Z$7/Contratos_volume!$E12 -> 554.9317517 | AB11: =$B11*Resumo!AA$7/Contratos_volume!$E12 -> 577.1290217 | AC11: =$B11*Resumo!AB$7/Contratos_volume!$E12 -> 600.2141826 | AD11: =$B11*Resumo!AC$7/Contratos_volume!$E12 -> 624.2227499
A12: =Contratos_volume!B13 -> 01ºLEN | B12: =IFERROR((Contratos_volume!H13/Contratos_volume!I13),0) -> 106.821 | D12: =$B12*Resumo!C$7/Contratos_volume!$E13 -> 164.2458193 | E12: =$B12*Resumo!D$7/Contratos_volume!$E13 -> 177.5965483 | F12: =$B12*Resumo!E$7/Contratos_volume!$E13 -> 194.2664217 | G12: =$B12*Resumo!F$7/Contratos_volume!$E13 -> 203.4708663 | H12: =$B12*Resumo!G$7/Contratos_volume!$E13 -> 213.0075961 | I12: =$B12*Resumo!H$7/Contratos_volume!$E13 -> 221.3148923 | J12: =$B12*Resumo!I$7/Contratos_volume!$E13 -> 230.8314327 | K12: =$B12*Resumo!J$7/Contratos_volume!$E13 -> 240.06469 | L12: =$B12*Resumo!K$7/Contratos_volume!$E13 -> 249.6672776 | M12: =$B12*Resumo!L$7/Contratos_volume!$E13 -> 259.6539687 | N12: =$B12*Resumo!M$7/Contratos_volume!$E13 -> 270.0401275 | O12: =$B12*Resumo!N$7/Contratos_volume!$E13 -> 280.8417326 | P12: =$B12*Resumo!O$7/Contratos_volume!$E13 -> 292.0754019 | Q12: =$B12*Resumo!P$7/Contratos_volume!$E13 -> 303.7584179 | R12: =$B12*Resumo!Q$7/Contratos_volume!$E13 -> 315.9087547 | S12: =$B12*Resumo!R$7/Contratos_volume!$E13 -> 328.5451048 | T12: =$B12*Resumo!S$7/Contratos_volume!$E13 -> 341.686909 | U12: =$B12*Resumo!T$7/Contratos_volume!$E13 -> 355.3543854 | V12: =$B12*Resumo!U$7/Contratos_volume!$E13 -> 369.5685608 | W12: =$B12*Resumo!V$7/Contratos_volume!$E13 -> 384.3513033 | X12: =$B12*Resumo!W$7/Contratos_volume!$E13 -> 399.7253554 | Y12: =$B12*Resumo!X$7/Contratos_volume!$E13 -> 415.7143696 | Z12: =$B12*Resumo!Y$7/Contratos_volume!$E13 -> 432.3429444 | AA12: =$B12*Resumo!Z$7/Contratos_volume!$E13 -> 449.6366622 | AB12: =$B12*Resumo!AA$7/Contratos_volume!$E13 -> 467.6221286 | AC12: =$B12*Resumo!AB$7/Contratos_volume!$E13 -> 486.3270138 | AD12: =$B12*Resumo!AC$7/Contratos_volume!$E13 -> 505.7800943
A13: =Contratos_volume!B14 -> 01ºLEN | B13: =IFERROR((Contratos_volume!H14/Contratos_volume!I14),0) -> 129.3131953 | D13: =$B13*Resumo!C$7/Contratos_volume!$E14 -> 198.8293659 | E13: =$B13*Resumo!D$7/Contratos_volume!$E14 -> 214.9912202 | F13: =$B13*Resumo!E$7/Contratos_volume!$E14 -> 235.1710967 | G13: =$B13*Resumo!F$7/Contratos_volume!$E14 -> 246.3136261 | H13: =$B13*Resumo!G$7/Contratos_volume!$E14 -> 257.8584067 | I13: =$B13*Resumo!H$7/Contratos_volume!$E14 -> 267.9148846 | J13: =$B13*Resumo!I$7/Contratos_volume!$E14 -> 279.4352246 | K13: =$B13*Resumo!J$7/Contratos_volume!$E14 -> 290.6126336 | L13: =$B13*Resumo!K$7/Contratos_volume!$E14 -> 302.2371389 | M13: =$B13*Resumo!L$7/Contratos_volume!$E14 -> 314.3266245 | N13: =$B13*Resumo!M$7/Contratos_volume!$E14 -> 326.8996895 | O13: =$B13*Resumo!N$7/Contratos_volume!$E14 -> 339.975677 | P13: =$B13*Resumo!O$7/Contratos_volume!$E14 -> 353.5747041 | Q13: =$B13*Resumo!P$7/Contratos_volume!$E14 -> 367.7176923 | R13: =$B13*Resumo!Q$7/Contratos_volume!$E14 -> 382.4264 | S13: =$B13*Resumo!R$7/Contratos_volume!$E14 -> 397.723456 | T13: =$B13*Resumo!S$7/Contratos_volume!$E14 -> 413.6323942 | U13: =$B13*Resumo!T$7/Contratos_volume!$E14 -> 430.17769 | V13: =$B13*Resumo!U$7/Contratos_volume!$E14 -> 447.3847976 | W13: =$B13*Resumo!V$7/Contratos_volume!$E14 -> 465.2801895 | X13: =$B13*Resumo!W$7/Contratos_volume!$E14 -> 483.8913971 | Y13: =$B13*Resumo!X$7/Contratos_volume!$E14 -> 503.2470529 | Z13: =$B13*Resumo!Y$7/Contratos_volume!$E14 -> 523.3769351 | AA13: =$B13*Resumo!Z$7/Contratos_volume!$E14 -> 544.3120125 | AB13: =$B13*Resumo!AA$7/Contratos_volume!$E14 -> 566.084493 | AC13: =$B13*Resumo!AB$7/Contratos_volume!$E14 -> 588.7278727 | AD13: =$B13*Resumo!AC$7/Contratos_volume!$E14 -> 612.2769876
A14: =Contratos_volume!B15 -> 01ºLEN | B14: =IFERROR((Contratos_volume!H15/Contratos_volume!I15),0) -> 114.2426667 | D14: =$B14*Resumo!C$7/Contratos_volume!$E15 -> 175.6572245 | E14: =$B14*Resumo!D$7/Contratos_volume!$E15 -> 189.9355302 | F14: =$B14*Resumo!E$7/Contratos_volume!$E15 -> 207.7635863 | G14: =$B14*Resumo!F$7/Contratos_volume!$E15 -> 217.6075336 | H14: =$B14*Resumo!G$7/Contratos_volume!$E15 -> 227.8068525 | I14: =$B14*Resumo!H$7/Contratos_volume!$E15 -> 236.6913197 | J14: =$B14*Resumo!I$7/Contratos_volume!$E15 -> 246.8690465 | K14: =$B14*Resumo!J$7/Contratos_volume!$E15 -> 256.7438084 | L14: =$B14*Resumo!K$7/Contratos_volume!$E15 -> 267.0135607 | M14: =$B14*Resumo!L$7/Contratos_volume!$E15 -> 277.6941031 | N14: =$B14*Resumo!M$7/Contratos_volume!$E15 -> 288.8018672 | O14: =$B14*Resumo!N$7/Contratos_volume!$E15 -> 300.3539419 | P14: =$B14*Resumo!O$7/Contratos_volume!$E15 -> 312.3680996 | Q14: =$B14*Resumo!P$7/Contratos_volume!$E15 -> 324.8628236 | R14: =$B14*Resumo!Q$7/Contratos_volume!$E15 -> 337.8573365 | S14: =$B14*Resumo!R$7/Contratos_volume!$E15 -> 351.37163 | T14: =$B14*Resumo!S$7/Contratos_volume!$E15 -> 365.4264952 | U14: =$B14*Resumo!T$7/Contratos_volume!$E15 -> 380.043555 | V14: =$B14*Resumo!U$7/Contratos_volume!$E15 -> 395.2452972 | W14: =$B14*Resumo!V$7/Contratos_volume!$E15 -> 411.0551091 | X14: =$B14*Resumo!W$7/Contratos_volume!$E15 -> 427.4973135 | Y14: =$B14*Resumo!X$7/Contratos_volume!$E15 -> 444.597206 | Z14: =$B14*Resumo!Y$7/Contratos_volume!$E15 -> 462.3810942 | AA14: =$B14*Resumo!Z$7/Contratos_volume!$E15 -> 480.876338 | AB14: =$B14*Resumo!AA$7/Contratos_volume!$E15 -> 500.1113915 | AC14: =$B14*Resumo!AB$7/Contratos_volume!$E15 -> 520.1158472 | AD14: =$B14*Resumo!AC$7/Contratos_volume!$E15 -> 540.9204811
A15: =Contratos_volume!B16 -> 01ºLEN | B15: =IFERROR((Contratos_volume!H16/Contratos_volume!I16),0) -> 121.8141995 | D15: =$B15*Resumo!C$7/Contratos_volume!$E16 -> 187.299061 | E15: =$B15*Resumo!D$7/Contratos_volume!$E16 -> 202.5236739 | F15: =$B15*Resumo!E$7/Contratos_volume!$E16 -> 221.5333 | G15: =$B15*Resumo!F$7/Contratos_volume!$E16 -> 232.0296636 | H15: =$B15*Resumo!G$7/Contratos_volume!$E16 -> 242.9049513 | I15: =$B15*Resumo!H$7/Contratos_volume!$E16 -> 252.3782444 | J15: =$B15*Resumo!I$7/Contratos_volume!$E16 -> 263.2305089 | K15: =$B15*Resumo!J$7/Contratos_volume!$E16 -> 273.7597293 | L15: =$B15*Resumo!K$7/Contratos_volume!$E16 -> 284.7101184 | M15: =$B15*Resumo!L$7/Contratos_volume!$E16 -> 296.0985232 | N15: =$B15*Resumo!M$7/Contratos_volume!$E16 -> 307.9424641 | O15: =$B15*Resumo!N$7/Contratos_volume!$E16 -> 320.2601627 | P15: =$B15*Resumo!O$7/Contratos_volume!$E16 -> 333.0705692 | Q15: =$B15*Resumo!P$7/Contratos_volume!$E16 -> 346.3933919 | R15: =$B15*Resumo!Q$7/Contratos_volume!$E16 -> 360.2491276 | S15: =$B15*Resumo!R$7/Contratos_volume!$E16 -> 374.6590927 | T15: =$B15*Resumo!S$7/Contratos_volume!$E16 -> 389.6454564 | U15: =$B15*Resumo!T$7/Contratos_volume!$E16 -> 405.2312747 | V15: =$B15*Resumo!U$7/Contratos_volume!$E16 -> 421.4405257 | W15: =$B15*Resumo!V$7/Contratos_volume!$E16 -> 438.2981467 | X15: =$B15*Resumo!W$7/Contratos_volume!$E16 -> 455.8300726 | Y15: =$B15*Resumo!X$7/Contratos_volume!$E16 -> 474.0632755 | Z15: =$B15*Resumo!Y$7/Contratos_volume!$E16 -> 493.0258065 | AA15: =$B15*Resumo!Z$7/Contratos_volume!$E16 -> 512.7468387 | AB15: =$B15*Resumo!AA$7/Contratos_volume!$E16 -> 533.2567123 | AC15: =$B15*Resumo!AB$7/Contratos_volume!$E16 -> 554.5869808 | AD15: =$B15*Resumo!AC$7/Contratos_volume!$E16 -> 576.77046
A16: =Contratos_volume!B17 -> 01ºLEN | B16: =IFERROR((Contratos_volume!H17/Contratos_volume!I17),0) -> 99.95 | D16: =$B16*Resumo!C$7/Contratos_volume!$E17 -> 153.6811079 | E16: =$B16*Resumo!D$7/Contratos_volume!$E17 -> 166.1730839 | F16: =$B16*Resumo!E$7/Contratos_volume!$E17 -> 181.7707084 | G16: =$B16*Resumo!F$7/Contratos_volume!$E17 -> 190.3830996 | H16: =$B16*Resumo!G$7/Contratos_volume!$E17 -> 199.3064025 | I16: =$B16*Resumo!H$7/Contratos_volume!$E17 -> 207.0793522 | J16: =$B16*Resumo!I$7/Contratos_volume!$E17 -> 215.9837643 | K16: =$B16*Resumo!J$7/Contratos_volume!$E17 -> 224.6231149 | L16: =$B16*Resumo!K$7/Contratos_volume!$E17 -> 233.6080395 | M16: =$B16*Resumo!L$7/Contratos_volume!$E17 -> 242.9523611 | N16: =$B16*Resumo!M$7/Contratos_volume!$E17 -> 252.6704555 | O16: =$B16*Resumo!N$7/Contratos_volume!$E17 -> 262.7772737 | P16: =$B16*Resumo!O$7/Contratos_volume!$E17 -> 273.2883647 | Q16: =$B16*Resumo!P$7/Contratos_volume!$E17 -> 284.2198993 | R16: =$B16*Resumo!Q$7/Contratos_volume!$E17 -> 295.5886953 | S16: =$B16*Resumo!R$7/Contratos_volume!$E17 -> 307.4122431 | T16: =$B16*Resumo!S$7/Contratos_volume!$E17 -> 319.7087328 | U16: =$B16*Resumo!T$7/Contratos_volume!$E17 -> 332.4970821 | V16: =$B16*Resumo!U$7/Contratos_volume!$E17 -> 345.7969654 | W16: =$B16*Resumo!V$7/Contratos_volume!$E17 -> 359.628844 | X16: =$B16*Resumo!W$7/Contratos_volume!$E17 -> 374.0139978 | Y16: =$B16*Resumo!X$7/Contratos_volume!$E17 -> 388.9745577 | Z16: =$B16*Resumo!Y$7/Contratos_volume!$E17 -> 404.53354 | AA16: =$B16*Resumo!Z$7/Contratos_volume!$E17 -> 420.7148816 | AB16: =$B16*Resumo!AA$7/Contratos_volume!$E17 -> 437.5434768 | AC16: =$B16*Resumo!AB$7/Contratos_volume!$E17 -> 455.0452159 | AD16: =$B16*Resumo!AC$7/Contratos_volume!$E17 -> 473.2470246
A17: =Contratos_volume!B18 -> 01ºLEN | B17: =IFERROR((Contratos_volume!H18/Contratos_volume!I18),0) -> 115.0396131 | D17: =$B17*Resumo!C$7/Contratos_volume!$E18 -> 176.8825933 | E17: =$B17*Resumo!D$7/Contratos_volume!$E18 -> 191.2605031 | F17: =$B17*Resumo!E$7/Contratos_volume!$E18 -> 209.2129262 | G17: =$B17*Resumo!F$7/Contratos_volume!$E18 -> 219.125544 | H17: =$B17*Resumo!G$7/Contratos_volume!$E18 -> 229.3960124 | I17: =$B17*Resumo!H$7/Contratos_volume!$E18 -> 238.3424569 | J17: =$B17*Resumo!I$7/Contratos_volume!$E18 -> 248.5911825 | K17: =$B17*Resumo!J$7/Contratos_volume!$E18 -> 258.5348298 | L17: =$B17*Resumo!K$7/Contratos_volume!$E18 -> 268.876223 | M17: =$B17*Resumo!L$7/Contratos_volume!$E18 -> 279.6312719 | N17: =$B17*Resumo!M$7/Contratos_volume!$E18 -> 290.8165228 | O17: =$B17*Resumo!N$7/Contratos_volume!$E18 -> 302.4491837 | P17: =$B17*Resumo!O$7/Contratos_volume!$E18 -> 314.5471511 | Q17: =$B17*Resumo!P$7/Contratos_volume!$E18 -> 327.1290371 | R17: =$B17*Resumo!Q$7/Contratos_volume!$E18 -> 340.2141986 | S17: =$B17*Resumo!R$7/Contratos_volume!$E18 -> 353.8227665 | T17: =$B17*Resumo!S$7/Contratos_volume!$E18 -> 367.9756772 | U17: =$B17*Resumo!T$7/Contratos_volume!$E18 -> 382.6947043 | V17: =$B17*Resumo!U$7/Contratos_volume!$E18 -> 398.0024924 | W17: =$B17*Resumo!V$7/Contratos_volume!$E18 -> 413.9225921 | X17: =$B17*Resumo!W$7/Contratos_volume!$E18 -> 430.4794958 | Y17: =$B17*Resumo!X$7/Contratos_volume!$E18 -> 447.6986757 | Z17: =$B17*Resumo!Y$7/Contratos_volume!$E18 -> 465.6066227 | AA17: =$B17*Resumo!Z$7/Contratos_volume!$E18 -> 484.2308876 | AB17: =$B17*Resumo!AA$7/Contratos_volume!$E18 -> 503.6001231 | AC17: =$B17*Resumo!AB$7/Contratos_volume!$E18 -> 523.744128 | AD17: =$B17*Resumo!AC$7/Contratos_volume!$E18 -> 544.6938931
A18: =Contratos_volume!B19 -> 01ºLFA | B18: =IFERROR((Contratos_volume!H19/Contratos_volume!I19),0) -> 138.9179439 | D18: =$B18*Resumo!C$7/Contratos_volume!$E19 -> 202.8766733 | E18: =$B18*Resumo!D$7/Contratos_volume!$E19 -> 219.3675132 | F18: =$B18*Resumo!E$7/Contratos_volume!$E19 -> 239.9581648 | G18: =$B18*Resumo!F$7/Contratos_volume!$E19 -> 251.3275081 | H18: =$B18*Resumo!G$7/Contratos_volume!$E19 -> 263.1072905 | I18: =$B18*Resumo!H$7/Contratos_volume!$E19 -> 273.3684749 | J18: =$B18*Resumo!I$7/Contratos_volume!$E19 -> 285.1233193 | K18: =$B18*Resumo!J$7/Contratos_volume!$E19 -> 296.5282521 | L18: =$B18*Resumo!K$7/Contratos_volume!$E19 -> 308.3893821 | M18: =$B18*Resumo!L$7/Contratos_volume!$E19 -> 320.7249574 | N18: =$B18*Resumo!M$7/Contratos_volume!$E19 -> 333.5539557 | O18: =$B18*Resumo!N$7/Contratos_volume!$E19 -> 346.896114 | P18: =$B18*Resumo!O$7/Contratos_volume!$E19 -> 360.7719585 | Q18: =$B18*Resumo!P$7/Contratos_volume!$E19 -> 375.2028369 | R18: =$B18*Resumo!Q$7/Contratos_volume!$E19 -> 390.2109503 | S18: =$B18*Resumo!R$7/Contratos_volume!$E19 -> 405.8193883 | T18: =$B18*Resumo!S$7/Contratos_volume!$E19 -> 422.0521639 | U18: =$B18*Resumo!T$7/Contratos_volume!$E19 -> 438.9342504 | V18: =$B18*Resumo!U$7/Contratos_volume!$E19 -> 456.4916205 | W18: =$B18*Resumo!V$7/Contratos_volume!$E19 -> 474.7512853 | X18: =$B18*Resumo!W$7/Contratos_volume!$E19 -> 493.7413367 | Y18: =$B18*Resumo!X$7/Contratos_volume!$E19 -> 513.4909901 | Z18: =$B18*Resumo!Y$7/Contratos_volume!$E19 -> 534.0306298 | AA18: =$B18*Resumo!Z$7/Contratos_volume!$E19 -> 555.3918549 | AB18: =$B18*Resumo!AA$7/Contratos_volume!$E19 -> 577.6075291 | AC18: =$B18*Resumo!AB$7/Contratos_volume!$E19 -> 600.7118303 | AD18: =$B18*Resumo!AC$7/Contratos_volume!$E19 -> 624.7403035
A19: =Contratos_volume!B20 -> 01ºLFA | B19: =IFERROR((Contratos_volume!H20/Contratos_volume!I20),0) -> 134.9923913 | D19: =$B19*Resumo!C$7/Contratos_volume!$E20 -> 197.1437706 | E19: =$B19*Resumo!D$7/Contratos_volume!$E20 -> 213.1686112 | F19: =$B19*Resumo!E$7/Contratos_volume!$E20 -> 233.1774108 | G19: =$B19*Resumo!F$7/Contratos_volume!$E20 -> 244.2254784 | H19: =$B19*Resumo!G$7/Contratos_volume!$E20 -> 255.672387 | I19: =$B19*Resumo!H$7/Contratos_volume!$E20 -> 265.6436101 | J19: =$B19*Resumo!I$7/Contratos_volume!$E20 -> 277.0662853 | K19: =$B19*Resumo!J$7/Contratos_volume!$E20 -> 288.1489367 | L19: =$B19*Resumo!K$7/Contratos_volume!$E20 -> 299.6748942 | M19: =$B19*Resumo!L$7/Contratos_volume!$E20 -> 311.66189 | N19: =$B19*Resumo!M$7/Contratos_volume!$E20 -> 324.1283656 | O19: =$B19*Resumo!N$7/Contratos_volume!$E20 -> 337.0935002 | P19: =$B19*Resumo!O$7/Contratos_volume!$E20 -> 350.5772402 | Q19: =$B19*Resumo!P$7/Contratos_volume!$E20 -> 364.6003298 | R19: =$B19*Resumo!Q$7/Contratos_volume!$E20 -> 379.184343 | S19: =$B19*Resumo!R$7/Contratos_volume!$E20 -> 394.3517167 | T19: =$B19*Resumo!S$7/Contratos_volume!$E20 -> 410.1257854 | U19: =$B19*Resumo!T$7/Contratos_volume!$E20 -> 426.5308168 | V19: =$B19*Resumo!U$7/Contratos_volume!$E20 -> 443.5920495 | W19: =$B19*Resumo!V$7/Contratos_volume!$E20 -> 461.3357315 | X19: =$B19*Resumo!W$7/Contratos_volume!$E20 -> 479.7891607 | Y19: =$B19*Resumo!X$7/Contratos_volume!$E20 -> 498.9807271 | Z19: =$B19*Resumo!Y$7/Contratos_volume!$E20 -> 518.9399562 | AA19: =$B19*Resumo!Z$7/Contratos_volume!$E20 -> 539.6975545 | AB19: =$B19*Resumo!AA$7/Contratos_volume!$E20 -> 561.2854567 | AC19: =$B19*Resumo!AB$7/Contratos_volume!$E20 -> 583.7368749 | AD19: =$B19*Resumo!AC$7/Contratos_volume!$E20 -> 607.0863499
A20: =Contratos_volume!B21 -> 02ºLEE | B20: =IFERROR((Contratos_volume!H21/Contratos_volume!I21),0) -> 83.12848302 | D20: =$B20*Resumo!C$7/Contratos_volume!$E21 -> 131.5679834 | E20: =$B20*Resumo!D$7/Contratos_volume!$E21 -> 142.2624931 | F20: =$B20*Resumo!E$7/Contratos_volume!$E21 -> 155.6157804 | G20: =$B20*Resumo!F$7/Contratos_volume!$E21 -> 162.9889375 | H20: =$B20*Resumo!G$7/Contratos_volume!$E21 -> 170.6282692 | I20: =$B20*Resumo!H$7/Contratos_volume!$E21 -> 177.2827717 | J20: =$B20*Resumo!I$7/Contratos_volume!$E21 -> 184.9059309 | K20: =$B20*Resumo!J$7/Contratos_volume!$E21 -> 192.3021682 | L20: =$B20*Resumo!K$7/Contratos_volume!$E21 -> 199.9942549 | M20: =$B20*Resumo!L$7/Contratos_volume!$E21 -> 207.9940251 | N20: =$B20*Resumo!M$7/Contratos_volume!$E21 -> 216.3137861 | O20: =$B20*Resumo!N$7/Contratos_volume!$E21 -> 224.9663375 | P20: =$B20*Resumo!O$7/Contratos_volume!$E21 -> 233.964991 | Q20: =$B20*Resumo!P$7/Contratos_volume!$E21 -> 243.3235907 | R20: =$B20*Resumo!Q$7/Contratos_volume!$E21 -> 253.0565343 | S20: =$B20*Resumo!R$7/Contratos_volume!$E21 -> 263.1787957 | T20: =$B20*Resumo!S$7/Contratos_volume!$E21 -> 273.7059475 | U20: =$B20*Resumo!T$7/Contratos_volume!$E21 -> 284.6541854 | V20: =$B20*Resumo!U$7/Contratos_volume!$E21 -> 296.0403528 | W20: =$B20*Resumo!V$7/Contratos_volume!$E21 -> 307.8819669 | X20: =$B20*Resumo!W$7/Contratos_volume!$E21 -> 320.1972456 | Y20: =$B20*Resumo!X$7/Contratos_volume!$E21 -> 333.0051354 | Z20: =$B20*Resumo!Y$7/Contratos_volume!$E21 -> 346.3253408 | AA20: =$B20*Resumo!Z$7/Contratos_volume!$E21 -> 360.1783545 | AB20: =$B20*Resumo!AA$7/Contratos_volume!$E21 -> 374.5854887 | AC20: =$B20*Resumo!AB$7/Contratos_volume!$E21 -> 389.5689082 | AD20: =$B20*Resumo!AC$7/Contratos_volume!$E21 -> 405.1516645
A21: =Contratos_volume!B22 -> 02ºLEN | B21: =IFERROR((Contratos_volume!H22/Contratos_volume!I22),0) -> 132.394144 | D21: =$B21*Resumo!C$7/Contratos_volume!$E22 -> 200.4834866 | E21: =$B21*Resumo!D$7/Contratos_volume!$E22 -> 216.7797962 | F21: =$B21*Resumo!E$7/Contratos_volume!$E22 -> 237.1275551 | G21: =$B21*Resumo!F$7/Contratos_volume!$E22 -> 248.3627826 | H21: =$B21*Resumo!G$7/Contratos_volume!$E22 -> 260.0036076 | I21: =$B21*Resumo!H$7/Contratos_volume!$E22 -> 270.1437483 | J21: =$B21*Resumo!I$7/Contratos_volume!$E22 -> 281.7599295 | K21: =$B21*Resumo!J$7/Contratos_volume!$E22 -> 293.0303267 | L21: =$B21*Resumo!K$7/Contratos_volume!$E22 -> 304.7515397 | M21: =$B21*Resumo!L$7/Contratos_volume!$E22 -> 316.9416013 | N21: =$B21*Resumo!M$7/Contratos_volume!$E22 -> 329.6192654 | O21: =$B21*Resumo!N$7/Contratos_volume!$E22 -> 342.804036 | P21: =$B21*Resumo!O$7/Contratos_volume!$E22 -> 356.5161974 | Q21: =$B21*Resumo!P$7/Contratos_volume!$E22 -> 370.7768453 | R21: =$B21*Resumo!Q$7/Contratos_volume!$E22 -> 385.6079191 | S21: =$B21*Resumo!R$7/Contratos_volume!$E22 -> 401.0322359 | T21: =$B21*Resumo!S$7/Contratos_volume!$E22 -> 417.0735253 | U21: =$B21*Resumo!T$7/Contratos_volume!$E22 -> 433.7564664 | V21: =$B21*Resumo!U$7/Contratos_volume!$E22 -> 451.106725 | W21: =$B21*Resumo!V$7/Contratos_volume!$E22 -> 469.150994 | X21: =$B21*Resumo!W$7/Contratos_volume!$E22 -> 487.9170338 | Y21: =$B21*Resumo!X$7/Contratos_volume!$E22 -> 507.4337151 | Z21: =$B21*Resumo!Y$7/Contratos_volume!$E22 -> 527.7310637 | AA21: =$B21*Resumo!Z$7/Contratos_volume!$E22 -> 548.8403063 | AB21: =$B21*Resumo!AA$7/Contratos_volume!$E22 -> 570.7939185 | AC21: =$B21*Resumo!AB$7/Contratos_volume!$E22 -> 593.6256753 | AD21: =$B21*Resumo!AC$7/Contratos_volume!$E22 -> 617.3707023
A22: =Contratos_volume!B23 -> 02ºLEN | B22: =IFERROR((Contratos_volume!H23/Contratos_volume!I23),0) -> 124.6853409 | D22: =$B22*Resumo!C$7/Contratos_volume!$E23 -> 188.8101023 | E22: =$B22*Resumo!D$7/Contratos_volume!$E23 -> 204.1575403 | F22: =$B22*Resumo!E$7/Contratos_volume!$E23 -> 223.3205272 | G22: =$B22*Resumo!F$7/Contratos_volume!$E23 -> 233.9015706 | H22: =$B22*Resumo!G$7/Contratos_volume!$E23 -> 244.864595 | I22: =$B22*Resumo!H$7/Contratos_volume!$E23 -> 254.4143142 | J22: =$B22*Resumo!I$7/Contratos_volume!$E23 -> 265.3541297 | K22: =$B22*Resumo!J$7/Contratos_volume!$E23 -> 275.9682949 | L22: =$B22*Resumo!K$7/Contratos_volume!$E23 -> 287.0070267 | M22: =$B22*Resumo!L$7/Contratos_volume!$E23 -> 298.4873078 | N22: =$B22*Resumo!M$7/Contratos_volume!$E23 -> 310.4268001 | O22: =$B22*Resumo!N$7/Contratos_volume!$E23 -> 322.8438721 | P22: =$B22*Resumo!O$7/Contratos_volume!$E23 -> 335.757627 | Q22: =$B22*Resumo!P$7/Contratos_volume!$E23 -> 349.187932 | R22: =$B22*Resumo!Q$7/Contratos_volume!$E23 -> 363.1554493 | S22: =$B22*Resumo!R$7/Contratos_volume!$E23 -> 377.6816673 | T22: =$B22*Resumo!S$7/Contratos_volume!$E23 -> 392.788934 | U22: =$B22*Resumo!T$7/Contratos_volume!$E23 -> 408.5004913 | V22: =$B22*Resumo!U$7/Contratos_volume!$E23 -> 424.840511 | W22: =$B22*Resumo!V$7/Contratos_volume!$E23 -> 441.8341314 | X22: =$B22*Resumo!W$7/Contratos_volume!$E23 -> 459.5074967 | Y22: =$B22*Resumo!X$7/Contratos_volume!$E23 -> 477.8877966 | Z22: =$B22*Resumo!Y$7/Contratos_volume!$E23 -> 497.0033084 | AA22: =$B22*Resumo!Z$7/Contratos_volume!$E23 -> 516.8834408 | AB22: =$B22*Resumo!AA$7/Contratos_volume!$E23 -> 537.5587784 | AC22: =$B22*Resumo!AB$7/Contratos_volume!$E23 -> 559.0611295 | AD22: =$B22*Resumo!AC$7/Contratos_volume!$E23 -> 581.4235747
A23: =Contratos_volume!B24 -> 02ºLEN | B23: =IFERROR((Contratos_volume!H24/Contratos_volume!I24),0) -> 126.9615426 | D23: =$B23*Resumo!C$7/Contratos_volume!$E24 -> 192.2569379 | E23: =$B23*Resumo!D$7/Contratos_volume!$E24 -> 207.884552 | F23: =$B23*Resumo!E$7/Contratos_volume!$E24 -> 227.3973702 | G23: =$B23*Resumo!F$7/Contratos_volume!$E24 -> 238.1715764 | H23: =$B23*Resumo!G$7/Contratos_volume!$E24 -> 249.3347371 | I23: =$B23*Resumo!H$7/Contratos_volume!$E24 -> 259.0587918 | J23: =$B23*Resumo!I$7/Contratos_volume!$E24 -> 270.1983199 | K23: =$B23*Resumo!J$7/Contratos_volume!$E24 -> 281.0062527 | L23: =$B23*Resumo!K$7/Contratos_volume!$E24 -> 292.2465028 | M23: =$B23*Resumo!L$7/Contratos_volume!$E24 -> 303.9363629 | N23: =$B23*Resumo!M$7/Contratos_volume!$E24 -> 316.0938174 | O23: =$B23*Resumo!N$7/Contratos_volume!$E24 -> 328.7375701 | P23: =$B23*Resumo!O$7/Contratos_volume!$E24 -> 341.8870729 | Q23: =$B23*Resumo!P$7/Contratos_volume!$E24 -> 355.5625559 | R23: =$B23*Resumo!Q$7/Contratos_volume!$E24 -> 369.7850581 | S23: =$B23*Resumo!R$7/Contratos_volume!$E24 -> 384.5764604 | T23: =$B23*Resumo!S$7/Contratos_volume!$E24 -> 399.9595188 | U23: =$B23*Resumo!T$7/Contratos_volume!$E24 -> 415.9578996 | V23: =$B23*Resumo!U$7/Contratos_volume!$E24 -> 432.5962156 | W23: =$B23*Resumo!V$7/Contratos_volume!$E24 -> 449.9000642 | X23: =$B23*Resumo!W$7/Contratos_volume!$E24 -> 467.8960668 | Y23: =$B23*Resumo!X$7/Contratos_volume!$E24 -> 486.6119094 | Z23: =$B23*Resumo!Y$7/Contratos_volume!$E24 -> 506.0763858 | AA23: =$B23*Resumo!Z$7/Contratos_volume!$E24 -> 526.3194412 | AB23: =$B23*Resumo!AA$7/Contratos_volume!$E24 -> 547.3722189 | AC23: =$B23*Resumo!AB$7/Contratos_volume!$E24 -> 569.2671076 | AD23: =$B23*Resumo!AC$7/Contratos_volume!$E24 -> 592.0377919
A24: =Contratos_volume!B25 -> 03ºLEN | B24: =IFERROR((Contratos_volume!H25/Contratos_volume!I25),0) -> 137.4401682 | D24: =$B24*Resumo!C$7/Contratos_volume!$E25 -> 206.5098758 | E24: =$B24*Resumo!D$7/Contratos_volume!$E25 -> 223.2960407 | F24: =$B24*Resumo!E$7/Contratos_volume!$E25 -> 244.2554386 | G24: =$B24*Resumo!F$7/Contratos_volume!$E25 -> 255.8283889 | H24: =$B24*Resumo!G$7/Contratos_volume!$E25 -> 267.8191288 | I24: =$B24*Resumo!H$7/Contratos_volume!$E25 -> 278.2640748 | J24: =$B24*Resumo!I$7/Contratos_volume!$E25 -> 290.22943 | K24: =$B24*Resumo!J$7/Contratos_volume!$E25 -> 301.8386072 | L24: =$B24*Resumo!K$7/Contratos_volume!$E25 -> 313.9121515 | M24: =$B24*Resumo!L$7/Contratos_volume!$E25 -> 326.4686376 | N24: =$B24*Resumo!M$7/Contratos_volume!$E25 -> 339.5273831 | O24: =$B24*Resumo!N$7/Contratos_volume!$E25 -> 353.1084784 | P24: =$B24*Resumo!O$7/Contratos_volume!$E25 -> 367.2328175 | Q24: =$B24*Resumo!P$7/Contratos_volume!$E25 -> 381.9221302 | R24: =$B24*Resumo!Q$7/Contratos_volume!$E25 -> 397.1990154 | S24: =$B24*Resumo!R$7/Contratos_volume!$E25 -> 413.086976 | T24: =$B24*Resumo!S$7/Contratos_volume!$E25 -> 429.6104551 | U24: =$B24*Resumo!T$7/Contratos_volume!$E25 -> 446.7948733 | V24: =$B24*Resumo!U$7/Contratos_volume!$E25 -> 464.6666682 | W24: =$B24*Resumo!V$7/Contratos_volume!$E25 -> 483.2533349 | X24: =$B24*Resumo!W$7/Contratos_volume!$E25 -> 502.5834683 | Y24: =$B24*Resumo!X$7/Contratos_volume!$E25 -> 522.6868071 | Z24: =$B24*Resumo!Y$7/Contratos_volume!$E25 -> 543.5942794 | AA24: =$B24*Resumo!Z$7/Contratos_volume!$E25 -> 565.3380505 | AB24: =$B24*Resumo!AA$7/Contratos_volume!$E25 -> 587.9515726 | AC24: =$B24*Resumo!AB$7/Contratos_volume!$E25 -> 611.4696355 | AD24: =$B24*Resumo!AC$7/Contratos_volume!$E25 -> 635.9284209
A25: =Contratos_volume!B26 -> 03ºLEN | B25: =IFERROR((Contratos_volume!H26/Contratos_volume!I26),0) -> 120.8622496 | D25: =$B25*Resumo!C$7/Contratos_volume!$E26 -> 181.6008265 | E25: =$B25*Resumo!D$7/Contratos_volume!$E26 -> 196.3622582 | F25: =$B25*Resumo!E$7/Contratos_volume!$E26 -> 214.7935509 | G25: =$B25*Resumo!F$7/Contratos_volume!$E26 -> 224.9705816 | H25: =$B25*Resumo!G$7/Contratos_volume!$E26 -> 235.5150084 | I25: =$B25*Resumo!H$7/Contratos_volume!$E26 -> 244.7000937 | J25: =$B25*Resumo!I$7/Contratos_volume!$E26 -> 255.2221978 | K25: =$B25*Resumo!J$7/Contratos_volume!$E26 -> 265.4310857 | L25: =$B25*Resumo!K$7/Contratos_volume!$E26 -> 276.0483291 | M25: =$B25*Resumo!L$7/Contratos_volume!$E26 -> 287.0902623 | N25: =$B25*Resumo!M$7/Contratos_volume!$E26 -> 298.5738728 | O25: =$B25*Resumo!N$7/Contratos_volume!$E26 -> 310.5168277 | P25: =$B25*Resumo!O$7/Contratos_volume!$E26 -> 322.9375008 | Q25: =$B25*Resumo!P$7/Contratos_volume!$E26 -> 335.8550008 | R25: =$B25*Resumo!Q$7/Contratos_volume!$E26 -> 349.2892009 | S25: =$B25*Resumo!R$7/Contratos_volume!$E26 -> 363.2607689 | T25: =$B25*Resumo!S$7/Contratos_volume!$E26 -> 377.7911996 | U25: =$B25*Resumo!T$7/Contratos_volume!$E26 -> 392.9028476 | V25: =$B25*Resumo!U$7/Contratos_volume!$E26 -> 408.6189615 | W25: =$B25*Resumo!V$7/Contratos_volume!$E26 -> 424.96372 | X25: =$B25*Resumo!W$7/Contratos_volume!$E26 -> 441.9622688 | Y25: =$B25*Resumo!X$7/Contratos_volume!$E26 -> 459.6407595 | Z25: =$B25*Resumo!Y$7/Contratos_volume!$E26 -> 478.0263899 | AA25: =$B25*Resumo!Z$7/Contratos_volume!$E26 -> 497.1474455 | AB25: =$B25*Resumo!AA$7/Contratos_volume!$E26 -> 517.0333433 | AC25: =$B25*Resumo!AB$7/Contratos_volume!$E26 -> 537.7146771 | AD25: =$B25*Resumo!AC$7/Contratos_volume!$E26 -> 559.2232642
A26: =Contratos_volume!B27 -> 03ºLFA | B26: =IFERROR((Contratos_volume!H27/Contratos_volume!I27),0) -> 209.9087054 | D26: =$B26*Resumo!C$7/Contratos_volume!$E27 -> 192.7602531 | E26: =$B26*Resumo!D$7/Contratos_volume!$E27 -> 208.4287792 | F26: =$B26*Resumo!E$7/Contratos_volume!$E27 -> 227.9926806 | G26: =$B26*Resumo!F$7/Contratos_volume!$E27 -> 238.795093 | H26: =$B26*Resumo!G$7/Contratos_volume!$E27 -> 249.987478 | I26: =$B26*Resumo!H$7/Contratos_volume!$E27 -> 259.7369897 | J26: =$B26*Resumo!I$7/Contratos_volume!$E27 -> 270.9056802 | K26: =$B26*Resumo!J$7/Contratos_volume!$E27 -> 281.7419074 | L26: =$B26*Resumo!K$7/Contratos_volume!$E27 -> 293.0115837 | M26: =$B26*Resumo!L$7/Contratos_volume!$E27 -> 304.7320471 | N26: =$B26*Resumo!M$7/Contratos_volume!$E27 -> 316.921329 | O26: =$B26*Resumo!N$7/Contratos_volume!$E27 -> 329.5981821 | P26: =$B26*Resumo!O$7/Contratos_volume!$E27 -> 342.7821094 | Q26: =$B26*Resumo!P$7/Contratos_volume!$E27 -> 356.4933938 | R26: =$B26*Resumo!Q$7/Contratos_volume!$E27 -> 370.7531295 | S26: =$B26*Resumo!R$7/Contratos_volume!$E27 -> 385.5832547 | T26: =$B26*Resumo!S$7/Contratos_volume!$E27 -> 401.0065849 | U26: =$B26*Resumo!T$7/Contratos_volume!$E27 -> 417.0468483 | V26: =$B26*Resumo!U$7/Contratos_volume!$E27 -> 433.7287222 | W26: =$B26*Resumo!V$7/Contratos_volume!$E27 -> 451.0778711 | X26: =$B26*Resumo!W$7/Contratos_volume!$E27 -> 469.120986 | Y26: =$B26*Resumo!X$7/Contratos_volume!$E27 -> 487.8858254 | Z26: =$B26*Resumo!Y$7/Contratos_volume!$E27 -> 507.4012584 | AA26: =$B26*Resumo!Z$7/Contratos_volume!$E27 -> 527.6973088 | AB26: =$B26*Resumo!AA$7/Contratos_volume!$E27 -> 548.8052011 | AC26: =$B26*Resumo!AB$7/Contratos_volume!$E27 -> 570.7574092 | AD26: =$B26*Resumo!AC$7/Contratos_volume!$E27 -> 593.5877055
A27: =Contratos_volume!B28 -> 03ºLFA | B27: =IFERROR((Contratos_volume!H28/Contratos_volume!I28),0) -> 177.4699327 | D27: =$B27*Resumo!C$7/Contratos_volume!$E28 -> 162.9715598 | E27: =$B27*Resumo!D$7/Contratos_volume!$E28 -> 176.2187107 | F27: =$B27*Resumo!E$7/Contratos_volume!$E28 -> 192.759255 | G27: =$B27*Resumo!F$7/Contratos_volume!$E28 -> 201.8922893 | H27: =$B27*Resumo!G$7/Contratos_volume!$E28 -> 211.3550308 | I27: =$B27*Resumo!H$7/Contratos_volume!$E28 -> 219.597877 | J27: =$B27*Resumo!I$7/Contratos_volume!$E28 -> 229.0405857 | K27: =$B27*Resumo!J$7/Contratos_volume!$E28 -> 238.2022092 | L27: =$B27*Resumo!K$7/Contratos_volume!$E28 -> 247.7302975 | M27: =$B27*Resumo!L$7/Contratos_volume!$E28 -> 257.6395094 | N27: =$B27*Resumo!M$7/Contratos_volume!$E28 -> 267.9450898 | O27: =$B27*Resumo!N$7/Contratos_volume!$E28 -> 278.6628934 | P27: =$B27*Resumo!O$7/Contratos_volume!$E28 -> 289.8094091 | Q27: =$B27*Resumo!P$7/Contratos_volume!$E28 -> 301.4017855 | R27: =$B27*Resumo!Q$7/Contratos_volume!$E28 -> 313.4578569 | S27: =$B27*Resumo!R$7/Contratos_volume!$E28 -> 325.9961712 | T27: =$B27*Resumo!S$7/Contratos_volume!$E28 -> 339.036018 | U27: =$B27*Resumo!T$7/Contratos_volume!$E28 -> 352.5974588 | V27: =$B27*Resumo!U$7/Contratos_volume!$E28 -> 366.7013571 | W27: =$B27*Resumo!V$7/Contratos_volume!$E28 -> 381.3694114 | X27: =$B27*Resumo!W$7/Contratos_volume!$E28 -> 396.6241879 | Y27: =$B27*Resumo!X$7/Contratos_volume!$E28 -> 412.4891554 | Z27: =$B27*Resumo!Y$7/Contratos_volume!$E28 -> 428.9887216 | AA27: =$B27*Resumo!Z$7/Contratos_volume!$E28 -> 446.1482704 | AB27: =$B27*Resumo!AA$7/Contratos_volume!$E28 -> 463.9942013 | AC27: =$B27*Resumo!AB$7/Contratos_volume!$E28 -> 482.5539693 | AD27: =$B27*Resumo!AC$7/Contratos_volume!$E28 -> 501.8561281
A28: =Contratos_volume!B29 -> 04ºLEE | B28: =IFERROR((Contratos_volume!H29/Contratos_volume!I29),0) -> 0 | D28: =$B28*Resumo!C$7/Contratos_volume!$E29 -> 0 | E28: =$B28*Resumo!D$7/Contratos_volume!$E29 -> 0 | F28: =$B28*Resumo!E$7/Contratos_volume!$E29 -> 0 | G28: =$B28*Resumo!F$7/Contratos_volume!$E29 -> 0 | H28: =$B28*Resumo!G$7/Contratos_volume!$E29 -> 0 | I28: =$B28*Resumo!H$7/Contratos_volume!$E29 -> 0 | J28: =$B28*Resumo!I$7/Contratos_volume!$E29 -> 0 | K28: =$B28*Resumo!J$7/Contratos_volume!$E29 -> 0 | L28: =$B28*Resumo!K$7/Contratos_volume!$E29 -> 0 | M28: =$B28*Resumo!L$7/Contratos_volume!$E29 -> 0 | N28: =$B28*Resumo!M$7/Contratos_volume!$E29 -> 0 | O28: =$B28*Resumo!N$7/Contratos_volume!$E29 -> 0 | P28: =$B28*Resumo!O$7/Contratos_volume!$E29 -> 0 | Q28: =$B28*Resumo!P$7/Contratos_volume!$E29 -> 0 | R28: =$B28*Resumo!Q$7/Contratos_volume!$E29 -> 0 | S28: =$B28*Resumo!R$7/Contratos_volume!$E29 -> 0 | T28: =$B28*Resumo!S$7/Contratos_volume!$E29 -> 0 | U28: =$B28*Resumo!T$7/Contratos_volume!$E29 -> 0 | V28: =$B28*Resumo!U$7/Contratos_volume!$E29 -> 0 | W28: =$B28*Resumo!V$7/Contratos_volume!$E29 -> 0 | X28: =$B28*Resumo!W$7/Contratos_volume!$E29 -> 0 | Y28: =$B28*Resumo!X$7/Contratos_volume!$E29 -> 0 | Z28: =$B28*Resumo!Y$7/Contratos_volume!$E29 -> 0 | AA28: =$B28*Resumo!Z$7/Contratos_volume!$E29 -> 0 | AB28: =$B28*Resumo!AA$7/Contratos_volume!$E29 -> 0 | AC28: =$B28*Resumo!AB$7/Contratos_volume!$E29 -> 0 | AD28: =$B28*Resumo!AC$7/Contratos_volume!$E29 -> 0
A29: =Contratos_volume!B30 -> 04ºLEN | B29: =IFERROR((Contratos_volume!H30/Contratos_volume!I30),0) -> 134.9527074 | D29: =$B29*Resumo!C$7/Contratos_volume!$E30 -> 196.6136862 | E29: =$B29*Resumo!D$7/Contratos_volume!$E30 -> 212.5954389 | F29: =$B29*Resumo!E$7/Contratos_volume!$E30 -> 232.5504384 | G29: =$B29*Resumo!F$7/Contratos_volume!$E30 -> 243.5687997 | H29: =$B29*Resumo!G$7/Contratos_volume!$E30 -> 254.9849296 | I29: =$B29*Resumo!H$7/Contratos_volume!$E30 -> 264.9293418 | J29: =$B29*Resumo!I$7/Contratos_volume!$E30 -> 276.3213035 | K29: =$B29*Resumo!J$7/Contratos_volume!$E30 -> 287.3741557 | L29: =$B29*Resumo!K$7/Contratos_volume!$E30 -> 298.8691219 | M29: =$B29*Resumo!L$7/Contratos_volume!$E30 -> 310.8238868 | N29: =$B29*Resumo!M$7/Contratos_volume!$E30 -> 323.2568422 | O29: =$B29*Resumo!N$7/Contratos_volume!$E30 -> 336.1871159 | P29: =$B29*Resumo!O$7/Contratos_volume!$E30 -> 349.6346006 | Q29: =$B29*Resumo!P$7/Contratos_volume!$E30 -> 363.6199846 | R29: =$B29*Resumo!Q$7/Contratos_volume!$E30 -> 378.164784 | S29: =$B29*Resumo!R$7/Contratos_volume!$E30 -> 393.2913753 | T29: =$B29*Resumo!S$7/Contratos_volume!$E30 -> 409.0230304 | U29: =$B29*Resumo!T$7/Contratos_volume!$E30 -> 425.3839516 | V29: =$B29*Resumo!U$7/Contratos_volume!$E30 -> 442.3993096 | W29: =$B29*Resumo!V$7/Contratos_volume!$E30 -> 460.095282 | X29: =$B29*Resumo!W$7/Contratos_volume!$E30 -> 478.4990933 | Y29: =$B29*Resumo!X$7/Contratos_volume!$E30 -> 497.639057 | Z29: =$B29*Resumo!Y$7/Contratos_volume!$E30 -> 517.5446193 | AA29: =$B29*Resumo!Z$7/Contratos_volume!$E30 -> 538.2464041 | AB29: =$B29*Resumo!AA$7/Contratos_volume!$E30 -> 559.7762602 | AC29: =$B29*Resumo!AB$7/Contratos_volume!$E30 -> 582.1673107 | AD29: =$B29*Resumo!AC$7/Contratos_volume!$E30 -> 605.4540031
A30: =Contratos_volume!B31 -> 05ºLEE | B30: =IFERROR((Contratos_volume!H31/Contratos_volume!I31),0) -> 0 | D30: =$B30*Resumo!C$7/Contratos_volume!$E31 -> 0 | E30: =$B30*Resumo!D$7/Contratos_volume!$E31 -> 0 | F30: =$B30*Resumo!E$7/Contratos_volume!$E31 -> 0 | G30: =$B30*Resumo!F$7/Contratos_volume!$E31 -> 0 | H30: =$B30*Resumo!G$7/Contratos_volume!$E31 -> 0 | I30: =$B30*Resumo!H$7/Contratos_volume!$E31 -> 0 | J30: =$B30*Resumo!I$7/Contratos_volume!$E31 -> 0 | K30: =$B30*Resumo!J$7/Contratos_volume!$E31 -> 0 | L30: =$B30*Resumo!K$7/Contratos_volume!$E31 -> 0 | M30: =$B30*Resumo!L$7/Contratos_volume!$E31 -> 0 | N30: =$B30*Resumo!M$7/Contratos_volume!$E31 -> 0 | O30: =$B30*Resumo!N$7/Contratos_volume!$E31 -> 0 | P30: =$B30*Resumo!O$7/Contratos_volume!$E31 -> 0 | Q30: =$B30*Resumo!P$7/Contratos_volume!$E31 -> 0 | R30: =$B30*Resumo!Q$7/Contratos_volume!$E31 -> 0 | S30: =$B30*Resumo!R$7/Contratos_volume!$E31 -> 0 | T30: =$B30*Resumo!S$7/Contratos_volume!$E31 -> 0 | U30: =$B30*Resumo!T$7/Contratos_volume!$E31 -> 0 | V30: =$B30*Resumo!U$7/Contratos_volume!$E31 -> 0 | W30: =$B30*Resumo!V$7/Contratos_volume!$E31 -> 0 | X30: =$B30*Resumo!W$7/Contratos_volume!$E31 -> 0 | Y30: =$B30*Resumo!X$7/Contratos_volume!$E31 -> 0 | Z30: =$B30*Resumo!Y$7/Contratos_volume!$E31 -> 0 | AA30: =$B30*Resumo!Z$7/Contratos_volume!$E31 -> 0 | AB30: =$B30*Resumo!AA$7/Contratos_volume!$E31 -> 0 | AC30: =$B30*Resumo!AB$7/Contratos_volume!$E31 -> 0 | AD30: =$B30*Resumo!AC$7/Contratos_volume!$E31 -> 0
A31: =Contratos_volume!B32 -> 05ºLEN | B31: =IFERROR((Contratos_volume!H32/Contratos_volume!I32),0) -> 128.2805239 | D31: =$B31*Resumo!C$7/Contratos_volume!$E32 -> 185.1286715 | E31: =$B31*Resumo!D$7/Contratos_volume!$E32 -> 200.1768641 | F31: =$B31*Resumo!E$7/Contratos_volume!$E32 -> 218.96621 | G31: =$B31*Resumo!F$7/Contratos_volume!$E32 -> 229.3409435 | H31: =$B31*Resumo!G$7/Contratos_volume!$E32 -> 240.0902102 | I31: =$B31*Resumo!H$7/Contratos_volume!$E32 -> 249.4537284 | J31: =$B31*Resumo!I$7/Contratos_volume!$E32 -> 260.1802387 | K31: =$B31*Resumo!J$7/Contratos_volume!$E32 -> 270.5874483 | L31: =$B31*Resumo!K$7/Contratos_volume!$E32 -> 281.4109462 | M31: =$B31*Resumo!L$7/Contratos_volume!$E32 -> 292.6673841 | N31: =$B31*Resumo!M$7/Contratos_volume!$E32 -> 304.3740794 | O31: =$B31*Resumo!N$7/Contratos_volume!$E32 -> 316.5490426 | P31: =$B31*Resumo!O$7/Contratos_volume!$E32 -> 329.2110043 | Q31: =$B31*Resumo!P$7/Contratos_volume!$E32 -> 342.3794445 | R31: =$B31*Resumo!Q$7/Contratos_volume!$E32 -> 356.0746223 | S31: =$B31*Resumo!R$7/Contratos_volume!$E32 -> 370.3176072 | T31: =$B31*Resumo!S$7/Contratos_volume!$E32 -> 385.1303114 | U31: =$B31*Resumo!T$7/Contratos_volume!$E32 -> 400.5355239 | V31: =$B31*Resumo!U$7/Contratos_volume!$E32 -> 416.5569449 | W31: =$B31*Resumo!V$7/Contratos_volume!$E32 -> 433.2192226 | X31: =$B31*Resumo!W$7/Contratos_volume!$E32 -> 450.5479916 | Y31: =$B31*Resumo!X$7/Contratos_volume!$E32 -> 468.5699112 | Z31: =$B31*Resumo!Y$7/Contratos_volume!$E32 -> 487.3127077 | AA31: =$B31*Resumo!Z$7/Contratos_volume!$E32 -> 506.805216 | AB31: =$B31*Resumo!AA$7/Contratos_volume!$E32 -> 527.0774246 | AC31: =$B31*Resumo!AB$7/Contratos_volume!$E32 -> 548.1605216 | AD31: =$B31*Resumo!AC$7/Contratos_volume!$E32 -> 570.0869425
A32: =Contratos_volume!B33 -> 05ºLEN | B32: =IFERROR((Contratos_volume!H33/Contratos_volume!I33),0) -> 129.1445315 | D32: =$B32*Resumo!C$7/Contratos_volume!$E33 -> 186.3755682 | E32: =$B32*Resumo!D$7/Contratos_volume!$E33 -> 201.5251149 | F32: =$B32*Resumo!E$7/Contratos_volume!$E33 -> 220.4410126 | G32: =$B32*Resumo!F$7/Contratos_volume!$E33 -> 230.8856231 | H32: =$B32*Resumo!G$7/Contratos_volume!$E33 -> 241.7072893 | I32: =$B32*Resumo!H$7/Contratos_volume!$E33 -> 251.1338736 | J32: =$B32*Resumo!I$7/Contratos_volume!$E33 -> 261.9326301 | K32: =$B32*Resumo!J$7/Contratos_volume!$E33 -> 272.4099353 | L32: =$B32*Resumo!K$7/Contratos_volume!$E33 -> 283.3063328 | M32: =$B32*Resumo!L$7/Contratos_volume!$E33 -> 294.6385861 | N32: =$B32*Resumo!M$7/Contratos_volume!$E33 -> 306.4241295 | O32: =$B32*Resumo!N$7/Contratos_volume!$E33 -> 318.6810947 | P32: =$B32*Resumo!O$7/Contratos_volume!$E33 -> 331.4283385 | Q32: =$B32*Resumo!P$7/Contratos_volume!$E33 -> 344.685472 | R32: =$B32*Resumo!Q$7/Contratos_volume!$E33 -> 358.4728909 | S32: =$B32*Resumo!R$7/Contratos_volume!$E33 -> 372.8118065 | T32: =$B32*Resumo!S$7/Contratos_volume!$E33 -> 387.7242788 | U32: =$B32*Resumo!T$7/Contratos_volume!$E33 -> 403.2332499 | V32: =$B32*Resumo!U$7/Contratos_volume!$E33 -> 419.3625799 | W32: =$B32*Resumo!V$7/Contratos_volume!$E33 -> 436.1370831 | X32: =$B32*Resumo!W$7/Contratos_volume!$E33 -> 453.5825665 | Y32: =$B32*Resumo!X$7/Contratos_volume!$E33 -> 471.7258691 | Z32: =$B32*Resumo!Y$7/Contratos_volume!$E33 -> 490.5949039 | AA32: =$B32*Resumo!Z$7/Contratos_volume!$E33 -> 510.2187 | AB32: =$B32*Resumo!AA$7/Contratos_volume!$E33 -> 530.627448 | AC32: =$B32*Resumo!AB$7/Contratos_volume!$E33 -> 551.852546 | AD32: =$B32*Resumo!AC$7/Contratos_volume!$E33 -> 573.9266478
A33: =Contratos_volume!B34 -> 06ºLA | B33: =IFERROR((Contratos_volume!H34/Contratos_volume!I34),0) -> 139.05 | D33: =$B33*Resumo!C$7/Contratos_volume!$E34 -> 201.2727337 | E33: =$B33*Resumo!D$7/Contratos_volume!$E34 -> 217.6331972 | F33: =$B33*Resumo!E$7/Contratos_volume!$E34 -> 238.0610595 | G33: =$B33*Resumo!F$7/Contratos_volume!$E34 -> 249.3405169 | H33: =$B33*Resumo!G$7/Contratos_volume!$E34 -> 261.0271686 | I33: =$B33*Resumo!H$7/Contratos_volume!$E34 -> 271.2072282 | J33: =$B33*Resumo!I$7/Contratos_volume!$E34 -> 282.869139 | K33: =$B33*Resumo!J$7/Contratos_volume!$E34 -> 294.1839045 | L33: =$B33*Resumo!K$7/Contratos_volume!$E34 -> 305.9512607 | M33: =$B33*Resumo!L$7/Contratos_volume!$E34 -> 318.1893111 | N33: =$B33*Resumo!M$7/Contratos_volume!$E34 -> 330.9168836 | O33: =$B33*Resumo!N$7/Contratos_volume!$E34 -> 344.1535589 | P33: =$B33*Resumo!O$7/Contratos_volume!$E34 -> 357.9197013 | Q33: =$B33*Resumo!P$7/Contratos_volume!$E34 -> 372.2364893 | R33: =$B33*Resumo!Q$7/Contratos_volume!$E34 -> 387.1259489 | S33: =$B33*Resumo!R$7/Contratos_volume!$E34 -> 402.6109869 | T33: =$B33*Resumo!S$7/Contratos_volume!$E34 -> 418.7154264 | U33: =$B33*Resumo!T$7/Contratos_volume!$E34 -> 435.4640434 | V33: =$B33*Resumo!U$7/Contratos_volume!$E34 -> 452.8826051 | W33: =$B33*Resumo!V$7/Contratos_volume!$E34 -> 470.9979093 | X33: =$B33*Resumo!W$7/Contratos_volume!$E34 -> 489.8378257 | Y33: =$B33*Resumo!X$7/Contratos_volume!$E34 -> 509.4313387 | Z33: =$B33*Resumo!Y$7/Contratos_volume!$E34 -> 529.8085923 | AA33: =$B33*Resumo!Z$7/Contratos_volume!$E34 -> 551.000936 | AB33: =$B33*Resumo!AA$7/Contratos_volume!$E34 -> 573.0409734 | AC33: =$B33*Resumo!AB$7/Contratos_volume!$E34 -> 595.9626124 | AD33: =$B33*Resumo!AC$7/Contratos_volume!$E34 -> 619.8011169
A34: =Contratos_volume!B35 -> 07ºLEN | B34: =IFERROR((Contratos_volume!H35/Contratos_volume!I35),0) -> 144.0698276 | D34: =$B34*Resumo!C$7/Contratos_volume!$E35 -> 196.2708792 | E34: =$B34*Resumo!D$7/Contratos_volume!$E35 -> 212.2247668 | F34: =$B34*Resumo!E$7/Contratos_volume!$E35 -> 232.1449737 | G34: =$B34*Resumo!F$7/Contratos_volume!$E35 -> 243.1441239 | H34: =$B34*Resumo!G$7/Contratos_volume!$E35 -> 254.5403491 | I34: =$B34*Resumo!H$7/Contratos_volume!$E35 -> 264.4674227 | J34: =$B34*Resumo!I$7/Contratos_volume!$E35 -> 275.8395218 | K34: =$B34*Resumo!J$7/Contratos_volume!$E35 -> 286.8731027 | L34: =$B34*Resumo!K$7/Contratos_volume!$E35 -> 298.3480268 | M34: =$B34*Resumo!L$7/Contratos_volume!$E35 -> 310.2819479 | N34: =$B34*Resumo!M$7/Contratos_volume!$E35 -> 322.6932258 | O34: =$B34*Resumo!N$7/Contratos_volume!$E35 -> 335.6009549 | P34: =$B34*Resumo!O$7/Contratos_volume!$E35 -> 349.024993 | Q34: =$B34*Resumo!P$7/Contratos_volume!$E35 -> 362.9859928 | R34: =$B34*Resumo!Q$7/Contratos_volume!$E35 -> 377.5054325 | S34: =$B34*Resumo!R$7/Contratos_volume!$E35 -> 392.6056498 | T34: =$B34*Resumo!S$7/Contratos_volume!$E35 -> 408.3098758 | U34: =$B34*Resumo!T$7/Contratos_volume!$E35 -> 424.6422708 | V34: =$B34*Resumo!U$7/Contratos_volume!$E35 -> 441.6279616 | W34: =$B34*Resumo!V$7/Contratos_volume!$E35 -> 459.2930801 | X34: =$B34*Resumo!W$7/Contratos_volume!$E35 -> 477.6648033 | Y34: =$B34*Resumo!X$7/Contratos_volume!$E35 -> 496.7713954 | Z34: =$B34*Resumo!Y$7/Contratos_volume!$E35 -> 516.6422513 | AA34: =$B34*Resumo!Z$7/Contratos_volume!$E35 -> 537.3079413 | AB34: =$B34*Resumo!AA$7/Contratos_volume!$E35 -> 558.800259 | AC34: =$B34*Resumo!AB$7/Contratos_volume!$E35 -> 581.1522693 | AD34: =$B34*Resumo!AC$7/Contratos_volume!$E35 -> 604.3983601
A35: =Contratos_volume!B36 -> 07ºLEN | B35: =IFERROR((Contratos_volume!H36/Contratos_volume!I36),0) -> 98.98 | D35: =$B35*Resumo!C$7/Contratos_volume!$E36 -> 134.8435821 | E35: =$B35*Resumo!D$7/Contratos_volume!$E36 -> 145.804349 | F35: =$B35*Resumo!E$7/Contratos_volume!$E36 -> 159.4900881 | G35: =$B35*Resumo!F$7/Contratos_volume!$E36 -> 167.0468118 | H35: =$B35*Resumo!G$7/Contratos_volume!$E36 -> 174.8763372 | I35: =$B35*Resumo!H$7/Contratos_volume!$E36 -> 181.6965144 | J35: =$B35*Resumo!I$7/Contratos_volume!$E36 -> 189.5094645 | K35: =$B35*Resumo!J$7/Contratos_volume!$E36 -> 197.0898431 | L35: =$B35*Resumo!K$7/Contratos_volume!$E36 -> 204.9734368 | M35: =$B35*Resumo!L$7/Contratos_volume!$E36 -> 213.1723743 | N35: =$B35*Resumo!M$7/Contratos_volume!$E36 -> 221.6992692 | O35: =$B35*Resumo!N$7/Contratos_volume!$E36 -> 230.56724 | P35: =$B35*Resumo!O$7/Contratos_volume!$E36 -> 239.7899296 | Q35: =$B35*Resumo!P$7/Contratos_volume!$E36 -> 249.3815268 | R35: =$B35*Resumo!Q$7/Contratos_volume!$E36 -> 259.3567878 | S35: =$B35*Resumo!R$7/Contratos_volume!$E36 -> 269.7310594 | T35: =$B35*Resumo!S$7/Contratos_volume!$E36 -> 280.5203017 | U35: =$B35*Resumo!T$7/Contratos_volume!$E36 -> 291.7411138 | V35: =$B35*Resumo!U$7/Contratos_volume!$E36 -> 303.4107584 | W35: =$B35*Resumo!V$7/Contratos_volume!$E36 -> 315.5471887 | X35: =$B35*Resumo!W$7/Contratos_volume!$E36 -> 328.1690762 | Y35: =$B35*Resumo!X$7/Contratos_volume!$E36 -> 341.2958393 | Z35: =$B35*Resumo!Y$7/Contratos_volume!$E36 -> 354.9476729 | AA35: =$B35*Resumo!Z$7/Contratos_volume!$E36 -> 369.1455798 | AB35: =$B35*Resumo!AA$7/Contratos_volume!$E36 -> 383.911403 | AC35: =$B35*Resumo!AB$7/Contratos_volume!$E36 -> 399.2678591 | AD35: =$B35*Resumo!AC$7/Contratos_volume!$E36 -> 415.2385735
A36: =Contratos_volume!B37 -> 08ºLEE | B36: =IFERROR((Contratos_volume!H37/Contratos_volume!I37),0) -> 0 | D36: =$B36*Resumo!C$7/Contratos_volume!$E37 -> 0 | E36: =$B36*Resumo!D$7/Contratos_volume!$E37 -> 0 | F36: =$B36*Resumo!E$7/Contratos_volume!$E37 -> 0 | G36: =$B36*Resumo!F$7/Contratos_volume!$E37 -> 0 | H36: =$B36*Resumo!G$7/Contratos_volume!$E37 -> 0 | I36: =$B36*Resumo!H$7/Contratos_volume!$E37 -> 0 | J36: =$B36*Resumo!I$7/Contratos_volume!$E37 -> 0 | K36: =$B36*Resumo!J$7/Contratos_volume!$E37 -> 0 | L36: =$B36*Resumo!K$7/Contratos_volume!$E37 -> 0 | M36: =$B36*Resumo!L$7/Contratos_volume!$E37 -> 0 | N36: =$B36*Resumo!M$7/Contratos_volume!$E37 -> 0 | O36: =$B36*Resumo!N$7/Contratos_volume!$E37 -> 0 | P36: =$B36*Resumo!O$7/Contratos_volume!$E37 -> 0 | Q36: =$B36*Resumo!P$7/Contratos_volume!$E37 -> 0 | R36: =$B36*Resumo!Q$7/Contratos_volume!$E37 -> 0 | S36: =$B36*Resumo!R$7/Contratos_volume!$E37 -> 0 | T36: =$B36*Resumo!S$7/Contratos_volume!$E37 -> 0 | U36: =$B36*Resumo!T$7/Contratos_volume!$E37 -> 0 | V36: =$B36*Resumo!U$7/Contratos_volume!$E37 -> 0 | W36: =$B36*Resumo!V$7/Contratos_volume!$E37 -> 0 | X36: =$B36*Resumo!W$7/Contratos_volume!$E37 -> 0 | Y36: =$B36*Resumo!X$7/Contratos_volume!$E37 -> 0 | Z36: =$B36*Resumo!Y$7/Contratos_volume!$E37 -> 0 | AA36: =$B36*Resumo!Z$7/Contratos_volume!$E37 -> 0 | AB36: =$B36*Resumo!AA$7/Contratos_volume!$E37 -> 0 | AC36: =$B36*Resumo!AB$7/Contratos_volume!$E37 -> 0 | AD36: =$B36*Resumo!AC$7/Contratos_volume!$E37 -> 0
A37: =Contratos_volume!B38 -> 10ºLEE | B37: =IFERROR((Contratos_volume!H38/Contratos_volume!I38),0) -> 0 | D37: =$B37*Resumo!C$7/Contratos_volume!$E38 -> 0 | E37: =$B37*Resumo!D$7/Contratos_volume!$E38 -> 0 | F37: =$B37*Resumo!E$7/Contratos_volume!$E38 -> 0 | G37: =$B37*Resumo!F$7/Contratos_volume!$E38 -> 0 | H37: =$B37*Resumo!G$7/Contratos_volume!$E38 -> 0 | I37: =$B37*Resumo!H$7/Contratos_volume!$E38 -> 0 | J37: =$B37*Resumo!I$7/Contratos_volume!$E38 -> 0 | K37: =$B37*Resumo!J$7/Contratos_volume!$E38 -> 0 | L37: =$B37*Resumo!K$7/Contratos_volume!$E38 -> 0 | M37: =$B37*Resumo!L$7/Contratos_volume!$E38 -> 0 | N37: =$B37*Resumo!M$7/Contratos_volume!$E38 -> 0 | O37: =$B37*Resumo!N$7/Contratos_volume!$E38 -> 0 | P37: =$B37*Resumo!O$7/Contratos_volume!$E38 -> 0 | Q37: =$B37*Resumo!P$7/Contratos_volume!$E38 -> 0 | R37: =$B37*Resumo!Q$7/Contratos_volume!$E38 -> 0 | S37: =$B37*Resumo!R$7/Contratos_volume!$E38 -> 0 | T37: =$B37*Resumo!S$7/Contratos_volume!$E38 -> 0 | U37: =$B37*Resumo!T$7/Contratos_volume!$E38 -> 0 | V37: =$B37*Resumo!U$7/Contratos_volume!$E38 -> 0 | W37: =$B37*Resumo!V$7/Contratos_volume!$E38 -> 0 | X37: =$B37*Resumo!W$7/Contratos_volume!$E38 -> 0 | Y37: =$B37*Resumo!X$7/Contratos_volume!$E38 -> 0 | Z37: =$B37*Resumo!Y$7/Contratos_volume!$E38 -> 0 | AA37: =$B37*Resumo!Z$7/Contratos_volume!$E38 -> 0 | AB37: =$B37*Resumo!AA$7/Contratos_volume!$E38 -> 0 | AC37: =$B37*Resumo!AB$7/Contratos_volume!$E38 -> 0 | AD37: =$B37*Resumo!AC$7/Contratos_volume!$E38 -> 0
A38: =Contratos_volume!B39 -> 10ºLEN | B38: =IFERROR((Contratos_volume!H39/Contratos_volume!I39),0) -> 154.2020513 | D38: =$B38*Resumo!C$7/Contratos_volume!$E39 -> 193.226786 | E38: =$B38*Resumo!D$7/Contratos_volume!$E39 -> 208.9332343 | F38: =$B38*Resumo!E$7/Contratos_volume!$E39 -> 228.5444857 | G38: =$B38*Resumo!F$7/Contratos_volume!$E39 -> 239.3730429 | H38: =$B38*Resumo!G$7/Contratos_volume!$E39 -> 250.5925166 | I38: =$B38*Resumo!H$7/Contratos_volume!$E39 -> 260.3656248 | J38: =$B38*Resumo!I$7/Contratos_volume!$E39 -> 271.5613466 | K38: =$B38*Resumo!J$7/Contratos_volume!$E39 -> 282.4238005 | L38: =$B38*Resumo!K$7/Contratos_volume!$E39 -> 293.7207525 | M38: =$B38*Resumo!L$7/Contratos_volume!$E39 -> 305.4695826 | N38: =$B38*Resumo!M$7/Contratos_volume!$E39 -> 317.6883659 | O38: =$B38*Resumo!N$7/Contratos_volume!$E39 -> 330.3959006 | P38: =$B38*Resumo!O$7/Contratos_volume!$E39 -> 343.6117366 | Q38: =$B38*Resumo!P$7/Contratos_volume!$E39 -> 357.3562061 | R38: =$B38*Resumo!Q$7/Contratos_volume!$E39 -> 371.6504543 | S38: =$B38*Resumo!R$7/Contratos_volume!$E39 -> 386.5164725 | T38: =$B38*Resumo!S$7/Contratos_volume!$E39 -> 401.9771314 | U38: =$B38*Resumo!T$7/Contratos_volume!$E39 -> 418.0562166 | V38: =$B38*Resumo!U$7/Contratos_volume!$E39 -> 434.7784653 | W38: =$B38*Resumo!V$7/Contratos_volume!$E39 -> 452.1696039 | X38: =$B38*Resumo!W$7/Contratos_volume!$E39 -> 470.2563881 | Y38: =$B38*Resumo!X$7/Contratos_volume!$E39 -> 489.0666436 | Z38: =$B38*Resumo!Y$7/Contratos_volume!$E39 -> 508.6293093 | AA38: =$B38*Resumo!Z$7/Contratos_volume!$E39 -> 528.9744817 | AB38: =$B38*Resumo!AA$7/Contratos_volume!$E39 -> 550.133461 | AC38: =$B38*Resumo!AB$7/Contratos_volume!$E39 -> 572.1387994 | AD38: =$B38*Resumo!AC$7/Contratos_volume!$E39 -> 595.0243514
A39: =Contratos_volume!B40 -> 10ºLEN | B39: =IFERROR((Contratos_volume!H40/Contratos_volume!I40),0) -> 92.06506945 | D39: =$B39*Resumo!C$7/Contratos_volume!$E40 -> 115.3644671 | E39: =$B39*Resumo!D$7/Contratos_volume!$E40 -> 124.7418732 | F39: =$B39*Resumo!E$7/Contratos_volume!$E40 -> 136.4506099 | G39: =$B39*Resumo!F$7/Contratos_volume!$E40 -> 142.9157112 | H39: =$B39*Resumo!G$7/Contratos_volume!$E40 -> 149.6142059 | I39: =$B39*Resumo!H$7/Contratos_volume!$E40 -> 155.4491599 | J39: =$B39*Resumo!I$7/Contratos_volume!$E40 -> 162.1334738 | K39: =$B39*Resumo!J$7/Contratos_volume!$E40 -> 168.6188127 | L39: =$B39*Resumo!K$7/Contratos_volume!$E40 -> 175.3635652 | M39: =$B39*Resumo!L$7/Contratos_volume!$E40 -> 182.3781078 | N39: =$B39*Resumo!M$7/Contratos_volume!$E40 -> 189.6732322 | O39: =$B39*Resumo!N$7/Contratos_volume!$E40 -> 197.2601614 | P39: =$B39*Resumo!O$7/Contratos_volume!$E40 -> 205.1505679 | Q39: =$B39*Resumo!P$7/Contratos_volume!$E40 -> 213.3565906 | R39: =$B39*Resumo!Q$7/Contratos_volume!$E40 -> 221.8908542 | S39: =$B39*Resumo!R$7/Contratos_volume!$E40 -> 230.7664884 | T39: =$B39*Resumo!S$7/Contratos_volume!$E40 -> 239.997148 | U39: =$B39*Resumo!T$7/Contratos_volume!$E40 -> 249.5970339 | V39: =$B39*Resumo!U$7/Contratos_volume!$E40 -> 259.5809152 | W39: =$B39*Resumo!V$7/Contratos_volume!$E40 -> 269.9641518 | X39: =$B39*Resumo!W$7/Contratos_volume!$E40 -> 280.7627179 | Y39: =$B39*Resumo!X$7/Contratos_volume!$E40 -> 291.9932266 | Z39: =$B39*Resumo!Y$7/Contratos_volume!$E40 -> 303.6729557 | AA39: =$B39*Resumo!Z$7/Contratos_volume!$E40 -> 315.8198739 | AB39: =$B39*Resumo!AA$7/Contratos_volume!$E40 -> 328.4526689 | AC39: =$B39*Resumo!AB$7/Contratos_volume!$E40 -> 341.5907756 | AD39: =$B39*Resumo!AC$7/Contratos_volume!$E40 -> 355.2544067
A40: =Contratos_volume!B41 -> 11ºLEN | B40: =IFERROR((Contratos_volume!H41/Contratos_volume!I41),0) -> 67.31022733 | D40: =$B40*Resumo!C$7/Contratos_volume!$E41 -> 82.10571828 | E40: =$B40*Resumo!D$7/Contratos_volume!$E41 -> 88.77968542 | F40: =$B40*Resumo!E$7/Contratos_volume!$E41 -> 97.11287728 | G40: =$B40*Resumo!F$7/Contratos_volume!$E41 -> 101.7141362 | H40: =$B40*Resumo!G$7/Contratos_volume!$E41 -> 106.4815029 | I40: =$B40*Resumo!H$7/Contratos_volume!$E41 -> 110.6342815 | J40: =$B40*Resumo!I$7/Contratos_volume!$E41 -> 115.3915556 | K40: =$B40*Resumo!J$7/Contratos_volume!$E41 -> 120.0072178 | L40: =$B40*Resumo!K$7/Contratos_volume!$E41 -> 124.8075065 | M40: =$B40*Resumo!L$7/Contratos_volume!$E41 -> 129.7998068 | N40: =$B40*Resumo!M$7/Contratos_volume!$E41 -> 134.9917991 | O40: =$B40*Resumo!N$7/Contratos_volume!$E41 -> 140.391471 | P40: =$B40*Resumo!O$7/Contratos_volume!$E41 -> 146.0071299 | Q40: =$B40*Resumo!P$7/Contratos_volume!$E41 -> 151.8474151 | R40: =$B40*Resumo!Q$7/Contratos_volume!$E41 -> 157.9213117 | S40: =$B40*Resumo!R$7/Contratos_volume!$E41 -> 164.2381641 | T40: =$B40*Resumo!S$7/Contratos_volume!$E41 -> 170.8076907 | U40: =$B40*Resumo!T$7/Contratos_volume!$E41 -> 177.6399983 | V40: =$B40*Resumo!U$7/Contratos_volume!$E41 -> 184.7455983 | W40: =$B40*Resumo!V$7/Contratos_volume!$E41 -> 192.1354222 | X40: =$B40*Resumo!W$7/Contratos_volume!$E41 -> 199.8208391 | Y40: =$B40*Resumo!X$7/Contratos_volume!$E41 -> 207.8136726 | Z40: =$B40*Resumo!Y$7/Contratos_volume!$E41 -> 216.1262195 | AA40: =$B40*Resumo!Z$7/Contratos_volume!$E41 -> 224.7712683 | AB40: =$B40*Resumo!AA$7/Contratos_volume!$E41 -> 233.7621191 | AC40: =$B40*Resumo!AB$7/Contratos_volume!$E41 -> 243.1126038 | AD40: =$B40*Resumo!AC$7/Contratos_volume!$E41 -> 252.837108
A41: =Contratos_volume!B42 -> 12ºLEE | B41: =IFERROR((Contratos_volume!H42/Contratos_volume!I42),0) -> 191.4137675 | D41: =$B41*Resumo!C$7/Contratos_volume!$E42 -> 195.5772812 | E41: =$B41*Resumo!D$7/Contratos_volume!$E42 -> 211.4747896 | F41: =$B41*Resumo!E$7/Contratos_volume!$E42 -> 231.3246008 | G41: =$B41*Resumo!F$7/Contratos_volume!$E42 -> 242.2848814 | H41: =$B41*Resumo!G$7/Contratos_volume!$E42 -> 253.6408336 | I41: =$B41*Resumo!H$7/Contratos_volume!$E42 -> 263.5328262 | J41: =$B41*Resumo!I$7/Contratos_volume!$E42 -> 274.8647377 | K41: =$B41*Resumo!J$7/Contratos_volume!$E42 -> 285.8593272 | L41: =$B41*Resumo!K$7/Contratos_volume!$E42 -> 297.2937003 | M41: =$B41*Resumo!L$7/Contratos_volume!$E42 -> 309.1854483 | N41: =$B41*Resumo!M$7/Contratos_volume!$E42 -> 321.5528662 | O41: =$B41*Resumo!N$7/Contratos_volume!$E42 -> 334.4149809 | P41: =$B41*Resumo!O$7/Contratos_volume!$E42 -> 347.7915801 | Q41: =$B41*Resumo!P$7/Contratos_volume!$E42 -> 361.7032433 | R41: =$B41*Resumo!Q$7/Contratos_volume!$E42 -> 376.171373 | S41: =$B41*Resumo!R$7/Contratos_volume!$E42 -> 391.218228 | T41: =$B41*Resumo!S$7/Contratos_volume!$E42 -> 406.8669571 | U41: =$B41*Resumo!T$7/Contratos_volume!$E42 -> 423.1416354 | V41: =$B41*Resumo!U$7/Contratos_volume!$E42 -> 440.0673008 | W41: =$B41*Resumo!V$7/Contratos_volume!$E42 -> 457.6699928 | X41: =$B41*Resumo!W$7/Contratos_volume!$E42 -> 475.9767925 | Y41: =$B41*Resumo!X$7/Contratos_volume!$E42 -> 495.0158642 | Z41: =$B41*Resumo!Y$7/Contratos_volume!$E42 -> 514.8164988 | AA41: =$B41*Resumo!Z$7/Contratos_volume!$E42 -> 535.4091587 | AB41: =$B41*Resumo!AA$7/Contratos_volume!$E42 -> 556.8255251 | AC41: =$B41*Resumo!AB$7/Contratos_volume!$E42 -> 579.0985461 | AD41: =$B41*Resumo!AC$7/Contratos_volume!$E42 -> 602.2624879
A42: =Contratos_volume!B43 -> 12ºLEE | B42: =IFERROR((Contratos_volume!H43/Contratos_volume!I43),0) -> 191.4545453 | D42: =$B42*Resumo!C$7/Contratos_volume!$E43 -> 195.618946 | E42: =$B42*Resumo!D$7/Contratos_volume!$E43 -> 211.5198411 | F42: =$B42*Resumo!E$7/Contratos_volume!$E43 -> 231.3738811 | G42: =$B42*Resumo!F$7/Contratos_volume!$E43 -> 242.3364965 | H42: =$B42*Resumo!G$7/Contratos_volume!$E43 -> 253.694868 | I42: =$B42*Resumo!H$7/Contratos_volume!$E43 -> 263.5889679 | J42: =$B42*Resumo!I$7/Contratos_volume!$E43 -> 274.9232935 | K42: =$B42*Resumo!J$7/Contratos_volume!$E43 -> 285.9202252 | L42: =$B42*Resumo!K$7/Contratos_volume!$E43 -> 297.3570342 | M42: =$B42*Resumo!L$7/Contratos_volume!$E43 -> 309.2513156 | N42: =$B42*Resumo!M$7/Contratos_volume!$E43 -> 321.6213682 | O42: =$B42*Resumo!N$7/Contratos_volume!$E43 -> 334.4862229 | P42: =$B42*Resumo!O$7/Contratos_volume!$E43 -> 347.8656719 | Q42: =$B42*Resumo!P$7/Contratos_volume!$E43 -> 361.7802987 | R42: =$B42*Resumo!Q$7/Contratos_volume!$E43 -> 376.2515107 | S42: =$B42*Resumo!R$7/Contratos_volume!$E43 -> 391.3015711 | T42: =$B42*Resumo!S$7/Contratos_volume!$E43 -> 406.953634 | U42: =$B42*Resumo!T$7/Contratos_volume!$E43 -> 423.2317793 | V42: =$B42*Resumo!U$7/Contratos_volume!$E43 -> 440.1610505 | W42: =$B42*Resumo!V$7/Contratos_volume!$E43 -> 457.7674925 | X42: =$B42*Resumo!W$7/Contratos_volume!$E43 -> 476.0781922 | Y42: =$B42*Resumo!X$7/Contratos_volume!$E43 -> 495.1213199 | Z42: =$B42*Resumo!Y$7/Contratos_volume!$E43 -> 514.9261727 | AA42: =$B42*Resumo!Z$7/Contratos_volume!$E43 -> 535.5232196 | AB42: =$B42*Resumo!AA$7/Contratos_volume!$E43 -> 556.9441484 | AC42: =$B42*Resumo!AB$7/Contratos_volume!$E43 -> 579.2219143 | AD42: =$B42*Resumo!AC$7/Contratos_volume!$E43 -> 602.3907909
A43: =Contratos_volume!B44 -> 12ºLEE | B43: =IFERROR((Contratos_volume!H44/Contratos_volume!I44),0) -> 165.2 | D43: =$B43*Resumo!C$7/Contratos_volume!$E44 -> 168.7933281 | E43: =$B43*Resumo!D$7/Contratos_volume!$E44 -> 182.5137016 | F43: =$B43*Resumo!E$7/Contratos_volume!$E44 -> 199.6451173 | G43: =$B43*Resumo!F$7/Contratos_volume!$E44 -> 209.1044073 | H43: =$B43*Resumo!G$7/Contratos_volume!$E44 -> 218.9051826 | I43: =$B43*Resumo!H$7/Contratos_volume!$E44 -> 227.4424847 | J43: =$B43*Resumo!I$7/Contratos_volume!$E44 -> 237.2225115 | K43: =$B43*Resumo!J$7/Contratos_volume!$E44 -> 246.711412 | L43: =$B43*Resumo!K$7/Contratos_volume!$E44 -> 256.5798685 | M43: =$B43*Resumo!L$7/Contratos_volume!$E44 -> 266.8430632 | N43: =$B43*Resumo!M$7/Contratos_volume!$E44 -> 277.5167857 | O43: =$B43*Resumo!N$7/Contratos_volume!$E44 -> 288.6174572 | P43: =$B43*Resumo!O$7/Contratos_volume!$E44 -> 300.1621554 | Q43: =$B43*Resumo!P$7/Contratos_volume!$E44 -> 312.1686417 | R43: =$B43*Resumo!Q$7/Contratos_volume!$E44 -> 324.6553873 | S43: =$B43*Resumo!R$7/Contratos_volume!$E44 -> 337.6416028 | T43: =$B43*Resumo!S$7/Contratos_volume!$E44 -> 351.1472669 | U43: =$B43*Resumo!T$7/Contratos_volume!$E44 -> 365.1931576 | V43: =$B43*Resumo!U$7/Contratos_volume!$E44 -> 379.8008839 | W43: =$B43*Resumo!V$7/Contratos_volume!$E44 -> 394.9929193 | X43: =$B43*Resumo!W$7/Contratos_volume!$E44 -> 410.792636 | Y43: =$B43*Resumo!X$7/Contratos_volume!$E44 -> 427.2243415 | Z43: =$B43*Resumo!Y$7/Contratos_volume!$E44 -> 444.3133151 | AA43: =$B43*Resumo!Z$7/Contratos_volume!$E44 -> 462.0858477 | AB43: =$B43*Resumo!AA$7/Contratos_volume!$E44 -> 480.5692817 | AC43: =$B43*Resumo!AB$7/Contratos_volume!$E44 -> 499.7920529 | AD43: =$B43*Resumo!AC$7/Contratos_volume!$E44 -> 519.783735
A44: =Contratos_volume!B45 -> 12ºLEE | B44: =IFERROR((Contratos_volume!H45/Contratos_volume!I45),0) -> 149.9908913 | D44: =$B44*Resumo!C$7/Contratos_volume!$E45 -> 153.2534003 | E44: =$B44*Resumo!D$7/Contratos_volume!$E45 -> 165.7106101 | F44: =$B44*Resumo!E$7/Contratos_volume!$E45 -> 181.264825 | G44: =$B44*Resumo!F$7/Contratos_volume!$E45 -> 189.8532472 | H44: =$B44*Resumo!G$7/Contratos_volume!$E45 -> 198.7517158 | I44: =$B44*Resumo!H$7/Contratos_volume!$E45 -> 206.5030327 | J44: =$B44*Resumo!I$7/Contratos_volume!$E45 -> 215.3826631 | K44: =$B44*Resumo!J$7/Contratos_volume!$E45 -> 223.9979696 | L44: =$B44*Resumo!K$7/Contratos_volume!$E45 -> 232.9578884 | M44: =$B44*Resumo!L$7/Contratos_volume!$E45 -> 242.276204 | N44: =$B44*Resumo!M$7/Contratos_volume!$E45 -> 251.9672521 | O44: =$B44*Resumo!N$7/Contratos_volume!$E45 -> 262.0459422 | P44: =$B44*Resumo!O$7/Contratos_volume!$E45 -> 272.5277799 | Q44: =$B44*Resumo!P$7/Contratos_volume!$E45 -> 283.4288911 | R44: =$B44*Resumo!Q$7/Contratos_volume!$E45 -> 294.7660467 | S44: =$B44*Resumo!R$7/Contratos_volume!$E45 -> 306.5566886 | T44: =$B44*Resumo!S$7/Contratos_volume!$E45 -> 318.8189561 | U44: =$B44*Resumo!T$7/Contratos_volume!$E45 -> 331.5717144 | V44: =$B44*Resumo!U$7/Contratos_volume!$E45 -> 344.834583 | W44: =$B44*Resumo!V$7/Contratos_volume!$E45 -> 358.6279663 | X44: =$B44*Resumo!W$7/Contratos_volume!$E45 -> 372.9730849 | Y44: =$B44*Resumo!X$7/Contratos_volume!$E45 -> 387.8920083 | Z44: =$B44*Resumo!Y$7/Contratos_volume!$E45 -> 403.4076887 | AA44: =$B44*Resumo!Z$7/Contratos_volume!$E45 -> 419.5439962 | AB44: =$B44*Resumo!AA$7/Contratos_volume!$E45 -> 436.3257561 | AC44: =$B44*Resumo!AB$7/Contratos_volume!$E45 -> 453.7787863 | AD44: =$B44*Resumo!AC$7/Contratos_volume!$E45 -> 471.9299378
A45: =Contratos_volume!B46 -> 13ºLEE | B45: =IFERROR((Contratos_volume!H46/Contratos_volume!I46),0) -> 270.8087 | D45: =$B45*Resumo!C$7/Contratos_volume!$E46 -> 269.0062989 | E45: =$B45*Resumo!D$7/Contratos_volume!$E46 -> 290.8724884 | F45: =$B45*Resumo!E$7/Contratos_volume!$E46 -> 318.1748633 | G45: =$B45*Resumo!F$7/Contratos_volume!$E46 -> 333.2501546 | H45: =$B45*Resumo!G$7/Contratos_volume!$E46 -> 348.8696718 | I45: =$B45*Resumo!H$7/Contratos_volume!$E46 -> 362.475589 | J45: =$B45*Resumo!I$7/Contratos_volume!$E46 -> 378.0620393 | K45: =$B45*Resumo!J$7/Contratos_volume!$E46 -> 393.1845209 | L45: =$B45*Resumo!K$7/Contratos_volume!$E46 -> 408.9119017 | M45: =$B45*Resumo!L$7/Contratos_volume!$E46 -> 425.2683778 | N45: =$B45*Resumo!M$7/Contratos_volume!$E46 -> 442.2791129 | O45: =$B45*Resumo!N$7/Contratos_volume!$E46 -> 459.9702774 | P45: =$B45*Resumo!O$7/Contratos_volume!$E46 -> 478.3690885 | Q45: =$B45*Resumo!P$7/Contratos_volume!$E46 -> 497.503852 | R45: =$B45*Resumo!Q$7/Contratos_volume!$E46 -> 517.4040061 | S45: =$B45*Resumo!R$7/Contratos_volume!$E46 -> 538.1001664 | T45: =$B45*Resumo!S$7/Contratos_volume!$E46 -> 559.624173 | U45: =$B45*Resumo!T$7/Contratos_volume!$E46 -> 582.0091399 | V45: =$B45*Resumo!U$7/Contratos_volume!$E46 -> 605.2895055 | W45: =$B45*Resumo!V$7/Contratos_volume!$E46 -> 629.5010858 | X45: =$B45*Resumo!W$7/Contratos_volume!$E46 -> 654.6811292 | Y45: =$B45*Resumo!X$7/Contratos_volume!$E46 -> 680.8683744 | Z45: =$B45*Resumo!Y$7/Contratos_volume!$E46 -> 708.1031093 | AA45: =$B45*Resumo!Z$7/Contratos_volume!$E46 -> 736.4272337 | AB45: =$B45*Resumo!AA$7/Contratos_volume!$E46 -> 765.8843231 | AC45: =$B45*Resumo!AB$7/Contratos_volume!$E46 -> 796.519696 | AD45: =$B45*Resumo!AC$7/Contratos_volume!$E46 -> 828.3804838
A46: =Contratos_volume!B47 -> 13ºLEE | B46: =IFERROR((Contratos_volume!H47/Contratos_volume!I47),0) -> 270.8 | D46: =$B46*Resumo!C$7/Contratos_volume!$E47 -> 268.9976568 | E46: =$B46*Resumo!D$7/Contratos_volume!$E47 -> 290.8631438 | F46: =$B46*Resumo!E$7/Contratos_volume!$E47 -> 318.1646416 | G46: =$B46*Resumo!F$7/Contratos_volume!$E47 -> 333.2394487 | H46: =$B46*Resumo!G$7/Contratos_volume!$E47 -> 348.858464 | I46: =$B46*Resumo!H$7/Contratos_volume!$E47 -> 362.4639441 | J46: =$B46*Resumo!I$7/Contratos_volume!$E47 -> 378.0498937 | K46: =$B46*Resumo!J$7/Contratos_volume!$E47 -> 393.1718894 | L46: =$B46*Resumo!K$7/Contratos_volume!$E47 -> 408.898765 | M46: =$B46*Resumo!L$7/Contratos_volume!$E47 -> 425.2547156 | N46: =$B46*Resumo!M$7/Contratos_volume!$E47 -> 442.2649042 | O46: =$B46*Resumo!N$7/Contratos_volume!$E47 -> 459.9555004 | P46: =$B46*Resumo!O$7/Contratos_volume!$E47 -> 478.3537204 | Q46: =$B46*Resumo!P$7/Contratos_volume!$E47 -> 497.4878692 | R46: =$B46*Resumo!Q$7/Contratos_volume!$E47 -> 517.387384 | S46: =$B46*Resumo!R$7/Contratos_volume!$E47 -> 538.0828794 | T46: =$B46*Resumo!S$7/Contratos_volume!$E47 -> 559.6061945 | U46: =$B46*Resumo!T$7/Contratos_volume!$E47 -> 581.9904423 | V46: =$B46*Resumo!U$7/Contratos_volume!$E47 -> 605.27006 | W46: =$B46*Resumo!V$7/Contratos_volume!$E47 -> 629.4808624 | X46: =$B46*Resumo!W$7/Contratos_volume!$E47 -> 654.6600969 | Y46: =$B46*Resumo!X$7/Contratos_volume!$E47 -> 680.8465008 | Z46: =$B46*Resumo!Y$7/Contratos_volume!$E47 -> 708.0803608 | AA46: =$B46*Resumo!Z$7/Contratos_volume!$E47 -> 736.4035752 | AB46: =$B46*Resumo!AA$7/Contratos_volume!$E47 -> 765.8597183 | AC46: =$B46*Resumo!AB$7/Contratos_volume!$E47 -> 796.494107 | AD46: =$B46*Resumo!AC$7/Contratos_volume!$E47 -> 828.3538713
A47: =Contratos_volume!B48 -> 13ºLEE | B47: =IFERROR((Contratos_volume!H48/Contratos_volume!I48),0) -> 270.8232777 | D47: =$B47*Resumo!C$7/Contratos_volume!$E48 -> 269.0207795 | E47: =$B47*Resumo!D$7/Contratos_volume!$E48 -> 290.8881461 | F47: =$B47*Resumo!E$7/Contratos_volume!$E48 -> 318.1919907 | G47: =$B47*Resumo!F$7/Contratos_volume!$E48 -> 333.2680936 | H47: =$B47*Resumo!G$7/Contratos_volume!$E48 -> 348.8884515 | I47: =$B47*Resumo!H$7/Contratos_volume!$E48 -> 362.4951011 | J47: =$B47*Resumo!I$7/Contratos_volume!$E48 -> 378.0823905 | K47: =$B47*Resumo!J$7/Contratos_volume!$E48 -> 393.2056861 | L47: =$B47*Resumo!K$7/Contratos_volume!$E48 -> 408.9339135 | M47: =$B47*Resumo!L$7/Contratos_volume!$E48 -> 425.2912701 | N47: =$B47*Resumo!M$7/Contratos_volume!$E48 -> 442.3029209 | O47: =$B47*Resumo!N$7/Contratos_volume!$E48 -> 459.9950377 | P47: =$B47*Resumo!O$7/Contratos_volume!$E48 -> 478.3948392 | Q47: =$B47*Resumo!P$7/Contratos_volume!$E48 -> 497.5306328 | R47: =$B47*Resumo!Q$7/Contratos_volume!$E48 -> 517.4318581 | S47: =$B47*Resumo!R$7/Contratos_volume!$E48 -> 538.1291324 | T47: =$B47*Resumo!S$7/Contratos_volume!$E48 -> 559.6542977 | U47: =$B47*Resumo!T$7/Contratos_volume!$E48 -> 582.0404696 | V47: =$B47*Resumo!U$7/Contratos_volume!$E48 -> 605.3220884 | W47: =$B47*Resumo!V$7/Contratos_volume!$E48 -> 629.5349719 | X47: =$B47*Resumo!W$7/Contratos_volume!$E48 -> 654.7163708 | Y47: =$B47*Resumo!X$7/Contratos_volume!$E48 -> 680.9050257 | Z47: =$B47*Resumo!Y$7/Contratos_volume!$E48 -> 708.1412267 | AA47: =$B47*Resumo!Z$7/Contratos_volume!$E48 -> 736.4668757 | AB47: =$B47*Resumo!AA$7/Contratos_volume!$E48 -> 765.9255508 | AC47: =$B47*Resumo!AB$7/Contratos_volume!$E48 -> 796.5625728 | AD47: =$B47*Resumo!AC$7/Contratos_volume!$E48 -> 828.4250757
A48: =Contratos_volume!B49 -> 13ºLEE | B48: =IFERROR((Contratos_volume!H49/Contratos_volume!I49),0) -> 261.997913 | D48: =$B48*Resumo!C$7/Contratos_volume!$E49 -> 260.2541532 | E48: =$B48*Resumo!D$7/Contratos_volume!$E49 -> 281.4089242 | F48: =$B48*Resumo!E$7/Contratos_volume!$E49 -> 307.8230137 | G48: =$B48*Resumo!F$7/Contratos_volume!$E49 -> 322.407829 | H48: =$B48*Resumo!G$7/Contratos_volume!$E49 -> 337.5191636 | I48: =$B48*Resumo!H$7/Contratos_volume!$E49 -> 350.682411 | J48: =$B48*Resumo!I$7/Contratos_volume!$E49 -> 365.7617547 | K48: =$B48*Resumo!J$7/Contratos_volume!$E49 -> 380.3922249 | L48: =$B48*Resumo!K$7/Contratos_volume!$E49 -> 395.6079139 | M48: =$B48*Resumo!L$7/Contratos_volume!$E49 -> 411.4322304 | N48: =$B48*Resumo!M$7/Contratos_volume!$E49 -> 427.8895196 | O48: =$B48*Resumo!N$7/Contratos_volume!$E49 -> 445.0051004 | P48: =$B48*Resumo!O$7/Contratos_volume!$E49 -> 462.8053044 | Q48: =$B48*Resumo!P$7/Contratos_volume!$E49 -> 481.3175166 | R48: =$B48*Resumo!Q$7/Contratos_volume!$E49 -> 500.5702173 | S48: =$B48*Resumo!R$7/Contratos_volume!$E49 -> 520.593026 | T48: =$B48*Resumo!S$7/Contratos_volume!$E49 -> 541.416747 | U48: =$B48*Resumo!T$7/Contratos_volume!$E49 -> 563.0734169 | V48: =$B48*Resumo!U$7/Contratos_volume!$E49 -> 585.5963536 | W48: =$B48*Resumo!V$7/Contratos_volume!$E49 -> 609.0202077 | X48: =$B48*Resumo!W$7/Contratos_volume!$E49 -> 633.381016 | Y48: =$B48*Resumo!X$7/Contratos_volume!$E49 -> 658.7162567 | Z48: =$B48*Resumo!Y$7/Contratos_volume!$E49 -> 685.0649069 | AA48: =$B48*Resumo!Z$7/Contratos_volume!$E49 -> 712.4675032 | AB48: =$B48*Resumo!AA$7/Contratos_volume!$E49 -> 740.9662033 | AC48: =$B48*Resumo!AB$7/Contratos_volume!$E49 -> 770.6048515 | AD48: =$B48*Resumo!AC$7/Contratos_volume!$E49 -> 801.4290455
A49: =Contratos_volume!B50 -> 14ºLEE | B49: =IFERROR((Contratos_volume!H50/Contratos_volume!I50),0) -> 201 | D49: =$B49*Resumo!C$7/Contratos_volume!$E50 -> 193.0052711 | E49: =$B49*Resumo!D$7/Contratos_volume!$E50 -> 208.6937136 | F49: =$B49*Resumo!E$7/Contratos_volume!$E50 -> 228.2824826 | G49: =$B49*Resumo!F$7/Contratos_volume!$E50 -> 239.098626 | H49: =$B49*Resumo!G$7/Contratos_volume!$E50 -> 250.3052377 | I49: =$B49*Resumo!H$7/Contratos_volume!$E50 -> 260.067142 | J49: =$B49*Resumo!I$7/Contratos_volume!$E50 -> 271.2500291 | K49: =$B49*Resumo!J$7/Contratos_volume!$E50 -> 282.1000303 | L49: =$B49*Resumo!K$7/Contratos_volume!$E50 -> 293.3840315 | M49: =$B49*Resumo!L$7/Contratos_volume!$E50 -> 305.1193927 | N49: =$B49*Resumo!M$7/Contratos_volume!$E50 -> 317.3241684 | O49: =$B49*Resumo!N$7/Contratos_volume!$E50 -> 330.0171352 | P49: =$B49*Resumo!O$7/Contratos_volume!$E50 -> 343.2178206 | Q49: =$B49*Resumo!P$7/Contratos_volume!$E50 -> 356.9465334 | R49: =$B49*Resumo!Q$7/Contratos_volume!$E50 -> 371.2243947 | S49: =$B49*Resumo!R$7/Contratos_volume!$E50 -> 386.0733705 | T49: =$B49*Resumo!S$7/Contratos_volume!$E50 -> 401.5163054 | U49: =$B49*Resumo!T$7/Contratos_volume!$E50 -> 417.5769576 | V49: =$B49*Resumo!U$7/Contratos_volume!$E50 -> 434.2800359 | W49: =$B49*Resumo!V$7/Contratos_volume!$E50 -> 451.6512373 | X49: =$B49*Resumo!W$7/Contratos_volume!$E50 -> 469.7172868 | Y49: =$B49*Resumo!X$7/Contratos_volume!$E50 -> 488.5059783 | Z49: =$B49*Resumo!Y$7/Contratos_volume!$E50 -> 508.0462174 | AA49: =$B49*Resumo!Z$7/Contratos_volume!$E50 -> 528.3680661 | AB49: =$B49*Resumo!AA$7/Contratos_volume!$E50 -> 549.5027887 | AC49: =$B49*Resumo!AB$7/Contratos_volume!$E50 -> 571.4829003 | AD49: =$B49*Resumo!AC$7/Contratos_volume!$E50 -> 594.3422163
A50: =Contratos_volume!B51 -> 14ºLEE | B50: =IFERROR((Contratos_volume!H51/Contratos_volume!I51),0) -> 191.9935185 | D50: =$B50*Resumo!C$7/Contratos_volume!$E51 -> 184.3570204 | E50: =$B50*Resumo!D$7/Contratos_volume!$E51 -> 199.3424894 | F50: =$B50*Resumo!E$7/Contratos_volume!$E51 -> 218.0535177 | G50: =$B50*Resumo!F$7/Contratos_volume!$E51 -> 228.3850074 | H50: =$B50*Resumo!G$7/Contratos_volume!$E51 -> 239.0894691 | I50: =$B50*Resumo!H$7/Contratos_volume!$E51 -> 248.4139584 | J50: =$B50*Resumo!I$7/Contratos_volume!$E51 -> 259.0957586 | K50: =$B50*Resumo!J$7/Contratos_volume!$E51 -> 269.459589 | L50: =$B50*Resumo!K$7/Contratos_volume!$E51 -> 280.2379725 | M50: =$B50*Resumo!L$7/Contratos_volume!$E51 -> 291.4474914 | N50: =$B50*Resumo!M$7/Contratos_volume!$E51 -> 303.1053911 | O50: =$B50*Resumo!N$7/Contratos_volume!$E51 -> 315.2296067 | P50: =$B50*Resumo!O$7/Contratos_volume!$E51 -> 327.838791 | Q50: =$B50*Resumo!P$7/Contratos_volume!$E51 -> 340.9523426 | R50: =$B50*Resumo!Q$7/Contratos_volume!$E51 -> 354.5904363 | S50: =$B50*Resumo!R$7/Contratos_volume!$E51 -> 368.7740538 | T50: =$B50*Resumo!S$7/Contratos_volume!$E51 -> 383.525016 | U50: =$B50*Resumo!T$7/Contratos_volume!$E51 -> 398.8660166 | V50: =$B50*Resumo!U$7/Contratos_volume!$E51 -> 414.8206573 | W50: =$B50*Resumo!V$7/Contratos_volume!$E51 -> 431.4134835 | X50: =$B50*Resumo!W$7/Contratos_volume!$E51 -> 448.6700229 | Y50: =$B50*Resumo!X$7/Contratos_volume!$E51 -> 466.6168238 | Z50: =$B50*Resumo!Y$7/Contratos_volume!$E51 -> 485.2814968 | AA50: =$B50*Resumo!Z$7/Contratos_volume!$E51 -> 504.6927566 | AB50: =$B50*Resumo!AA$7/Contratos_volume!$E51 -> 524.8804669 | AC50: =$B50*Resumo!AB$7/Contratos_volume!$E51 -> 545.8756856 | AD50: =$B50*Resumo!AC$7/Contratos_volume!$E51 -> 567.710713
